Workbook

Sheet Dati Generali CER 1 Sem. 2023
A1: Scheda n. 1 - Produzione di Rifiuti Urbani e Raccolta Differenziata 1° Semestre 2023.
A2: =COUNTA(E3:E110) -> 108 | B2: ID COMUNE | C2: COMUNE | D2: ABITANTI al 30/06/2023 | E2: R.S.U. + R.S.A. (Kg/1°Sem.) 200301 | F2: R.S.U. COVID (A+A1) 200301* | G2: Altri oli per motori, ingranaggi e lubrificazione 130208* | H2: Legno da demolizione 170201 | I2: Miscele bituminose (diverse da quelle 170301*) 170302 | J2: Alluminio 170402 | K2: Ferro e acciaio 170405 | L2: Materiali da costruzione contenenti amianto 170605* | M2: Percolato di discarica,(diverso dalla voce 190702) 190703 | N2: Residui di vagliatura 190801 | O2: FANGHI DI DEPURAZIONE (Kg/anno) prodotti dal trattamento delle acque reflue urbane 190805 | P2: altri rifiuti (compresi materiali misti) prodotti dal trattamento meccanico dei rifiuti,(diversi dalla voce 191211) 191212 | Q2: Rifiuti della pulizia delle fognature 200306 | R2: Residui della pulizia stradale 200303 Smaltimento | S2: Ingombranti - 200307 Smaltimento | T2: Rifiuti urbani non specificati altrimenti 200399 | U2: RACCOL. DIFFEREN. (Kg/1°Sem.) | V2: R.S.U. + R.S.A. + RACC. DIFF. (Kg/1°Sem.) | W2: % RACC. DIFF. (1°Sem.) | X2: Compostaggio Domestico | Y2: Toner per stampa esauriti,(diversi dalla voce 080317) 080318 | Z2: Imballaggi Carta e Cartone (Raccolta Selettiva) 150101 | AA2: Imballaggi in Plastica 150102 | AB2: Imballaggi in Legno 150103 | AC2: Imballaaggi in metallo 150104 | AD2: Imballaggi Materiali compositi 150105 | AE2: Imball. in materiali misti 150106 | AF2: Imballaggi in Vetro 150107 | AG2: Imballaggi in Materiale tessile 150109 | AH2: Imballaggi contenenti residui di sostanze pericolose o contaminati da tali sostanze 150110* | AI2: Imballaggi metallici contenenti matrici solide porose pericolose (ad esempio amianto) 150111* | AJ2: Pneumatici usati 160103 | AK2: Filtri dell'olio 160107* | AL2: Apparecchiature fuori uso contenenti PCB o da essi contaminate(diverse dalla voce 160209) 160210* | AM2: Apparecchiature fuori uso, contenenti clorofluorocarburi, HCFC, HFC 160211* | AN2: Apparecchiature fuori uso contenenti amianto in fibre libere 160212* | AO2: App.fuori uso contenete comp.pericolosi(diversi dalle voci da 160209 a 160212) 160213* | AP2: Apparecchiature fuori uso(diverse dalle voci da 160209 a 160213*) 160214* | AQ2: Componenti pericolosi rimossi da apparecchiature fuori uso 160215* | AR2: Componenti rimossi da apparecchiature fuori uso,(diversi dalla voce 160215) 160216 | AS2: Gas in contenitori a pressione limitatamente ad estintori ed aerosol ad uso domenstico 160504* | AT2: Gas in contenitori a pressione (diversi dalla voce 160504*) limitatamente ad estintori ed aerosol ad uso domenstico 160505 | AU2: Miscugli o frazioni separate di cemento, mattoni, mattonelle e ceramiche(diverse dalla voce 170106) 170107 | AV2: Rifiuti misti dell'attività di costruzione e demolizione, (diversi dalle voci 170901, 170902 e 170903) 170904 | AW2: Carta e Cartone (Raccolta Congiunta) 200101 | AX2: Vetro 200102 | AY2: Rifiuti biodegradabili di cucine e mense 200108 | AZ2: Abbigliamento 200110 | BA2: Prodotti tessili 200111 | BB2: Solventi 200113* | BC2: Acidi 200114* | BD2: Sostanze Alcaline 200115* | BE2: Prodotti Fotochimici 200117* | BF2: Pesticidi 200119* | BG2: Tubi fluorescenti ed altri rifiuti contenenti Mercurio 200121* | BH2: Apparec. Fuori uso conten. CFC e mat. peric. 200123* | BI2: Oli e Grassi commestibili 200125 | BJ2: Oli e grassi (diversi dalla voce 200125) 200126* | BK2: Vernici,Inchiostri,Adesivi e Resine contenenti sostanze pericolose 200127* | BL2: Vernici,Inchiostri,Adesivi e Resine (diversi dalla voce 200127*) 200128 | BM2: Detergento contenente sostanze pericolose 200129* | BN2: Detergenti (diversi della voce 200129*) 200130 | BO2: Medicinali citotossici e citostatici 200131* | BP2: Medicinali (diversi dlla voce 200131*) 200132 | BQ2: Batterie ed Accumulatori (diversi dalle voci 160601, 160602 e 160603) 200133* | BR2: Batterie ed accumulatori (diversi dlla voce 200133*) 200134 | BS2: Apparecc. elettr. ed elettroniche fuori uso contenenti Mat. Peric. 200135* | BT2: Apparecc. eletr. ed elettroniche fuori uso(diverse da 200121, 200123 e 200135 200136 | BU2: Legno contenente sostanze pericolose 200137* | BV2: Legno 200138 | BW2: Plastica 200139 | BX2: Metallo 200140 | BY2: Rifiuti prodotti dalla pulizia dei camini provenienti da utenze domestiche 200141 | BZ2: Rifiuti biodegradabili 200201 | CA2: Altri rifiuti non biodegradabili 200203 | CB2: Rifiuti dei Mercati 200302 | CC2: Residui della pulizia stradale - 200303 Recupero | CD2: Ingombranti - 200307 Recupero | CE2: TOTALE RD (Kg/1°Sem.) | CF2: R.S.U. + R.S.A.+ R.D. - (R.T. Kg. pro capite/g) | CG2: R.S.U. + R.S.A. 200301 - (R.I. Kg. pro capite/g) | CH2: R.D. - (Kg. pro capite/g)
A3: 1 | B3: M211 | C3: ACQUEDOLCI | D3: 5486 | E3: 142840 | U3: =IF(CE3=0,"",CE3) -> 712870 | V3: =IF(E3=0,"",SUM(U3,E3,R3,S3,T3)) -> 855710 | W3: =IFERROR(IF(E3<>0,IF(U3=0,0,(U3/V3*100)/100),IF(U3=0,"","")),0) -> 0.8330742892 | Z3: 35520 | AA3: 109070 | AF3: 114350 | AW3: 80280 | AY3: 339430 | AZ3: 8900 | BI3: 1510 | CD3: 23810 | CE3: =IF(SUM(X3:CD3)=0,"",SUM(X3:CD3)) -> 712870 | CF3: =IF(SUM(E3)=0,"",V3/D3/181) -> 0.8617717022 | CG3: =IF(E3=0,"",E3/D3/181) -> 0.1438518539 | CH3: =IF(SUM(Y3:CD3)=0,"",CE3/D3/181) -> 0.7179198482 | CJ3: 2023-11-08T09:59:15
A4: 2 | B4: A177 | C4: ALCARA LI FUSI | D4: 1704 | E4: 36340 | U4: =IF(CE4=0,"",CE4) -> 151361 | V4: 187701 | W4: 0.8063942121 | AA4: 18690 | AF4: 33220 | AW4: 19730 | AY4: 70690 | AZ4: 3401 | BH4: 550 | BS4: 790 | BT4: 1230 | CD4: 3060 | CE4: =IF(SUM(X4:CD4)=0,"",SUM(X4:CD4)) -> 151361 | CF4: 0.6085810443 | CG4: =IF(E4=0,"",E4/D4/181) -> 0.1178248126 | CH4: 0.4907562317 | CJ4: 2023-11-07T16:19:31
A5: 3 | B5: A194 | C5: ALI' | D5: 656 | E5: 14360 | U5: 34405 | V5: 48765 | W5: 0.7055265047 | AE5: 3110 | AF5: 6290 | AW5: 3250 | AY5: 17950 | BP5: 5 | BZ5: 1110 | CD5: 2690 | CE5: 34405 | CF5: 0.4107010511 | CG5: 0.120940574 | CH5: 0.289760477 | CJ5: 2023-11-07T16:23:43
A6: 4 | B6: A201 | C6: ALI' TERME | D6: 2319 | E6: 94170 | U6: 292644 | V6: 386814 | W6: 0.7565496595 | AE6: 42260 | AF6: 33750 | AW6: 54440 | AY6: 130510 | BP6: 104 | BZ6: 10110 | CD6: 21470 | CE6: 292644 | CF6: 0.921558397 | CG6: 0.2243537055 | CH6: 0.6972046915 | CJ6: 2023-11-08T10:39:33
A7: 5 | B7: A313 | C7: ANTILLO | D7: 807 | E7: 19700 | U7: 72485 | V7: 92185 | W7: 0.7862992895 | X7: 3394 | AE7: 10880 | AF7: 8640 | AW7: 8280 | AY7: 31920 | BA7: 3211 | CD7: 6160 | CE7: 72485 | CF7: 0.6311144886 | CG7: 0.1348696146 | CH7: 0.4962448739 | CJ7: 2023-11-08T10:46:45
A8: 6 | B8: A638 | C8: BARCELLONA P.G. | D8: 39981 | E8: 2749700 | U8: 5677499 | V8: 8427199 | W8: 0.673711277 | X8: 154719 | Z8: 430730 | AA8: 76020 | AC8: 13480 | AE8: 546740 | AF8: 500240 | AI8: 480 | AJ8: 8260 | AR8: 380 | AW8: 617200 | AY8: 1899000 | AZ8: 50820 | BG8: 490 | BH8: 28380 | BI8: 2380 | BP8: 1040 | BQ8: 2830 | BR8: 2280 | BS8: 25840 | BT8: 61580 | BV8: 180160 | BW8: 20570 | BX8: 60420 | BZ8: 481680 | CC8: 374800 | CD8: 136980 | CE8: 5677499 | CF8: 1.164530915 | CG8: 0.379973305 | CH8: 0.7845576096 | CJ8: 2023-11-08T11:00:21
A9: 7 | B9: A698 | C9: BASICO' | D9: 597 | E9: 50100 | U9: 60157 | V9: 110257 | W9: 0.5456070816 | X9: 11987 | AE9: 12040 | AF9: 10900 | AW9: 11080 | AY9: 12090 | CD9: 2060 | CE9: 60157 | CF9: 1.020359625 | CG9: 0.4636441878 | CH9: 0.5567154372 | CJ9: 2023-11-23T15:38:00
A10: 8 | B10: B198 | C10: BROLO | D10: 5752 | E10: 332380 | U10: 960230 | V10: 1292610 | W10: 0.7428613426 | X10: 45570 | Z10: 103100 | AA10: 7390 | AE10: 102620 | AF10: 96770 | AR10: 970 | AW10: 59070 | AY10: 375580 | AZ10: 22580 | BH10: 4080 | BI10: 960 | BP10: 400 | BS10: 9620 | BT10: 9960 | BV10: 25530 | BX10: 8150 | BZ10: 50180 | CC10: 18340 | CD10: 19360 | CE10: 960230 | CF10: 1.241566709 | CG10: 0.3192547968 | CH10: 0.9223119126 | CJ10: 2023-11-08T11:02:40
A11: 9 | B11: B660 | C11: CAPIZZI | D11: 2843 | E11: 143210 | U11: 216813 | V11: 360023 | W11: 0.6022198582 | Z11: 3120 | AA11: 22520 | AF11: 31620 | AW11: 21053 | AY11: 122580 | BH11: 3160 | BS11: 2960 | BT11: 2240 | BW11: 4000 | CD11: 3560 | CE11: 216813 | CF11: 0.6996402913 | CG11: 0.2783030143 | CH11: 0.421337277 | CJ11: 2023-11-28T14:57:24
A12: 10 | B12: B666 | C12: CAPO D'ORLANDO | D12: 13074 | E12: 434380 | U12: 2638757 | V12: 3073137 | W12: 0.8586525755 | Y12: 730 | Z12: 209290 | AA12: 303020 | AB12: 11790 | AF12: 323570 | AW12: 404790 | AY12: 893990 | AZ12: 34437 | BG12: 200 | BH12: 17220 | BI12: 1400 | BP12: 550 | BR12: 340 | BS12: 22000 | BT12: 6200 | BX12: 52860 | BZ12: 179130 | CD12: 177240 | CE12: 2638757 | CF12: 1.298658212 | CG12: 0.1835619935 | CH12: 1.115096218 | CJ12: 2023-11-08T11:07:58
A13: 11 | B13: B695 | C13: CAPRILEONE | D13: 4364 | E13: 65820 | U13: 586390 | V13: 652210 | W13: 0.8990815842 | Z13: 20690 | AA13: 58920 | AB13: 630 | AF13: 94820 | AW13: 82080 | AY13: 269640 | BZ13: 12740 | CD13: 46870 | CE13: 586390 | CF13: 0.825703521 | CG13: 0.0833286913 | CH13: 0.7423748297 | CJ13: 2023-12-07T12:34:19
A14: 12 | B14: B804 | C14: CARONIA | D14: 3058 | E14: 173500 | U14: 377578 | V14: 551078 | W14: 0.685162536 | X14: 3588 | Y14: 30 | Z14: 31940 | AA14: 17700 | AE14: 79940 | AF14: 44860 | AY14: 192740 | AZ14: 3050 | BI14: 500 | BP14: 65 | BR14: 45 | CD14: 3120 | CE14: 377578 | CF14: 0.9956278071 | CG14: 0.3134609339 | CH14: 0.6821668732 | CJ14: 2023-11-16T18:14:17
A15: 13 | B15: B918 | C15: CASALVECCHIO SICULO | D15: 726 | E15: 22840 | U15: 65320 | V15: 88160 | W15: 0.7409255898 | AE15: 12040 | AF15: 8920 | AW15: 10200 | AY15: 31960 | CD15: 2200 | CE15: 65320 | CF15: 0.6708978281 | CG15: 0.1738124591 | CH15: 0.497085369 | CJ15: 2023-11-08T11:21:23
A16: 14 | B16: C094 | C16: CASTEL DI LUCIO | D16: 1231 | E16: 15280 | K16: 4060 | U16: 100374 | V16: 115654 | W16: 0.8678817853 | Y16: 40 | Z16: 3720 | AE16: 18490 | AF16: 19380 | AW16: 4090 | AY16: 48460 | AZ16: 2214 | BP16: 70 | BR16: 20 | BW16: 1020 | CD16: 2870 | CE16: 100374 | CF16: 0.51906773 | CG16: 0.06857830179 | CH16: 0.4504894283 | CJ16: 2023-11-08T11:27:38
A17: 15 | B17: C051 | C17: CASTELL'UMBERTO | D17: 2832 | E17: 85100 | U17: 253240 | V17: 338340 | W17: 0.7484778625 | AA17: 30920 | AF17: 53270 | AW17: 26120 | AY17: 121240 | AZ17: 3180 | BT17: 2240 | BV17: 280 | CD17: 15990 | CE17: 253240 | CF17: 0.6600571215 | CG17: 0.1660189781 | CH17: 0.4940381434 | CJ17: 2023-11-28T10:25:06
A18: 16 | B18: C210 | C18: CASTELMOLA | D18: 1070 | E18: 80780 | U18: 112990 | V18: 193770 | W18: 0.5831140011 | AE18: 17490 | AF18: 25540 | AW18: 14290 | AY18: 39910 | BH18: 1640 | CD18: 14120 | CE18: 112990 | CF18: 1.000516342 | CG18: 0.4171012547 | CH18: 0.5834150875 | CJ18: 2023-12-05T08:04:44
A19: 17 | B19: C347 | C19: CASTROREALE | D19: 2253 | E19: 71160 | U19: 204918 | V19: 276078 | W19: 0.7422467564 | X19: 21438 | Z19: 11610 | AE19: 27540 | AF19: 22920 | AW19: 9540 | AY19: 86620 | BH19: 970 | BS19: 530 | BT19: 1480 | BZ19: 19960 | CD19: 2310 | CE19: 204918 | CF19: 0.6770052453 | CG19: 0.1745002979 | CH19: 0.5025049474 | CJ19: 2023-11-08T11:36:48
A20: 18 | B20: C568 | C20: CESARO' | D20: 2161 | E20: 149610 | U20: 166699 | V20: 316309 | W20: 0.5270131422 | AA20: 21090 | AF20: 25920 | AW20: 34490 | AY20: 75040 | AZ20: 4239 | BI20: 220 | CD20: 5700 | CE20: 166699 | CF20: 0.8086828024 | CG20: 0.3824963376 | CH20: 0.4261864647 | CJ20: 2023-11-08T11:45:21
A21: 19 | B21: C956 | C21: CONDRO' | D21: 470 | E21: 35240 | U21: 39840 | V21: 75080 | W21: 0.5306339904 | AE21: 6060 | AF21: 5300 | AW21: 4820 | AY21: 22080 | BH21: 200 | BP21: 40 | BS21: 110 | BT21: 380 | CD21: 850 | CE21: 39840 | CF21: 0.8825672975 | CG21: 0.4142470906 | CH21: 0.4683202069 | CJ21: 2023-11-08T11:47:32
A22: 20 | B22: D474 | C22: FALCONE | D22: 2794 | E22: 201240 | U22: 405320 | V22: 606560 | W22: 0.6682273806 | Z22: 5060 | AE22: 50420 | AF22: 50460 | AW22: 64740 | AY22: 202980 | BI22: 1320 | BV22: 9500 | CD22: 20840 | CE22: 405320 | CF22: 1.199413107 | CG22: 0.3979324282 | CH22: 0.8014806788 | CJ22: 2023-11-08T11:51:21
A23: 21 | B23: D569 | C23: FICARRA | D23: 1289 | E23: 37920 | P23: 17500 | U23: 166330 | V23: 204250 | W23: 0.8143451652 | X23: 14400 | AA23: 14920 | AF23: 32750 | AW23: 19430 | AY23: 60210 | AZ23: 3310 | BH23: 1500 | BI23: 100 | BS23: 600 | CD23: 19110 | CE23: 166330 | CF23: 0.8754484396 | CG23: 0.1625312354 | CH23: 0.7129172042 | CJ23: 2023-11-09T08:05:03
A24: 22 | B24: D622 | C24: FIUMEDINISI | D24: 1277 | E24: 33280 | U24: 101394 | V24: 134674 | W24: 0.7528847439 | AE24: 12580 | AF24: 12790 | AW24: 12170 | AY24: 56940 | BP24: 24 | BZ24: 2720 | CD24: 4170 | CE24: 101394 | CF24: 0.5826587695 | CG24: 0.143983871 | CH24: 0.4386748984 | CJ24: 2023-11-09T08:12:26
A25: 23 | B25: D635 | C25: FLORESTA | D25: 469 | E25: 19010 | U25: 47760 | V25: 66770 | W25: 0.7152912985 | AA25: 7400 | AF25: 8620 | AW25: 5880 | AY25: 23780 | BT25: 260 | CD25: 1820 | CE25: 47760 | CF25: 0.7865565621 | CG25: 0.2239394975 | CH25: 0.5626170646 | CJ25: 2023-11-24T10:20:09
A26: 24 | B26: D661 | C26: FONDACHELLI FANTINA | D26: 1056 | E26: 69240 | U26: 45840 | V26: 115080 | W26: 0.3983315954 | AE26: 10020 | AF26: 7140 | AW26: 9980 | AY26: 18700 | CE26: 45840 | CF26: 0.6020843797 | CG26: 0.3622551482 | CH26: 0.2398292315 | CJ26: 2023-11-09T08:15:01
A27: 25 | B27: D733 | C27: FORZA D'AGRO' | D27: 835 | E27: 49360 | U27: 139880 | V27: 189240 | W27: 0.7391671951 | AE27: 18780 | AF27: 16580 | AW27: 17840 | AY27: 79640 | CD27: 7040 | CE27: 139880 | CF27: 1.252125583 | CG27: 0.3265954279 | CH27: 0.9255301552 | CJ27: 2023-12-01T08:30:08
A28: 26 | B28: D765 | C28: FRANCAVILLA DI SICILIA | D28: 3551 | E28: 146710 | U28: 651272 | V28: 797982 | W28: 0.8161487352 | X28: 156000 | AC28: 27520 | AE28: 80440 | AF28: 41620 | AW28: 80740 | AY28: 228820 | AZ28: 9632 | BH28: 1500 | BI28: 200 | BS28: 640 | BV28: 14140 | BW28: 1100 | CD28: 8920 | CE28: 651272 | CF28: 1.241548953 | CG28: 0.2282603453 | CH28: 1.013288608 | CJ28: 2023-12-06T09:48:49
A29: 27 | B29: D793 | C29: FRAZZANO' | D29: 587 | E29: 22060 | U29: 42300 | V29: 64360 | W29: 0.6572405221 | AA29: 4620 | AF29: 12770 | AW29: 4380 | AY29: 19550 | CD29: 980 | CE29: 42300 | CF29: 0.6057582802 | CG29: 0.2076293919 | CH29: 0.3981288883 | CJ29: 2023-11-09T08:17:03
A30: 28 | B30: D824 | C30: FURCI SICULO | D30: 3212 | E30: 118190 | U30: 416813 | V30: 535003 | W30: 0.7790853509 | Y30: 154 | AE30: 50662 | AF30: 44440 | AW30: 65290 | AY30: 145870 | BK30: 540 | BP30: 257 | BV30: 49180 | BZ30: 13450 | CD30: 46970 | CE30: 416813 | CF30: 0.9202421169 | CG30: 0.2032949643 | CH30: 0.7169471526 | CJ30: 2023-11-09T08:18:43
A31: 29 | B31: D825 | C31: FURNARI | D31: 4009 | E31: 173720 | R31: 25660 | U31: 914800 | V31: 1114180 | W31: 0.8210522537 | Z31: 48520 | AE31: 101000 | AF31: 94840 | AW31: 72980 | AY31: 322940 | AZ31: 11340 | BI31: 680 | BT31: 12340 | BV31: 4860 | BZ31: 151740 | CD31: 93560 | CE31: 914800 | CF31: 1.535467849 | CG31: 0.2394060877 | CH31: 1.260699338 | CJ31: 2023-11-09T08:21:50
A32: 30 | B32: D844 | C32: GAGGI | D32: 3103 | E32: 218610 | U32: 274901 | V32: 493511 | W32: 0.5570311503 | AE32: 38659 | AF32: 35890 | AW32: 44442 | AY32: 133070 | AZ32: 5200 | BI32: 280 | CD32: 17360 | CE32: 274901 | CF32: 0.8786916244 | CG32: 0.3892330181 | CH32: 0.4894586063 | CJ32: 2023-11-09T08:24:47
A33: 31 | B33: D861 | C33: GALATI MAMERTINO | D33: 2265 | E33: 55500 | U33: 227050 | V33: 282550 | W33: 0.8035745886 | AA33: 32420 | AF33: 45570 | AW33: 30440 | AY33: 115120 | BT33: 1160 | CD33: 2340 | CE33: 227050 | CF33: 0.6892051761 | CG33: 0.1353774103 | CH33: 0.5538277658 | CJ33: 2023-11-09T08:30:53
A34: 32 | B34: D885 | C34: GALLODORO | D34: 337 | E34: 22760 | U34: 47850 | V34: 70610 | W34: 0.677666053 | AE34: 6400 | AF34: 5060 | AW34: 6320 | AY34: 15160 | AZ34: 1510 | CD34: 13400 | CE34: 47850 | CF34: 1.157597915 | CG34: 0.3731331049 | CH34: 0.7844648097 | CJ34: 2023-12-12T14:20:30
A35: 33 | B35: E014 | C35: GIARDINI NAXOS | D35: 9278 | E35: 917120 | U35: 1747832 | V35: =IF(E35=0,"",SUM(U35,E35,R35,S35,T35)) -> 2664952 | W35: =IFERROR(IF(E35<>0,IF(U35=0,0,(U35/V35*100)/100),IF(U35=0,"","")),0) -> 0.6558587172 | Z35: 157020 | AA35: 254080 | AF35: 260800 | AJ35: 2560 | AW35: 104660 | AY35: 804262 | BH35: 2500 | BI35: 200 | BS35: 1900 | BV35: 11340 | BZ35: 41040 | CC35: 51220 | CD35: 56250 | CE35: 1747832 | CF35: =IF(SUM(E35)=0,"",V35/D35/181) -> 1.586925168 | CG35: =IF(E35=0,"",E35/D35/181) -> 0.5461264632 | CH35: =IF(SUM(Y35:CD35)=0,"",CE35/D35/181) -> 1.040798705 | CJ35: 2023-11-09T09:18:54
A36: 34 | B36: E043 | C36: GIOIOSA MAREA | D36: 6727 | E36: 364600 | U36: 763530 | V36: 1128130 | W36: 0.6768102967 | Z36: 64880 | AE36: 102480 | AF36: 91640 | AW36: 77420 | AY36: 361930 | AZ36: 13890 | BI36: 440 | BV36: 820 | BZ36: 27530 | CD36: 22500 | CE36: 763530 | CF36: 0.9265292747 | CG36: 0.2994447214 | CH36: 0.6270845533 | CJ36: 2023-11-24T10:24:53
A37: 35 | B37: E142 | C37: GRANITI | D37: 1461 | E37: 202850 | U37: 52760 | V37: 255610 | W37: 0.2064082 | Z37: 11280 | AA37: 15160 | AF37: 16680 | AW37: 1600 | BH37: 360 | CD37: 7680 | CE37: 52760 | CF37: 0.9666050272 | CG37: 0.7670898234 | CH37: 0.1995152038 | CJ37: 2023-11-09T08:33:15
A38: 36 | B38: E233 | C38: GUALTIERI SICAMINO | D38: 1584 | E38: 54320 | U38: 218571 | V38: 272891 | W38: 0.8009461653 | X38: 10482 | AE38: 18700 | AF38: 23760 | AW38: 18440 | AY38: 95300 | BH38: 3640 | BP38: 140 | BS38: 3500 | BT38: 8720 | BV38: 12580 | BW38: 1049 | BX38: 2020 | CD38: 20240 | CE38: 218571 | CF38: 0.9518213907 | CG38: 0.1894636978 | CH38: 0.762357693 | CJ38: 2023-11-09T08:36:06
A39: 37 | B39: E374 | C39: ITALA | D39: 1514 | E39: 103600 | U39: 177870 | V39: 281470 | W39: 0.6319323551 | AE39: 27410 | AF39: 26520 | AW39: 32080 | AY39: 83020 | BH39: 1060 | BS39: 340 | BT39: 420 | CD39: 7020 | CE39: 177870 | CF39: 1.027135319 | CG39: 0.3780552778 | CH39: 0.6490800412 | CJ39: 2023-12-07T14:36:22
A40: 38 | B40: E523 | C40: LENI | D40: 683 | E40: 76160 | U40: 46750 | V40: 122910 | W40: 0.3803596127 | Z40: 6720 | AA40: 3920 | AF40: 15440 | AW40: 6480 | BH40: 1800 | BP40: 160 | BR40: 200 | BS40: 700 | BT40: 5400 | CD40: 5930 | CE40: 46750 | CF40: 0.9942324648 | CG40: 0.6160665896 | CH40: 0.3781658753 | CJ40: 2023-11-09T08:39:17
A41: 39 | B41: E555 | C41: LETOJANNI | D41: 2847 | E41: 401110 | U41: 406878 | V41: 807988 | W41: 0.5035693599 | AE41: 43660 | AF41: 68570 | AW41: 56370 | AY41: 197820 | AZ41: 7980 | BH41: 1300 | BI41: 78 | BZ41: 4840 | CD41: 26260 | CE41: 406878 | CF41: 1.567974043 | CG41: 0.7783903576 | CH41: 0.7895836851 | CJ41: 2023-11-09T11:14:51
A42: 40 | B42: E571 | C42: LIBRIZZI | D42: 1582 | E42: 52960 | K42: 540 | U42: 220090 | V42: 273050 | W42: 0.8060428493 | X42: 52450 | Z42: 1940 | AE42: 28360 | AF42: 36400 | AW42: 25640 | AY42: 64780 | BP42: 20 | BV42: 2720 | CC42: 1660 | CD42: 6120 | CE42: 220090 | CF42: 0.9535799848 | CG42: 0.1849536568 | CH42: 0.768626328 | CJ42: 2023-11-09T11:19:43
A43: 41 | B43: E594 | C43: LIMINA | D43: 724 | E43: 16768 | U43: 33658 | V43: 50426 | W43: 0.6674731289 | AA43: 7806 | AW43: 3552 | AY43: 13300 | CD43: 9000 | CE43: 33658 | CF43: 0.3848020512 | CG43: 0.1279570221 | CH43: 0.2568450292 | CJ43: 2023-12-19T10:49:45
A44: 42 | B44: E606 | C44: LIPARI | D44: 12585 | E44: 1723580 | U44: 1839210 | V44: 3562790 | W44: 0.516227451 | Z44: 264750 | AA44: 246980 | AF44: 252020 | AJ44: 10560 | AW44: 113110 | AY44: 554280 | BH44: 37660 | BS44: 19260 | BT44: 51280 | BV44: 116210 | BW44: 15170 | BX44: 54670 | BZ44: 63600 | CD44: 39660 | CE44: 1839210 | CF44: 1.564078081 | CG44: 0.7566580402 | CH44: 0.807420041 | CJ44: 2023-11-09T11:23:54
A45: 43 | B45: E674 | C45: LONGI | D45: 1322 | E45: 12220 | U45: 156943 | V45: 169163 | W45: 0.927761981 | AA45: 21050 | AF45: 32410 | AW45: 22520 | AY45: 71650 | AZ45: 4163 | BH45: 760 | BP45: 250 | BS45: 570 | BT45: 1470 | CD45: 2100 | CE45: 156943 | CF45: 0.7069608245 | CG45: 0.05106944944 | CH45: 0.655891375 | CJ45: 2023-11-21T11:17:41
A46: 44 | B46: E855 | C46: MALFA | D46: 989 | E46: 83960 | U46: 158200 | V46: 242160 | W46: 0.6532870829 | Z46: 27840 | AA46: 14180 | AC46: 2960 | AF46: 69100 | AY46: 20780 | BH46: 2000 | BS46: 2400 | BT46: 7940 | BV46: 3600 | BW46: 2800 | BX46: 2680 | CD46: 1920 | CE46: 158200 | CF46: 1.352781145 | CG46: 0.469026697 | CH46: 0.8837544481 | CJ46: 2023-11-23T15:40:52
A47: 45 | B47: E869 | C47: MALVAGNA | D47: 628 | E47: 42000 | U47: 25040 | V47: 67040 | W47: 0.3735083532 | Z47: 2040 | AA47: 6180 | AF47: 6160 | AW47: 2020 | AY47: 8640 | CE47: 25040 | CF47: 0.5897878031 | CG47: 0.369497132 | CH47: 0.2202906711 | CJ47: 2023-11-09T11:26:44
A48: 46 | B48: E876 | C48: MANDANICI | D48: 504 | E48: 9830 | U48: 60280 | V48: 70110 | W48: 0.8597917558 | AE48: 7525 | AF48: 6535 | AW48: 6085 | AY48: 33095 | BH48: 40 | BS48: 100 | BT48: 220 | BZ48: 3900 | CD48: 2780 | CE48: 60280 | CF48: 0.7685477506 | CG48: 0.1077567307 | CH48: 0.6607910199 | CJ48: 2023-11-16T15:17:34
A49: 47 | B49: F066 | C49: MAZZARRA' S. ANDREA | D49: 1388 | E49: 59680 | U49: 158478 | V49: 218158 | W49: 0.7264368027 | X49: 31308 | AA49: 17420 | AF49: 17840 | AW49: 17720 | AY49: 67740 | AZ49: 750 | CD49: 5700 | CE49: 158478 | CF49: 0.8683665833 | CG49: 0.237553139 | CH49: 0.6308134444 | CJ49: 2023-11-09T11:30:43
A50: 48 | B50: F147 | C50: MERI' | D50: 2296 | E50: 116100 | S50: 3620 | U50: 207790 | V50: 327510 | W50: 0.6344539098 | AE50: 26380 | AF50: 23580 | AW50: 34440 | AY50: 121180 | BH50: 330 | BS50: 460 | BT50: 1420 | CE50: 207790 | CF50: 0.7880868963 | CG50: 0.2793712823 | CH50: 0.5000048126 | CJ50: 2023-11-09T11:35:27
A51: 49 | B51: F158 | C51: MESSINA | D51: 219387 | E51: 21311540 | L51: 780 | U51: 26644627 | V51: 47956167 | W51: 0.5556037662 | X51: 289160 | Y51: 3560 | Z51: 2595230 | AA51: 80120 | AC51: 7230 | AE51: 3034760 | AF51: 3038169 | AJ51: 2800 | AV51: 212720 | AW51: 3168740 | AX51: 19600 | AY51: 10625181 | AZ51: 155821 | BG51: 610 | BH51: 89700 | BI51: 5225 | BJ51: 2220 | BK51: 17760 | BP51: 12505 | BQ51: 9929 | BR51: 1320 | BS51: 82640 | BT51: 178140 | BV51: 1114583 | BX51: 152220 | BZ51: 646346 | CC51: 104640 | CD51: 993698 | CE51: 26644627 | CF51: 1.207688691 | CG51: 0.5366923059 | CH51: 0.6709963853 | CJ51: 2023-11-09T11:38:27
A52: 50 | B52: F206 | C52: MILAZZO | D52: 30128 | E52: 2159280 | U52: 4915390 | V52: 7074670 | W52: 0.6947871774 | Z52: 406000 | AA52: 547800 | AF52: 511660 | AH52: 840 | AW52: 483380 | AY52: 2307240 | AZ52: 106210 | BH52: 5600 | BI52: 4380 | BP52: 1840 | BS52: 6840 | BT52: 10480 | BV52: 13320 | BW52: 940 | BZ52: 168520 | CC52: 224940 | CD52: 115400 | CE52: 4915390 | CF52: 1.297350458 | CG52: 0.3959679951 | CH52: 0.9013824625 | CJ52: 2023-12-01T08:00:48
A53: 51 | B53: F210 | C53: MILITELLO ROSMARINO | D53: 1167 | E53: 41380 | U53: 93189 | V53: 134569 | W53: 0.6924997585 | AA53: 14980 | AF53: 20250 | AW53: 10680 | AY53: 40850 | AZ53: 3259 | CD53: 3170 | CE53: 93189 | CF53: 0.6370823806 | CG53: 0.1959029859 | CH53: 0.4411793947 | CJ53: 2023-11-28T15:22:08
A54: 52 | B54: F242 | C54: MIRTO | D54: 886 | E54: 9940 | U54: 133813 | V54: 143753 | W54: 0.930853617 | AA54: 17310 | AF54: 27080 | AW54: 17820 | AY54: 62660 | AZ54: 3383 | BH54: 1050 | BS54: 680 | BT54: 750 | CD54: 3080 | CE54: 133813 | CF54: 0.8964057219 | CG54: 0.0619832134 | CH54: 0.8344225085 | CJ54: 2023-11-09T11:52:50
A55: 53 | B55: F251 | C55: MISTRETTA | D55: 4370 | E55: 200500 | U55: 544360 | V55: 744860 | W55: 0.7308218994 | Z55: 27410 | AA55: 50820 | AF55: 82600 | AW55: 55480 | AY55: 252540 | AZ55: 16200 | BH55: 2000 | BS55: 2100 | CD55: 55210 | CE55: 544360 | CF55: 0.9417044894 | CG55: 0.2534862258 | CH55: 0.6882182637 | CJ55: 2023-11-20T09:12:33
A56: 54 | B56: F277 | C56: MOJO ALCANTARA | D56: 677 | E56: 49900 | U56: 42260 | V56: 92160 | W56: 0.4585503472 | Z56: 1180 | AA56: 4100 | AF56: 8340 | AW56: 5460 | AY56: 23180 | CE56: 42260 | CF56: 0.7520993659 | CG56: 0.4072239405 | CH56: 0.3448754254 | CJ56: 2023-11-09T11:55:19
A57: 55 | B57: F359 | C57: MONFORTE S. GIORGIO | D57: 2503 | E57: 197380 | R57: 35620 | U57: 261622 | V57: 494622 | W57: 0.5289332056 | X57: 9402 | AE57: 30160 | AF57: 38080 | AW57: 38780 | AY57: 141820 | BH57: 370 | BS57: 310 | BT57: 830 | CD57: 1870 | CE57: 261622 | CF57: 1.09177716 | CG57: 0.4356760837 | CH57: 0.5774771931 | CJ57: 2023-11-09T13:57:23
A58: 56 | B58: F368 | C58: MONGIUFFI MELIA | D58: 529 | E58: 36040 | U58: 51810 | V58: 87850 | W58: 0.5897552647 | AE58: 7360 | AF58: 7020 | AW58: 6070 | AY58: 18020 | CD58: 13340 | CE58: 51810 | CF58: 0.9175030549 | CG58: 0.3764007979 | CH58: 0.5411022569 | CJ58: 2023-11-16T07:53:48
A59: 57 | B59: F395 | C59: MONTAGNAREALE | D59: 1399 | E59: 101340 | U59: 120960 | V59: 222300 | W59: 0.5441295547 | AE59: 25640 | AF59: 22680 | AJ59: 1000 | AW59: 22600 | AY59: 33440 | BT59: 1940 | BV59: 3640 | BX59: 1300 | CC59: 520 | CD59: 8200 | CE59: 120960 | CF59: 0.8778962084 | CG59: 0.4002069355 | CH59: 0.4776892729 | CJ59: 2023-11-09T14:03:17
A60: 58 | B60: F400 | C60: MONTALBANO ELICONA | D60: 2036 | E60: 122980 | U60: 179163 | V60: 302143 | W60: 0.5929741877 | X60: 20898 | Y60: 20 | AE60: 27140 | AF60: 31400 | AW60: 22160 | AY60: 63000 | AZ60: 3925 | BH60: 810 | BP60: 20 | BR60: 20 | BS60: 1210 | CD60: 8560 | CE60: 179163 | CF60: 0.8198911309 | CG60: 0.3337168535 | CH60: 0.4861742774 | CJ60: 2023-11-09T14:23:17
A61: 59 | B61: F772 | C61: MOTTA CAMASTRA | D61: 794 | E61: 127380 | U61: 29100 | V61: 156480 | W61: 0.1859662577 | Z61: 5880 | AA61: 9280 | AF61: 11360 | AW61: 720 | BQ61: 280 | CD61: 1580 | CE61: 29100 | CF61: 1.088829202 | CG61: 0.8863437104 | CH61: 0.202485492 | CJ61: 2023-11-09T14:25:53
A62: 60 | B62: F773 | C62: MOTTA D'AFFERMO | D62: 657 | E62: 15760 | U62: 78125 | V62: 93885 | W62: 0.8321350588 | X62: 3065 | Y62: 20 | Z62: 1350 | AE62: 11240 | AF62: 11320 | AW62: 4130 | AY62: 40760 | AZ62: 1950 | BP62: 30 | BR62: 10 | BW62: 1740 | CD62: 2510 | CE62: 78125 | CF62: 0.7895002397 | CG62: 0.1325294113 | CH62: 0.6569708284 | CJ62: 2023-11-09T14:28:49
A63: 61 | B63: F848 | C63: NASO | D63: 3467 | E63: 89140 | N63: 146 | U63: 421346 | V63: 510486 | W63: 0.8253820869 | X63: 32916 | AA63: 65650 | AF63: 66060 | AJ63: 120 | AV63: 5650 | AW63: 59920 | AY63: 151380 | AZ63: 13100 | BP63: 180 | BR63: 150 | BT63: 7160 | BV63: 4320 | BW63: 1360 | BZ63: 120 | CD63: 13260 | CE63: 421346 | CF63: 0.8134885033 | CG63: 0.1420496648 | CH63: 0.6714388385 | CJ63: 2023-11-09T14:40:11
A64: 62 | B64: F901 | C64: NIZZA DI SICILIA | D64: 3523 | E64: 163230 | U64: 432677 | V64: 595907 | W64: 0.7260814187 | AE64: 79790 | AF64: 47060 | AW64: 77630 | AY64: 159720 | BP64: 8247 | BZ64: 35480 | CD64: 24750 | CE64: 432677 | CF64: 0.9345171352 | CG64: 0.2559816078 | CH64: 0.6785355274 | CJ64: 2023-12-12T15:36:50
A65: 63 | B65: F951 | C65: NOVARA DI SICILIA | D65: 1174 | E65: 56490 | U65: 148078 | V65: 204568 | W65: 0.7238571038 | X65: 6798 | AE65: 17880 | AF65: 17860 | AW65: 21220 | AY65: 70320 | BT65: 1080 | BV65: 3660 | CD65: 9260 | CE65: 148078 | CF65: 0.9627001233 | CG65: 0.2658428003 | CH65: 0.696857323 | CJ65: 2023-11-09T14:43:35
A66: 64 | B66: G036 | C66: OLIVERI | D66: 2081 | E66: 130640 | K66: 1400 | U66: 385818 | V66: 516458 | W66: 0.7470462264 | X66: 12708 | Z66: 20760 | AB66: 520 | AE66: 39280 | AF66: 49680 | AW66: 26460 | AY66: 162080 | AZ66: 11020 | BI66: 750 | BT66: 3200 | BV66: 16480 | CC66: 840 | CD66: 42040 | CE66: 385818 | CF66: 1.371148062 | CG66: 0.3468370763 | CH66: 1.024310985 | CJ66: 2023-12-06T10:20:01
A67: 65 | B67: G209 | C67: PACE DEL MELA | D67: 6004 | E67: 434000 | U67: 732732 | V67: =IF(E67=0,"",SUM(U67,E67,R67,S67,T67)) -> 1166732 | W67: =IFERROR(IF(E67<>0,IF(U67=0,0,(U67/V67*100)/100),IF(U67=0,"","")),0) -> 0.6280208308 | X67: 31560 | AE67: 98400 | AF67: 80000 | AW67: 118020 | AY67: 324600 | AZ67: 9720 | BH67: 9200 | BI67: 400 | BP67: 260 | BS67: 8340 | BT67: 14200 | BV67: 12500 | BW67: 2231 | BX67: 3261 | BZ67: 7000 | CD67: 13040 | CE67: 732732 | CF67: =IF(SUM(E67)=0,"",V67/D67/181) -> 1.073623109 | CG67: 0.3993654323 | CH67: =IF(SUM(Y67:CD67)=0,"",CE67/D67/181) -> 0.6742576772 | CJ67: 2023-11-09T14:46:49
A68: 66 | B68: G234 | C68: PAGLIARA | D68: 1120 | E68: 17270 | U68: =IF(CE68=0,"",CE68) -> 89930 | V68: 107200 | W68: 0.8388992537 | AE68: 14245 | AF68: 11825 | AW68: 10615 | AY68: 51685 | BH68: 220 | BS68: 240 | BT68: 80 | CD68: 1020 | CE68: =IF(SUM(X68:CD68)=0,"",SUM(X68:CD68)) -> 89930 | CF68: 0.5288082084 | CG68: =IF(E68=0,"",E68/D68/181) -> 0.085191397 | CH68: 0.4436168114 | CJ68: 2023-11-09T14:54:11
A69: 67 | B69: G377 | C69: PATTI | D69: 12709 | E69: 800840 | U69: 1856900 | V69: 2657740 | W69: 0.698676319 | Z69: 140440 | AE69: 278340 | AF69: 166520 | AJ69: 240 | AW69: 163080 | AY69: 979140 | BV69: 24000 | BZ69: 30120 | CC69: 12660 | CD69: 62360 | CE69: 1856900 | CF69: 1.155373862 | CG69: 0.348141505 | CH69: 0.8072323568 | CJ69: 2023-11-14T17:19:29
A70: 68 | B70: G522 | C70: PETTINEO | D70: 1240 | E70: 14680 | K70: 3240 | U70: 120470 | V70: 135150 | W70: 0.8913799482 | X70: 57000 | Y70: 30 | Z70: 4620 | AE70: 20130 | AF70: 16020 | AW70: 11060 | AZ70: 5750 | BH70: 1680 | BP70: 50 | BR70: 20 | BS70: 750 | CD70: 3360 | CE70: 120470 | CF70: 0.6021653894 | CG70: 0.06540723579 | CH70: 0.5367581536 | CJ70: 2023-12-07T12:26:36
A71: 69 | B71: G699 | C71: PIRAINO | D71: 3792 | E71: 151020 | U71: 520285 | V71: 671305 | W71: 0.7750351926 | X71: 25405 | Z71: 20480 | AA71: 67360 | AF71: 69390 | AW71: 68560 | AY71: 223340 | AZ71: 10120 | BH71: 3920 | BI71: 560 | BP71: 340 | BS71: 1830 | BT71: 2330 | BV71: 11550 | CD71: 15100 | CE71: 520285 | CF71: 0.9780768469 | CG71: 0.2200328694 | CH71: 0.7580439774 | CJ71: 2023-12-06T10:25:24
A72: 70 | B72: H151 | C72: RACCUJA | D72: 864 | E72: 32780 | U72: 85320 | V72: 118100 | W72: 0.7224386113 | Z72: 8580 | AA72: 9240 | AF72: 19400 | AY72: 43360 | AZ72: 420 | CD72: 4320 | CE72: 85320 | CF72: 0.755192347 | CG72: 0.2096122365 | CH72: 0.5455801105 | CJ72: 2023-11-09T14:58:02
A73: 71 | B73: H228 | C73: REITANO | D73: 721 | E73: 74900 | U73: 177220 | V73: 252120 | W73: 0.7029192448 | Z73: 14090 | AA73: 5430 | AE73: 52240 | AF73: 24580 | AY73: 79840 | CD73: 1040 | CE73: 177220 | CF73: 1.931939219 | CG73: 0.5739419621 | CH73: 1.357997257 | CJ73: 2023-11-09T15:00:54
A74: 72 | B74: H405 | C74: ROCCAFIORITA | D74: 173 | E74: 5670 | U74: 19292 | V74: 24962 | W74: 0.7728547392 | AA74: 1100 | AF74: 1030 | AW74: 1660 | AY74: 7500 | AZ74: 1152 | BZ74: 2850 | CD74: 4000 | CE74: 19292 | CF74: 0.7971768914 | CG74: 0.1810749529 | CH74: 0.6161019385 | CJ74: 2023-11-09T15:04:38
A75: 73 | B75: H418 | C75: ROCCALUMERA | D75: 3949 | E75: 273130 | U75: 829904 | V75: 1103034 | W75: 0.7523829728 | Y75: 121 | AE75: 88570 | AF75: 60230 | AJ75: 400 | AV75: 75560 | AW75: 112790 | AY75: 266510 | AZ75: 11400 | BH75: 4220 | BI75: 110 | BK75: 1440 | BP75: 563 | BR75: 550 | BS75: 1700 | BT75: 600 | BV75: 59820 | BX75: 8120 | BZ75: 40030 | CC75: 15620 | CD75: 81550 | CE75: 829904 | CF75: 1.543203469 | CG75: 0.3821234553 | CH75: 1.161080013 | CJ75: 2023-11-09T15:48:32
A76: 74 | B76: H380 | C76: ROCCAVALDINA | D76: 999 | E76: 98500 | U76: 73260 | V76: 171760 | W76: 0.4265253843 | AE76: 10060 | AF76: 12720 | AW76: 12080 | AY76: 33600 | AZ76: 920 | BH76: 300 | BS76: 360 | BT76: 720 | CD76: 2500 | CE76: 73260 | CF76: 0.9499001764 | CG76: 0.5447436387 | CH76: 0.4051565378 | CJ76: 2023-11-09T15:54:51
A77: 75 | B77: H455 | C77: ROCCELLA VALDEMONE | D77: 563 | E77: 40260 | U77: 49250 | V77: 89510 | W77: 0.5502178528 | AA77: 7090 | AF77: 7560 | AW77: 5920 | AY77: 25600 | CD77: 3080 | CE77: 49250 | CF77: 0.8783843459 | CG77: 0.3950815972 | CH77: 0.4833027487 | CJ77: 2023-12-12T14:18:32
A78: 76 | B78: H479 | C78: RODI' MILICI | D78: 1944 | E78: 72960 | U78: 205290 | V78: 278250 | W78: 0.7377897574 | X78: 28020 | Z78: 6390 | AE78: 29570 | AF78: 25970 | AW78: 20540 | AY78: 89940 | BH78: 290 | BP78: 60 | BS78: 360 | BT78: 1020 | CD78: 3130 | CE78: 205290 | CF78: 0.7907884865 | CG78: 0.2073528409 | CH78: 0.5834356456 | CJ78: 2023-11-09T16:02:02
A79: 77 | B79: H519 | C79: ROMETTA | D79: 6573 | E79: 164100 | U79: 829140 | V79: 993240 | W79: 0.834783134 | X79: 83220 | AA79: 97520 | AF79: 90940 | AW79: 106420 | AY79: 362260 | AZ79: 14340 | BH79: 1980 | BI79: 40 | BS79: 720 | BV79: 6480 | BZ79: 22540 | CD79: 42680 | CE79: 829140 | CF79: 0.83485681 | CG79: 0.1379324257 | CH79: 0.6969243843 | CJ79: 2023-11-09T16:08:29
A80: 78 | B80: I184 | C80: S. DOMENICA VITTORIA | D80: 851 | E80: 86382 | U80: 32350 | V80: 118732 | W80: 0.2724623522 | Z80: 7600 | AA80: 12430 | AF80: 12320 | CE80: 32350 | CF80: 0.7708318455 | CG80: 0.5608091878 | CH80: 0.2100226578 | CJ80: 2023-11-09T16:25:45
A81: 79 | B81: I370 | C81: S. STEF. DI CAMASTRA | D81: 4355 | E81: 259660 | U81: 647959 | V81: 907619 | W81: 0.713910793 | Z81: 94420 | AA81: 33090 | AE81: 88800 | AF81: 77780 | AV81: 31740 | AW81: 6360 | AY81: 263720 | AZ81: 8200 | BH81: 5050 | BI81: 680 | BP81: 320 | BR81: 69 | BS81: 2210 | BZ81: 30900 | CD81: 4620 | CE81: 647959 | CF81: 1.151428155 | CG81: 0.3294111677 | CH81: 0.8220169869 | CJ81: 2023-11-09T18:07:33
A82: 80 | B82: I199 | C82: S. AGATA DI MILITELLO | D82: 11883 | E82: 606360 | U82: 1986489 | V82: 2592849 | W82: 0.7661414143 | X82: 60919 | Z82: 76540 | AA82: 215210 | AB82: 4740 | AF82: 238220 | AW82: 242100 | AY82: 693490 | AZ82: 14560 | BG82: 200 | BH82: 18220 | BI82: 330 | BS82: 18560 | BT82: 6540 | BZ82: 172460 | CD82: 224400 | CE82: 1986489 | CF82: 1.205514819 | CG82: 0.2819199906 | CH82: 0.9235948286 | CJ82: 2023-11-09T16:12:55
A83: 81 | B83: I220 | C83: SANTA LUCIA DEL MELA | D83: 4382 | E83: 267900 | U83: 474958 | V83: 742858 | W83: 0.6393658007 | X83: 66078 | Z83: 21100 | AE83: 63560 | AW83: 49890 | AX83: 53540 | AY83: 203690 | AZ83: 7140 | BH83: 1650 | BP83: 90 | BS83: 890 | BT83: 2700 | CD83: 4630 | CE83: 474958 | CF83: 0.9366015165 | CG83: 0.3377705379 | CH83: 0.5988309786 | CJ83: 2023-11-09T17:06:34
A84: 82 | B84: I311 | C84: S. TERESA DI RIVA | D84: 9352 | E84: 434860 | K84: 3380 | U84: 1228480 | V84: 1663340 | W84: 0.7385621701 | X84: 38560 | Z84: 64810 | AE84: 191940 | AF84: 120330 | AW84: 202690 | AY84: 513160 | AZ84: 2580 | BG84: 180 | BH84: 5860 | BI84: 50 | BS84: 5820 | BT84: 6740 | BV84: 7340 | BW84: 3500 | BZ84: 9100 | CC84: 11840 | CD84: 43980 | CE84: 1228480 | CF84: 0.9826479637 | CG84: 0.2569013512 | CH84: 0.7257466125 | CJ84: 2023-11-20T09:10:49
A85: 83 | B85: H842 | C85: S. FILIPPO DEL MELA | D85: 6741 | E85: 443200 | N85: 1220 | O85: 17890 | R85: 47050 | U85: 885020 | V85: 1375270 | W85: 0.6435245443 | X85: 9600 | Z85: 41680 | AE85: 105660 | AF85: 73560 | AW85: 108240 | AY85: 358000 | BH85: 720 | BI85: 200 | BP85: 40 | BT85: 1660 | BU85: 1070 | BZ85: 176000 | CD85: 8590 | CE85: 885020 | CF85: 1.1271587 | CG85: 0.363242662 | CH85: 0.7253542886 | CJ85: 2023-11-09T16:28:48
A86: 84 | B86: H850 | C86: SAN FRATELLO | D86: 3273 | E86: 93700 | U86: 324950 | V86: 418650 | W86: 0.7761853577 | AE86: 48700 | AF86: 49060 | AW86: 48420 | AY86: 151090 | CD86: 27680 | CE86: 324950 | CF86: 0.706686045 | CG86: 0.1581666844 | CH86: 0.5485193606 | CJ86: 2023-11-09T16:36:24
A87: 85 | B87: H982 | C87: SAN MARCO D'ALUNZIO | D87: 1782 | E87: 81500 | K87: 1260 | U87: 177600 | V87: 259100 | W87: 0.6854496333 | AA87: 22380 | AE87: 60 | AF87: 34510 | AW87: 33530 | AY87: 74660 | BT87: 560 | BX87: 6440 | CD87: 5460 | CE87: 177600 | CF87: 0.8033062361 | CG87: 0.2526802711 | CH87: 0.550625965 | CJ87: 2023-11-09T17:15:16
A88: 86 | B88: I084 | C88: SAN PIER NICETO | D88: 2589 | E88: 206680 | U88: 327840 | V88: 534520 | W88: 0.6133353289 | X88: 129600 | Z88: 680 | AE88: 38560 | AF88: 28100 | AW88: 31920 | AY88: 84320 | AZ88: 5090 | BH88: 1290 | BI88: 470 | BS88: 1520 | BT88: 1040 | CD88: 5250 | CE88: 327840 | CF88: 1.140652442 | CG88: 0.4410500012 | CH88: 0.6996024404 | CJ88: 2023-11-09T17:28:17
A89: 87 | B89: I086 | C89: SAN PIERO PATTI | D89: 2586 | E89: 111440 | U89: 398772 | V89: 510212 | W89: 0.7815809899 | X89: 141032 | Z89: 10660 | AE89: 38320 | AF89: 42100 | AW89: 30080 | AY89: 93740 | BV89: 1440 | CD89: 41400 | CE89: 398772 | CF89: 1.090042857 | CG89: 0.2380860819 | CH89: 0.8519567753 | CJ89: 2023-11-09T17:31:30
A90: 88 | B90: I147 | C90: S. SALVAT. DI FITALIA | D90: 1129 | E90: 133160 | U90: 115560 | V90: 248720 | W90: 0.4646188485 | AA90: 14640 | AF90: 18550 | AW90: 11530 | AY90: 55320 | AZ90: 5100 | BZ90: 3600 | CD90: 6820 | CE90: 115560 | CF90: 1.217133433 | CG90: 0.6516302991 | CH90: 0.5655031343 | CJ90: 2023-11-09T17:34:45
A91: 89 | B91: I328 | C91: SAN TEODORO | D91: 1242 | E91: 35050 | U91: 139856 | V91: 174906 | W91: 0.7996066459 | AA91: 14390 | AF91: 28780 | AW91: 25250 | AY91: 63040 | AZ91: 5256 | CD91: 3140 | CE91: 139856 | CF91: 0.7780446793 | CG91: 0.155914983 | CH91: 0.6221296964 | CJ91: 2023-11-09T18:17:23
A92: 90 | B92: I283 | C92: S. ANGELO DI BROLO | D92: 2764 | E92: 60380 | U92: 368095 | V92: 428475 | W92: 0.8590816267 | X92: 98400 | Z92: 6430 | AA92: 49720 | AF92: 53620 | AW92: 41060 | AY92: 89000 | AZ92: 7620 | BH92: 5650 | BI92: 535 | BS92: 920 | BV92: 3590 | CD92: 11550 | CE92: 368095 | CF92: 0.8564635287 | CG92: 0.1206914473 | CH92: 0.7357720815 | CJ92: 2023-12-06T10:29:03
A93: 91 | B93: I215 | C93: S. ALESSIO SICULO | D93: 1552 | E93: 218920 | U93: 171260 | V93: 390180 | W93: 0.4389256241 | AE93: 25800 | AF93: 29720 | AW93: 28780 | AY93: 73240 | CD93: 13720 | CE93: 171260 | CF93: 1.388975907 | CG93: 0.7793187902 | CH93: 0.6096571168 | CJ93: 2023-12-12T14:26:45
A94: 92 | B94: I254 | C94: SANTA MARINA SALINA | D94: 858 | E94: 102140 | U94: 68500 | V94: 170640 | W94: 0.4014299109 | AA94: 7700 | AF94: 20880 | AW94: 12480 | BH94: 2500 | BS94: 3000 | BT94: 1200 | BV94: 4320 | BX94: 2820 | CD94: 13600 | CE94: 68500 | CF94: 1.098790712 | CG94: 0.6577032544 | CH94: 0.4410874577 | CJ94: 2023-11-09T17:25:15
A95: 93 | B95: I420 | C95: SAPONARA | D95: 3687 | E95: 131400 | U95: 574760 | V95: 706160 | W95: 0.8139231902 | AA95: 65380 | AC95: 6730 | AF95: 54220 | AW95: 108100 | AY95: 228880 | AZ95: 8240 | BH95: 1740 | BI95: 580 | BP95: 200 | BR95: 100 | BS95: 780 | BV95: 18120 | BZ95: 64850 | CD95: 16840 | CE95: 574760 | CF95: 1.058160148 | CG95: 0.1968990645 | CH95: 0.8612610831 | CJ95: 2023-11-10T07:45:09
A96: 94 | B96: I477 | C96: SAVOCA | D96: 1728 | E96: 118260 | U96: 164236 | V96: 282496 | W96: 0.5813746035 | AE96: 26040 | AF96: 23780 | AW96: 23960 | AY96: 82336 | CD96: 8120 | CE96: 164236 | CF96: 0.9032126049 | CG96: 0.3781077348 | CH96: 0.5251048701 | CJ96: 2023-11-16T15:21:21
A97: 95 | B97: I492 | C97: SCALETTA ZANCLEA | D97: 1843 | E97: 95040 | U97: 186910 | V97: 281950 | W97: 0.6629189573 | Y97: 40 | AE97: 26150 | AF97: 28250 | AJ97: 640 | AW97: 31330 | AY97: 81480 | AZ97: 5510 | BH97: 980 | BI97: 50 | BS97: 220 | BT97: 900 | CD97: 11360 | CE97: 186910 | CF97: 0.8452169325 | CG97: 0.284906605 | CH97: 0.5603103276 | CJ97: 2023-11-10T07:50:04
A98: 96 | B98: I747 | C98: SINAGRA | D98: 2474 | E98: 28800 | U98: 373520 | V98: 402320 | W98: 0.9284151919 | AA98: 47700 | AB98: 13200 | AF98: 68680 | AW98: 48820 | AY98: 142360 | AZ98: 9860 | CD98: 42900 | CE98: 373520 | CF98: 0.8984488403 | CG98: 0.06431528783 | CH98: 0.8341335525 | CJ98: 2023-11-10T07:56:59
A99: 97 | B99: I881 | C99: SPADAFORA | D99: 4686 | E99: 285229 | U99: 620901 | V99: =IF(E99=0,"",SUM(U99,E99,R99,S99,T99)) -> 906130 | W99: =IFERROR(IF(E99<>0,IF(U99=0,0,(U99/V99*100)/100),IF(U99=0,"","")),0) -> 0.6852228709 | AA99: 85000 | AC99: 4500 | AF99: 87790 | AW99: 86130 | AY99: 286820 | AZ99: 15070 | BS99: 800 | BV99: 12520 | BZ99: 13140 | CD99: 29131 | CE99: 620901 | CF99: =IF(SUM(E99)=0,"",V99/D99/181) -> 1.068340396 | CG99: 0.3362891226 | CH99: =IF(SUM(Y99:CD99)=0,"",CE99/D99/181) -> 0.732051273 | CJ99: 2023-11-10T08:02:54
A100: 98 | B100: L042 | C100: TAORMINA | D100: 10501 | E100: 1511240 | R100: 26620 | U100: 2611360 | V100: 4149220 | W100: 0.6293616632 | Y100: 24 | Z100: 220040 | AE100: 333660 | AF100: 629450 | AV100: 1200 | AW100: 226320 | AY100: 1092480 | BH100: 1660 | BP100: 280 | BR100: 96 | BS100: 640 | BT100: 240 | BW100: 9030 | BZ100: 35440 | CD100: 60800 | CE100: 2611360 | CF100: 2.183017561 | CG100: 0.7951044915 | CH100: 1.373907563 | CJ100: 2023-11-10T08:04:31
A101: 99 | B101: M210 | C101: TERME VIGLIATORE | D101: 7215 | E101: 379800 | U101: 939940 | V101: 1319740 | W101: 0.7122160426 | X101: 25800 | Z101: 86750 | AE101: 135400 | AF101: 100100 | AW101: 78630 | AY101: 450060 | BH101: 1110 | BP101: 80 | BS101: 760 | BT101: 1490 | BZ101: 53420 | CD101: 6340 | CE101: 939940 | CF101: 1.010586447 | CG101: 0.2908305671 | CH101: 0.71975588 | CJ101: 2023-11-10T08:15:49
A102: 100 | B102: L271 | C102: TORREGROTTA | D102: 7282 | E102: 554180 | R102: 52680 | S102: 22898 | U102: 829313 | V102: 1459071 | W102: 0.5683842664 | X102: 27246 | Z102: 50900 | AA102: 106780 | AF102: 73380 | AW102: 136440 | AY102: 354920 | AZ102: 15260 | BH102: 1710 | BI102: 1065 | BS102: 4040 | BT102: 3670 | BZ102: 38640 | CD102: 15262 | CE102: 829313 | CF102: 1.106998867 | CG102: 0.4204570112 | CH102: 0.6292007387 | CJ102: 2023-11-10T08:21:53
A103: 101 | B103: M286 | C103: TORRENOVA | D103: 4489 | E103: 105240 | U103: 690220 | V103: 795460 | W103: 0.8676991929 | Z103: 79890 | AA103: 112600 | AF103: 84330 | AJ103: 820 | AV103: 110 | AW103: 90810 | AY103: 301740 | CD103: 19920 | CE103: 690220 | CF103: 0.9790168478 | CG103: 0.1295247191 | CH103: 0.8494921287 | CJ103: 2023-11-10T08:28:55
A104: 102 | B104: L308 | C104: TORTORICI | D104: 5709 | E104: 240660 | U104: 386111 | V104: 626771 | W104: 0.6160320117 | AA104: 73430 | AF104: 89750 | AV104: 3650 | AW104: 75610 | AY104: 123810 | AZ104: 7153 | BP104: 368 | BT104: 4040 | BZ104: 980 | CD104: 7320 | CE104: 386111 | CF104: 0.6065551243 | CG104: 0.2328977509 | CH104: 0.3736573734 | CJ104: 2023-12-19T09:21:49
A105: 103 | B105: L431 | C105: TRIPI | D105: 746 | E105: 14070 | U105: 103455 | V105: 117525 | W105: 0.8802807913 | AE105: 10220 | AF105: 10620 | AW105: 9380 | AY105: 68515 | CD105: 4720 | CE105: 103455 | CF105: 0.8703879253 | CG105: 0.1042021537 | CH105: 0.7661857716 | CJ105: 2023-11-10T08:50:15
A106: 104 | B106: L478 | C106: TUSA | D106: 2586 | E106: 68780 | U106: 399106 | V106: 467886 | W106: 0.8529983799 | X106: 12026 | AA106: 26740 | AF106: 60280 | AV106: 27360 | AW106: 42610 | AY106: 184320 | AZ106: 790 | BI106: 640 | CD106: 44340 | CE106: 399106 | CF106: 0.9996154388 | CG106: 0.1469450889 | CH106: 0.8526703499 | CJ106: 2023-11-10T08:54:21
A107: 105 | B107: L482 | C107: UCRIA | D107: 911 | E107: 41930 | K107: 190 | U107: 116530 | V107: 158460 | W107: 0.7353906349 | X107: 34200 | Y107: 50 | AA107: 10750 | AF107: 16560 | AW107: 8030 | AY107: 35280 | AZ107: 2510 | BI107: 200 | BT107: 2580 | BV107: 180 | BW107: 1090 | CD107: 5100 | CE107: 116530 | CF107: 0.9609984778 | CG107: 0.2542891971 | CH107: 0.7067092807 | CJ107: 2023-11-10T08:57:20
A108: 106 | B108: L561 | C108: VALDINA | D108: 1265 | E108: 118460 | U108: 133295 | V108: 251755 | W108: 0.5294631686 | AE108: 17795 | AF108: 15840 | AW108: 22680 | AY108: 71220 | CD108: 5760 | CE108: 133295 | CF108: 1.099534863 | CG108: 0.5173716507 | CH108: 0.5821632127 | CJ108: 2023-12-07T07:52:36
A109: 107 | B109: L735 | C109: VENETICO | D109: 3952 | E109: 287920 | U109: 438998 | V109: 726918 | W109: 0.6039168104 | X109: 7398 | Z109: 9700 | AA109: 61980 | AF109: 42140 | AW109: 79780 | AY109: 223980 | BH109: 200 | BI109: 480 | BP109: 40 | BS109: 40 | BT109: 180 | CD109: 13080 | CE109: 438998 | CF109: 1.016225088 | CG109: 0.4025096741 | CH109: 0.6137154137 | CJ109: 2023-11-16T16:00:40
A110: 108 | B110: L950 | C110: VILLAFRANCA TIRRENA | D110: 8058 | E110: 515300 | U110: 1283656 | V110: 1798956 | W110: 0.7135560848 | X110: 9146 | Z110: 119680 | AA110: 129690 | AF110: 126920 | AW110: 122830 | AY110: 483360 | AZ110: 35820 | BH110: 5420 | BI110: 1310 | BP110: 260 | BS110: 4640 | BT110: 580 | BV110: 60020 | BZ110: 121620 | CD110: 62360 | CE110: 1283656 | CF110: 1.233430557 | CG110: 0.3533086778 | CH110: 0.8801218788 | CJ110: 2023-11-10T09:02:01
C111: T O T A L I | D111: =SUM(D3:D110) -> 600180 | E111: =SUM(E3:E110) -> 44751639 | F111: 0 | G111: 0 | H111: 0 | I111: 0 | J111: 0 | K111: 14070 | L111: 780 | M111: =SUM(M3:M110) -> 0 | N111: 1366 | O111: 17890 | P111: =SUM(P3:P110) -> 17500 | Q111: =SUM(Q3:Q110) -> 0 | R111: =SUM(R3:R110) -> 187630 | S111: =SUM(S3:S110) -> 26518 | T111: =SUM(T3:T110) -> 0 | U111: 79751291 | V111: =SUM(U111,E111) -> 124502930 | W111: =IF(CE111=0,"",(U111/V111*100)/100) -> 0.6405575435 | X111: =SUM(X3:X110) -> 1765493 | Y111: =SUM(Y3:Y110) -> 4819 | Z111: 5583060 | AA111: 3378886 | AB111: 30880 | AC111: 62420 | AD111: 0 | AE111: 6518156 | AF111: 9732689 | AG111: 0 | AH111: 840 | AI111: 480 | AJ111: 27400 | AK111: 0 | AL111: 0 | AM111: 0 | AN111: 0 | AO111: 0 | AP111: 0 | AQ111: 0 | AR111: 1350 | AS111: 0 | AT111: 0 | AU111: 0 | AV111: 357990 | AW111: 9137357 | AX111: 73140 | AY111: 32269584 | AZ111: 715045 | BA111: 3211 | BB111: 0 | BC111: 0 | BD111: 0 | BE111: 0 | BF111: 0 | BG111: 1680 | BH111: 285750 | BI111: 28323 | BJ111: 2220 | BK111: 19740 | BL111: 0 | BM111: 0 | BN111: 0 | BO111: 0 | BP111: 28898 | BQ111: 13039 | BR111: 5220 | BS111: 245240 | BT111: 432590 | BU111: 1070 | BV111: 1808803 | BW111: 65600 | BX111: 354961 | BY111: 0 | BZ111: 2736886 | CA111: 0 | CB111: 0 | CC111: 817080 | CD111: 3241391 | CE111: =SUM(CE3:CE110) -> 79751291

Sheet Riep. Dati RSU e RD 1 Sem. 2023
B3: CITTA' METROPOLITANA DI MESSINA
B4: DATI RIFIUTI SOLIDI URBANI E RACCOLTA DIFFERENZIATA
B5: PRIMO SEMESTRE ANNO 2023
A6: ='Dati Generali CER 1 Sem. 2023'!A2 -> 108 | B6: COMUNE | C6: QUANTITA' (KG) | D6: QUANTITA' (KG) | E6: PERCENTUALE | F6: RSU+RSA+RD | G6: RSU+RSA | H6: R.D. | I6: ='Dati Generali CER 1 Sem. 2023'!D2 -> ABITANTI al 30/06/2023
C7: R.S.U. (Cod.200301) | D7: RACCOLTA | E7: RACCOLTA | F7: R.T. (Kg.) | G7: 200301 (kg.) | H7: (Kg.)
C8: PRODOTTI | D8: DIFFERENZIATA | E8: DIFFERENZIATA | F8: Pro Capite/g | G8: RI Pro Capite/g | H8: Pro Capite/g
B9: CTRL + "x" per ordinare in % | D9: CTRL + "h" per Alfabetico
A10: 1 | B10: ='Dati Generali CER 1 Sem. 2023'!C3 -> ACQUEDOLCI | C10: =IF('Dati Generali CER 1 Sem. 2023'!E3="","",'Dati Generali CER 1 Sem. 2023'!E3) -> 142840 | D10: =IF(C10="","",'Dati Generali CER 1 Sem. 2023'!CE3) -> 712870 | E10: ='Dati Generali CER 1 Sem. 2023'!W3 -> 0.8330742892 | F10: =IF('Dati Generali CER 1 Sem. 2023'!CF3="","",'Dati Generali CER 1 Sem. 2023'!CF3) -> 0.8617717022 | G10: =IF('Dati Generali CER 1 Sem. 2023'!CG3="","",'Dati Generali CER 1 Sem. 2023'!CG3) -> 0.1438518539 | H10: =IF('Dati Generali CER 1 Sem. 2023'!CH3="","",'Dati Generali CER 1 Sem. 2023'!CH3) -> 0.7179198482 | I10: ='Dati Generali CER 1 Sem. 2023'!D3 -> 5486 | J10: =IF('Dati Generali CER 1 Sem. 2023'!CJ3="","",'Dati Generali CER 1 Sem. 2023'!CJ3) -> 2023-11-08T09:59:15
A11: 2 | B11: ='Dati Generali CER 1 Sem. 2023'!C4 -> ALCARA LI FUSI | C11: =IF('Dati Generali CER 1 Sem. 2023'!E4="","",'Dati Generali CER 1 Sem. 2023'!E4) -> 36340 | D11: =IF(C11="","",'Dati Generali CER 1 Sem. 2023'!CE4) -> 151361 | E11: ='Dati Generali CER 1 Sem. 2023'!W4 -> 0.8063942121 | F11: =IF('Dati Generali CER 1 Sem. 2023'!CF4="","",'Dati Generali CER 1 Sem. 2023'!CF4) -> 0.6085810443 | G11: =IF('Dati Generali CER 1 Sem. 2023'!CG4="","",'Dati Generali CER 1 Sem. 2023'!CG4) -> 0.1178248126 | H11: =IF('Dati Generali CER 1 Sem. 2023'!CH4="","",'Dati Generali CER 1 Sem. 2023'!CH4) -> 0.4907562317 | I11: ='Dati Generali CER 1 Sem. 2023'!D4 -> 1704 | J11: =IF('Dati Generali CER 1 Sem. 2023'!CJ4="","",'Dati Generali CER 1 Sem. 2023'!CJ4) -> 2023-11-07T16:19:31
A12: 3 | B12: ='Dati Generali CER 1 Sem. 2023'!C5 -> ALI' | C12: =IF('Dati Generali CER 1 Sem. 2023'!E5="","",'Dati Generali CER 1 Sem. 2023'!E5) -> 14360 | D12: =IF(C12="","",'Dati Generali CER 1 Sem. 2023'!CE5) -> 34405 | E12: ='Dati Generali CER 1 Sem. 2023'!W5 -> 0.7055265047 | F12: =IF('Dati Generali CER 1 Sem. 2023'!CF5="","",'Dati Generali CER 1 Sem. 2023'!CF5) -> 0.4107010511 | G12: =IF('Dati Generali CER 1 Sem. 2023'!CG5="","",'Dati Generali CER 1 Sem. 2023'!CG5) -> 0.120940574 | H12: =IF('Dati Generali CER 1 Sem. 2023'!CH5="","",'Dati Generali CER 1 Sem. 2023'!CH5) -> 0.289760477 | I12: ='Dati Generali CER 1 Sem. 2023'!D5 -> 656 | J12: =IF('Dati Generali CER 1 Sem. 2023'!CJ5="","",'Dati Generali CER 1 Sem. 2023'!CJ5) -> 2023-11-07T16:23:43
A13: 4 | B13: ='Dati Generali CER 1 Sem. 2023'!C6 -> ALI' TERME | C13: =IF('Dati Generali CER 1 Sem. 2023'!E6="","",'Dati Generali CER 1 Sem. 2023'!E6) -> 94170 | D13: =IF(C13="","",'Dati Generali CER 1 Sem. 2023'!CE6) -> 292644 | E13: ='Dati Generali CER 1 Sem. 2023'!W6 -> 0.7565496595 | F13: =IF('Dati Generali CER 1 Sem. 2023'!CF6="","",'Dati Generali CER 1 Sem. 2023'!CF6) -> 0.921558397 | G13: =IF('Dati Generali CER 1 Sem. 2023'!CG6="","",'Dati Generali CER 1 Sem. 2023'!CG6) -> 0.2243537055 | H13: =IF('Dati Generali CER 1 Sem. 2023'!CH6="","",'Dati Generali CER 1 Sem. 2023'!CH6) -> 0.6972046915 | I13: ='Dati Generali CER 1 Sem. 2023'!D6 -> 2319 | J13: =IF('Dati Generali CER 1 Sem. 2023'!CJ6="","",'Dati Generali CER 1 Sem. 2023'!CJ6) -> 2023-11-08T10:39:33
A14: 5 | B14: ='Dati Generali CER 1 Sem. 2023'!C7 -> ANTILLO | C14: =IF('Dati Generali CER 1 Sem. 2023'!E7="","",'Dati Generali CER 1 Sem. 2023'!E7) -> 19700 | D14: =IF(C14="","",'Dati Generali CER 1 Sem. 2023'!CE7) -> 72485 | E14: ='Dati Generali CER 1 Sem. 2023'!W7 -> 0.7862992895 | F14: =IF('Dati Generali CER 1 Sem. 2023'!CF7="","",'Dati Generali CER 1 Sem. 2023'!CF7) -> 0.6311144886 | G14: =IF('Dati Generali CER 1 Sem. 2023'!CG7="","",'Dati Generali CER 1 Sem. 2023'!CG7) -> 0.1348696146 | H14: =IF('Dati Generali CER 1 Sem. 2023'!CH7="","",'Dati Generali CER 1 Sem. 2023'!CH7) -> 0.4962448739 | I14: ='Dati Generali CER 1 Sem. 2023'!D7 -> 807 | J14: =IF('Dati Generali CER 1 Sem. 2023'!CJ7="","",'Dati Generali CER 1 Sem. 2023'!CJ7) -> 2023-11-08T10:46:45
A15: 6 | B15: ='Dati Generali CER 1 Sem. 2023'!C8 -> BARCELLONA P.G. | C15: =IF('Dati Generali CER 1 Sem. 2023'!E8="","",'Dati Generali CER 1 Sem. 2023'!E8) -> 2749700 | D15: =IF(C15="","",'Dati Generali CER 1 Sem. 2023'!CE8) -> 5677499 | E15: ='Dati Generali CER 1 Sem. 2023'!W8 -> 0.673711277 | F15: =IF('Dati Generali CER 1 Sem. 2023'!CF8="","",'Dati Generali CER 1 Sem. 2023'!CF8) -> 1.164530915 | G15: =IF('Dati Generali CER 1 Sem. 2023'!CG8="","",'Dati Generali CER 1 Sem. 2023'!CG8) -> 0.379973305 | H15: =IF('Dati Generali CER 1 Sem. 2023'!CH8="","",'Dati Generali CER 1 Sem. 2023'!CH8) -> 0.7845576096 | I15: ='Dati Generali CER 1 Sem. 2023'!D8 -> 39981 | J15: =IF('Dati Generali CER 1 Sem. 2023'!CJ8="","",'Dati Generali CER 1 Sem. 2023'!CJ8) -> 2023-11-08T11:00:21
A16: 7 | B16: ='Dati Generali CER 1 Sem. 2023'!C9 -> BASICO' | C16: =IF('Dati Generali CER 1 Sem. 2023'!E9="","",'Dati Generali CER 1 Sem. 2023'!E9) -> 50100 | D16: =IF(C16="","",'Dati Generali CER 1 Sem. 2023'!CE9) -> 60157 | E16: ='Dati Generali CER 1 Sem. 2023'!W9 -> 0.5456070816 | F16: =IF('Dati Generali CER 1 Sem. 2023'!CF9="","",'Dati Generali CER 1 Sem. 2023'!CF9) -> 1.020359625 | G16: =IF('Dati Generali CER 1 Sem. 2023'!CG9="","",'Dati Generali CER 1 Sem. 2023'!CG9) -> 0.4636441878 | H16: =IF('Dati Generali CER 1 Sem. 2023'!CH9="","",'Dati Generali CER 1 Sem. 2023'!CH9) -> 0.5567154372 | I16: ='Dati Generali CER 1 Sem. 2023'!D9 -> 597 | J16: =IF('Dati Generali CER 1 Sem. 2023'!CJ9="","",'Dati Generali CER 1 Sem. 2023'!CJ9) -> 2023-11-23T15:38:00
A17: 8 | B17: ='Dati Generali CER 1 Sem. 2023'!C10 -> BROLO | C17: =IF('Dati Generali CER 1 Sem. 2023'!E10="","",'Dati Generali CER 1 Sem. 2023'!E10) -> 332380 | D17: =IF(C17="","",'Dati Generali CER 1 Sem. 2023'!CE10) -> 960230 | E17: ='Dati Generali CER 1 Sem. 2023'!W10 -> 0.7428613426 | F17: =IF('Dati Generali CER 1 Sem. 2023'!CF10="","",'Dati Generali CER 1 Sem. 2023'!CF10) -> 1.241566709 | G17: =IF('Dati Generali CER 1 Sem. 2023'!CG10="","",'Dati Generali CER 1 Sem. 2023'!CG10) -> 0.3192547968 | H17: =IF('Dati Generali CER 1 Sem. 2023'!CH10="","",'Dati Generali CER 1 Sem. 2023'!CH10) -> 0.9223119126 | I17: ='Dati Generali CER 1 Sem. 2023'!D10 -> 5752 | J17: =IF('Dati Generali CER 1 Sem. 2023'!CJ10="","",'Dati Generali CER 1 Sem. 2023'!CJ10) -> 2023-11-08T11:02:40
A18: 9 | B18: ='Dati Generali CER 1 Sem. 2023'!C11 -> CAPIZZI | C18: =IF('Dati Generali CER 1 Sem. 2023'!E11="","",'Dati Generali CER 1 Sem. 2023'!E11) -> 143210 | D18: =IF(C18="","",'Dati Generali CER 1 Sem. 2023'!CE11) -> 216813 | E18: ='Dati Generali CER 1 Sem. 2023'!W11 -> 0.6022198582 | F18: =IF('Dati Generali CER 1 Sem. 2023'!CF11="","",'Dati Generali CER 1 Sem. 2023'!CF11) -> 0.6996402913 | G18: =IF('Dati Generali CER 1 Sem. 2023'!CG11="","",'Dati Generali CER 1 Sem. 2023'!CG11) -> 0.2783030143 | H18: =IF('Dati Generali CER 1 Sem. 2023'!CH11="","",'Dati Generali CER 1 Sem. 2023'!CH11) -> 0.421337277 | I18: ='Dati Generali CER 1 Sem. 2023'!D11 -> 2843 | J18: =IF('Dati Generali CER 1 Sem. 2023'!CJ11="","",'Dati Generali CER 1 Sem. 2023'!CJ11) -> 2023-11-28T14:57:24
A19: 10 | B19: ='Dati Generali CER 1 Sem. 2023'!C12 -> CAPO D'ORLANDO | C19: =IF('Dati Generali CER 1 Sem. 2023'!E12="","",'Dati Generali CER 1 Sem. 2023'!E12) -> 434380 | D19: =IF(C19="","",'Dati Generali CER 1 Sem. 2023'!CE12) -> 2638757 | E19: ='Dati Generali CER 1 Sem. 2023'!W12 -> 0.8586525755 | F19: =IF('Dati Generali CER 1 Sem. 2023'!CF12="","",'Dati Generali CER 1 Sem. 2023'!CF12) -> 1.298658212 | G19: =IF('Dati Generali CER 1 Sem. 2023'!CG12="","",'Dati Generali CER 1 Sem. 2023'!CG12) -> 0.1835619935 | H19: =IF('Dati Generali CER 1 Sem. 2023'!CH12="","",'Dati Generali CER 1 Sem. 2023'!CH12) -> 1.115096218 | I19: ='Dati Generali CER 1 Sem. 2023'!D12 -> 13074 | J19: =IF('Dati Generali CER 1 Sem. 2023'!CJ12="","",'Dati Generali CER 1 Sem. 2023'!CJ12) -> 2023-11-08T11:07:58
A20: 11 | B20: ='Dati Generali CER 1 Sem. 2023'!C13 -> CAPRILEONE | C20: =IF('Dati Generali CER 1 Sem. 2023'!E13="","",'Dati Generali CER 1 Sem. 2023'!E13) -> 65820 | D20: =IF(C20="","",'Dati Generali CER 1 Sem. 2023'!CE13) -> 586390 | E20: ='Dati Generali CER 1 Sem. 2023'!W13 -> 0.8990815842 | F20: =IF('Dati Generali CER 1 Sem. 2023'!CF13="","",'Dati Generali CER 1 Sem. 2023'!CF13) -> 0.825703521 | G20: =IF('Dati Generali CER 1 Sem. 2023'!CG13="","",'Dati Generali CER 1 Sem. 2023'!CG13) -> 0.0833286913 | H20: =IF('Dati Generali CER 1 Sem. 2023'!CH13="","",'Dati Generali CER 1 Sem. 2023'!CH13) -> 0.7423748297 | I20: ='Dati Generali CER 1 Sem. 2023'!D13 -> 4364 | J20: =IF('Dati Generali CER 1 Sem. 2023'!CJ13="","",'Dati Generali CER 1 Sem. 2023'!CJ13) -> 2023-12-07T12:34:19
A21: 12 | B21: ='Dati Generali CER 1 Sem. 2023'!C14 -> CARONIA | C21: =IF('Dati Generali CER 1 Sem. 2023'!E14="","",'Dati Generali CER 1 Sem. 2023'!E14) -> 173500 | D21: =IF(C21="","",'Dati Generali CER 1 Sem. 2023'!CE14) -> 377578 | E21: ='Dati Generali CER 1 Sem. 2023'!W14 -> 0.685162536 | F21: =IF('Dati Generali CER 1 Sem. 2023'!CF14="","",'Dati Generali CER 1 Sem. 2023'!CF14) -> 0.9956278071 | G21: =IF('Dati Generali CER 1 Sem. 2023'!CG14="","",'Dati Generali CER 1 Sem. 2023'!CG14) -> 0.3134609339 | H21: =IF('Dati Generali CER 1 Sem. 2023'!CH14="","",'Dati Generali CER 1 Sem. 2023'!CH14) -> 0.6821668732 | I21: ='Dati Generali CER 1 Sem. 2023'!D14 -> 3058 | J21: =IF('Dati Generali CER 1 Sem. 2023'!CJ14="","",'Dati Generali CER 1 Sem. 2023'!CJ14) -> 2023-11-16T18:14:17
A22: 13 | B22: ='Dati Generali CER 1 Sem. 2023'!C15 -> CASALVECCHIO SICULO | C22: =IF('Dati Generali CER 1 Sem. 2023'!E15="","",'Dati Generali CER 1 Sem. 2023'!E15) -> 22840 | D22: =IF(C22="","",'Dati Generali CER 1 Sem. 2023'!CE15) -> 65320 | E22: ='Dati Generali CER 1 Sem. 2023'!W15 -> 0.7409255898 | F22: =IF('Dati Generali CER 1 Sem. 2023'!CF15="","",'Dati Generali CER 1 Sem. 2023'!CF15) -> 0.6708978281 | G22: =IF('Dati Generali CER 1 Sem. 2023'!CG15="","",'Dati Generali CER 1 Sem. 2023'!CG15) -> 0.1738124591 | H22: =IF('Dati Generali CER 1 Sem. 2023'!CH15="","",'Dati Generali CER 1 Sem. 2023'!CH15) -> 0.497085369 | I22: ='Dati Generali CER 1 Sem. 2023'!D15 -> 726 | J22: =IF('Dati Generali CER 1 Sem. 2023'!CJ15="","",'Dati Generali CER 1 Sem. 2023'!CJ15) -> 2023-11-08T11:21:23
A23: 14 | B23: ='Dati Generali CER 1 Sem. 2023'!C16 -> CASTEL DI LUCIO | C23: =IF('Dati Generali CER 1 Sem. 2023'!E16="","",'Dati Generali CER 1 Sem. 2023'!E16) -> 15280 | D23: =IF(C23="","",'Dati Generali CER 1 Sem. 2023'!CE16) -> 100374 | E23: ='Dati Generali CER 1 Sem. 2023'!W16 -> 0.8678817853 | F23: =IF('Dati Generali CER 1 Sem. 2023'!CF16="","",'Dati Generali CER 1 Sem. 2023'!CF16) -> 0.51906773 | G23: =IF('Dati Generali CER 1 Sem. 2023'!CG16="","",'Dati Generali CER 1 Sem. 2023'!CG16) -> 0.06857830179 | H23: =IF('Dati Generali CER 1 Sem. 2023'!CH16="","",'Dati Generali CER 1 Sem. 2023'!CH16) -> 0.4504894283 | I23: ='Dati Generali CER 1 Sem. 2023'!D16 -> 1231 | J23: =IF('Dati Generali CER 1 Sem. 2023'!CJ16="","",'Dati Generali CER 1 Sem. 2023'!CJ16) -> 2023-11-08T11:27:38
A24: 15 | B24: ='Dati Generali CER 1 Sem. 2023'!C17 -> CASTELL'UMBERTO | C24: =IF('Dati Generali CER 1 Sem. 2023'!E17="","",'Dati Generali CER 1 Sem. 2023'!E17) -> 85100 | D24: =IF(C24="","",'Dati Generali CER 1 Sem. 2023'!CE17) -> 253240 | E24: ='Dati Generali CER 1 Sem. 2023'!W17 -> 0.7484778625 | F24: =IF('Dati Generali CER 1 Sem. 2023'!CF17="","",'Dati Generali CER 1 Sem. 2023'!CF17) -> 0.6600571215 | G24: =IF('Dati Generali CER 1 Sem. 2023'!CG17="","",'Dati Generali CER 1 Sem. 2023'!CG17) -> 0.1660189781 | H24: =IF('Dati Generali CER 1 Sem. 2023'!CH17="","",'Dati Generali CER 1 Sem. 2023'!CH17) -> 0.4940381434 | I24: ='Dati Generali CER 1 Sem. 2023'!D17 -> 2832 | J24: =IF('Dati Generali CER 1 Sem. 2023'!CJ17="","",'Dati Generali CER 1 Sem. 2023'!CJ17) -> 2023-11-28T10:25:06
A25: 16 | B25: ='Dati Generali CER 1 Sem. 2023'!C18 -> CASTELMOLA | C25: =IF('Dati Generali CER 1 Sem. 2023'!E18="","",'Dati Generali CER 1 Sem. 2023'!E18) -> 80780 | D25: =IF(C25="","",'Dati Generali CER 1 Sem. 2023'!CE18) -> 112990 | E25: ='Dati Generali CER 1 Sem. 2023'!W18 -> 0.5831140011 | F25: =IF('Dati Generali CER 1 Sem. 2023'!CF18="","",'Dati Generali CER 1 Sem. 2023'!CF18) -> 1.000516342 | G25: =IF('Dati Generali CER 1 Sem. 2023'!CG18="","",'Dati Generali CER 1 Sem. 2023'!CG18) -> 0.4171012547 | H25: =IF('Dati Generali CER 1 Sem. 2023'!CH18="","",'Dati Generali CER 1 Sem. 2023'!CH18) -> 0.5834150875 | I25: ='Dati Generali CER 1 Sem. 2023'!D18 -> 1070 | J25: =IF('Dati Generali CER 1 Sem. 2023'!CJ18="","",'Dati Generali CER 1 Sem. 2023'!CJ18) -> 2023-12-05T08:04:44
A26: 17 | B26: ='Dati Generali CER 1 Sem. 2023'!C19 -> CASTROREALE | C26: =IF('Dati Generali CER 1 Sem. 2023'!E19="","",'Dati Generali CER 1 Sem. 2023'!E19) -> 71160 | D26: =IF(C26="","",'Dati Generali CER 1 Sem. 2023'!CE19) -> 204918 | E26: ='Dati Generali CER 1 Sem. 2023'!W19 -> 0.7422467564 | F26: =IF('Dati Generali CER 1 Sem. 2023'!CF19="","",'Dati Generali CER 1 Sem. 2023'!CF19) -> 0.6770052453 | G26: =IF('Dati Generali CER 1 Sem. 2023'!CG19="","",'Dati Generali CER 1 Sem. 2023'!CG19) -> 0.1745002979 | H26: =IF('Dati Generali CER 1 Sem. 2023'!CH19="","",'Dati Generali CER 1 Sem. 2023'!CH19) -> 0.5025049474 | I26: ='Dati Generali CER 1 Sem. 2023'!D19 -> 2253 | J26: =IF('Dati Generali CER 1 Sem. 2023'!CJ19="","",'Dati Generali CER 1 Sem. 2023'!CJ19) -> 2023-11-08T11:36:48
A27: 18 | B27: ='Dati Generali CER 1 Sem. 2023'!C20 -> CESARO' | C27: =IF('Dati Generali CER 1 Sem. 2023'!E20="","",'Dati Generali CER 1 Sem. 2023'!E20) -> 149610 | D27: =IF(C27="","",'Dati Generali CER 1 Sem. 2023'!CE20) -> 166699 | E27: ='Dati Generali CER 1 Sem. 2023'!W20 -> 0.5270131422 | F27: =IF('Dati Generali CER 1 Sem. 2023'!CF20="","",'Dati Generali CER 1 Sem. 2023'!CF20) -> 0.8086828024 | G27: =IF('Dati Generali CER 1 Sem. 2023'!CG20="","",'Dati Generali CER 1 Sem. 2023'!CG20) -> 0.3824963376 | H27: =IF('Dati Generali CER 1 Sem. 2023'!CH20="","",'Dati Generali CER 1 Sem. 2023'!CH20) -> 0.4261864647 | I27: ='Dati Generali CER 1 Sem. 2023'!D20 -> 2161 | J27: =IF('Dati Generali CER 1 Sem. 2023'!CJ20="","",'Dati Generali CER 1 Sem. 2023'!CJ20) -> 2023-11-08T11:45:21
A28: 19 | B28: ='Dati Generali CER 1 Sem. 2023'!C21 -> CONDRO' | C28: =IF('Dati Generali CER 1 Sem. 2023'!E21="","",'Dati Generali CER 1 Sem. 2023'!E21) -> 35240 | D28: =IF(C28="","",'Dati Generali CER 1 Sem. 2023'!CE21) -> 39840 | E28: ='Dati Generali CER 1 Sem. 2023'!W21 -> 0.5306339904 | F28: =IF('Dati Generali CER 1 Sem. 2023'!CF21="","",'Dati Generali CER 1 Sem. 2023'!CF21) -> 0.8825672975 | G28: =IF('Dati Generali CER 1 Sem. 2023'!CG21="","",'Dati Generali CER 1 Sem. 2023'!CG21) -> 0.4142470906 | H28: =IF('Dati Generali CER 1 Sem. 2023'!CH21="","",'Dati Generali CER 1 Sem. 2023'!CH21) -> 0.4683202069 | I28: ='Dati Generali CER 1 Sem. 2023'!D21 -> 470 | J28: =IF('Dati Generali CER 1 Sem. 2023'!CJ21="","",'Dati Generali CER 1 Sem. 2023'!CJ21) -> 2023-11-08T11:47:32
A29: 20 | B29: ='Dati Generali CER 1 Sem. 2023'!C22 -> FALCONE | C29: =IF('Dati Generali CER 1 Sem. 2023'!E22="","",'Dati Generali CER 1 Sem. 2023'!E22) -> 201240 | D29: =IF(C29="","",'Dati Generali CER 1 Sem. 2023'!CE22) -> 405320 | E29: ='Dati Generali CER 1 Sem. 2023'!W22 -> 0.6682273806 | F29: =IF('Dati Generali CER 1 Sem. 2023'!CF22="","",'Dati Generali CER 1 Sem. 2023'!CF22) -> 1.199413107 | G29: =IF('Dati Generali CER 1 Sem. 2023'!CG22="","",'Dati Generali CER 1 Sem. 2023'!CG22) -> 0.3979324282 | H29: =IF('Dati Generali CER 1 Sem. 2023'!CH22="","",'Dati Generali CER 1 Sem. 2023'!CH22) -> 0.8014806788 | I29: ='Dati Generali CER 1 Sem. 2023'!D22 -> 2794 | J29: =IF('Dati Generali CER 1 Sem. 2023'!CJ22="","",'Dati Generali CER 1 Sem. 2023'!CJ22) -> 2023-11-08T11:51:21
A30: 21 | B30: ='Dati Generali CER 1 Sem. 2023'!C23 -> FICARRA | C30: =IF('Dati Generali CER 1 Sem. 2023'!E23="","",'Dati Generali CER 1 Sem. 2023'!E23) -> 37920 | D30: =IF(C30="","",'Dati Generali CER 1 Sem. 2023'!CE23) -> 166330 | E30: ='Dati Generali CER 1 Sem. 2023'!W23 -> 0.8143451652 | F30: =IF('Dati Generali CER 1 Sem. 2023'!CF23="","",'Dati Generali CER 1 Sem. 2023'!CF23) -> 0.8754484396 | G30: =IF('Dati Generali CER 1 Sem. 2023'!CG23="","",'Dati Generali CER 1 Sem. 2023'!CG23) -> 0.1625312354 | H30: =IF('Dati Generali CER 1 Sem. 2023'!CH23="","",'Dati Generali CER 1 Sem. 2023'!CH23) -> 0.7129172042 | I30: ='Dati Generali CER 1 Sem. 2023'!D23 -> 1289 | J30: =IF('Dati Generali CER 1 Sem. 2023'!CJ23="","",'Dati Generali CER 1 Sem. 2023'!CJ23) -> 2023-11-09T08:05:03
A31: 22 | B31: ='Dati Generali CER 1 Sem. 2023'!C24 -> FIUMEDINISI | C31: =IF('Dati Generali CER 1 Sem. 2023'!E24="","",'Dati Generali CER 1 Sem. 2023'!E24) -> 33280 | D31: =IF(C31="","",'Dati Generali CER 1 Sem. 2023'!CE24) -> 101394 | E31: ='Dati Generali CER 1 Sem. 2023'!W24 -> 0.7528847439 | F31: =IF('Dati Generali CER 1 Sem. 2023'!CF24="","",'Dati Generali CER 1 Sem. 2023'!CF24) -> 0.5826587695 | G31: =IF('Dati Generali CER 1 Sem. 2023'!CG24="","",'Dati Generali CER 1 Sem. 2023'!CG24) -> 0.143983871 | H31: =IF('Dati Generali CER 1 Sem. 2023'!CH24="","",'Dati Generali CER 1 Sem. 2023'!CH24) -> 0.4386748984 | I31: ='Dati Generali CER 1 Sem. 2023'!D24 -> 1277 | J31: =IF('Dati Generali CER 1 Sem. 2023'!CJ24="","",'Dati Generali CER 1 Sem. 2023'!CJ24) -> 2023-11-09T08:12:26
A32: 23 | B32: ='Dati Generali CER 1 Sem. 2023'!C25 -> FLORESTA | C32: =IF('Dati Generali CER 1 Sem. 2023'!E25="","",'Dati Generali CER 1 Sem. 2023'!E25) -> 19010 | D32: =IF(C32="","",'Dati Generali CER 1 Sem. 2023'!CE25) -> 47760 | E32: ='Dati Generali CER 1 Sem. 2023'!W25 -> 0.7152912985 | F32: =IF('Dati Generali CER 1 Sem. 2023'!CF25="","",'Dati Generali CER 1 Sem. 2023'!CF25) -> 0.7865565621 | G32: =IF('Dati Generali CER 1 Sem. 2023'!CG25="","",'Dati Generali CER 1 Sem. 2023'!CG25) -> 0.2239394975 | H32: =IF('Dati Generali CER 1 Sem. 2023'!CH25="","",'Dati Generali CER 1 Sem. 2023'!CH25) -> 0.5626170646 | I32: ='Dati Generali CER 1 Sem. 2023'!D25 -> 469 | J32: =IF('Dati Generali CER 1 Sem. 2023'!CJ25="","",'Dati Generali CER 1 Sem. 2023'!CJ25) -> 2023-11-24T10:20:09
A33: 24 | B33: ='Dati Generali CER 1 Sem. 2023'!C26 -> FONDACHELLI FANTINA | C33: =IF('Dati Generali CER 1 Sem. 2023'!E26="","",'Dati Generali CER 1 Sem. 2023'!E26) -> 69240 | D33: =IF(C33="","",'Dati Generali CER 1 Sem. 2023'!CE26) -> 45840 | E33: ='Dati Generali CER 1 Sem. 2023'!W26 -> 0.3983315954 | F33: =IF('Dati Generali CER 1 Sem. 2023'!CF26="","",'Dati Generali CER 1 Sem. 2023'!CF26) -> 0.6020843797 | G33: =IF('Dati Generali CER 1 Sem. 2023'!CG26="","",'Dati Generali CER 1 Sem. 2023'!CG26) -> 0.3622551482 | H33: =IF('Dati Generali CER 1 Sem. 2023'!CH26="","",'Dati Generali CER 1 Sem. 2023'!CH26) -> 0.2398292315 | I33: ='Dati Generali CER 1 Sem. 2023'!D26 -> 1056 | J33: =IF('Dati Generali CER 1 Sem. 2023'!CJ26="","",'Dati Generali CER 1 Sem. 2023'!CJ26) -> 2023-11-09T08:15:01
A34: 25 | B34: ='Dati Generali CER 1 Sem. 2023'!C27 -> FORZA D'AGRO' | C34: =IF('Dati Generali CER 1 Sem. 2023'!E27="","",'Dati Generali CER 1 Sem. 2023'!E27) -> 49360 | D34: =IF(C34="","",'Dati Generali CER 1 Sem. 2023'!CE27) -> 139880 | E34: ='Dati Generali CER 1 Sem. 2023'!W27 -> 0.7391671951 | F34: =IF('Dati Generali CER 1 Sem. 2023'!CF27="","",'Dati Generali CER 1 Sem. 2023'!CF27) -> 1.252125583 | G34: =IF('Dati Generali CER 1 Sem. 2023'!CG27="","",'Dati Generali CER 1 Sem. 2023'!CG27) -> 0.3265954279 | H34: =IF('Dati Generali CER 1 Sem. 2023'!CH27="","",'Dati Generali CER 1 Sem. 2023'!CH27) -> 0.9255301552 | I34: ='Dati Generali CER 1 Sem. 2023'!D27 -> 835 | J34: =IF('Dati Generali CER 1 Sem. 2023'!CJ27="","",'Dati Generali CER 1 Sem. 2023'!CJ27) -> 2023-12-01T08:30:08
A35: 26 | B35: ='Dati Generali CER 1 Sem. 2023'!C28 -> FRANCAVILLA DI SICILIA | C35: =IF('Dati Generali CER 1 Sem. 2023'!E28="","",'Dati Generali CER 1 Sem. 2023'!E28) -> 146710 | D35: =IF(C35="","",'Dati Generali CER 1 Sem. 2023'!CE28) -> 651272 | E35: ='Dati Generali CER 1 Sem. 2023'!W28 -> 0.8161487352 | F35: =IF('Dati Generali CER 1 Sem. 2023'!CF28="","",'Dati Generali CER 1 Sem. 2023'!CF28) -> 1.241548953 | G35: =IF('Dati Generali CER 1 Sem. 2023'!CG28="","",'Dati Generali CER 1 Sem. 2023'!CG28) -> 0.2282603453 | H35: =IF('Dati Generali CER 1 Sem. 2023'!CH28="","",'Dati Generali CER 1 Sem. 2023'!CH28) -> 1.013288608 | I35: ='Dati Generali CER 1 Sem. 2023'!D28 -> 3551 | J35: =IF('Dati Generali CER 1 Sem. 2023'!CJ28="","",'Dati Generali CER 1 Sem. 2023'!CJ28) -> 2023-12-06T09:48:49
A36: 27 | B36: ='Dati Generali CER 1 Sem. 2023'!C29 -> FRAZZANO' | C36: =IF('Dati Generali CER 1 Sem. 2023'!E29="","",'Dati Generali CER 1 Sem. 2023'!E29) -> 22060 | D36: =IF(C36="","",'Dati Generali CER 1 Sem. 2023'!CE29) -> 42300 | E36: ='Dati Generali CER 1 Sem. 2023'!W29 -> 0.6572405221 | F36: =IF('Dati Generali CER 1 Sem. 2023'!CF29="","",'Dati Generali CER 1 Sem. 2023'!CF29) -> 0.6057582802 | G36: =IF('Dati Generali CER 1 Sem. 2023'!CG29="","",'Dati Generali CER 1 Sem. 2023'!CG29) -> 0.2076293919 | H36: =IF('Dati Generali CER 1 Sem. 2023'!CH29="","",'Dati Generali CER 1 Sem. 2023'!CH29) -> 0.3981288883 | I36: ='Dati Generali CER 1 Sem. 2023'!D29 -> 587 | J36: =IF('Dati Generali CER 1 Sem. 2023'!CJ29="","",'Dati Generali CER 1 Sem. 2023'!CJ29) -> 2023-11-09T08:17:03
A37: 28 | B37: ='Dati Generali CER 1 Sem. 2023'!C30 -> FURCI SICULO | C37: =IF('Dati Generali CER 1 Sem. 2023'!E30="","",'Dati Generali CER 1 Sem. 2023'!E30) -> 118190 | D37: =IF(C37="","",'Dati Generali CER 1 Sem. 2023'!CE30) -> 416813 | E37: ='Dati Generali CER 1 Sem. 2023'!W30 -> 0.7790853509 | F37: =IF('Dati Generali CER 1 Sem. 2023'!CF30="","",'Dati Generali CER 1 Sem. 2023'!CF30) -> 0.9202421169 | G37: =IF('Dati Generali CER 1 Sem. 2023'!CG30="","",'Dati Generali CER 1 Sem. 2023'!CG30) -> 0.2032949643 | H37: =IF('Dati Generali CER 1 Sem. 2023'!CH30="","",'Dati Generali CER 1 Sem. 2023'!CH30) -> 0.7169471526 | I37: ='Dati Generali CER 1 Sem. 2023'!D30 -> 3212 | J37: =IF('Dati Generali CER 1 Sem. 2023'!CJ30="","",'Dati Generali CER 1 Sem. 2023'!CJ30) -> 2023-11-09T08:18:43
A38: 29 | B38: ='Dati Generali CER 1 Sem. 2023'!C31 -> FURNARI | C38: =IF('Dati Generali CER 1 Sem. 2023'!E31="","",'Dati Generali CER 1 Sem. 2023'!E31) -> 173720 | D38: =IF(C38="","",'Dati Generali CER 1 Sem. 2023'!CE31) -> 914800 | E38: ='Dati Generali CER 1 Sem. 2023'!W31 -> 0.8210522537 | F38: =IF('Dati Generali CER 1 Sem. 2023'!CF31="","",'Dati Generali CER 1 Sem. 2023'!CF31) -> 1.535467849 | G38: =IF('Dati Generali CER 1 Sem. 2023'!CG31="","",'Dati Generali CER 1 Sem. 2023'!CG31) -> 0.2394060877 | H38: =IF('Dati Generali CER 1 Sem. 2023'!CH31="","",'Dati Generali CER 1 Sem. 2023'!CH31) -> 1.260699338 | I38: ='Dati Generali CER 1 Sem. 2023'!D31 -> 4009 | J38: =IF('Dati Generali CER 1 Sem. 2023'!CJ31="","",'Dati Generali CER 1 Sem. 2023'!CJ31) -> 2023-11-09T08:21:50
A39: 30 | B39: ='Dati Generali CER 1 Sem. 2023'!C32 -> GAGGI | C39: =IF('Dati Generali CER 1 Sem. 2023'!E32="","",'Dati Generali CER 1 Sem. 2023'!E32) -> 218610 | D39: =IF(C39="","",'Dati Generali CER 1 Sem. 2023'!CE32) -> 274901 | E39: ='Dati Generali CER 1 Sem. 2023'!W32 -> 0.5570311503 | F39: =IF('Dati Generali CER 1 Sem. 2023'!CF32="","",'Dati Generali CER 1 Sem. 2023'!CF32) -> 0.8786916244 | G39: =IF('Dati Generali CER 1 Sem. 2023'!CG32="","",'Dati Generali CER 1 Sem. 2023'!CG32) -> 0.3892330181 | H39: =IF('Dati Generali CER 1 Sem. 2023'!CH32="","",'Dati Generali CER 1 Sem. 2023'!CH32) -> 0.4894586063 | I39: ='Dati Generali CER 1 Sem. 2023'!D32 -> 3103 | J39: =IF('Dati Generali CER 1 Sem. 2023'!CJ32="","",'Dati Generali CER 1 Sem. 2023'!CJ32) -> 2023-11-09T08:24:47
A40: 31 | B40: ='Dati Generali CER 1 Sem. 2023'!C33 -> GALATI MAMERTINO | C40: =IF('Dati Generali CER 1 Sem. 2023'!E33="","",'Dati Generali CER 1 Sem. 2023'!E33) -> 55500 | D40: =IF(C40="","",'Dati Generali CER 1 Sem. 2023'!CE33) -> 227050 | E40: ='Dati Generali CER 1 Sem. 2023'!W33 -> 0.8035745886 | F40: =IF('Dati Generali CER 1 Sem. 2023'!CF33="","",'Dati Generali CER 1 Sem. 2023'!CF33) -> 0.6892051761 | G40: =IF('Dati Generali CER 1 Sem. 2023'!CG33="","",'Dati Generali CER 1 Sem. 2023'!CG33) -> 0.1353774103 | H40: =IF('Dati Generali CER 1 Sem. 2023'!CH33="","",'Dati Generali CER 1 Sem. 2023'!CH33) -> 0.5538277658 | I40: ='Dati Generali CER 1 Sem. 2023'!D33 -> 2265 | J40: =IF('Dati Generali CER 1 Sem. 2023'!CJ33="","",'Dati Generali CER 1 Sem. 2023'!CJ33) -> 2023-11-09T08:30:53
A41: 32 | B41: ='Dati Generali CER 1 Sem. 2023'!C34 -> GALLODORO | C41: =IF('Dati Generali CER 1 Sem. 2023'!E34="","",'Dati Generali CER 1 Sem. 2023'!E34) -> 22760 | D41: =IF(C41="","",'Dati Generali CER 1 Sem. 2023'!CE34) -> 47850 | E41: ='Dati Generali CER 1 Sem. 2023'!W34 -> 0.677666053 | F41: =IF('Dati Generali CER 1 Sem. 2023'!CF34="","",'Dati Generali CER 1 Sem. 2023'!CF34) -> 1.157597915 | G41: =IF('Dati Generali CER 1 Sem. 2023'!CG34="","",'Dati Generali CER 1 Sem. 2023'!CG34) -> 0.3731331049 | H41: =IF('Dati Generali CER 1 Sem. 2023'!CH34="","",'Dati Generali CER 1 Sem. 2023'!CH34) -> 0.7844648097 | I41: ='Dati Generali CER 1 Sem. 2023'!D34 -> 337 | J41: =IF('Dati Generali CER 1 Sem. 2023'!CJ34="","",'Dati Generali CER 1 Sem. 2023'!CJ34) -> 2023-12-12T14:20:30
A42: 33 | B42: ='Dati Generali CER 1 Sem. 2023'!C35 -> GIARDINI NAXOS | C42: =IF('Dati Generali CER 1 Sem. 2023'!E35="","",'Dati Generali CER 1 Sem. 2023'!E35) -> 917120 | D42: =IF(C42="","",'Dati Generali CER 1 Sem. 2023'!CE35) -> 1747832 | E42: ='Dati Generali CER 1 Sem. 2023'!W35 -> 0.6558587172 | F42: =IF('Dati Generali CER 1 Sem. 2023'!CF35="","",'Dati Generali CER 1 Sem. 2023'!CF35) -> 1.586925168 | G42: =IF('Dati Generali CER 1 Sem. 2023'!CG35="","",'Dati Generali CER 1 Sem. 2023'!CG35) -> 0.5461264632 | H42: =IF('Dati Generali CER 1 Sem. 2023'!CH35="","",'Dati Generali CER 1 Sem. 2023'!CH35) -> 1.040798705 | I42: ='Dati Generali CER 1 Sem. 2023'!D35 -> 9278 | J42: =IF('Dati Generali CER 1 Sem. 2023'!CJ35="","",'Dati Generali CER 1 Sem. 2023'!CJ35) -> 2023-11-09T09:18:54
A43: 34 | B43: ='Dati Generali CER 1 Sem. 2023'!C36 -> GIOIOSA MAREA | C43: =IF('Dati Generali CER 1 Sem. 2023'!E36="","",'Dati Generali CER 1 Sem. 2023'!E36) -> 364600 | D43: =IF(C43="","",'Dati Generali CER 1 Sem. 2023'!CE36) -> 763530 | E43: ='Dati Generali CER 1 Sem. 2023'!W36 -> 0.6768102967 | F43: =IF('Dati Generali CER 1 Sem. 2023'!CF36="","",'Dati Generali CER 1 Sem. 2023'!CF36) -> 0.9265292747 | G43: =IF('Dati Generali CER 1 Sem. 2023'!CG36="","",'Dati Generali CER 1 Sem. 2023'!CG36) -> 0.2994447214 | H43: =IF('Dati Generali CER 1 Sem. 2023'!CH36="","",'Dati Generali CER 1 Sem. 2023'!CH36) -> 0.6270845533 | I43: ='Dati Generali CER 1 Sem. 2023'!D36 -> 6727 | J43: =IF('Dati Generali CER 1 Sem. 2023'!CJ36="","",'Dati Generali CER 1 Sem. 2023'!CJ36) -> 2023-11-24T10:24:53
A44: 35 | B44: ='Dati Generali CER 1 Sem. 2023'!C37 -> GRANITI | C44: =IF('Dati Generali CER 1 Sem. 2023'!E37="","",'Dati Generali CER 1 Sem. 2023'!E37) -> 202850 | D44: =IF(C44="","",'Dati Generali CER 1 Sem. 2023'!CE37) -> 52760 | E44: ='Dati Generali CER 1 Sem. 2023'!W37 -> 0.2064082 | F44: =IF('Dati Generali CER 1 Sem. 2023'!CF37="","",'Dati Generali CER 1 Sem. 2023'!CF37) -> 0.9666050272 | G44: =IF('Dati Generali CER 1 Sem. 2023'!CG37="","",'Dati Generali CER 1 Sem. 2023'!CG37) -> 0.7670898234 | H44: =IF('Dati Generali CER 1 Sem. 2023'!CH37="","",'Dati Generali CER 1 Sem. 2023'!CH37) -> 0.1995152038 | I44: ='Dati Generali CER 1 Sem. 2023'!D37 -> 1461 | J44: =IF('Dati Generali CER 1 Sem. 2023'!CJ37="","",'Dati Generali CER 1 Sem. 2023'!CJ37) -> 2023-11-09T08:33:15
A45: 36 | B45: ='Dati Generali CER 1 Sem. 2023'!C38 -> GUALTIERI SICAMINO | C45: =IF('Dati Generali CER 1 Sem. 2023'!E38="","",'Dati Generali CER 1 Sem. 2023'!E38) -> 54320 | D45: =IF(C45="","",'Dati Generali CER 1 Sem. 2023'!CE38) -> 218571 | E45: ='Dati Generali CER 1 Sem. 2023'!W38 -> 0.8009461653 | F45: =IF('Dati Generali CER 1 Sem. 2023'!CF38="","",'Dati Generali CER 1 Sem. 2023'!CF38) -> 0.9518213907 | G45: =IF('Dati Generali CER 1 Sem. 2023'!CG38="","",'Dati Generali CER 1 Sem. 2023'!CG38) -> 0.1894636978 | H45: =IF('Dati Generali CER 1 Sem. 2023'!CH38="","",'Dati Generali CER 1 Sem. 2023'!CH38) -> 0.762357693 | I45: ='Dati Generali CER 1 Sem. 2023'!D38 -> 1584 | J45: =IF('Dati Generali CER 1 Sem. 2023'!CJ38="","",'Dati Generali CER 1 Sem. 2023'!CJ38) -> 2023-11-09T08:36:06
A46: 37 | B46: ='Dati Generali CER 1 Sem. 2023'!C39 -> ITALA | C46: =IF('Dati Generali CER 1 Sem. 2023'!E39="","",'Dati Generali CER 1 Sem. 2023'!E39) -> 103600 | D46: =IF(C46="","",'Dati Generali CER 1 Sem. 2023'!CE39) -> 177870 | E46: ='Dati Generali CER 1 Sem. 2023'!W39 -> 0.6319323551 | F46: =IF('Dati Generali CER 1 Sem. 2023'!CF39="","",'Dati Generali CER 1 Sem. 2023'!CF39) -> 1.027135319 | G46: =IF('Dati Generali CER 1 Sem. 2023'!CG39="","",'Dati Generali CER 1 Sem. 2023'!CG39) -> 0.3780552778 | H46: =IF('Dati Generali CER 1 Sem. 2023'!CH39="","",'Dati Generali CER 1 Sem. 2023'!CH39) -> 0.6490800412 | I46: ='Dati Generali CER 1 Sem. 2023'!D39 -> 1514 | J46: =IF('Dati Generali CER 1 Sem. 2023'!CJ39="","",'Dati Generali CER 1 Sem. 2023'!CJ39) -> 2023-12-07T14:36:22
A47: 38 | B47: ='Dati Generali CER 1 Sem. 2023'!C40 -> LENI | C47: =IF('Dati Generali CER 1 Sem. 2023'!E40="","",'Dati Generali CER 1 Sem. 2023'!E40) -> 76160 | D47: =IF(C47="","",'Dati Generali CER 1 Sem. 2023'!CE40) -> 46750 | E47: ='Dati Generali CER 1 Sem. 2023'!W40 -> 0.3803596127 | F47: =IF('Dati Generali CER 1 Sem. 2023'!CF40="","",'Dati Generali CER 1 Sem. 2023'!CF40) -> 0.9942324648 | G47: =IF('Dati Generali CER 1 Sem. 2023'!CG40="","",'Dati Generali CER 1 Sem. 2023'!CG40) -> 0.6160665896 | H47: =IF('Dati Generali CER 1 Sem. 2023'!CH40="","",'Dati Generali CER 1 Sem. 2023'!CH40) -> 0.3781658753 | I47: ='Dati Generali CER 1 Sem. 2023'!D40 -> 683 | J47: =IF('Dati Generali CER 1 Sem. 2023'!CJ40="","",'Dati Generali CER 1 Sem. 2023'!CJ40) -> 2023-11-09T08:39:17
A48: 39 | B48: ='Dati Generali CER 1 Sem. 2023'!C41 -> LETOJANNI | C48: =IF('Dati Generali CER 1 Sem. 2023'!E41="","",'Dati Generali CER 1 Sem. 2023'!E41) -> 401110 | D48: =IF(C48="","",'Dati Generali CER 1 Sem. 2023'!CE41) -> 406878 | E48: ='Dati Generali CER 1 Sem. 2023'!W41 -> 0.5035693599 | F48: =IF('Dati Generali CER 1 Sem. 2023'!CF41="","",'Dati Generali CER 1 Sem. 2023'!CF41) -> 1.567974043 | G48: =IF('Dati Generali CER 1 Sem. 2023'!CG41="","",'Dati Generali CER 1 Sem. 2023'!CG41) -> 0.7783903576 | H48: =IF('Dati Generali CER 1 Sem. 2023'!CH41="","",'Dati Generali CER 1 Sem. 2023'!CH41) -> 0.7895836851 | I48: ='Dati Generali CER 1 Sem. 2023'!D41 -> 2847 | J48: =IF('Dati Generali CER 1 Sem. 2023'!CJ41="","",'Dati Generali CER 1 Sem. 2023'!CJ41) -> 2023-11-09T11:14:51
A49: 40 | B49: ='Dati Generali CER 1 Sem. 2023'!C42 -> LIBRIZZI | C49: =IF('Dati Generali CER 1 Sem. 2023'!E42="","",'Dati Generali CER 1 Sem. 2023'!E42) -> 52960 | D49: =IF(C49="","",'Dati Generali CER 1 Sem. 2023'!CE42) -> 220090 | E49: ='Dati Generali CER 1 Sem. 2023'!W42 -> 0.8060428493 | F49: =IF('Dati Generali CER 1 Sem. 2023'!CF42="","",'Dati Generali CER 1 Sem. 2023'!CF42) -> 0.9535799848 | G49: =IF('Dati Generali CER 1 Sem. 2023'!CG42="","",'Dati Generali CER 1 Sem. 2023'!CG42) -> 0.1849536568 | H49: =IF('Dati Generali CER 1 Sem. 2023'!CH42="","",'Dati Generali CER 1 Sem. 2023'!CH42) -> 0.768626328 | I49: ='Dati Generali CER 1 Sem. 2023'!D42 -> 1582 | J49: =IF('Dati Generali CER 1 Sem. 2023'!CJ42="","",'Dati Generali CER 1 Sem. 2023'!CJ42) -> 2023-11-09T11:19:43
A50: 41 | B50: ='Dati Generali CER 1 Sem. 2023'!C43 -> LIMINA | C50: =IF('Dati Generali CER 1 Sem. 2023'!E43="","",'Dati Generali CER 1 Sem. 2023'!E43) -> 16768 | D50: =IF(C50="","",'Dati Generali CER 1 Sem. 2023'!CE43) -> 33658 | E50: ='Dati Generali CER 1 Sem. 2023'!W43 -> 0.6674731289 | F50: =IF('Dati Generali CER 1 Sem. 2023'!CF43="","",'Dati Generali CER 1 Sem. 2023'!CF43) -> 0.3848020512 | G50: =IF('Dati Generali CER 1 Sem. 2023'!CG43="","",'Dati Generali CER 1 Sem. 2023'!CG43) -> 0.1279570221 | H50: =IF('Dati Generali CER 1 Sem. 2023'!CH43="","",'Dati Generali CER 1 Sem. 2023'!CH43) -> 0.2568450292 | I50: ='Dati Generali CER 1 Sem. 2023'!D43 -> 724 | J50: =IF('Dati Generali CER 1 Sem. 2023'!CJ43="","",'Dati Generali CER 1 Sem. 2023'!CJ43) -> 2023-12-19T10:49:45
A51: 42 | B51: ='Dati Generali CER 1 Sem. 2023'!C44 -> LIPARI | C51: =IF('Dati Generali CER 1 Sem. 2023'!E44="","",'Dati Generali CER 1 Sem. 2023'!E44) -> 1723580 | D51: =IF(C51="","",'Dati Generali CER 1 Sem. 2023'!CE44) -> 1839210 | E51: ='Dati Generali CER 1 Sem. 2023'!W44 -> 0.516227451 | F51: =IF('Dati Generali CER 1 Sem. 2023'!CF44="","",'Dati Generali CER 1 Sem. 2023'!CF44) -> 1.564078081 | G51: =IF('Dati Generali CER 1 Sem. 2023'!CG44="","",'Dati Generali CER 1 Sem. 2023'!CG44) -> 0.7566580402 | H51: =IF('Dati Generali CER 1 Sem. 2023'!CH44="","",'Dati Generali CER 1 Sem. 2023'!CH44) -> 0.807420041 | I51: ='Dati Generali CER 1 Sem. 2023'!D44 -> 12585 | J51: =IF('Dati Generali CER 1 Sem. 2023'!CJ44="","",'Dati Generali CER 1 Sem. 2023'!CJ44) -> 2023-11-09T11:23:54
A52: 43 | B52: ='Dati Generali CER 1 Sem. 2023'!C45 -> LONGI | C52: =IF('Dati Generali CER 1 Sem. 2023'!E45="","",'Dati Generali CER 1 Sem. 2023'!E45) -> 12220 | D52: =IF(C52="","",'Dati Generali CER 1 Sem. 2023'!CE45) -> 156943 | E52: ='Dati Generali CER 1 Sem. 2023'!W45 -> 0.927761981 | F52: =IF('Dati Generali CER 1 Sem. 2023'!CF45="","",'Dati Generali CER 1 Sem. 2023'!CF45) -> 0.7069608245 | G52: =IF('Dati Generali CER 1 Sem. 2023'!CG45="","",'Dati Generali CER 1 Sem. 2023'!CG45) -> 0.05106944944 | H52: =IF('Dati Generali CER 1 Sem. 2023'!CH45="","",'Dati Generali CER 1 Sem. 2023'!CH45) -> 0.655891375 | I52: ='Dati Generali CER 1 Sem. 2023'!D45 -> 1322 | J52: =IF('Dati Generali CER 1 Sem. 2023'!CJ45="","",'Dati Generali CER 1 Sem. 2023'!CJ45) -> 2023-11-21T11:17:41
A53: 44 | B53: ='Dati Generali CER 1 Sem. 2023'!C46 -> MALFA | C53: =IF('Dati Generali CER 1 Sem. 2023'!E46="","",'Dati Generali CER 1 Sem. 2023'!E46) -> 83960 | D53: =IF(C53="","",'Dati Generali CER 1 Sem. 2023'!CE46) -> 158200 | E53: ='Dati Generali CER 1 Sem. 2023'!W46 -> 0.6532870829 | F53: =IF('Dati Generali CER 1 Sem. 2023'!CF46="","",'Dati Generali CER 1 Sem. 2023'!CF46) -> 1.352781145 | G53: =IF('Dati Generali CER 1 Sem. 2023'!CG46="","",'Dati Generali CER 1 Sem. 2023'!CG46) -> 0.469026697 | H53: =IF('Dati Generali CER 1 Sem. 2023'!CH46="","",'Dati Generali CER 1 Sem. 2023'!CH46) -> 0.8837544481 | I53: ='Dati Generali CER 1 Sem. 2023'!D46 -> 989 | J53: =IF('Dati Generali CER 1 Sem. 2023'!CJ46="","",'Dati Generali CER 1 Sem. 2023'!CJ46) -> 2023-11-23T15:40:52
A54: 45 | B54: ='Dati Generali CER 1 Sem. 2023'!C47 -> MALVAGNA | C54: =IF('Dati Generali CER 1 Sem. 2023'!E47="","",'Dati Generali CER 1 Sem. 2023'!E47) -> 42000 | D54: =IF(C54="","",'Dati Generali CER 1 Sem. 2023'!CE47) -> 25040 | E54: ='Dati Generali CER 1 Sem. 2023'!W47 -> 0.3735083532 | F54: =IF('Dati Generali CER 1 Sem. 2023'!CF47="","",'Dati Generali CER 1 Sem. 2023'!CF47) -> 0.5897878031 | G54: =IF('Dati Generali CER 1 Sem. 2023'!CG47="","",'Dati Generali CER 1 Sem. 2023'!CG47) -> 0.369497132 | H54: =IF('Dati Generali CER 1 Sem. 2023'!CH47="","",'Dati Generali CER 1 Sem. 2023'!CH47) -> 0.2202906711 | I54: ='Dati Generali CER 1 Sem. 2023'!D47 -> 628 | J54: =IF('Dati Generali CER 1 Sem. 2023'!CJ47="","",'Dati Generali CER 1 Sem. 2023'!CJ47) -> 2023-11-09T11:26:44
A55: 46 | B55: ='Dati Generali CER 1 Sem. 2023'!C48 -> MANDANICI | C55: =IF('Dati Generali CER 1 Sem. 2023'!E48="","",'Dati Generali CER 1 Sem. 2023'!E48) -> 9830 | D55: =IF(C55="","",'Dati Generali CER 1 Sem. 2023'!CE48) -> 60280 | E55: ='Dati Generali CER 1 Sem. 2023'!W48 -> 0.8597917558 | F55: =IF('Dati Generali CER 1 Sem. 2023'!CF48="","",'Dati Generali CER 1 Sem. 2023'!CF48) -> 0.7685477506 | G55: =IF('Dati Generali CER 1 Sem. 2023'!CG48="","",'Dati Generali CER 1 Sem. 2023'!CG48) -> 0.1077567307 | H55: =IF('Dati Generali CER 1 Sem. 2023'!CH48="","",'Dati Generali CER 1 Sem. 2023'!CH48) -> 0.6607910199 | I55: ='Dati Generali CER 1 Sem. 2023'!D48 -> 504 | J55: =IF('Dati Generali CER 1 Sem. 2023'!CJ48="","",'Dati Generali CER 1 Sem. 2023'!CJ48) -> 2023-11-16T15:17:34
A56: 47 | B56: ='Dati Generali CER 1 Sem. 2023'!C49 -> MAZZARRA' S. ANDREA | C56: =IF('Dati Generali CER 1 Sem. 2023'!E49="","",'Dati Generali CER 1 Sem. 2023'!E49) -> 59680 | D56: =IF(C56="","",'Dati Generali CER 1 Sem. 2023'!CE49) -> 158478 | E56: ='Dati Generali CER 1 Sem. 2023'!W49 -> 0.7264368027 | F56: =IF('Dati Generali CER 1 Sem. 2023'!CF49="","",'Dati Generali CER 1 Sem. 2023'!CF49) -> 0.8683665833 | G56: =IF('Dati Generali CER 1 Sem. 2023'!CG49="","",'Dati Generali CER 1 Sem. 2023'!CG49) -> 0.237553139 | H56: =IF('Dati Generali CER 1 Sem. 2023'!CH49="","",'Dati Generali CER 1 Sem. 2023'!CH49) -> 0.6308134444 | I56: ='Dati Generali CER 1 Sem. 2023'!D49 -> 1388 | J56: =IF('Dati Generali CER 1 Sem. 2023'!CJ49="","",'Dati Generali CER 1 Sem. 2023'!CJ49) -> 2023-11-09T11:30:43
A57: 48 | B57: ='Dati Generali CER 1 Sem. 2023'!C50 -> MERI' | C57: =IF('Dati Generali CER 1 Sem. 2023'!E50="","",'Dati Generali CER 1 Sem. 2023'!E50) -> 116100 | D57: =IF(C57="","",'Dati Generali CER 1 Sem. 2023'!CE50) -> 207790 | E57: ='Dati Generali CER 1 Sem. 2023'!W50 -> 0.6344539098 | F57: =IF('Dati Generali CER 1 Sem. 2023'!CF50="","",'Dati Generali CER 1 Sem. 2023'!CF50) -> 0.7880868963 | G57: =IF('Dati Generali CER 1 Sem. 2023'!CG50="","",'Dati Generali CER 1 Sem. 2023'!CG50) -> 0.2793712823 | H57: =IF('Dati Generali CER 1 Sem. 2023'!CH50="","",'Dati Generali CER 1 Sem. 2023'!CH50) -> 0.5000048126 | I57: ='Dati Generali CER 1 Sem. 2023'!D50 -> 2296 | J57: =IF('Dati Generali CER 1 Sem. 2023'!CJ50="","",'Dati Generali CER 1 Sem. 2023'!CJ50) -> 2023-11-09T11:35:27
A58: 49 | B58: ='Dati Generali CER 1 Sem. 2023'!C51 -> MESSINA | C58: =IF('Dati Generali CER 1 Sem. 2023'!E51="","",'Dati Generali CER 1 Sem. 2023'!E51) -> 21311540 | D58: =IF(C58="","",'Dati Generali CER 1 Sem. 2023'!CE51) -> 26644627 | E58: ='Dati Generali CER 1 Sem. 2023'!W51 -> 0.5556037662 | F58: =IF('Dati Generali CER 1 Sem. 2023'!CF51="","",'Dati Generali CER 1 Sem. 2023'!CF51) -> 1.207688691 | G58: =IF('Dati Generali CER 1 Sem. 2023'!CG51="","",'Dati Generali CER 1 Sem. 2023'!CG51) -> 0.5366923059 | H58: =IF('Dati Generali CER 1 Sem. 2023'!CH51="","",'Dati Generali CER 1 Sem. 2023'!CH51) -> 0.6709963853 | I58: ='Dati Generali CER 1 Sem. 2023'!D51 -> 219387 | J58: =IF('Dati Generali CER 1 Sem. 2023'!CJ51="","",'Dati Generali CER 1 Sem. 2023'!CJ51) -> 2023-11-09T11:38:27
A59: 50 | B59: ='Dati Generali CER 1 Sem. 2023'!C52 -> MILAZZO | C59: =IF('Dati Generali CER 1 Sem. 2023'!E52="","",'Dati Generali CER 1 Sem. 2023'!E52) -> 2159280 | D59: =IF(C59="","",'Dati Generali CER 1 Sem. 2023'!CE52) -> 4915390 | E59: ='Dati Generali CER 1 Sem. 2023'!W52 -> 0.6947871774 | F59: =IF('Dati Generali CER 1 Sem. 2023'!CF52="","",'Dati Generali CER 1 Sem. 2023'!CF52) -> 1.297350458 | G59: =IF('Dati Generali CER 1 Sem. 2023'!CG52="","",'Dati Generali CER 1 Sem. 2023'!CG52) -> 0.3959679951 | H59: =IF('Dati Generali CER 1 Sem. 2023'!CH52="","",'Dati Generali CER 1 Sem. 2023'!CH52) -> 0.9013824625 | I59: ='Dati Generali CER 1 Sem. 2023'!D52 -> 30128 | J59: =IF('Dati Generali CER 1 Sem. 2023'!CJ52="","",'Dati Generali CER 1 Sem. 2023'!CJ52) -> 2023-12-01T08:00:48
A60: 51 | B60: ='Dati Generali CER 1 Sem. 2023'!C53 -> MILITELLO ROSMARINO | C60: =IF('Dati Generali CER 1 Sem. 2023'!E53="","",'Dati Generali CER 1 Sem. 2023'!E53) -> 41380 | D60: =IF(C60="","",'Dati Generali CER 1 Sem. 2023'!CE53) -> 93189 | E60: ='Dati Generali CER 1 Sem. 2023'!W53 -> 0.6924997585 | F60: =IF('Dati Generali CER 1 Sem. 2023'!CF53="","",'Dati Generali CER 1 Sem. 2023'!CF53) -> 0.6370823806 | G60: =IF('Dati Generali CER 1 Sem. 2023'!CG53="","",'Dati Generali CER 1 Sem. 2023'!CG53) -> 0.1959029859 | H60: =IF('Dati Generali CER 1 Sem. 2023'!CH53="","",'Dati Generali CER 1 Sem. 2023'!CH53) -> 0.4411793947 | I60: ='Dati Generali CER 1 Sem. 2023'!D53 -> 1167 | J60: =IF('Dati Generali CER 1 Sem. 2023'!CJ53="","",'Dati Generali CER 1 Sem. 2023'!CJ53) -> 2023-11-28T15:22:08
A61: 52 | B61: ='Dati Generali CER 1 Sem. 2023'!C54 -> MIRTO | C61: =IF('Dati Generali CER 1 Sem. 2023'!E54="","",'Dati Generali CER 1 Sem. 2023'!E54) -> 9940 | D61: =IF(C61="","",'Dati Generali CER 1 Sem. 2023'!CE54) -> 133813 | E61: ='Dati Generali CER 1 Sem. 2023'!W54 -> 0.930853617 | F61: =IF('Dati Generali CER 1 Sem. 2023'!CF54="","",'Dati Generali CER 1 Sem. 2023'!CF54) -> 0.8964057219 | G61: =IF('Dati Generali CER 1 Sem. 2023'!CG54="","",'Dati Generali CER 1 Sem. 2023'!CG54) -> 0.0619832134 | H61: =IF('Dati Generali CER 1 Sem. 2023'!CH54="","",'Dati Generali CER 1 Sem. 2023'!CH54) -> 0.8344225085 | I61: ='Dati Generali CER 1 Sem. 2023'!D54 -> 886 | J61: =IF('Dati Generali CER 1 Sem. 2023'!CJ54="","",'Dati Generali CER 1 Sem. 2023'!CJ54) -> 2023-11-09T11:52:50
A62: 53 | B62: ='Dati Generali CER 1 Sem. 2023'!C55 -> MISTRETTA | C62: =IF('Dati Generali CER 1 Sem. 2023'!E55="","",'Dati Generali CER 1 Sem. 2023'!E55) -> 200500 | D62: =IF(C62="","",'Dati Generali CER 1 Sem. 2023'!CE55) -> 544360 | E62: ='Dati Generali CER 1 Sem. 2023'!W55 -> 0.7308218994 | F62: =IF('Dati Generali CER 1 Sem. 2023'!CF55="","",'Dati Generali CER 1 Sem. 2023'!CF55) -> 0.9417044894 | G62: =IF('Dati Generali CER 1 Sem. 2023'!CG55="","",'Dati Generali CER 1 Sem. 2023'!CG55) -> 0.2534862258 | H62: =IF('Dati Generali CER 1 Sem. 2023'!CH55="","",'Dati Generali CER 1 Sem. 2023'!CH55) -> 0.6882182637 | I62: ='Dati Generali CER 1 Sem. 2023'!D55 -> 4370 | J62: =IF('Dati Generali CER 1 Sem. 2023'!CJ55="","",'Dati Generali CER 1 Sem. 2023'!CJ55) -> 2023-11-20T09:12:33
A63: 54 | B63: ='Dati Generali CER 1 Sem. 2023'!C56 -> MOJO ALCANTARA | C63: =IF('Dati Generali CER 1 Sem. 2023'!E56="","",'Dati Generali CER 1 Sem. 2023'!E56) -> 49900 | D63: =IF(C63="","",'Dati Generali CER 1 Sem. 2023'!CE56) -> 42260 | E63: ='Dati Generali CER 1 Sem. 2023'!W56 -> 0.4585503472 | F63: =IF('Dati Generali CER 1 Sem. 2023'!CF56="","",'Dati Generali CER 1 Sem. 2023'!CF56) -> 0.7520993659 | G63: =IF('Dati Generali CER 1 Sem. 2023'!CG56="","",'Dati Generali CER 1 Sem. 2023'!CG56) -> 0.4072239405 | H63: =IF('Dati Generali CER 1 Sem. 2023'!CH56="","",'Dati Generali CER 1 Sem. 2023'!CH56) -> 0.3448754254 | I63: ='Dati Generali CER 1 Sem. 2023'!D56 -> 677 | J63: =IF('Dati Generali CER 1 Sem. 2023'!CJ56="","",'Dati Generali CER 1 Sem. 2023'!CJ56) -> 2023-11-09T11:55:19
A64: 55 | B64: ='Dati Generali CER 1 Sem. 2023'!C57 -> MONFORTE S. GIORGIO | C64: =IF('Dati Generali CER 1 Sem. 2023'!E57="","",'Dati Generali CER 1 Sem. 2023'!E57) -> 197380 | D64: =IF(C64="","",'Dati Generali CER 1 Sem. 2023'!CE57) -> 261622 | E64: ='Dati Generali CER 1 Sem. 2023'!W57 -> 0.5289332056 | F64: =IF('Dati Generali CER 1 Sem. 2023'!CF57="","",'Dati Generali CER 1 Sem. 2023'!CF57) -> 1.09177716 | G64: =IF('Dati Generali CER 1 Sem. 2023'!CG57="","",'Dati Generali CER 1 Sem. 2023'!CG57) -> 0.4356760837 | H64: =IF('Dati Generali CER 1 Sem. 2023'!CH57="","",'Dati Generali CER 1 Sem. 2023'!CH57) -> 0.5774771931 | I64: ='Dati Generali CER 1 Sem. 2023'!D57 -> 2503 | J64: =IF('Dati Generali CER 1 Sem. 2023'!CJ57="","",'Dati Generali CER 1 Sem. 2023'!CJ57) -> 2023-11-09T13:57:23
A65: 56 | B65: ='Dati Generali CER 1 Sem. 2023'!C58 -> MONGIUFFI MELIA | C65: =IF('Dati Generali CER 1 Sem. 2023'!E58="","",'Dati Generali CER 1 Sem. 2023'!E58) -> 36040 | D65: =IF(C65="","",'Dati Generali CER 1 Sem. 2023'!CE58) -> 51810 | E65: ='Dati Generali CER 1 Sem. 2023'!W58 -> 0.5897552647 | F65: =IF('Dati Generali CER 1 Sem. 2023'!CF58="","",'Dati Generali CER 1 Sem. 2023'!CF58) -> 0.9175030549 | G65: =IF('Dati Generali CER 1 Sem. 2023'!CG58="","",'Dati Generali CER 1 Sem. 2023'!CG58) -> 0.3764007979 | H65: =IF('Dati Generali CER 1 Sem. 2023'!CH58="","",'Dati Generali CER 1 Sem. 2023'!CH58) -> 0.5411022569 | I65: ='Dati Generali CER 1 Sem. 2023'!D58 -> 529 | J65: =IF('Dati Generali CER 1 Sem. 2023'!CJ58="","",'Dati Generali CER 1 Sem. 2023'!CJ58) -> 2023-11-16T07:53:48
A66: 57 | B66: ='Dati Generali CER 1 Sem. 2023'!C59 -> MONTAGNAREALE | C66: =IF('Dati Generali CER 1 Sem. 2023'!E59="","",'Dati Generali CER 1 Sem. 2023'!E59) -> 101340 | D66: =IF(C66="","",'Dati Generali CER 1 Sem. 2023'!CE59) -> 120960 | E66: ='Dati Generali CER 1 Sem. 2023'!W59 -> 0.5441295547 | F66: =IF('Dati Generali CER 1 Sem. 2023'!CF59="","",'Dati Generali CER 1 Sem. 2023'!CF59) -> 0.8778962084 | G66: =IF('Dati Generali CER 1 Sem. 2023'!CG59="","",'Dati Generali CER 1 Sem. 2023'!CG59) -> 0.4002069355 | H66: =IF('Dati Generali CER 1 Sem. 2023'!CH59="","",'Dati Generali CER 1 Sem. 2023'!CH59) -> 0.4776892729 | I66: ='Dati Generali CER 1 Sem. 2023'!D59 -> 1399 | J66: =IF('Dati Generali CER 1 Sem. 2023'!CJ59="","",'Dati Generali CER 1 Sem. 2023'!CJ59) -> 2023-11-09T14:03:17
A67: 58 | B67: ='Dati Generali CER 1 Sem. 2023'!C60 -> MONTALBANO ELICONA | C67: =IF('Dati Generali CER 1 Sem. 2023'!E60="","",'Dati Generali CER 1 Sem. 2023'!E60) -> 122980 | D67: =IF(C67="","",'Dati Generali CER 1 Sem. 2023'!CE60) -> 179163 | E67: ='Dati Generali CER 1 Sem. 2023'!W60 -> 0.5929741877 | F67: =IF('Dati Generali CER 1 Sem. 2023'!CF60="","",'Dati Generali CER 1 Sem. 2023'!CF60) -> 0.8198911309 | G67: =IF('Dati Generali CER 1 Sem. 2023'!CG60="","",'Dati Generali CER 1 Sem. 2023'!CG60) -> 0.3337168535 | H67: =IF('Dati Generali CER 1 Sem. 2023'!CH60="","",'Dati Generali CER 1 Sem. 2023'!CH60) -> 0.4861742774 | I67: ='Dati Generali CER 1 Sem. 2023'!D60 -> 2036 | J67: =IF('Dati Generali CER 1 Sem. 2023'!CJ60="","",'Dati Generali CER 1 Sem. 2023'!CJ60) -> 2023-11-09T14:23:17
A68: 59 | B68: ='Dati Generali CER 1 Sem. 2023'!C61 -> MOTTA CAMASTRA | C68: =IF('Dati Generali CER 1 Sem. 2023'!E61="","",'Dati Generali CER 1 Sem. 2023'!E61) -> 127380 | D68: =IF(C68="","",'Dati Generali CER 1 Sem. 2023'!CE61) -> 29100 | E68: ='Dati Generali CER 1 Sem. 2023'!W61 -> 0.1859662577 | F68: =IF('Dati Generali CER 1 Sem. 2023'!CF61="","",'Dati Generali CER 1 Sem. 2023'!CF61) -> 1.088829202 | G68: =IF('Dati Generali CER 1 Sem. 2023'!CG61="","",'Dati Generali CER 1 Sem. 2023'!CG61) -> 0.8863437104 | H68: =IF('Dati Generali CER 1 Sem. 2023'!CH61="","",'Dati Generali CER 1 Sem. 2023'!CH61) -> 0.202485492 | I68: ='Dati Generali CER 1 Sem. 2023'!D61 -> 794 | J68: =IF('Dati Generali CER 1 Sem. 2023'!CJ61="","",'Dati Generali CER 1 Sem. 2023'!CJ61) -> 2023-11-09T14:25:53
A69: 60 | B69: ='Dati Generali CER 1 Sem. 2023'!C62 -> MOTTA D'AFFERMO | C69: =IF('Dati Generali CER 1 Sem. 2023'!E62="","",'Dati Generali CER 1 Sem. 2023'!E62) -> 15760 | D69: =IF(C69="","",'Dati Generali CER 1 Sem. 2023'!CE62) -> 78125 | E69: ='Dati Generali CER 1 Sem. 2023'!W62 -> 0.8321350588 | F69: =IF('Dati Generali CER 1 Sem. 2023'!CF62="","",'Dati Generali CER 1 Sem. 2023'!CF62) -> 0.7895002397 | G69: =IF('Dati Generali CER 1 Sem. 2023'!CG62="","",'Dati Generali CER 1 Sem. 2023'!CG62) -> 0.1325294113 | H69: =IF('Dati Generali CER 1 Sem. 2023'!CH62="","",'Dati Generali CER 1 Sem. 2023'!CH62) -> 0.6569708284 | I69: ='Dati Generali CER 1 Sem. 2023'!D62 -> 657 | J69: =IF('Dati Generali CER 1 Sem. 2023'!CJ62="","",'Dati Generali CER 1 Sem. 2023'!CJ62) -> 2023-11-09T14:28:49
A70: 61 | B70: ='Dati Generali CER 1 Sem. 2023'!C63 -> NASO | C70: =IF('Dati Generali CER 1 Sem. 2023'!E63="","",'Dati Generali CER 1 Sem. 2023'!E63) -> 89140 | D70: =IF(C70="","",'Dati Generali CER 1 Sem. 2023'!CE63) -> 421346 | E70: ='Dati Generali CER 1 Sem. 2023'!W63 -> 0.8253820869 | F70: =IF('Dati Generali CER 1 Sem. 2023'!CF63="","",'Dati Generali CER 1 Sem. 2023'!CF63) -> 0.8134885033 | G70: =IF('Dati Generali CER 1 Sem. 2023'!CG63="","",'Dati Generali CER 1 Sem. 2023'!CG63) -> 0.1420496648 | H70: =IF('Dati Generali CER 1 Sem. 2023'!CH63="","",'Dati Generali CER 1 Sem. 2023'!CH63) -> 0.6714388385 | I70: ='Dati Generali CER 1 Sem. 2023'!D63 -> 3467 | J70: =IF('Dati Generali CER 1 Sem. 2023'!CJ63="","",'Dati Generali CER 1 Sem. 2023'!CJ63) -> 2023-11-09T14:40:11
A71: 62 | B71: ='Dati Generali CER 1 Sem. 2023'!C64 -> NIZZA DI SICILIA | C71: =IF('Dati Generali CER 1 Sem. 2023'!E64="","",'Dati Generali CER 1 Sem. 2023'!E64) -> 163230 | D71: =IF(C71="","",'Dati Generali CER 1 Sem. 2023'!CE64) -> 432677 | E71: ='Dati Generali CER 1 Sem. 2023'!W64 -> 0.7260814187 | F71: =IF('Dati Generali CER 1 Sem. 2023'!CF64="","",'Dati Generali CER 1 Sem. 2023'!CF64) -> 0.9345171352 | G71: =IF('Dati Generali CER 1 Sem. 2023'!CG64="","",'Dati Generali CER 1 Sem. 2023'!CG64) -> 0.2559816078 | H71: =IF('Dati Generali CER 1 Sem. 2023'!CH64="","",'Dati Generali CER 1 Sem. 2023'!CH64) -> 0.6785355274 | I71: ='Dati Generali CER 1 Sem. 2023'!D64 -> 3523 | J71: =IF('Dati Generali CER 1 Sem. 2023'!CJ64="","",'Dati Generali CER 1 Sem. 2023'!CJ64) -> 2023-12-12T15:36:50
A72: 63 | B72: ='Dati Generali CER 1 Sem. 2023'!C65 -> NOVARA DI SICILIA | C72: =IF('Dati Generali CER 1 Sem. 2023'!E65="","",'Dati Generali CER 1 Sem. 2023'!E65) -> 56490 | D72: =IF(C72="","",'Dati Generali CER 1 Sem. 2023'!CE65) -> 148078 | E72: ='Dati Generali CER 1 Sem. 2023'!W65 -> 0.7238571038 | F72: =IF('Dati Generali CER 1 Sem. 2023'!CF65="","",'Dati Generali CER 1 Sem. 2023'!CF65) -> 0.9627001233 | G72: =IF('Dati Generali CER 1 Sem. 2023'!CG65="","",'Dati Generali CER 1 Sem. 2023'!CG65) -> 0.2658428003 | H72: =IF('Dati Generali CER 1 Sem. 2023'!CH65="","",'Dati Generali CER 1 Sem. 2023'!CH65) -> 0.696857323 | I72: ='Dati Generali CER 1 Sem. 2023'!D65 -> 1174 | J72: =IF('Dati Generali CER 1 Sem. 2023'!CJ65="","",'Dati Generali CER 1 Sem. 2023'!CJ65) -> 2023-11-09T14:43:35
A73: 64 | B73: ='Dati Generali CER 1 Sem. 2023'!C66 -> OLIVERI | C73: =IF('Dati Generali CER 1 Sem. 2023'!E66="","",'Dati Generali CER 1 Sem. 2023'!E66) -> 130640 | D73: =IF(C73="","",'Dati Generali CER 1 Sem. 2023'!CE66) -> 385818 | E73: ='Dati Generali CER 1 Sem. 2023'!W66 -> 0.7470462264 | F73: =IF('Dati Generali CER 1 Sem. 2023'!CF66="","",'Dati Generali CER 1 Sem. 2023'!CF66) -> 1.371148062 | G73: =IF('Dati Generali CER 1 Sem. 2023'!CG66="","",'Dati Generali CER 1 Sem. 2023'!CG66) -> 0.3468370763 | H73: =IF('Dati Generali CER 1 Sem. 2023'!CH66="","",'Dati Generali CER 1 Sem. 2023'!CH66) -> 1.024310985 | I73: ='Dati Generali CER 1 Sem. 2023'!D66 -> 2081 | J73: =IF('Dati Generali CER 1 Sem. 2023'!CJ66="","",'Dati Generali CER 1 Sem. 2023'!CJ66) -> 2023-12-06T10:20:01
A74: 65 | B74: ='Dati Generali CER 1 Sem. 2023'!C67 -> PACE DEL MELA | C74: =IF('Dati Generali CER 1 Sem. 2023'!E67="","",'Dati Generali CER 1 Sem. 2023'!E67) -> 434000 | D74: =IF(C74="","",'Dati Generali CER 1 Sem. 2023'!CE67) -> 732732 | E74: ='Dati Generali CER 1 Sem. 2023'!W67 -> 0.6280208308 | F74: =IF('Dati Generali CER 1 Sem. 2023'!CF67="","",'Dati Generali CER 1 Sem. 2023'!CF67) -> 1.073623109 | G74: =IF('Dati Generali CER 1 Sem. 2023'!CG67="","",'Dati Generali CER 1 Sem. 2023'!CG67) -> 0.3993654323 | H74: =IF('Dati Generali CER 1 Sem. 2023'!CH67="","",'Dati Generali CER 1 Sem. 2023'!CH67) -> 0.6742576772 | I74: ='Dati Generali CER 1 Sem. 2023'!D67 -> 6004 | J74: =IF('Dati Generali CER 1 Sem. 2023'!CJ67="","",'Dati Generali CER 1 Sem. 2023'!CJ67) -> 2023-11-09T14:46:49
A75: 66 | B75: ='Dati Generali CER 1 Sem. 2023'!C68 -> PAGLIARA | C75: =IF('Dati Generali CER 1 Sem. 2023'!E68="","",'Dati Generali CER 1 Sem. 2023'!E68) -> 17270 | D75: =IF(C75="","",'Dati Generali CER 1 Sem. 2023'!CE68) -> 89930 | E75: ='Dati Generali CER 1 Sem. 2023'!W68 -> 0.8388992537 | F75: =IF('Dati Generali CER 1 Sem. 2023'!CF68="","",'Dati Generali CER 1 Sem. 2023'!CF68) -> 0.5288082084 | G75: =IF('Dati Generali CER 1 Sem. 2023'!CG68="","",'Dati Generali CER 1 Sem. 2023'!CG68) -> 0.085191397 | H75: =IF('Dati Generali CER 1 Sem. 2023'!CH68="","",'Dati Generali CER 1 Sem. 2023'!CH68) -> 0.4436168114 | I75: ='Dati Generali CER 1 Sem. 2023'!D68 -> 1120 | J75: =IF('Dati Generali CER 1 Sem. 2023'!CJ68="","",'Dati Generali CER 1 Sem. 2023'!CJ68) -> 2023-11-09T14:54:11
A76: 67 | B76: ='Dati Generali CER 1 Sem. 2023'!C69 -> PATTI | C76: =IF('Dati Generali CER 1 Sem. 2023'!E69="","",'Dati Generali CER 1 Sem. 2023'!E69) -> 800840 | D76: =IF(C76="","",'Dati Generali CER 1 Sem. 2023'!CE69) -> 1856900 | E76: ='Dati Generali CER 1 Sem. 2023'!W69 -> 0.698676319 | F76: =IF('Dati Generali CER 1 Sem. 2023'!CF69="","",'Dati Generali CER 1 Sem. 2023'!CF69) -> 1.155373862 | G76: =IF('Dati Generali CER 1 Sem. 2023'!CG69="","",'Dati Generali CER 1 Sem. 2023'!CG69) -> 0.348141505 | H76: =IF('Dati Generali CER 1 Sem. 2023'!CH69="","",'Dati Generali CER 1 Sem. 2023'!CH69) -> 0.8072323568 | I76: ='Dati Generali CER 1 Sem. 2023'!D69 -> 12709 | J76: =IF('Dati Generali CER 1 Sem. 2023'!CJ69="","",'Dati Generali CER 1 Sem. 2023'!CJ69) -> 2023-11-14T17:19:29
A77: 68 | B77: ='Dati Generali CER 1 Sem. 2023'!C70 -> PETTINEO | C77: =IF('Dati Generali CER 1 Sem. 2023'!E70="","",'Dati Generali CER 1 Sem. 2023'!E70) -> 14680 | D77: =IF(C77="","",'Dati Generali CER 1 Sem. 2023'!CE70) -> 120470 | E77: ='Dati Generali CER 1 Sem. 2023'!W70 -> 0.8913799482 | F77: =IF('Dati Generali CER 1 Sem. 2023'!CF70="","",'Dati Generali CER 1 Sem. 2023'!CF70) -> 0.6021653894 | G77: =IF('Dati Generali CER 1 Sem. 2023'!CG70="","",'Dati Generali CER 1 Sem. 2023'!CG70) -> 0.06540723579 | H77: =IF('Dati Generali CER 1 Sem. 2023'!CH70="","",'Dati Generali CER 1 Sem. 2023'!CH70) -> 0.5367581536 | I77: ='Dati Generali CER 1 Sem. 2023'!D70 -> 1240 | J77: =IF('Dati Generali CER 1 Sem. 2023'!CJ70="","",'Dati Generali CER 1 Sem. 2023'!CJ70) -> 2023-12-07T12:26:36
A78: 69 | B78: ='Dati Generali CER 1 Sem. 2023'!C71 -> PIRAINO | C78: =IF('Dati Generali CER 1 Sem. 2023'!E71="","",'Dati Generali CER 1 Sem. 2023'!E71) -> 151020 | D78: =IF(C78="","",'Dati Generali CER 1 Sem. 2023'!CE71) -> 520285 | E78: ='Dati Generali CER 1 Sem. 2023'!W71 -> 0.7750351926 | F78: =IF('Dati Generali CER 1 Sem. 2023'!CF71="","",'Dati Generali CER 1 Sem. 2023'!CF71) -> 0.9780768469 | G78: =IF('Dati Generali CER 1 Sem. 2023'!CG71="","",'Dati Generali CER 1 Sem. 2023'!CG71) -> 0.2200328694 | H78: =IF('Dati Generali CER 1 Sem. 2023'!CH71="","",'Dati Generali CER 1 Sem. 2023'!CH71) -> 0.7580439774 | I78: ='Dati Generali CER 1 Sem. 2023'!D71 -> 3792 | J78: =IF('Dati Generali CER 1 Sem. 2023'!CJ71="","",'Dati Generali CER 1 Sem. 2023'!CJ71) -> 2023-12-06T10:25:24
A79: 70 | B79: ='Dati Generali CER 1 Sem. 2023'!C72 -> RACCUJA | C79: =IF('Dati Generali CER 1 Sem. 2023'!E72="","",'Dati Generali CER 1 Sem. 2023'!E72) -> 32780 | D79: =IF(C79="","",'Dati Generali CER 1 Sem. 2023'!CE72) -> 85320 | E79: ='Dati Generali CER 1 Sem. 2023'!W72 -> 0.7224386113 | F79: =IF('Dati Generali CER 1 Sem. 2023'!CF72="","",'Dati Generali CER 1 Sem. 2023'!CF72) -> 0.755192347 | G79: =IF('Dati Generali CER 1 Sem. 2023'!CG72="","",'Dati Generali CER 1 Sem. 2023'!CG72) -> 0.2096122365 | H79: =IF('Dati Generali CER 1 Sem. 2023'!CH72="","",'Dati Generali CER 1 Sem. 2023'!CH72) -> 0.5455801105 | I79: ='Dati Generali CER 1 Sem. 2023'!D72 -> 864 | J79: =IF('Dati Generali CER 1 Sem. 2023'!CJ72="","",'Dati Generali CER 1 Sem. 2023'!CJ72) -> 2023-11-09T14:58:02
A80: 71 | B80: ='Dati Generali CER 1 Sem. 2023'!C73 -> REITANO | C80: =IF('Dati Generali CER 1 Sem. 2023'!E73="","",'Dati Generali CER 1 Sem. 2023'!E73) -> 74900 | D80: =IF(C80="","",'Dati Generali CER 1 Sem. 2023'!CE73) -> 177220 | E80: ='Dati Generali CER 1 Sem. 2023'!W73 -> 0.7029192448 | F80: =IF('Dati Generali CER 1 Sem. 2023'!CF73="","",'Dati Generali CER 1 Sem. 2023'!CF73) -> 1.931939219 | G80: =IF('Dati Generali CER 1 Sem. 2023'!CG73="","",'Dati Generali CER 1 Sem. 2023'!CG73) -> 0.5739419621 | H80: =IF('Dati Generali CER 1 Sem. 2023'!CH73="","",'Dati Generali CER 1 Sem. 2023'!CH73) -> 1.357997257 | I80: ='Dati Generali CER 1 Sem. 2023'!D73 -> 721 | J80: =IF('Dati Generali CER 1 Sem. 2023'!CJ73="","",'Dati Generali CER 1 Sem. 2023'!CJ73) -> 2023-11-09T15:00:54
A81: 72 | B81: ='Dati Generali CER 1 Sem. 2023'!C74 -> ROCCAFIORITA | C81: =IF('Dati Generali CER 1 Sem. 2023'!E74="","",'Dati Generali CER 1 Sem. 2023'!E74) -> 5670 | D81: =IF(C81="","",'Dati Generali CER 1 Sem. 2023'!CE74) -> 19292 | E81: ='Dati Generali CER 1 Sem. 2023'!W74 -> 0.7728547392 | F81: =IF('Dati Generali CER 1 Sem. 2023'!CF74="","",'Dati Generali CER 1 Sem. 2023'!CF74) -> 0.7971768914 | G81: =IF('Dati Generali CER 1 Sem. 2023'!CG74="","",'Dati Generali CER 1 Sem. 2023'!CG74) -> 0.1810749529 | H81: =IF('Dati Generali CER 1 Sem. 2023'!CH74="","",'Dati Generali CER 1 Sem. 2023'!CH74) -> 0.6161019385 | I81: ='Dati Generali CER 1 Sem. 2023'!D74 -> 173 | J81: =IF('Dati Generali CER 1 Sem. 2023'!CJ74="","",'Dati Generali CER 1 Sem. 2023'!CJ74) -> 2023-11-09T15:04:38
A82: 73 | B82: ='Dati Generali CER 1 Sem. 2023'!C75 -> ROCCALUMERA | C82: =IF('Dati Generali CER 1 Sem. 2023'!E75="","",'Dati Generali CER 1 Sem. 2023'!E75) -> 273130 | D82: =IF(C82="","",'Dati Generali CER 1 Sem. 2023'!CE75) -> 829904 | E82: ='Dati Generali CER 1 Sem. 2023'!W75 -> 0.7523829728 | F82: =IF('Dati Generali CER 1 Sem. 2023'!CF75="","",'Dati Generali CER 1 Sem. 2023'!CF75) -> 1.543203469 | G82: =IF('Dati Generali CER 1 Sem. 2023'!CG75="","",'Dati Generali CER 1 Sem. 2023'!CG75) -> 0.3821234553 | H82: =IF('Dati Generali CER 1 Sem. 2023'!CH75="","",'Dati Generali CER 1 Sem. 2023'!CH75) -> 1.161080013 | I82: ='Dati Generali CER 1 Sem. 2023'!D75 -> 3949 | J82: =IF('Dati Generali CER 1 Sem. 2023'!CJ75="","",'Dati Generali CER 1 Sem. 2023'!CJ75) -> 2023-11-09T15:48:32
A83: 74 | B83: ='Dati Generali CER 1 Sem. 2023'!C76 -> ROCCAVALDINA | C83: =IF('Dati Generali CER 1 Sem. 2023'!E76="","",'Dati Generali CER 1 Sem. 2023'!E76) -> 98500 | D83: =IF(C83="","",'Dati Generali CER 1 Sem. 2023'!CE76) -> 73260 | E83: ='Dati Generali CER 1 Sem. 2023'!W76 -> 0.4265253843 | F83: =IF('Dati Generali CER 1 Sem. 2023'!CF76="","",'Dati Generali CER 1 Sem. 2023'!CF76) -> 0.9499001764 | G83: =IF('Dati Generali CER 1 Sem. 2023'!CG76="","",'Dati Generali CER 1 Sem. 2023'!CG76) -> 0.5447436387 | H83: =IF('Dati Generali CER 1 Sem. 2023'!CH76="","",'Dati Generali CER 1 Sem. 2023'!CH76) -> 0.4051565378 | I83: ='Dati Generali CER 1 Sem. 2023'!D76 -> 999 | J83: =IF('Dati Generali CER 1 Sem. 2023'!CJ76="","",'Dati Generali CER 1 Sem. 2023'!CJ76) -> 2023-11-09T15:54:51
A84: 75 | B84: ='Dati Generali CER 1 Sem. 2023'!C77 -> ROCCELLA VALDEMONE | C84: =IF('Dati Generali CER 1 Sem. 2023'!E77="","",'Dati Generali CER 1 Sem. 2023'!E77) -> 40260 | D84: =IF(C84="","",'Dati Generali CER 1 Sem. 2023'!CE77) -> 49250 | E84: ='Dati Generali CER 1 Sem. 2023'!W77 -> 0.5502178528 | F84: =IF('Dati Generali CER 1 Sem. 2023'!CF77="","",'Dati Generali CER 1 Sem. 2023'!CF77) -> 0.8783843459 | G84: =IF('Dati Generali CER 1 Sem. 2023'!CG77="","",'Dati Generali CER 1 Sem. 2023'!CG77) -> 0.3950815972 | H84: =IF('Dati Generali CER 1 Sem. 2023'!CH77="","",'Dati Generali CER 1 Sem. 2023'!CH77) -> 0.4833027487 | I84: ='Dati Generali CER 1 Sem. 2023'!D77 -> 563 | J84: =IF('Dati Generali CER 1 Sem. 2023'!CJ77="","",'Dati Generali CER 1 Sem. 2023'!CJ77) -> 2023-12-12T14:18:32
A85: 76 | B85: ='Dati Generali CER 1 Sem. 2023'!C78 -> RODI' MILICI | C85: =IF('Dati Generali CER 1 Sem. 2023'!E78="","",'Dati Generali CER 1 Sem. 2023'!E78) -> 72960 | D85: =IF(C85="","",'Dati Generali CER 1 Sem. 2023'!CE78) -> 205290 | E85: ='Dati Generali CER 1 Sem. 2023'!W78 -> 0.7377897574 | F85: =IF('Dati Generali CER 1 Sem. 2023'!CF78="","",'Dati Generali CER 1 Sem. 2023'!CF78) -> 0.7907884865 | G85: =IF('Dati Generali CER 1 Sem. 2023'!CG78="","",'Dati Generali CER 1 Sem. 2023'!CG78) -> 0.2073528409 | H85: =IF('Dati Generali CER 1 Sem. 2023'!CH78="","",'Dati Generali CER 1 Sem. 2023'!CH78) -> 0.5834356456 | I85: ='Dati Generali CER 1 Sem. 2023'!D78 -> 1944 | J85: =IF('Dati Generali CER 1 Sem. 2023'!CJ78="","",'Dati Generali CER 1 Sem. 2023'!CJ78) -> 2023-11-09T16:02:02
A86: 77 | B86: ='Dati Generali CER 1 Sem. 2023'!C79 -> ROMETTA | C86: =IF('Dati Generali CER 1 Sem. 2023'!E79="","",'Dati Generali CER 1 Sem. 2023'!E79) -> 164100 | D86: =IF(C86="","",'Dati Generali CER 1 Sem. 2023'!CE79) -> 829140 | E86: ='Dati Generali CER 1 Sem. 2023'!W79 -> 0.834783134 | F86: =IF('Dati Generali CER 1 Sem. 2023'!CF79="","",'Dati Generali CER 1 Sem. 2023'!CF79) -> 0.83485681 | G86: =IF('Dati Generali CER 1 Sem. 2023'!CG79="","",'Dati Generali CER 1 Sem. 2023'!CG79) -> 0.1379324257 | H86: =IF('Dati Generali CER 1 Sem. 2023'!CH79="","",'Dati Generali CER 1 Sem. 2023'!CH79) -> 0.6969243843 | I86: ='Dati Generali CER 1 Sem. 2023'!D79 -> 6573 | J86: =IF('Dati Generali CER 1 Sem. 2023'!CJ79="","",'Dati Generali CER 1 Sem. 2023'!CJ79) -> 2023-11-09T16:08:29
A87: 78 | B87: ='Dati Generali CER 1 Sem. 2023'!C82 -> S. AGATA DI MILITELLO | C87: =IF('Dati Generali CER 1 Sem. 2023'!E82="","",'Dati Generali CER 1 Sem. 2023'!E82) -> 606360 | D87: =IF(C87="","",'Dati Generali CER 1 Sem. 2023'!CE82) -> 1986489 | E87: ='Dati Generali CER 1 Sem. 2023'!W82 -> 0.7661414143 | F87: =IF('Dati Generali CER 1 Sem. 2023'!CF82="","",'Dati Generali CER 1 Sem. 2023'!CF82) -> 1.205514819 | G87: =IF('Dati Generali CER 1 Sem. 2023'!CG82="","",'Dati Generali CER 1 Sem. 2023'!CG82) -> 0.2819199906 | H87: =IF('Dati Generali CER 1 Sem. 2023'!CH82="","",'Dati Generali CER 1 Sem. 2023'!CH82) -> 0.9235948286 | I87: ='Dati Generali CER 1 Sem. 2023'!D82 -> 11883 | J87: =IF('Dati Generali CER 1 Sem. 2023'!CJ82="","",'Dati Generali CER 1 Sem. 2023'!CJ82) -> 2023-11-09T16:12:55
A88: 79 | B88: ='Dati Generali CER 1 Sem. 2023'!C93 -> S. ALESSIO SICULO | C88: =IF('Dati Generali CER 1 Sem. 2023'!E93="","",'Dati Generali CER 1 Sem. 2023'!E93) -> 218920 | D88: =IF(C88="","",'Dati Generali CER 1 Sem. 2023'!CE93) -> 171260 | E88: ='Dati Generali CER 1 Sem. 2023'!W93 -> 0.4389256241 | F88: =IF('Dati Generali CER 1 Sem. 2023'!CF93="","",'Dati Generali CER 1 Sem. 2023'!CF93) -> 1.388975907 | G88: =IF('Dati Generali CER 1 Sem. 2023'!CG93="","",'Dati Generali CER 1 Sem. 2023'!CG93) -> 0.7793187902 | H88: =IF('Dati Generali CER 1 Sem. 2023'!CH93="","",'Dati Generali CER 1 Sem. 2023'!CH93) -> 0.6096571168 | I88: ='Dati Generali CER 1 Sem. 2023'!D93 -> 1552 | J88: =IF('Dati Generali CER 1 Sem. 2023'!CJ93="","",'Dati Generali CER 1 Sem. 2023'!CJ93) -> 2023-12-12T14:26:45
A89: 80 | B89: ='Dati Generali CER 1 Sem. 2023'!C92 -> S. ANGELO DI BROLO | C89: =IF('Dati Generali CER 1 Sem. 2023'!E92="","",'Dati Generali CER 1 Sem. 2023'!E92) -> 60380 | D89: =IF(C89="","",'Dati Generali CER 1 Sem. 2023'!CE92) -> 368095 | E89: ='Dati Generali CER 1 Sem. 2023'!W92 -> 0.8590816267 | F89: =IF('Dati Generali CER 1 Sem. 2023'!CF92="","",'Dati Generali CER 1 Sem. 2023'!CF92) -> 0.8564635287 | G89: =IF('Dati Generali CER 1 Sem. 2023'!CG92="","",'Dati Generali CER 1 Sem. 2023'!CG92) -> 0.1206914473 | H89: =IF('Dati Generali CER 1 Sem. 2023'!CH92="","",'Dati Generali CER 1 Sem. 2023'!CH92) -> 0.7357720815 | I89: ='Dati Generali CER 1 Sem. 2023'!D92 -> 2764 | J89: =IF('Dati Generali CER 1 Sem. 2023'!CJ92="","",'Dati Generali CER 1 Sem. 2023'!CJ92) -> 2023-12-06T10:29:03
A90: 81 | B90: ='Dati Generali CER 1 Sem. 2023'!C80 -> S. DOMENICA VITTORIA | C90: =IF('Dati Generali CER 1 Sem. 2023'!E80="","",'Dati Generali CER 1 Sem. 2023'!E80) -> 86382 | D90: =IF(C90="","",'Dati Generali CER 1 Sem. 2023'!CE80) -> 32350 | E90: ='Dati Generali CER 1 Sem. 2023'!W80 -> 0.2724623522 | F90: =IF('Dati Generali CER 1 Sem. 2023'!CF80="","",'Dati Generali CER 1 Sem. 2023'!CF80) -> 0.7708318455 | G90: =IF('Dati Generali CER 1 Sem. 2023'!CG80="","",'Dati Generali CER 1 Sem. 2023'!CG80) -> 0.5608091878 | H90: =IF('Dati Generali CER 1 Sem. 2023'!CH80="","",'Dati Generali CER 1 Sem. 2023'!CH80) -> 0.2100226578 | I90: ='Dati Generali CER 1 Sem. 2023'!D80 -> 851 | J90: =IF('Dati Generali CER 1 Sem. 2023'!CJ80="","",'Dati Generali CER 1 Sem. 2023'!CJ80) -> 2023-11-09T16:25:45
A91: 82 | B91: ='Dati Generali CER 1 Sem. 2023'!C85 -> S. FILIPPO DEL MELA | C91: =IF('Dati Generali CER 1 Sem. 2023'!E85="","",'Dati Generali CER 1 Sem. 2023'!E85) -> 443200 | D91: =IF(C91="","",'Dati Generali CER 1 Sem. 2023'!CE85) -> 885020 | E91: ='Dati Generali CER 1 Sem. 2023'!W85 -> 0.6435245443 | F91: =IF('Dati Generali CER 1 Sem. 2023'!CF85="","",'Dati Generali CER 1 Sem. 2023'!CF85) -> 1.1271587 | G91: =IF('Dati Generali CER 1 Sem. 2023'!CG85="","",'Dati Generali CER 1 Sem. 2023'!CG85) -> 0.363242662 | H91: =IF('Dati Generali CER 1 Sem. 2023'!CH85="","",'Dati Generali CER 1 Sem. 2023'!CH85) -> 0.7253542886 | I91: ='Dati Generali CER 1 Sem. 2023'!D85 -> 6741 | J91: =IF('Dati Generali CER 1 Sem. 2023'!CJ85="","",'Dati Generali CER 1 Sem. 2023'!CJ85) -> 2023-11-09T16:28:48
A92: 83 | B92: ='Dati Generali CER 1 Sem. 2023'!C90 -> S. SALVAT. DI FITALIA | C92: =IF('Dati Generali CER 1 Sem. 2023'!E90="","",'Dati Generali CER 1 Sem. 2023'!E90) -> 133160 | D92: =IF(C92="","",'Dati Generali CER 1 Sem. 2023'!CE90) -> 115560 | E92: ='Dati Generali CER 1 Sem. 2023'!W90 -> 0.4646188485 | F92: =IF('Dati Generali CER 1 Sem. 2023'!CF90="","",'Dati Generali CER 1 Sem. 2023'!CF90) -> 1.217133433 | G92: =IF('Dati Generali CER 1 Sem. 2023'!CG90="","",'Dati Generali CER 1 Sem. 2023'!CG90) -> 0.6516302991 | H92: =IF('Dati Generali CER 1 Sem. 2023'!CH90="","",'Dati Generali CER 1 Sem. 2023'!CH90) -> 0.5655031343 | I92: ='Dati Generali CER 1 Sem. 2023'!D90 -> 1129 | J92: =IF('Dati Generali CER 1 Sem. 2023'!CJ90="","",'Dati Generali CER 1 Sem. 2023'!CJ90) -> 2023-11-09T17:34:45
A93: 84 | B93: ='Dati Generali CER 1 Sem. 2023'!C81 -> S. STEF. DI CAMASTRA | C93: =IF('Dati Generali CER 1 Sem. 2023'!E81="","",'Dati Generali CER 1 Sem. 2023'!E81) -> 259660 | D93: =IF(C93="","",'Dati Generali CER 1 Sem. 2023'!CE81) -> 647959 | E93: ='Dati Generali CER 1 Sem. 2023'!W81 -> 0.713910793 | F93: =IF('Dati Generali CER 1 Sem. 2023'!CF81="","",'Dati Generali CER 1 Sem. 2023'!CF81) -> 1.151428155 | G93: =IF('Dati Generali CER 1 Sem. 2023'!CG81="","",'Dati Generali CER 1 Sem. 2023'!CG81) -> 0.3294111677 | H93: =IF('Dati Generali CER 1 Sem. 2023'!CH81="","",'Dati Generali CER 1 Sem. 2023'!CH81) -> 0.8220169869 | I93: ='Dati Generali CER 1 Sem. 2023'!D81 -> 4355 | J93: =IF('Dati Generali CER 1 Sem. 2023'!CJ81="","",'Dati Generali CER 1 Sem. 2023'!CJ81) -> 2023-11-09T18:07:33
A94: 85 | B94: ='Dati Generali CER 1 Sem. 2023'!C84 -> S. TERESA DI RIVA | C94: =IF('Dati Generali CER 1 Sem. 2023'!E84="","",'Dati Generali CER 1 Sem. 2023'!E84) -> 434860 | D94: =IF(C94="","",'Dati Generali CER 1 Sem. 2023'!CE84) -> 1228480 | E94: ='Dati Generali CER 1 Sem. 2023'!W84 -> 0.7385621701 | F94: =IF('Dati Generali CER 1 Sem. 2023'!CF84="","",'Dati Generali CER 1 Sem. 2023'!CF84) -> 0.9826479637 | G94: =IF('Dati Generali CER 1 Sem. 2023'!CG84="","",'Dati Generali CER 1 Sem. 2023'!CG84) -> 0.2569013512 | H94: =IF('Dati Generali CER 1 Sem. 2023'!CH84="","",'Dati Generali CER 1 Sem. 2023'!CH84) -> 0.7257466125 | I94: ='Dati Generali CER 1 Sem. 2023'!D84 -> 9352 | J94: =IF('Dati Generali CER 1 Sem. 2023'!CJ84="","",'Dati Generali CER 1 Sem. 2023'!CJ84) -> 2023-11-20T09:10:49
A95: 86 | B95: ='Dati Generali CER 1 Sem. 2023'!C86 -> SAN FRATELLO | C95: =IF('Dati Generali CER 1 Sem. 2023'!E86="","",'Dati Generali CER 1 Sem. 2023'!E86) -> 93700 | D95: =IF(C95="","",'Dati Generali CER 1 Sem. 2023'!CE86) -> 324950 | E95: ='Dati Generali CER 1 Sem. 2023'!W86 -> 0.7761853577 | F95: =IF('Dati Generali CER 1 Sem. 2023'!CF86="","",'Dati Generali CER 1 Sem. 2023'!CF86) -> 0.706686045 | G95: =IF('Dati Generali CER 1 Sem. 2023'!CG86="","",'Dati Generali CER 1 Sem. 2023'!CG86) -> 0.1581666844 | H95: =IF('Dati Generali CER 1 Sem. 2023'!CH86="","",'Dati Generali CER 1 Sem. 2023'!CH86) -> 0.5485193606 | I95: ='Dati Generali CER 1 Sem. 2023'!D86 -> 3273 | J95: =IF('Dati Generali CER 1 Sem. 2023'!CJ86="","",'Dati Generali CER 1 Sem. 2023'!CJ86) -> 2023-11-09T16:36:24
A96: 87 | B96: ='Dati Generali CER 1 Sem. 2023'!C87 -> SAN MARCO D'ALUNZIO | C96: =IF('Dati Generali CER 1 Sem. 2023'!E87="","",'Dati Generali CER 1 Sem. 2023'!E87) -> 81500 | D96: =IF(C96="","",'Dati Generali CER 1 Sem. 2023'!CE87) -> 177600 | E96: ='Dati Generali CER 1 Sem. 2023'!W87 -> 0.6854496333 | F96: =IF('Dati Generali CER 1 Sem. 2023'!CF87="","",'Dati Generali CER 1 Sem. 2023'!CF87) -> 0.8033062361 | G96: =IF('Dati Generali CER 1 Sem. 2023'!CG87="","",'Dati Generali CER 1 Sem. 2023'!CG87) -> 0.2526802711 | H96: =IF('Dati Generali CER 1 Sem. 2023'!CH87="","",'Dati Generali CER 1 Sem. 2023'!CH87) -> 0.550625965 | I96: ='Dati Generali CER 1 Sem. 2023'!D87 -> 1782 | J96: =IF('Dati Generali CER 1 Sem. 2023'!CJ87="","",'Dati Generali CER 1 Sem. 2023'!CJ87) -> 2023-11-09T17:15:16
A97: 88 | B97: ='Dati Generali CER 1 Sem. 2023'!C88 -> SAN PIER NICETO | C97: =IF('Dati Generali CER 1 Sem. 2023'!E88="","",'Dati Generali CER 1 Sem. 2023'!E88) -> 206680 | D97: =IF(C97="","",'Dati Generali CER 1 Sem. 2023'!CE88) -> 327840 | E97: ='Dati Generali CER 1 Sem. 2023'!W88 -> 0.6133353289 | F97: =IF('Dati Generali CER 1 Sem. 2023'!CF88="","",'Dati Generali CER 1 Sem. 2023'!CF88) -> 1.140652442 | G97: =IF('Dati Generali CER 1 Sem. 2023'!CG88="","",'Dati Generali CER 1 Sem. 2023'!CG88) -> 0.4410500012 | H97: =IF('Dati Generali CER 1 Sem. 2023'!CH88="","",'Dati Generali CER 1 Sem. 2023'!CH88) -> 0.6996024404 | I97: ='Dati Generali CER 1 Sem. 2023'!D88 -> 2589 | J97: =IF('Dati Generali CER 1 Sem. 2023'!CJ88="","",'Dati Generali CER 1 Sem. 2023'!CJ88) -> 2023-11-09T17:28:17
A98: 89 | B98: ='Dati Generali CER 1 Sem. 2023'!C89 -> SAN PIERO PATTI | C98: =IF('Dati Generali CER 1 Sem. 2023'!E89="","",'Dati Generali CER 1 Sem. 2023'!E89) -> 111440 | D98: =IF(C98="","",'Dati Generali CER 1 Sem. 2023'!CE89) -> 398772 | E98: ='Dati Generali CER 1 Sem. 2023'!W89 -> 0.7815809899 | F98: =IF('Dati Generali CER 1 Sem. 2023'!CF89="","",'Dati Generali CER 1 Sem. 2023'!CF89) -> 1.090042857 | G98: =IF('Dati Generali CER 1 Sem. 2023'!CG89="","",'Dati Generali CER 1 Sem. 2023'!CG89) -> 0.2380860819 | H98: =IF('Dati Generali CER 1 Sem. 2023'!CH89="","",'Dati Generali CER 1 Sem. 2023'!CH89) -> 0.8519567753 | I98: ='Dati Generali CER 1 Sem. 2023'!D89 -> 2586 | J98: =IF('Dati Generali CER 1 Sem. 2023'!CJ89="","",'Dati Generali CER 1 Sem. 2023'!CJ89) -> 2023-11-09T17:31:30
A99: 90 | B99: ='Dati Generali CER 1 Sem. 2023'!C91 -> SAN TEODORO | C99: =IF('Dati Generali CER 1 Sem. 2023'!E91="","",'Dati Generali CER 1 Sem. 2023'!E91) -> 35050 | D99: =IF(C99="","",'Dati Generali CER 1 Sem. 2023'!CE91) -> 139856 | E99: ='Dati Generali CER 1 Sem. 2023'!W91 -> 0.7996066459 | F99: =IF('Dati Generali CER 1 Sem. 2023'!CF91="","",'Dati Generali CER 1 Sem. 2023'!CF91) -> 0.7780446793 | G99: =IF('Dati Generali CER 1 Sem. 2023'!CG91="","",'Dati Generali CER 1 Sem. 2023'!CG91) -> 0.155914983 | H99: =IF('Dati Generali CER 1 Sem. 2023'!CH91="","",'Dati Generali CER 1 Sem. 2023'!CH91) -> 0.6221296964 | I99: ='Dati Generali CER 1 Sem. 2023'!D91 -> 1242 | J99: =IF('Dati Generali CER 1 Sem. 2023'!CJ91="","",'Dati Generali CER 1 Sem. 2023'!CJ91) -> 2023-11-09T18:17:23
A100: 91 | B100: ='Dati Generali CER 1 Sem. 2023'!C83 -> SANTA LUCIA DEL MELA | C100: =IF('Dati Generali CER 1 Sem. 2023'!E83="","",'Dati Generali CER 1 Sem. 2023'!E83) -> 267900 | D100: =IF(C100="","",'Dati Generali CER 1 Sem. 2023'!CE83) -> 474958 | E100: ='Dati Generali CER 1 Sem. 2023'!W83 -> 0.6393658007 | F100: =IF('Dati Generali CER 1 Sem. 2023'!CF83="","",'Dati Generali CER 1 Sem. 2023'!CF83) -> 0.9366015165 | G100: =IF('Dati Generali CER 1 Sem. 2023'!CG83="","",'Dati Generali CER 1 Sem. 2023'!CG83) -> 0.3377705379 | H100: =IF('Dati Generali CER 1 Sem. 2023'!CH83="","",'Dati Generali CER 1 Sem. 2023'!CH83) -> 0.5988309786 | I100: ='Dati Generali CER 1 Sem. 2023'!D83 -> 4382 | J100: =IF('Dati Generali CER 1 Sem. 2023'!CJ83="","",'Dati Generali CER 1 Sem. 2023'!CJ83) -> 2023-11-09T17:06:34
A101: 92 | B101: ='Dati Generali CER 1 Sem. 2023'!C94 -> SANTA MARINA SALINA | C101: =IF('Dati Generali CER 1 Sem. 2023'!E94="","",'Dati Generali CER 1 Sem. 2023'!E94) -> 102140 | D101: =IF(C101="","",'Dati Generali CER 1 Sem. 2023'!CE94) -> 68500 | E101: ='Dati Generali CER 1 Sem. 2023'!W94 -> 0.4014299109 | F101: =IF('Dati Generali CER 1 Sem. 2023'!CF94="","",'Dati Generali CER 1 Sem. 2023'!CF94) -> 1.098790712 | G101: =IF('Dati Generali CER 1 Sem. 2023'!CG94="","",'Dati Generali CER 1 Sem. 2023'!CG94) -> 0.6577032544 | H101: =IF('Dati Generali CER 1 Sem. 2023'!CH94="","",'Dati Generali CER 1 Sem. 2023'!CH94) -> 0.4410874577 | I101: ='Dati Generali CER 1 Sem. 2023'!D94 -> 858 | J101: =IF('Dati Generali CER 1 Sem. 2023'!CJ94="","",'Dati Generali CER 1 Sem. 2023'!CJ94) -> 2023-11-09T17:25:15
A102: 93 | B102: ='Dati Generali CER 1 Sem. 2023'!C95 -> SAPONARA | C102: =IF('Dati Generali CER 1 Sem. 2023'!E95="","",'Dati Generali CER 1 Sem. 2023'!E95) -> 131400 | D102: =IF(C102="","",'Dati Generali CER 1 Sem. 2023'!CE95) -> 574760 | E102: ='Dati Generali CER 1 Sem. 2023'!W95 -> 0.8139231902 | F102: =IF('Dati Generali CER 1 Sem. 2023'!CF95="","",'Dati Generali CER 1 Sem. 2023'!CF95) -> 1.058160148 | G102: =IF('Dati Generali CER 1 Sem. 2023'!CG95="","",'Dati Generali CER 1 Sem. 2023'!CG95) -> 0.1968990645 | H102: =IF('Dati Generali CER 1 Sem. 2023'!CH95="","",'Dati Generali CER 1 Sem. 2023'!CH95) -> 0.8612610831 | I102: ='Dati Generali CER 1 Sem. 2023'!D95 -> 3687 | J102: =IF('Dati Generali CER 1 Sem. 2023'!CJ95="","",'Dati Generali CER 1 Sem. 2023'!CJ95) -> 2023-11-10T07:45:09
A103: 94 | B103: ='Dati Generali CER 1 Sem. 2023'!C96 -> SAVOCA | C103: =IF('Dati Generali CER 1 Sem. 2023'!E96="","",'Dati Generali CER 1 Sem. 2023'!E96) -> 118260 | D103: =IF(C103="","",'Dati Generali CER 1 Sem. 2023'!CE96) -> 164236 | E103: ='Dati Generali CER 1 Sem. 2023'!W96 -> 0.5813746035 | F103: =IF('Dati Generali CER 1 Sem. 2023'!CF96="","",'Dati Generali CER 1 Sem. 2023'!CF96) -> 0.9032126049 | G103: =IF('Dati Generali CER 1 Sem. 2023'!CG96="","",'Dati Generali CER 1 Sem. 2023'!CG96) -> 0.3781077348 | H103: =IF('Dati Generali CER 1 Sem. 2023'!CH96="","",'Dati Generali CER 1 Sem. 2023'!CH96) -> 0.5251048701 | I103: ='Dati Generali CER 1 Sem. 2023'!D96 -> 1728 | J103: =IF('Dati Generali CER 1 Sem. 2023'!CJ96="","",'Dati Generali CER 1 Sem. 2023'!CJ96) -> 2023-11-16T15:21:21
A104: 95 | B104: ='Dati Generali CER 1 Sem. 2023'!C97 -> SCALETTA ZANCLEA | C104: =IF('Dati Generali CER 1 Sem. 2023'!E97="","",'Dati Generali CER 1 Sem. 2023'!E97) -> 95040 | D104: =IF(C104="","",'Dati Generali CER 1 Sem. 2023'!CE97) -> 186910 | E104: ='Dati Generali CER 1 Sem. 2023'!W97 -> 0.6629189573 | F104: =IF('Dati Generali CER 1 Sem. 2023'!CF97="","",'Dati Generali CER 1 Sem. 2023'!CF97) -> 0.8452169325 | G104: =IF('Dati Generali CER 1 Sem. 2023'!CG97="","",'Dati Generali CER 1 Sem. 2023'!CG97) -> 0.284906605 | H104: =IF('Dati Generali CER 1 Sem. 2023'!CH97="","",'Dati Generali CER 1 Sem. 2023'!CH97) -> 0.5603103276 | I104: ='Dati Generali CER 1 Sem. 2023'!D97 -> 1843 | J104: =IF('Dati Generali CER 1 Sem. 2023'!CJ97="","",'Dati Generali CER 1 Sem. 2023'!CJ97) -> 2023-11-10T07:50:04
A105: 96 | B105: ='Dati Generali CER 1 Sem. 2023'!C98 -> SINAGRA | C105: =IF('Dati Generali CER 1 Sem. 2023'!E98="","",'Dati Generali CER 1 Sem. 2023'!E98) -> 28800 | D105: =IF(C105="","",'Dati Generali CER 1 Sem. 2023'!CE98) -> 373520 | E105: ='Dati Generali CER 1 Sem. 2023'!W98 -> 0.9284151919 | F105: =IF('Dati Generali CER 1 Sem. 2023'!CF98="","",'Dati Generali CER 1 Sem. 2023'!CF98) -> 0.8984488403 | G105: =IF('Dati Generali CER 1 Sem. 2023'!CG98="","",'Dati Generali CER 1 Sem. 2023'!CG98) -> 0.06431528783 | H105: =IF('Dati Generali CER 1 Sem. 2023'!CH98="","",'Dati Generali CER 1 Sem. 2023'!CH98) -> 0.8341335525 | I105: ='Dati Generali CER 1 Sem. 2023'!D98 -> 2474 | J105: =IF('Dati Generali CER 1 Sem. 2023'!CJ98="","",'Dati Generali CER 1 Sem. 2023'!CJ98) -> 2023-11-10T07:56:59
A106: 97 | B106: ='Dati Generali CER 1 Sem. 2023'!C99 -> SPADAFORA | C106: =IF('Dati Generali CER 1 Sem. 2023'!E99="","",'Dati Generali CER 1 Sem. 2023'!E99) -> 285229 | D106: =IF(C106="","",'Dati Generali CER 1 Sem. 2023'!CE99) -> 620901 | E106: ='Dati Generali CER 1 Sem. 2023'!W99 -> 0.6852228709 | F106: =IF('Dati Generali CER 1 Sem. 2023'!CF99="","",'Dati Generali CER 1 Sem. 2023'!CF99) -> 1.068340396 | G106: =IF('Dati Generali CER 1 Sem. 2023'!CG99="","",'Dati Generali CER 1 Sem. 2023'!CG99) -> 0.3362891226 | H106: =IF('Dati Generali CER 1 Sem. 2023'!CH99="","",'Dati Generali CER 1 Sem. 2023'!CH99) -> 0.732051273 | I106: ='Dati Generali CER 1 Sem. 2023'!D99 -> 4686 | J106: =IF('Dati Generali CER 1 Sem. 2023'!CJ99="","",'Dati Generali CER 1 Sem. 2023'!CJ99) -> 2023-11-10T08:02:54
A107: 98 | B107: ='Dati Generali CER 1 Sem. 2023'!C100 -> TAORMINA | C107: =IF('Dati Generali CER 1 Sem. 2023'!E100="","",'Dati Generali CER 1 Sem. 2023'!E100) -> 1511240 | D107: =IF(C107="","",'Dati Generali CER 1 Sem. 2023'!CE100) -> 2611360 | E107: ='Dati Generali CER 1 Sem. 2023'!W100 -> 0.6293616632 | F107: =IF('Dati Generali CER 1 Sem. 2023'!CF100="","",'Dati Generali CER 1 Sem. 2023'!CF100) -> 2.183017561 | G107: =IF('Dati Generali CER 1 Sem. 2023'!CG100="","",'Dati Generali CER 1 Sem. 2023'!CG100) -> 0.7951044915 | H107: =IF('Dati Generali CER 1 Sem. 2023'!CH100="","",'Dati Generali CER 1 Sem. 2023'!CH100) -> 1.373907563 | I107: ='Dati Generali CER 1 Sem. 2023'!D100 -> 10501 | J107: =IF('Dati Generali CER 1 Sem. 2023'!CJ100="","",'Dati Generali CER 1 Sem. 2023'!CJ100) -> 2023-11-10T08:04:31
A108: 99 | B108: ='Dati Generali CER 1 Sem. 2023'!C101 -> TERME VIGLIATORE | C108: =IF('Dati Generali CER 1 Sem. 2023'!E101="","",'Dati Generali CER 1 Sem. 2023'!E101) -> 379800 | D108: =IF(C108="","",'Dati Generali CER 1 Sem. 2023'!CE101) -> 939940 | E108: ='Dati Generali CER 1 Sem. 2023'!W101 -> 0.7122160426 | F108: =IF('Dati Generali CER 1 Sem. 2023'!CF101="","",'Dati Generali CER 1 Sem. 2023'!CF101) -> 1.010586447 | G108: =IF('Dati Generali CER 1 Sem. 2023'!CG101="","",'Dati Generali CER 1 Sem. 2023'!CG101) -> 0.2908305671 | H108: =IF('Dati Generali CER 1 Sem. 2023'!CH101="","",'Dati Generali CER 1 Sem. 2023'!CH101) -> 0.71975588 | I108: ='Dati Generali CER 1 Sem. 2023'!D101 -> 7215 | J108: =IF('Dati Generali CER 1 Sem. 2023'!CJ101="","",'Dati Generali CER 1 Sem. 2023'!CJ101) -> 2023-11-10T08:15:49
A109: 100 | B109: ='Dati Generali CER 1 Sem. 2023'!C102 -> TORREGROTTA | C109: =IF('Dati Generali CER 1 Sem. 2023'!E102="","",'Dati Generali CER 1 Sem. 2023'!E102) -> 554180 | D109: =IF(C109="","",'Dati Generali CER 1 Sem. 2023'!CE102) -> 829313 | E109: ='Dati Generali CER 1 Sem. 2023'!W102 -> 0.5683842664 | F109: =IF('Dati Generali CER 1 Sem. 2023'!CF102="","",'Dati Generali CER 1 Sem. 2023'!CF102) -> 1.106998867 | G109: =IF('Dati Generali CER 1 Sem. 2023'!CG102="","",'Dati Generali CER 1 Sem. 2023'!CG102) -> 0.4204570112 | H109: =IF('Dati Generali CER 1 Sem. 2023'!CH102="","",'Dati Generali CER 1 Sem. 2023'!CH102) -> 0.6292007387 | I109: ='Dati Generali CER 1 Sem. 2023'!D102 -> 7282 | J109: =IF('Dati Generali CER 1 Sem. 2023'!CJ102="","",'Dati Generali CER 1 Sem. 2023'!CJ102) -> 2023-11-10T08:21:53
A110: 101 | B110: ='Dati Generali CER 1 Sem. 2023'!C103 -> TORRENOVA | C110: =IF('Dati Generali CER 1 Sem. 2023'!E103="","",'Dati Generali CER 1 Sem. 2023'!E103) -> 105240 | D110: =IF(C110="","",'Dati Generali CER 1 Sem. 2023'!CE103) -> 690220 | E110: ='Dati Generali CER 1 Sem. 2023'!W103 -> 0.8676991929 | F110: =IF('Dati Generali CER 1 Sem. 2023'!CF103="","",'Dati Generali CER 1 Sem. 2023'!CF103) -> 0.9790168478 | G110: =IF('Dati Generali CER 1 Sem. 2023'!CG103="","",'Dati Generali CER 1 Sem. 2023'!CG103) -> 0.1295247191 | H110: =IF('Dati Generali CER 1 Sem. 2023'!CH103="","",'Dati Generali CER 1 Sem. 2023'!CH103) -> 0.8494921287 | I110: ='Dati Generali CER 1 Sem. 2023'!D103 -> 4489 | J110: =IF('Dati Generali CER 1 Sem. 2023'!CJ103="","",'Dati Generali CER 1 Sem. 2023'!CJ103) -> 2023-11-10T08:28:55
A111: 102 | B111: ='Dati Generali CER 1 Sem. 2023'!C104 -> TORTORICI | C111: =IF('Dati Generali CER 1 Sem. 2023'!E104="","",'Dati Generali CER 1 Sem. 2023'!E104) -> 240660 | D111: =IF(C111="","",'Dati Generali CER 1 Sem. 2023'!CE104) -> 386111 | E111: ='Dati Generali CER 1 Sem. 2023'!W104 -> 0.6160320117 | F111: =IF('Dati Generali CER 1 Sem. 2023'!CF104="","",'Dati Generali CER 1 Sem. 2023'!CF104) -> 0.6065551243 | G111: =IF('Dati Generali CER 1 Sem. 2023'!CG104="","",'Dati Generali CER 1 Sem. 2023'!CG104) -> 0.2328977509 | H111: =IF('Dati Generali CER 1 Sem. 2023'!CH104="","",'Dati Generali CER 1 Sem. 2023'!CH104) -> 0.3736573734 | I111: ='Dati Generali CER 1 Sem. 2023'!D104 -> 5709 | J111: =IF('Dati Generali CER 1 Sem. 2023'!CJ104="","",'Dati Generali CER 1 Sem. 2023'!CJ104) -> 2023-12-19T09:21:49
A112: 103 | B112: ='Dati Generali CER 1 Sem. 2023'!C105 -> TRIPI | C112: =IF('Dati Generali CER 1 Sem. 2023'!E105="","",'Dati Generali CER 1 Sem. 2023'!E105) -> 14070 | D112: =IF(C112="","",'Dati Generali CER 1 Sem. 2023'!CE105) -> 103455 | E112: ='Dati Generali CER 1 Sem. 2023'!W105 -> 0.8802807913 | F112: =IF('Dati Generali CER 1 Sem. 2023'!CF105="","",'Dati Generali CER 1 Sem. 2023'!CF105) -> 0.8703879253 | G112: =IF('Dati Generali CER 1 Sem. 2023'!CG105="","",'Dati Generali CER 1 Sem. 2023'!CG105) -> 0.1042021537 | H112: =IF('Dati Generali CER 1 Sem. 2023'!CH105="","",'Dati Generali CER 1 Sem. 2023'!CH105) -> 0.7661857716 | I112: ='Dati Generali CER 1 Sem. 2023'!D105 -> 746 | J112: =IF('Dati Generali CER 1 Sem. 2023'!CJ105="","",'Dati Generali CER 1 Sem. 2023'!CJ105) -> 2023-11-10T08:50:15
A113: 104 | B113: ='Dati Generali CER 1 Sem. 2023'!C106 -> TUSA | C113: =IF('Dati Generali CER 1 Sem. 2023'!E106="","",'Dati Generali CER 1 Sem. 2023'!E106) -> 68780 | D113: =IF(C113="","",'Dati Generali CER 1 Sem. 2023'!CE106) -> 399106 | E113: ='Dati Generali CER 1 Sem. 2023'!W106 -> 0.8529983799 | F113: =IF('Dati Generali CER 1 Sem. 2023'!CF106="","",'Dati Generali CER 1 Sem. 2023'!CF106) -> 0.9996154388 | G113: =IF('Dati Generali CER 1 Sem. 2023'!CG106="","",'Dati Generali CER 1 Sem. 2023'!CG106) -> 0.1469450889 | H113: =IF('Dati Generali CER 1 Sem. 2023'!CH106="","",'Dati Generali CER 1 Sem. 2023'!CH106) -> 0.8526703499 | I113: ='Dati Generali CER 1 Sem. 2023'!D106 -> 2586 | J113: =IF('Dati Generali CER 1 Sem. 2023'!CJ106="","",'Dati Generali CER 1 Sem. 2023'!CJ106) -> 2023-11-10T08:54:21
A114: 105 | B114: ='Dati Generali CER 1 Sem. 2023'!C107 -> UCRIA | C114: =IF('Dati Generali CER 1 Sem. 2023'!E107="","",'Dati Generali CER 1 Sem. 2023'!E107) -> 41930 | D114: =IF(C114="","",'Dati Generali CER 1 Sem. 2023'!CE107) -> 116530 | E114: ='Dati Generali CER 1 Sem. 2023'!W107 -> 0.7353906349 | F114: =IF('Dati Generali CER 1 Sem. 2023'!CF107="","",'Dati Generali CER 1 Sem. 2023'!CF107) -> 0.9609984778 | G114: =IF('Dati Generali CER 1 Sem. 2023'!CG107="","",'Dati Generali CER 1 Sem. 2023'!CG107) -> 0.2542891971 | H114: =IF('Dati Generali CER 1 Sem. 2023'!CH107="","",'Dati Generali CER 1 Sem. 2023'!CH107) -> 0.7067092807 | I114: ='Dati Generali CER 1 Sem. 2023'!D107 -> 911 | J114: =IF('Dati Generali CER 1 Sem. 2023'!CJ107="","",'Dati Generali CER 1 Sem. 2023'!CJ107) -> 2023-11-10T08:57:20
A115: 106 | B115: ='Dati Generali CER 1 Sem. 2023'!C108 -> VALDINA | C115: =IF('Dati Generali CER 1 Sem. 2023'!E108="","",'Dati Generali CER 1 Sem. 2023'!E108) -> 118460 | D115: =IF(C115="","",'Dati Generali CER 1 Sem. 2023'!CE108) -> 133295 | E115: ='Dati Generali CER 1 Sem. 2023'!W108 -> 0.5294631686 | F115: =IF('Dati Generali CER 1 Sem. 2023'!CF108="","",'Dati Generali CER 1 Sem. 2023'!CF108) -> 1.099534863 | G115: =IF('Dati Generali CER 1 Sem. 2023'!CG108="","",'Dati Generali CER 1 Sem. 2023'!CG108) -> 0.5173716507 | H115: =IF('Dati Generali CER 1 Sem. 2023'!CH108="","",'Dati Generali CER 1 Sem. 2023'!CH108) -> 0.5821632127 | I115: ='Dati Generali CER 1 Sem. 2023'!D108 -> 1265 | J115: =IF('Dati Generali CER 1 Sem. 2023'!CJ108="","",'Dati Generali CER 1 Sem. 2023'!CJ108) -> 2023-12-07T07:52:36
A116: 107 | B116: ='Dati Generali CER 1 Sem. 2023'!C109 -> VENETICO | C116: =IF('Dati Generali CER 1 Sem. 2023'!E109="","",'Dati Generali CER 1 Sem. 2023'!E109) -> 287920 | D116: =IF(C116="","",'Dati Generali CER 1 Sem. 2023'!CE109) -> 438998 | E116: ='Dati Generali CER 1 Sem. 2023'!W109 -> 0.6039168104 | F116: =IF('Dati Generali CER 1 Sem. 2023'!CF109="","",'Dati Generali CER 1 Sem. 2023'!CF109) -> 1.016225088 | G116: =IF('Dati Generali CER 1 Sem. 2023'!CG109="","",'Dati Generali CER 1 Sem. 2023'!CG109) -> 0.4025096741 | H116: =IF('Dati Generali CER 1 Sem. 2023'!CH109="","",'Dati Generali CER 1 Sem. 2023'!CH109) -> 0.6137154137 | I116: ='Dati Generali CER 1 Sem. 2023'!D109 -> 3952 | J116: =IF('Dati Generali CER 1 Sem. 2023'!CJ109="","",'Dati Generali CER 1 Sem. 2023'!CJ109) -> 2023-11-16T16:00:40
A117: 108 | B117: ='Dati Generali CER 1 Sem. 2023'!C110 -> VILLAFRANCA TIRRENA | C117: =IF('Dati Generali CER 1 Sem. 2023'!E110="","",'Dati Generali CER 1 Sem. 2023'!E110) -> 515300 | D117: =IF(C117="","",'Dati Generali CER 1 Sem. 2023'!CE110) -> 1283656 | E117: ='Dati Generali CER 1 Sem. 2023'!W110 -> 0.7135560848 | F117: =IF('Dati Generali CER 1 Sem. 2023'!CF110="","",'Dati Generali CER 1 Sem. 2023'!CF110) -> 1.233430557 | G117: =IF('Dati Generali CER 1 Sem. 2023'!CG110="","",'Dati Generali CER 1 Sem. 2023'!CG110) -> 0.3533086778 | H117: =IF('Dati Generali CER 1 Sem. 2023'!CH110="","",'Dati Generali CER 1 Sem. 2023'!CH110) -> 0.8801218788 | I117: ='Dati Generali CER 1 Sem. 2023'!D110 -> 8058 | J117: =IF('Dati Generali CER 1 Sem. 2023'!CJ110="","",'Dati Generali CER 1 Sem. 2023'!CJ110) -> 2023-11-10T09:02:01
B118: Percentuale media dei 108 Comuni: | F118: ='Dati Generali CER 1 Sem. 2023'!W111 -> 0.6405575435

Sheet Grafico 1 Semestre 2023

Sheet Dati Generali CER 2 Sem. 2023
A1: Produzione di Rifiuti Urbani e Raccolta Differenziata 2° Semestre 2023.
A2: =COUNTA(E3:E110) -> 108 | B2: ID COMUNE | C2: COMUNE | D2: ABITANTI AL 31/12/2023 | E2: R.S.U. + R.S.A. (Kg/2°Sem.) 200301 | F2: R.S.U. COVID (A+A1) 200301* | G2: Altri oli per motori, ingranaggi e lubrificazione 130208* | H2: Legno da demolizione 170201 | I2: Miscele bituminose (diverse da quelle 170301*) 170302 | J2: Alluminio 170402 | K2: Ferro e acciaio 170405 | L2: Materiali da costruzione contenenti amianto 170605* | M2: percolato di discarica,(diverso dalla voce 190702) 190703 | N2: Residui di vagliatura 190801 | O2: FANGHI DI DEPURAZIONE (Kg/anno) prodotti dal trattamento delle acque reflue urbane 190805 | P2: Altri rifiuti (compresi materiali misti) prodotti dal trattamento meccanico dei rifiuti,(diversi dalla voce 191211) 191212 | Q2: Rifiuti della pulizia delle fognature 200306 | R2: Residui della pulizia stradale 200303 Smaltimento | S2: Ingombranti - 200307 Smaltimento | T2: Rifiuti urbani non specificati altrimenti 200399 | U2: RACCOL. DIFFEREN. (Kg/2°Sem.) | V2: R.S.U. + R.S.A. + RACC. DIFF. (Kg/2°Sem.) | W2: % RACC. DIFF. (2°Sem.) | X2: Compostaggio Domestico | Y2: Toner per stampa esauriti,(diversi dalla voce 080317) 080318 | Z2: Imballaggi Carta e Cartone (Raccolta Selettiva) 150101 | AA2: Imballaggi in Plastica 150102 | AB2: Imballaggi in Legno 150103 | AC2: Imballaaggi in metallo 150104 | AD2: Imballaggi Materiali compositi 150105 | AE2: Imball. in materiali misti 150106 | AF2: Imballaggi in Vetro 150107 | AG2: Imballaggi in Materiale tessile 150109 | AH2: Imballaggi contenenti residui di sostanze pericolose o contaminati da tali sostanze 150110* | AI2: Imballaggi metallici contenenti matrici solide porose pericolose (ad esempio amianto) 150111* | AJ2: Pneumatici usati 160103 | AK2: Filtri dell'olio 160107* | AL2: Apparecchiature fuori uso contenenti PCB o da essi contaminate(diverse dalla voce 160209) 160210* | AM2: Apparecchiature fuori uso, contenenti clorofluorocarburi, HCFC, HFC 160211* | AN2: Apparecchiature fuori uso contenenti amianto in fibre libere 160212* | AO2: App.fuori uso contenete comp.pericolosi(diversi dalle voci da 160209 a 160212) 160213* | AP2: Apparecchiature fuori uso(diverse dalle voci da 160209 a 160213*) 160214* | AQ2: Componenti pericolosi rimossi da apparecchiature fuori uso 160215* | AR2: Componenti rimossi da apparecchiature fuori uso,(diversi dalla voce 160215) 160216 | AS2: Gas in contenitori a pressione limitatamente ad estintori ed aerosol ad uso domenstico 160504* | AT2: Gas in contenitori a pressione(diversi dalla voce 160504*) limitatamente ad estintori ed aerosol ad uso domenstico 160505 | AU2: Miscugli o frazioni separate di cemento, mattoni, mattonelle e ceramiche(diverse dalla voce 170106) 170107 | AV2: Rifiuti misti dell'attività di costruzione e demolizione, (diversi dalle voci 170901, 170902 e 170903) 170904 | AW2: Carta e Cartone (Raccolta Congiunta) 200101 | AX2: Vetro 200102 | AY2: Rifiuti biodegradabili di cucine e mense 200108 | AZ2: Abbigliamento 200110 | BA2: Prodotti tessili 200111 | BB2: Solventi 200113* | BC2: Acidi 200114* | BD2: Sostanze Alcaline 200115* | BE2: Prodotti Fotochimici 200117* | BF2: Pesticidi 200119* | BG2: Tubi fluorescenti ed altri rifiuti contenenti Mercurio 200121* | BH2: Apparec. Fuori uso conten. CFC e mat. peric. 200123* | BI2: Oli e Grassi commestibili 200125 | BJ2: Oli e grassi (diversi dalla voce 200125) 200126* | BK2: Vernici,Inchiostri,Adesivi e Resine contenenti sostanze pericolose 200127* | BL2: Vernici,Inchiostri,Adesivi e Resine (diversi dalla voce 200127*) 200128 | BM2: Detergento contenente sostanze pericolose 200129* | BN2: Detergenti (diversi della voce 200129*) 200130 | BO2: Medicinali citotossici e citostatici 200131* | BP2: Medicinali (diversi dlla voce 200131*) 200132 | BQ2: Batterie ed Accumulatori (diversi dalle voci 160601, 160602 e 160603) 200133* | BR2: Batterie ed accumulatori (diversi dlla voce 200133*) 200134 | BS2: Apparecc. elettr. ed elettroniche fuori uso contenenti Mat. Peric. 200135* | BT2: Apparecc. eletr. ed elettroniche fuori uso(diverse da 200121, 200123 e 200135 200136 | BU2: Legno contenente sostanze pericolose 200137* | BV2: Legno 200138 | BW2: Plastica 200139 | BX2: Metallo 200140 | BY2: Rifiuti prodotti dalla pulizia dei camini provenienti da utenze domestiche 200141 | BZ2: Rifiuti biodegradabili 200201 | CA2: Altri rifiuti non biodegradabili 200203 | CB2: Rifiuti dei Mercati 200302 | CC2: Residui della pulizia stradale - 200303 Recupero | CD2: Ingombranti - 200307 Recupero | CE2: TOTALE RD (Kg/1°Sem.) | CF2: R.S.U. + R.S.A.+ R.D. - (R.T. Kg. pro capite/g) | CG2: R.S.U. + R.S.A. 200301 - (R.I. Kg. pro capite/g) | CH2: R.D. - (Kg. pro capite/g)
A3: 1 | B3: M211 | C3: ='Dati Generali CER 1 Sem. 2023'!C3 -> ACQUEDOLCI | D3: 5497 | E3: 162700 | U3: =IF(CE3=0,"",CE3) -> 782690 | V3: =IF(E3=0,"",SUM(U3,E3,R3,S3,T3)) -> 945390 | W3: =IFERROR(IF(E3<>0,IF(U3=0,0,(U3/V3*100)/100),IF(U3=0,"","")),0) -> 0.8279017125 | Z3: 29100 | AA3: 113870 | AF3: 128690 | AW3: 83680 | AY3: 317120 | AZ3: 12660 | BH3: 3720 | BI3: 2520 | BS3: 10060 | BT3: 3020 | BZ3: 3500 | CD3: 74750 | CE3: =IF(SUM(X3:CD3)=0,"",SUM(X3:CD3)) -> 782690 | CF3: =IF(SUM(E3)=0,"",V3/D3/184) -> 0.9346896726 | CG3: =IF(E3=0,"",E3/D3/184) -> 0.160858492 | CH3: =IF(SUM(Y3:CD3)=0,"",CE3/D3/184) -> 0.7738311806 | CJ3: 2024-01-24T11:12:36
A4: 2 | B4: A177 | C4: ='Dati Generali CER 1 Sem. 2023'!C4 -> ALCARA LI FUSI | D4: 1655 | E4: 41140 | M4: 2760 | U4: =IF(CE4=0,"",CE4) -> 165235 | V4: 206375 | W4: 0.800654149 | AA4: 21280 | AF4: 41880 | AW4: 27380 | AY4: 63880 | AZ4: 4135 | BH4: 800 | BS4: 810 | BT4: 1750 | CD4: 3320 | CE4: 165235 | CF4: 0.6777058978 | CG4: =IF(E4=0,"",E4/D4/184) -> 0.1350978589 | CH4: 0.5426080389 | CJ4: 2024-01-23T14:04:28
A5: 3 | B5: A194 | C5: ='Dati Generali CER 1 Sem. 2023'!C5 -> ALI' | D5: 630 | E5: 17010 | U5: =IF(CE5=0,"",CE5) -> 37721 | V5: 54731 | W5: 0.6892072135 | AE5: 3890 | AF5: 8450 | AW5: 3930 | AY5: 18390 | BP5: 11 | BZ5: 730 | CD5: 2320 | CE5: 37721 | CF5: 0.4721445825 | CG5: 0.1467391304 | CH5: 0.325405452 | CJ5: 2024-01-23T14:32:02
A6: 4 | B6: A201 | C6: ='Dati Generali CER 1 Sem. 2023'!C6 -> ALI' TERME | D6: 2315 | E6: 108560 | U6: =IF(CE6=0,"",CE6) -> 314425 | V6: 422985 | W6: 0.7433478729 | AE6: 47590 | AF6: 46680 | AW6: 53660 | AY6: 136300 | AZ6: 5660 | BP6: 55 | BZ6: 12000 | CD6: 12480 | CE6: 314425 | CF6: 0.9930157761 | CG6: 0.2548596112 | CH6: 0.7381561649 | CJ6: 2024-02-22T14:28:29
A7: 5 | B7: A313 | C7: ='Dati Generali CER 1 Sem. 2023'!C7 -> ANTILLO | D7: 795 | E7: 17020 | U7: 90025 | V7: 107045 | W7: 0.841001448 | X7: 3387 | AE7: 15940 | AF7: 10590 | AW7: 16260 | AY7: 33000 | BA7: 5028 | CD7: 5820 | CE7: 90025 | CF7: 0.7317815149 | CG7: 0.1163522013 | CH7: 0.6154293136 | CJ7: 2024-03-07T15:15:06
A8: 6 | B8: A638 | C8: ='Dati Generali CER 1 Sem. 2023'!C8 -> BARCELLONA P.G. | D8: 39878 | E8: 2402620 | U8: 5795795 | V8: 8198415 | W8: 0.7069409148 | X8: 161045 | Z8: 423630 | AA8: 1860 | AC8: 12200 | AE8: 713450 | AF8: 557800 | AI8: 900 | AJ8: 5840 | AR8: 1420 | AW8: 655670 | AY8: 1875940 | AZ8: 59320 | BA8: 14000 | BG8: 730 | BH8: 31680 | BI8: 3540 | BP8: 2520 | BQ8: 6320 | BR8: 860 | BS8: 27540 | BT8: 60310 | BV8: 242220 | BW8: 34800 | BX8: 70740 | BZ8: 291700 | CC8: 377000 | CD8: 162760 | CE8: 5795795 | CF8: 1.117322916 | CG8: 0.3274416318 | CH8: 0.7898812847 | CJ8: 2024-02-05T10:16:09
A9: 7 | B9: A698 | C9: ='Dati Generali CER 1 Sem. 2023'!C9 -> BASICO' | D9: 634 | E9: 43660 | U9: 64050 | V9: 107710 | W9: 0.5946523071 | X9: 12090 | AE9: 13060 | AF9: 13820 | AW9: 11860 | AY9: 13220 | CE9: 64050 | CF9: 0.9233129886 | CG9: 0.3742627897 | CH9: 0.5490501989 | CJ9: 2024-02-26T10:33:31
A10: 8 | B10: B198 | C10: ='Dati Generali CER 1 Sem. 2023'!C10 -> BROLO | D10: 5739 | E10: 353340 | U10: 1069030 | V10: 1422370 | W10: 0.7515836245 | X10: 45570 | Z10: 121430 | AA10: 5650 | AE10: 122540 | AF10: 128000 | AR10: 1050 | AW10: 73580 | AY10: 367640 | AZ10: 24180 | BG10: 50 | BH10: 11540 | BI10: 1520 | BP10: 150 | BR10: 90 | BS10: 19100 | BT10: 18820 | BV10: 30550 | BX10: 8510 | BZ10: 43480 | CC10: 23340 | CD10: 22240 | CE10: 1069030 | CF10: 1.346971901 | CG10: 0.3346098775 | CH10: 1.012362023 | CJ10: 2024-01-17T08:13:56
A11: 9 | B11: B660 | C11: ='Dati Generali CER 1 Sem. 2023'!C11 -> CAPIZZI | D11: 2815 | E11: 150456 | U11: 238780 | V11: 389236 | W11: 0.6134581591 | AA11: 25420 | AF11: 43300 | AW11: 39940 | AY11: 114020 | BH11: 920 | BS11: 900 | BT11: 3400 | BW11: 3380 | CD11: 7500 | CE11: 238780 | CF11: 0.7514788787 | CG11: 0.2904780292 | CH11: 0.4610008495 | CJ11: 2024-01-31T10:44:34
A12: 10 | B12: B666 | C12: ='Dati Generali CER 1 Sem. 2023'!C12 -> CAPO D'ORLANDO | D12: 13105 | E12: 499700 | U12: 3036240 | V12: 3535940 | W12: 0.8586797287 | Y12: 464 | Z12: 259440 | AA12: 376790 | AB12: 19320 | AF12: 429360 | AW12: 430900 | AY12: 1041360 | AZ12: 50796 | BG12: 950 | BH12: 15780 | BI12: 2200 | BP12: 700 | BR12: 220 | BS12: 19020 | BT12: 9640 | BX12: 65990 | BZ12: 192480 | CD12: 120830 | CE12: 3036240 | CF12: 1.466391852 | CG12: 0.2072308943 | CH12: 1.259160957 | CJ12: 2024-02-01T14:28:46
A13: 11 | B13: B695 | C13: ='Dati Generali CER 1 Sem. 2023'!C13 -> CAPRILEONE | D13: 4362 | E13: 58400 | U13: 610060 | V13: 668460 | W13: 0.9126350118 | Z13: 23140 | AA13: 83590 | AF13: 118220 | AW13: 79870 | AY13: 269550 | BZ13: 7720 | CD13: 27970 | CE13: 610060 | CF13: 0.8328598768 | CG13: 0.07276279329 | CH13: 0.7600970835 | CJ13: 2024-02-05T11:26:47
A14: 12 | B14: B804 | C14: ='Dati Generali CER 1 Sem. 2023'!C14 -> CARONIA | D14: 3003 | E14: 249520 | U14: 445783 | V14: 695303 | W14: 0.6411348721 | X14: 2598 | Z14: 30640 | AA14: 22180 | AE14: 75020 | AF14: 78860 | AY14: 211720 | AZ14: 3460 | BH14: 2620 | BI14: 580 | BP14: 35 | BR14: 20 | BS14: 490 | CD14: 17560 | CE14: 445783 | CF14: 1.258348536 | CG14: 0.4515774081 | CH14: 0.8067711274
A15: 13 | B15: B918 | C15: ='Dati Generali CER 1 Sem. 2023'!C15 -> CASALVECCHIO SICULO | D15: 714 | E15: 25240 | U15: 75090 | V15: 100330 | W15: 0.7484301804 | AE15: 12400 | AF15: 14240 | AW15: 9800 | AY15: 34610 | CD15: 4040 | CE15: 75090 | CF15: 0.7636859091 | CG15: 0.1921203264 | CH15: 0.5715655828 | CJ15: 2024-01-31T10:55:32
A16: 14 | B16: C094 | C16: ='Dati Generali CER 1 Sem. 2023'!C16 -> CASTEL DI LUCIO | D16: 1325 | E16: 13680 | K16: 9720 | U16: 130930 | V16: 144610 | W16: 0.905400733 | X16: 1798 | Z16: 5230 | AE16: 17220 | AF16: 23780 | AW16: 12980 | AY16: 56120 | AZ16: 5372 | BH16: 1250 | BI16: 220 | BS16: 1080 | BW16: 1450 | CD16: 4430 | CE16: 130930 | CF16: 0.5931501231 | CG16: 0.05611156686 | CH16: 0.5370385562 | CJ16: 2024-03-08T16:16:48
A17: 15 | B17: C051 | C17: ='Dati Generali CER 1 Sem. 2023'!C17 -> CASTELL'UMBERTO | D17: 2817 | E17: 85300 | U17: 307780 | V17: 393080 | W17: 0.7829958278 | Y17: 940 | AA17: 42440 | AF17: 64980 | AV17: 6320 | AW17: 36470 | AY17: 120670 | AZ17: 13030 | BI17: 200 | BP17: 30 | BR17: 10 | BT17: 4370 | CC17: 90 | CD17: 18230 | CE17: 307780 | CF17: 0.7583615008 | CG17: 0.1645676097 | CH17: 0.5937938911 | CJ17: 2024-04-03T10:38:45
A18: 16 | B18: C210 | C18: ='Dati Generali CER 1 Sem. 2023'!C18 -> CASTELMOLA | D18: 1068 | E18: 46710 | F18: 46710 | U18: 158370 | V18: 205080 | W18: 0.7722352253 | AA18: 1110 | AE18: 22070 | AF18: 35830 | AW18: 22010 | AY18: 53570 | CD18: 23780 | CE18: 158370 | CF18: 1.043600391 | CG18: 0.2376954079 | CH18: 0.8059049829
A19: 17 | B19: C347 | C19: ='Dati Generali CER 1 Sem. 2023'!C19 -> CASTROREALE | D19: 2264 | E19: 73320 | U19: 255678 | V19: 328998 | W19: 0.7771415024 | X19: 21438 | Z19: 14800 | AE19: 29640 | AF19: 40450 | AW19: 13770 | AY19: 109260 | AZ19: 6650 | BH19: 850 | BI19: 50 | BP19: 60 | BS19: 580 | BT19: 1120 | BZ19: 14340 | CD19: 2670 | CE19: 255678 | CF19: 0.7897670533 | CG19: 0.176006299 | CH19: 0.6137607543 | CJ19: 2024-01-23T17:19:05
A20: 18 | B20: C568 | C20: ='Dati Generali CER 1 Sem. 2023'!C20 -> CESARO' | D20: 2114 | E20: 104050 | U20: 180512 | V20: 284562 | W20: 0.6343503349 | AA20: 24050 | AF20: 33960 | AW20: 36910 | AY20: 73820 | AZ20: 5372 | CD20: 6400 | CE20: 180512 | CF20: 0.7315669861 | CG20: 0.2674972235 | CH20: 0.4640697627 | CJ20: 2024-01-24T11:17:11
A21: 19 | B21: C956 | C21: ='Dati Generali CER 1 Sem. 2023'!C21 -> CONDRO' | D21: 479 | E21: 32580 | U21: 43200 | V21: 75780 | W21: 0.5700712589 | AE21: 4840 | AF21: 7480 | AW21: 4680 | AY21: 20540 | BH21: 430 | BS21: 420 | BT21: 1120 | CD21: 3690 | CE21: 43200 | CF21: 0.8598075701 | CG21: 0.3696559862 | CH21: 0.4901515839 | CJ21: 2024-01-16T12:35:20
A22: 20 | B22: D474 | C22: ='Dati Generali CER 1 Sem. 2023'!C22 -> FALCONE | D22: 2819 | E22: 227220 | U22: 451520 | V22: 678740 | W22: 0.6652326369 | Z22: 26680 | AE22: 56820 | AF22: 63060 | AW22: 58780 | AY22: 200360 | BV22: 15680 | CD22: 30140 | CE22: 451520 | CF22: 1.308550673 | CG22: 0.4380600583 | CH22: 0.8704906149 | CJ22: 2024-03-12T14:21:08
A23: 21 | B23: D569 | C23: ='Dati Generali CER 1 Sem. 2023'!C23 -> FICARRA | D23: 1288 | E23: 40900 | U23: 188220 | V23: 229120 | W23: 0.8214909218 | X23: 14400 | Z23: 4680 | AA23: 19960 | AB23: 1180 | AF23: 37490 | AW23: 11500 | AY23: 69620 | AZ23: 4500 | BH23: 1750 | BS23: 1200 | CD23: 21940 | CE23: 188220 | CF23: 0.9667836889 | CG23: 0.1725796651 | CH23: 0.7942040238 | CJ23: 2024-01-23T17:31:16
A24: 22 | B24: D622 | C24: ='Dati Generali CER 1 Sem. 2023'!C24 -> FIUMEDINISI | D24: 1337 | E24: 38140 | U24: 117317 | V24: 155457 | W24: 0.7546588446 | AE24: 14550 | AF24: 18530 | AW24: 14420 | AY24: 62460 | BP24: 37 | BZ24: 1610 | CD24: 5710 | CE24: 117317 | CF24: 0.6319184742 | CG24: 0.1550356086 | CH24: 0.4768828656 | CJ24: 2024-03-14T14:04:36
A25: 23 | B25: D635 | C25: ='Dati Generali CER 1 Sem. 2023'!C25 -> FLORESTA | D25: 475 | E25: 35680 | U25: 58425 | V25: 94105 | W25: 0.6208490516 | Y25: 3 | AA25: 7040 | AF25: 14560 | AW25: 8060 | AY25: 23840 | BP25: 2 | BR25: 20 | CC25: 320 | CD25: 4580 | CE25: 58425 | CF25: 1.076716247 | CG25: 0.4082379863 | CH25: 0.6684782609 | CJ25: 2024-01-24T11:22:30
A26: 24 | B26: D661 | C26: ='Dati Generali CER 1 Sem. 2023'!C26 -> FONDACHELLI FANTINA | D26: 1097 | E26: 71920 | U26: 47460 | V26: 119380 | W26: 0.3975540292 | AE26: 11820 | AF26: 6680 | AW26: 10360 | AY26: 18600 | CE26: 47460 | CF26: 0.5914351393 | CG26: 0.3563077167 | CH26: 0.2351274226 | CJ26: 2024-03-08T15:51:06
A27: 25 | B27: D733 | C27: FORZA D'AGRO' | D27: 845 | E27: 74460 | U27: 187570 | V27: 262030 | W27: 0.7158340648 | AE27: 23400 | AF27: 28600 | AW27: 25280 | AY27: 102910 | CD27: 7380 | CE27: 187570 | CF27: 1.685297144 | CG27: 0.4789040391 | CH27: 1.206393105 | CJ27: 2024-02-26T09:41:03
A28: 26 | B28: D765 | C28: ='Dati Generali CER 1 Sem. 2023'!C28 -> FRANCAVILLA DI SICILIA | D28: 3523 | E28: 188920 | U28: 627854 | V28: 816774 | W28: 0.7686997872 | X28: 156000 | AC28: 42470 | AE28: 74740 | AF28: 56980 | AW28: 73960 | AY28: 185780 | AZ28: 16224 | BH28: 1640 | BI28: 760 | BV28: 8580 | CD28: 10720 | CE28: 627854 | CF28: 1.260002592 | CG28: 0.2914388676 | CH28: 0.9685637241
A29: 27 | B29: D793 | C29: ='Dati Generali CER 1 Sem. 2023'!C29 -> FRAZZANO' | D29: 562 | E29: 23140 | U29: 49990 | V29: 73130 | W29: 0.6835771913 | AA29: 5530 | AF29: 16570 | AW29: 7180 | AY29: 17070 | AZ29: 1280 | BT29: 600 | BX29: 440 | CD29: 1320 | CE29: 49990 | CF29: 0.7071986693 | CG29: 0.2237737893 | CH29: 0.4834248801 | CJ29: 2024-03-14T07:52:02
A30: 28 | B30: D824 | C30: ='Dati Generali CER 1 Sem. 2023'!C30 -> FURCI SICULO | D30: 3203 | E30: 154850 | U30: 481607 | V30: 636457 | W30: 0.7566999813 | Y30: 52 | AE30: 62150 | AF30: 56420 | AW30: 71140 | AY30: 179220 | BK30: 2880 | BP30: 225 | BV30: 52740 | BZ30: 11260 | CD30: 45520 | CE30: 481607 | CF30: 1.079926767 | CG30: 0.2627462026 | CH30: 0.8171805644 | CJ30: 2024-02-08T12:42:51
A31: 29 | B31: D825 | C31: ='Dati Generali CER 1 Sem. 2023'!C31 -> FURNARI | D31: 4180 | E31: 211290 | U31: 1256920 | V31: 1468210 | W31: 0.8560900689 | Z31: 53880 | AE31: 170040 | AF31: 178600 | AW31: 92920 | AY31: 428360 | AZ31: 15760 | BI31: 480 | BT31: 14140 | BV31: 18120 | BZ31: 163900 | CD31: 120720 | CE31: 1256920 | CF31: 1.908947888 | CG31: 0.2747165592 | CH31: 1.634231329 | CJ31: 2024-04-04T10:41:09
A32: 30 | B32: D844 | C32: ='Dati Generali CER 1 Sem. 2023'!C32 -> GAGGI | D32: 3082 | E32: 186330 | U32: 293340 | V32: 479670 | W32: 0.6115454375 | AE32: 42350 | AF32: 43050 | AW32: 52630 | AY32: 136810 | AZ32: 7500 | CD32: 11000 | CE32: 293340 | CF32: 0.8458475581 | CG32: 0.3285733431 | CH32: 0.5172742149 | CJ32: 2024-01-23T17:37:25
A33: 31 | B33: D861 | C33: ='Dati Generali CER 1 Sem. 2023'!C33 -> GALATI MAMERTINO | D33: 2211 | E33: 62640 | U33: 272100 | V33: 334740 | W33: 0.8128696899 | AA33: 36100 | AF33: 61480 | AW33: 40250 | AY33: 106920 | AZ33: 13200 | BI33: 120 | BT33: 4090 | CD33: 9940 | CE33: 272100 | CF33: 0.8228128134 | CG33: 0.1539732169 | CH33: 0.6688395965 | CJ33: 2024-01-24T07:55:03
A34: 32 | B34: D885 | C34: ='Dati Generali CER 1 Sem. 2023'!C34 -> GALLODORO | D34: 324 | E34: 19970 | U34: 35290 | V34: 55260 | W34: 0.6386174448 | AA34: 180 | AE34: 6800 | AF34: 4740 | AW34: 6180 | AY34: 12520 | AZ34: 1350 | CD34: 3520 | CE34: 35290 | CF34: 0.9269323671 | CG34: 0.3349771873 | CH34: 0.5919551798 | CJ34: 2024-01-25T12:05:37
A35: 33 | B35: E014 | C35: ='Dati Generali CER 1 Sem. 2023'!C35 -> GIARDINI NAXOS | D35: 9315 | E35: 1094900 | K35: 580 | U35: 2509330 | V35: =IF(E35=0,"",SUM(U35,E35,R35,S35,T35)) -> 3604230 | W35: =IFERROR(IF(E35<>0,IF(U35=0,0,(U35/V35*100)/100),IF(U35=0,"","")),0) -> 0.6962180549 | Z35: 141050 | AA35: 339900 | AF35: 436320 | AW35: 166900 | AY35: 1075620 | BH35: 1380 | BS35: 1580 | BT35: 280 | BV35: 39980 | BX35: 86940 | BZ35: 28840 | CC35: 98940 | CD35: 91600 | CE35: =IF(SUM(X35:CD35)=0,"",SUM(X35:CD35)) -> 2509330 | CF35: 2.102867045 | CG35: 0.6388130411 | CH35: =IF(SUM(Y35:CD35)=0,"",CE35/D35/184) -> 1.464054004 | CJ35: 2024-02-01T16:03:33
A36: 34 | B36: E043 | C36: ='Dati Generali CER 1 Sem. 2023'!C36 -> GIOIOSA MAREA | D36: 6766 | E36: 482120 | K36: 1500 | U36: 1119400 | V36: 1601520 | W36: 0.6989609871 | Z36: 67880 | AB36: 5380 | AE36: 146460 | AF36: 157200 | AW36: 86800 | AY36: 552540 | AZ36: 12840 | BI36: 950 | BT36: 5320 | BV36: 3480 | BZ36: 50770 | CC36: 4940 | CD36: 24840 | CE36: 1119400 | CF36: 1.286419309 | CG36: 0.387262399 | CH36: 0.8991569099 | CJ36: 2024-03-28T13:19:12
A37: 35 | B37: E142 | C37: ='Dati Generali CER 1 Sem. 2023'!C37 -> GRANITI | D37: 1453 | E37: 202860 | U37: 64860 | V37: 267720 | W37: 0.2422680412 | Z37: 14460 | AA37: 14280 | AE37: 3480 | AF37: 24600 | BH37: 280 | CD37: 7760 | CE37: 64860 | CF37: =IF(E37=0,"",V37/D37/184) -> 1.001376462 | CG37: 0.7587749484 | CH37: 0.2426015141 | CJ37: 2024-01-31T10:57:18
A38: 36 | B38: E233 | C38: ='Dati Generali CER 1 Sem. 2023'!C38 -> GUALTIERI SICAMINO | D38: 1555 | E38: 58320 | U38: 209528 | V38: 267848 | W38: 0.782264568 | X38: 10482 | AE38: 22280 | AF38: 25180 | AW38: 20460 | AY38: 89320 | BH38: 1900 | BP38: 60 | BS38: 2000 | BT38: 5780 | BV38: 6400 | BW38: 1747 | BX38: 2659 | BZ38: 2300 | CD38: 18960 | CE38: 209528 | CF38: =IF(SUM(E38)=0,"",V38/D38/184) -> 0.9361386831 | CG38: 0.2038305606 | CH38: 0.7323081225 | CJ38: 2024-02-09T11:35:09
A39: 37 | B39: E374 | C39: ='Dati Generali CER 1 Sem. 2023'!C39 -> ITALA | D39: 1491 | E39: 84230 | U39: 172500 | V39: 256730 | W39: 0.6719121256 | AE39: 27750 | AF39: 31280 | AJ39: 1060 | AW39: 31100 | AY39: 70770 | BH39: 800 | BS39: 380 | BT39: 420 | CD39: 8940 | CE39: 172500 | CF39: 0.935795935 | CG39: 0.3070232992 | CH39: 0.6287726358 | CJ39: 2024-04-09T09:16:19
A40: 38 | B40: E523 | C40: ='Dati Generali CER 1 Sem. 2023'!C40 -> LENI | D40: 677 | E40: 73980 | U40: 58820 | V40: 132800 | W40: 0.4429216867 | AA40: 3000 | AE40: 8060 | AF40: 30120 | AW40: 14320 | CD40: 3320 | CE40: 58820 | CF40: 1.066084388 | CG40: 0.5938924925 | CH40: 0.4721918952 | CJ40: 2024-02-08T12:46:18
A41: 39 | B41: E555 | C41: ='Dati Generali CER 1 Sem. 2023'!C41 -> LETOJANNI | D41: 2914 | E41: 541030 | U41: 716211 | V41: 1257241 | W41: 0.5696688224 | X41: 1496 | AA41: 1300 | AE41: 84990 | AF41: 137430 | AW41: 93780 | AY41: 340020 | AZ41: 10830 | BH41: 2880 | BI41: 145 | BZ41: 5860 | CD41: 37480 | CE41: 716211 | CF41: 2.344828937 | CG41: 1.009052998 | CH41: 1.335775939 | CJ41: 2024-03-28T12:34:23
A42: 40 | B42: E571 | C42: ='Dati Generali CER 1 Sem. 2023'!C42 -> LIBRIZZI | D42: 1570 | E42: 70360 | U42: 207010 | V42: 277370 | W42: 0.7463316148 | X42: 35750 | AE42: 29880 | AF42: 31800 | AW42: 30620 | AY42: 70420 | BT42: 1740 | BV42: 3240 | CD42: 3560 | CE42: 207010 | CF42: 0.9601564664 | CG42: 0.2435613403 | CH42: 0.716595126 | CJ42: 2024-02-16T13:36:57
A43: 41 | B43: E594 | C43: ='Dati Generali CER 1 Sem. 2023'!C43 -> LIMINA | D43: 727 | E43: 38685 | U43: 63222 | V43: 101907 | W43: 0.6203891784 | AA43: 12153 | AW43: 7971 | AX43: 10990 | AY43: 25360 | CD43: 6748 | CE43: 63222 | CF43: 0.7618189702 | CG43: 0.2891947252 | CH43: 0.472624245 | CJ43: 2024-04-11T15:09:01
A44: 42 | B44: E606 | C44: ='Dati Generali CER 1 Sem. 2023'!C44 -> LIPARI | D44: 12685 | E44: 2427820 | U44: 2449280 | V44: 4877100 | W44: 0.5022000779 | Z44: 305150 | AA44: 373910 | AF44: 607380 | AJ44: 8760 | AW44: 166350 | AY44: 710420 | BG44: 400 | BH44: 23140 | BS44: 14320 | BT44: 36840 | BV44: 87960 | BW44: 7600 | BX44: 35030 | BZ44: 30260 | CD44: 41760 | CE44: 2449280 | CF44: 2.089552878 | CG44: 1.04017926 | CH44: 1.049373618 | CJ44: 2024-01-24T07:57:57
A45: 43 | B45: E674 | C45: ='Dati Generali CER 1 Sem. 2023'!C45 -> LONGI | D45: 1301 | E45: 13260 | U45: 166944 | V45: 180204 | W45: 0.9264167277 | AA45: 22740 | AF45: 39810 | AW45: 26390 | AY45: 63190 | AZ45: 7834 | BH45: 810 | BS45: 560 | BT45: 1210 | CD45: 4400 | CE45: 166944 | CF45: 0.7527821408 | CG45: 0.05539217324 | CH45: 0.6973899676 | CJ45: 2024-02-28T11:12:14
A46: 44 | B46: E855 | C46: ='Dati Generali CER 1 Sem. 2023'!C46 -> MALFA | D46: 1001 | E46: 137580 | U46: 142060 | V46: 279640 | W46: 0.508010299 | Z46: 30000 | AA46: 20060 | AC46: 1360 | AF46: 59400 | AY46: 18060 | BT46: 780 | BV46: 4780 | BW46: 3880 | BX46: 3740 | CE46: 142060 | CF46: 1.518264344 | CG46: 0.7469704209 | CH46: 0.7712939235 | CJ46: 2024-02-08T12:47:49
A47: 45 | B47: E869 | C47: ='Dati Generali CER 1 Sem. 2023'!C47 -> MALVAGNA | D47: 608 | E47: 50620 | U47: 44570 | V47: 95190 | W47: 0.4682214518 | AA47: 5310 | AF47: 9580 | AW47: 3660 | AY47: 20260 | CD47: 5760 | CE47: 44570 | CF47: 0.8508831522 | CG47: 0.4524814073 | CH47: 0.3984017449 | CJ47: 2024-01-24T11:29:00
A48: 46 | B48: E876 | C48: ='Dati Generali CER 1 Sem. 2023'!C48 -> MANDANICI | D48: 493 | E48: 13370 | U48: 58420 | V48: 71790 | W48: 0.8137623624 | AE48: 9230 | AF48: 8110 | AW48: 8170 | AY48: 29050 | BH48: 240 | BZ48: 1480 | CD48: 2140 | CE48: 58420 | CF48: 0.7914057677 | CG48: 0.1473895405 | CH48: 0.6440162272 | CJ48: 2024-03-07T08:53:44
A49: 47 | B49: F066 | C49: ='Dati Generali CER 1 Sem. 2023'!C49 -> MAZZARRA' S. ANDREA | D49: 1399 | E49: 43340 | U49: 159200 | V49: 202540 | W49: 0.7860175768 | X49: 26090 | AA49: 17800 | AE49: 1260 | AF49: 20980 | AW49: 17760 | AY49: 67480 | AZ49: 1050 | BT49: 120 | CD49: 6660 | CE49: 159200 | CF49: 0.7868197781 | CG49: 0.1683656028 | CH49: 0.6184541753 | CJ49: 2024-02-05T11:16:56
A50: 48 | B50: F147 | C50: ='Dati Generali CER 1 Sem. 2023'!C50 -> MERI' | D50: 2305 | E50: 122140 | S50: 5900 | U50: 209610 | V50: 337650 | W50: 0.6207907597 | AE50: 32940 | AF50: 25500 | AW50: 33580 | AY50: 107800 | BH50: 800 | BS50: 620 | BT50: 1370 | BZ50: 7000 | CE50: 209610 | CF50: 0.7961190229 | CG50: 0.2879845327 | CH50: 0.494223333 | CJ50: 2024-01-24T11:32:07
A51: 49 | B51: F158 | C51: ='Dati Generali CER 1 Sem. 2023'!C51 -> MESSINA | D51: 217895 | E51: 21102330 | G51: 190 | K51: 1340 | L51: 3070 | U51: 26028464 | V51: 47130794 | W51: 0.5522602484 | X51: 291400 | Y51: 1180 | Z51: 2517080 | AA51: 38070 | AC51: 270 | AE51: 3270430 | AF51: 3082140 | AJ51: 10220 | AV51: 101100 | AW51: 3316490 | AX51: 19180 | AY51: 9857210 | AZ51: 128875 | BH51: 98820 | BI51: 3230 | BJ51: 1475 | BK51: 13120 | BP51: 9530 | BQ51: 18936 | BR51: 1630 | BS51: 67460 | BT51: 179560 | BV51: 1052421 | BX51: 146940 | BZ51: 850110 | CC51: 121700 | CD51: 829887 | CE51: 26028464 | CF51: 1.17554611 | CG51: 0.5263387232 | CH51: 0.6492073865 | CJ51: 2024-02-26T10:10:46
A52: 50 | B52: F206 | C52: ='Dati Generali CER 1 Sem. 2023'!C52 -> MILAZZO | D52: 29998 | E52: 2314460 | U52: 5281330 | V52: 7595790 | W52: 0.695297 | Y52: 80 | Z52: 417380 | AA52: 614780 | AF52: 653600 | AP52: 1940 | AW52: 528020 | AY52: 2337860 | AZ52: 104680 | BH52: 8340 | BI52: 5600 | BP52: 1320 | BS52: 6840 | BT52: 9600 | BV52: 20790 | BW52: 4340 | BX52: 2580 | BZ52: 222760 | CC52: 209480 | CD52: 131340 | CE52: 5281330 | CF52: 1.376140656 | CG52: 0.4193141862 | CH52: 0.9568264696 | CJ52: 2024-03-07T11:31:53
A53: 51 | B53: F210 | C53: ='Dati Generali CER 1 Sem. 2023'!C53 -> MILITELLO ROSMARINO | D53: 1147 | E53: 45560 | U53: 120395 | V53: 165955 | W53: 0.7254677473 | AA53: 19010 | AF53: 31330 | AW53: 23390 | AY53: 39790 | AZ53: 4495 | CD53: 2380 | CE53: 120395 | CF53: 0.7863377052 | CG53: 0.2158750616 | CH53: 0.5704626436 | CJ53: 2024-01-15T11:36:39
A54: 52 | B54: F242 | C54: ='Dati Generali CER 1 Sem. 2023'!C54 -> MIRTO | D54: 872 | E54: 8300 | U54: 144977 | V54: 153277 | W54: 0.9458496709 | AA54: 23270 | AF54: 27850 | AW54: 25610 | AY54: 59380 | AZ54: 5427 | BH54: 720 | BS54: 420 | BT54: 280 | CD54: 2020 | CE54: 144977 | CF54: 0.9553063921 | CG54: 0.05173015556 | CH54: 0.9035762365 | CJ54: 2024-02-08T12:51:31
A55: 53 | B55: F251 | C55: ='Dati Generali CER 1 Sem. 2023'!C55 -> MISTRETTA | D55: 4315 | E55: 192820 | U55: 578130 | V55: 770950 | W55: 0.7498929892 | Z55: 33850 | AA55: 60790 | AF55: 102380 | AW55: 61440 | AY55: 216160 | AZ55: 18600 | BH55: 5600 | BI55: 220 | BS55: 6920 | BZ55: 8060 | CC55: 8900 | CD55: 55210 | CE55: 578130 | CF55: 0.9710186911 | CG55: 0.2428585823 | CH55: 0.7281601088 | CJ55: 2024-02-09T12:10:23
A56: 54 | B56: F277 | C56: ='Dati Generali CER 1 Sem. 2023'!C56 -> MOJO ALCANTARA | D56: 686 | E56: 45600 | U56: 45340 | V56: 90940 | W56: 0.498570486 | Z56: 1560 | AA56: 6780 | AF56: 8760 | AW56: 6400 | AY56: 21840 | CE56: 45340 | CF56: 0.7204652047 | CG56: 0.3612625174 | CH56: 0.3592026873 | CJ56: 2024-02-14T14:51:05
A57: 55 | B57: F359 | C57: ='Dati Generali CER 1 Sem. 2023'!C57 -> MONFORTE S. GIORGIO | D57: 2448 | E57: 208940 | R57: 5960 | U57: 254342 | V57: 469242 | W57: 0.5420273548 | X57: 9402 | AE57: 27320 | AF57: 43900 | AW57: 32720 | AY57: 130900 | BH57: 950 | BS57: 450 | BT57: 2250 | CD57: 6450 | CE57: 254342 | CF57: 1.04175991 | CG57: 0.4638657999 | CH57: 0.5646623686 | CJ57: 2024-01-24T08:02:29
A58: 56 | B58: F368 | C58: ='Dati Generali CER 1 Sem. 2023'!C58 -> MONGIUFFI MELIA | D58: 521 | E58: 37800 | U58: 35020 | V58: 72820 | W58: 0.4809118374 | AA58: 190 | AE58: 6430 | AF58: 7380 | AW58: 5190 | AY58: 15830 | CE58: 35020 | CF58: 0.7596177919 | CG58: 0.3943086039 | CH58: 0.365309188 | CJ58: 2024-01-24T08:06:33
A59: 57 | B59: F395 | C59: ='Dati Generali CER 1 Sem. 2023'!C59 -> MONTAGNAREALE | D59: 1378 | E59: 49040 | U59: 136960 | V59: 186000 | W59: 0.736344086 | AE59: 27940 | AF59: 26720 | AW59: 19740 | AY59: 49260 | BV59: 2400 | BX59: 900 | CC59: 1040 | CD59: 8960 | CE59: 136960 | CF59: 0.7335773332 | CG59: 0.1934120023 | CH59: 0.540165331 | CJ59: 2024-01-24T11:35:45
A60: 58 | B60: F400 | C60: ='Dati Generali CER 1 Sem. 2023'!C60 -> MONTALBANO ELICONA | D60: 2077 | E60: 115220 | K60: 2000 | U60: 216450 | V60: 331670 | W60: 0.6526065065 | X60: 20898 | Y60: 20 | AE60: 28380 | AF60: 41340 | AW60: 30600 | AY60: 72970 | AZ60: 6142 | BH60: 940 | BP60: 20 | BR60: 20 | BS60: 1200 | CD60: 13920 | CE60: 216450 | CF60: 0.8678643947 | CG60: 0.301490444 | CH60: 0.5663739507 | CJ60: 2024-03-06T08:07:33
A61: 59 | B61: F772 | C61: ='Dati Generali CER 1 Sem. 2023'!C61 -> MOTTA CAMASTRA | D61: 796 | E61: 110860 | U61: 36860 | V61: 147720 | W61: 0.2495261305 | Z61: 7720 | AA61: 10200 | AE61: 3560 | AF61: 13860 | CD61: 1520 | CE61: 36860 | CF61: 1.008575486 | CG61: 0.7569095477 | CH61: 0.2516659384 | CJ61: 2024-02-13T15:01:28
A62: 60 | B62: F773 | C62: ='Dati Generali CER 1 Sem. 2023'!C62 -> MOTTA D'AFFERMO | D62: 655 | E62: 1e-05 | U62: 71656 | V62: 71656.00001 | W62: 0.9999999999 | X62: 3116 | Z62: 1900 | AE62: 13580 | AF62: 14620 | AW62: 9450 | AY62: 21680 | AZ62: 1100 | BH62: 1540 | BI62: 180 | BS62: 680 | BW62: 1440 | CD62: 2370 | CE62: 71656 | CF62: 0.5945569201 | CG62: 8.297378029e-11 | CH62: 0.59455692 | CJ62: 2024-01-25T12:13:44
A63: 61 | B63: F848 | C63: ='Dati Generali CER 1 Sem. 2023'!C63 -> NASO | D63: 3417 | E63: 108040 | U63: 485982 | V63: 594022 | W63: 0.8181212144 | X63: 33252 | AA63: 75860 | AF63: 90130 | AJ63: 220 | AR63: 40 | AW63: 76880 | AY63: 158350 | AZ63: 17850 | BP63: 150 | BT63: 9110 | BV63: 5260 | BZ63: 640 | CC63: 210 | CD63: 18030 | CE63: 485982 | CF63: 0.944799659 | CG63: 0.1718390146 | CH63: 0.7729606443 | CJ63: 2024-01-24T08:12:02
A64: 62 | B64: F901 | C64: ='Dati Generali CER 1 Sem. 2023'!C64 -> NIZZA DI SICILIA | D64: 3528 | E64: 159890 | U64: 476277 | V64: 636167 | W64: 0.7486666237 | AE64: 80550 | AF64: 61610 | AW64: 83720 | AY64: 195510 | BP64: 257 | BR64: 160 | BZ64: 32620 | CD64: 21850 | CE64: 476277 | CF64: 0.9799969807 | CG64: 0.2463059499 | CH64: 0.7336910308 | CJ64: 2024-04-09T14:53:20
A65: 63 | B65: F951 | C65: ='Dati Generali CER 1 Sem. 2023'!C65 -> NOVARA DI SICILIA | D65: 1130 | E65: 57720 | U65: 181138 | V65: 238858 | W65: 0.7583501495 | X65: 6798 | AE65: 18180 | AF65: 22000 | AW65: 25700 | AY65: 89680 | AZ65: 7240 | BT65: 1780 | CD65: 9760 | CE65: 181138 | CF65: 1.148797614 | CG65: 0.2776067718 | CH65: 0.8711908426 | CJ65: 2024-04-03T10:45:44
A66: 64 | B66: G036 | C66: ='Dati Generali CER 1 Sem. 2023'!C66 -> OLIVERI | D66: 2187 | E66: 263840 | K66: 3200 | U66: 516608 | V66: 780448 | W66: 0.6619377588 | X66: 12708 | Z66: 24420 | AE66: 59760 | AF66: 78860 | AW66: 33860 | AY66: 211320 | AZ66: 9920 | BI66: 460 | BP66: 220 | BT66: 5520 | BV66: 22860 | CC66: 6720 | CD66: 49980 | CE66: 516608 | CF66: 1.939444544 | CG66: 0.6556529691 | CH66: 1.283791575 | CJ66: 2024-04-03T11:04:35
A67: 65 | B67: G209 | C67: ='Dati Generali CER 1 Sem. 2023'!C67 -> PACE DEL MELA | D67: 5956 | E67: 397440 | U67: 773663 | V67: =IF(E67=0,"",SUM(U67,E67,R67,S67,T67)) -> 1171103 | W67: =IFERROR(IF(E67<>0,IF(U67=0,0,(U67/V67*100)/100),IF(U67=0,"","")),0) -> 0.6606276305 | X67: 26300 | Y67: 140 | AE67: 106020 | AF67: 98880 | AW67: 116040 | AY67: 303020 | AZ67: 10200 | BH67: 8940 | BP67: 280 | BS67: 9260 | BT67: 17560 | BV67: 26220 | BW67: 3193 | BX67: 3910 | BZ67: 10460 | CD67: 33240 | CE67: =IF(SUM(X67:CD67)=0,"",SUM(X67:CD67)) -> 773663 | CF67: 1.068618237 | CG67: 0.362659503 | CH67: =IF(SUM(Y67:CD67)=0,"",CE67/D67/184) -> 0.7059587336 | CJ67: 2024-03-14T10:18:11
A68: 66 | B68: G234 | C68: ='Dati Generali CER 1 Sem. 2023'!C68 -> PAGLIARA | D68: 1116 | E68: 23150 | S68: 872 | U68: =IF(CE68=0,"",CE68) -> 95758 | V68: 119780 | W68: 0.7994489898 | AE68: 15980 | AF68: 14150 | AW68: 14290 | AY68: 49950 | BH68: 80 | CD68: 1308 | CE68: 95758 | CF68: 0.5833138538 | CG68: =IF(E68=0,"",E68/D68/184) -> 0.11273765 | CH68: 0.4663296712 | CJ68: 2024-01-24T08:37:12
A69: 67 | B69: G377 | C69: ='Dati Generali CER 1 Sem. 2023'!C69 -> PATTI | D69: 12699 | E69: 954180 | U69: 2006900 | V69: 2961080 | W69: 0.6777594661 | Z69: 132620 | AE69: 311820 | AF69: 192980 | AJ69: 360 | AW69: 161340 | AY69: 1037340 | BV69: 13620 | BZ69: 40460 | CC69: 27880 | CD69: 88480 | CE69: 2006900 | CF69: 1.267251444 | CG69: 0.4083597818 | CH69: 0.8588916621 | CJ69: 2024-03-07T08:57:35
A70: 68 | B70: G522 | C70: ='Dati Generali CER 1 Sem. 2023'!C70 -> PETTINEO | D70: 1241 | E70: 26020 | K70: 2720 | U70: 118210 | V70: 144230 | W70: 0.8195937045 | Z70: 3530 | AE70: 20160 | AF70: 18900 | AW70: 10400 | AY70: 57060 | AZ70: 2200 | BI70: 150 | BW70: 1520 | CD70: 4290 | CE70: 118210 | CF70: =IF(SUM(E70)=0,"",V70/D70/184) -> 0.6316347266 | CG70: 0.1139508811 | CH70: 0.5176838454 | CJ70: 2024-01-24T08:41:47
A71: 69 | B71: G699 | C71: ='Dati Generali CER 1 Sem. 2023'!C71 -> PIRAINO | D71: 3797 | E71: 198160 | U71: 638246 | V71: 836406 | W71: 0.7630815657 | X71: 25826 | Z71: 21040 | AA71: 86710 | AF71: 104970 | AW71: 93770 | AY71: 281320 | AZ71: 9290 | BH71: 1650 | BI71: 320 | BP71: 140 | BS71: 1310 | BT71: 1530 | CD71: 10370 | CE71: 638246 | CF71: 1.197177978 | CG71: 0.2836335322 | CH71: 0.9135444458 | CJ71: 2024-03-28T13:02:57
A72: 70 | B72: H151 | C72: ='Dati Generali CER 1 Sem. 2023'!C72 -> RACCUJA | D72: 834 | E72: 24560 | U72: 97500 | V72: 122060 | W72: 0.7987874816 | Y72: 20 | Z72: 12060 | AA72: 10380 | AF72: 24540 | AY72: 40820 | AZ72: 2910 | BI72: 300 | BP72: 20 | BR72: 10 | CD72: 6440 | CE72: 97500 | CF72: 0.7954071525 | CG72: 0.1600458763 | CH72: 0.6353612762 | CJ72: 2024-02-26T10:05:01
A73: 71 | B73: H228 | C73: ='Dati Generali CER 1 Sem. 2023'!C73 -> REITANO | D73: 705 | E73: 82420 | U73: 193740 | V73: 276160 | W73: 0.7015498262 | Z73: 16260 | AA73: 7520 | AE73: 37300 | AF73: 28060 | AY73: 89620 | BH73: 1820 | BS73: 860 | CD73: 12300 | CE73: 193740 | CF73: 2.128893 | CG73: 0.635368486 | CH73: 1.493524514 | CJ73: 2024-03-07T09:31:46
A74: 72 | B74: H405 | C74: ='Dati Generali CER 1 Sem. 2023'!C74 -> ROCCAFIORITA | D74: 178 | E74: 6780 | U74: 18955 | V74: 25735 | W74: 0.7365455605 | AA74: 3050 | AW74: 2190 | AX74: 1060 | AY74: 7500 | AZ74: 2215 | BZ74: 2620 | CD74: 320 | CE74: 18955 | CF74: 0.7857535418 | CG74: 0.2070102589 | CH74: 0.5787432829 | CJ74: 2024-02-08T12:53:55
A75: 73 | B75: H418 | C75: ='Dati Generali CER 1 Sem. 2023'!C75 -> ROCCALUMERA | D75: 4064 | E75: 378850 | U75: 856649 | V75: 1235499 | W75: 0.6933627627 | Y75: 108 | AE75: 110080 | AF75: 93870 | AJ75: 880 | AV75: 13560 | AW75: 141980 | AY75: 300380 | AZ75: 7820 | BH75: 4760 | BI75: 376 | BK75: 3400 | BP75: 495 | BR75: 120 | BS75: 1800 | BT75: 760 | BV75: 65940 | BZ75: 39200 | CC75: 2360 | CD75: 68760 | CE75: 856649 | CF75: 1.652231417 | CG75: 0.506635677 | CH75: 1.14559574 | CJ75: 2024-03-12T13:27:36
A76: 74 | B76: H380 | C76: ='Dati Generali CER 1 Sem. 2023'!C76 -> ROCCAVALDINA | D76: 1003 | E76: 75460 | U76: 83990 | V76: 159450 | W76: 0.5267481969 | AE76: 10400 | AF76: 15980 | AW76: 11100 | AY76: 35720 | AZ76: 3910 | BH76: 600 | BI76: 140 | BS76: 520 | BT76: 560 | CD76: 5060 | CE76: 83990 | CF76: 0.8639841346 | CG76: 0.4088820495 | CH76: 0.455102085 | CJ76: 2024-04-04T10:28:58
A77: 75 | B77: H455 | C77: ='Dati Generali CER 1 Sem. 2023'!C77 -> ROCCELLA VALDEMONE | D77: 560 | E77: 51460 | U77: 37180 | V77: 88640 | W77: 0.4194494585 | AA77: 6720 | AF77: 7500 | AW77: 4460 | AY77: 18500 | CE77: 37180 | CF77: 0.8602484472 | CG77: 0.4994177019 | CH77: 0.3608307453 | CJ77: 2024-01-24T11:44:04
A78: 76 | B78: H479 | C78: ='Dati Generali CER 1 Sem. 2023'!C78 -> RODI' MILICI | D78: 1959 | E78: 74600 | U78: 247160 | V78: 321760 | W78: 0.768150174 | X78: 28020 | Z78: 4660 | AE78: 34270 | AF78: 30950 | AW78: 27430 | AY78: 109580 | AZ78: 6540 | BH78: 900 | BI78: 180 | BS78: 790 | BT78: 850 | CD78: 2990 | CE78: 247160 | CF78: 0.8926470915 | CG78: 0.2069600728 | CH78: 0.6856870187 | CJ78: 2024-01-24T11:46:39
A79: 77 | B79: H519 | C79: ='Dati Generali CER 1 Sem. 2023'!C79 -> ROMETTA | D79: 6596 | E79: 216420 | U79: 934030 | V79: 1150450 | W79: 0.8118823069 | X79: 83220 | AA79: 111140 | AF79: 108710 | AW79: 119340 | AY79: 426380 | AZ79: 10940 | BH79: 3480 | BI79: 140 | BS79: 1260 | BT79: 4340 | BV79: 12120 | BZ79: 26880 | CD79: 26080 | CE79: 934030 | CF79: 0.9479147441 | CG79: 0.1783195349 | CH79: 0.7695952092 | CJ79: 2024-02-14T14:59:36
A80: 78 | B80: I184 | C80: ='Dati Generali CER 1 Sem. 2023'!C80 -> S. DOMENICA VITTORIA | D80: 853 | E80: 80920 | U80: 64590 | V80: 145510 | W80: 0.4438870181 | Z80: 9520 | AE80: 12610 | AF80: 19960 | AY80: 15940 | CD80: 6560 | CE80: 64590 | CF80: 0.9270987308 | CG80: 0.5155716397 | CH80: 0.4115270911 | CJ80: 2024-02-05T10:05:38
A81: 79 | B81: I370 | C81: ='Dati Generali CER 1 Sem. 2023'!C81 -> S. STEF. DI CAMASTRA | D81: 4351 | E81: 337680 | U81: 753820 | V81: 1091500 | W81: 0.6906275767 | Z81: 106510 | AA81: 38040 | AE81: 95800 | AF81: 103980 | AV81: 37140 | AW81: 13240 | AY81: 270940 | AZ81: 9000 | BH81: 5310 | BI81: 1460 | BP81: 120 | BR81: 60 | BS81: 4360 | BZ81: 33660 | CD81: 34200 | CE81: 753820 | CF81: 1.363379733 | CG81: 0.4217920918 | CH81: 0.941587641 | CJ81: 2024-01-31T14:03:57
A82: 80 | B82: I199 | C82: ='Dati Generali CER 1 Sem. 2023'!C82 -> S. AGATA DI MILITELLO | D82: 11933 | E82: 648560 | U82: 1847929 | V82: 2496489 | W82: 0.7402111525 | X82: 60919 | Z82: 89010 | AA82: 225500 | AB82: 22480 | AF82: 260060 | AW82: 249600 | AY82: 686040 | AZ82: 18890 | BG82: 140 | BH82: 18820 | BI82: 610 | BS82: 19280 | BT82: 7480 | BZ82: 81540 | CD82: 107560 | CE82: 1847929 | CF82: 1.137004525 | CG82: 0.2953810952 | CH82: 0.8416234301 | CJ82: 2024-01-29T08:08:08
A83: 81 | B83: I220 | C83: ='Dati Generali CER 1 Sem. 2023'!C83 -> SANTA LUCIA DEL MELA | D83: 4374 | E83: 281140 | U83: 695318 | V83: 976458 | W83: 0.7120818305 | X83: 66078 | Z83: 39770 | AE83: 70820 | AU83: 150000 | AW83: 37320 | AX83: 54460 | AY83: 175220 | AZ83: 8600 | BH83: 2310 | BP83: 40 | BS83: 1240 | BT83: 2280 | BZ83: 80700 | CD83: 6480 | CE83: 695318 | CF83: 1.213268623 | CG83: 0.3493220811 | CH83: 0.8639465418 | CJ83: 2024-01-24T11:51:17
A84: 82 | B84: I311 | C84: ='Dati Generali CER 1 Sem. 2023'!C84 -> S. TERESA DI RIVA | D84: 9266 | E84: 415060 | U84: 1390206 | V84: 1805266 | W84: 0.7700837439 | X84: 38252 | Y84: 340 | Z84: 73490 | AE84: 222420 | AF84: 165220 | AW84: 206470 | AY84: 556580 | AZ84: 7460 | BH84: 3220 | BI84: 260 | BK84: 880 | BP84: 320 | BQ84: 634 | BS84: 4380 | BT84: 4420 | BV84: 26900 | BW84: 3980 | BX84: 2120 | BZ84: 6380 | CC84: 15800 | CD84: 50680 | CE84: 1390206 | CF84: 1.058841815 | CG84: 0.243444946 | CH84: 0.8153968693 | CJ84: 2024-01-24T09:44:15
A85: 83 | B85: H842 | C85: ='Dati Generali CER 1 Sem. 2023'!C85 -> S. FILIPPO DEL MELA | D85: 6691 | E85: 348300 | R85: 43190 | U85: 889330 | V85: 1280820 | W85: 0.6943442482 | X85: 9600 | Z85: 23780 | AA85: 400 | AE85: 134460 | AF85: 91580 | AW85: 152370 | AY85: 407460 | AZ85: 6840 | BH85: 2600 | BI85: 190 | BP85: 80 | BQ85: 60 | BS85: 2850 | BT85: 4740 | BZ85: 35850 | CD85: 16470 | CE85: 889330 | CF85: 1.040349464 | CG85: 0.2829076046 | CH85: 0.7223606662 | CJ85: 2024-01-25T17:59:25
A86: 84 | B86: H8450 | C86: ='Dati Generali CER 1 Sem. 2023'!C86 -> SAN FRATELLO | D86: 3198 | E86: 93880 | U86: 285930 | V86: 379810 | W86: 0.7528237803 | AE86: 50500 | AF86: 52840 | AW86: 46420 | AY86: 116890 | CD86: 19280 | CE86: 285930 | CF86: 0.6454611578 | CG86: 0.1595426489 | CH86: 0.4859185089 | CJ86: 2024-01-29T08:13:46
A87: 85 | B87: H982 | C87: ='Dati Generali CER 1 Sem. 2023'!C87 -> SAN MARCO D'ALUNZIO | D87: 1817 | E87: 58020 | U87: 202800 | V87: 260820 | W87: 0.7775477341 | AA87: 25310 | AE87: 350 | AF87: 41330 | AW87: 40800 | AY87: 70590 | AZ87: 1610 | BT87: 2900 | BX87: 10600 | CD87: 9310 | CE87: 202800 | CF87: 0.7801320859 | CG87: 0.1735421502 | CH87: 0.6065899356 | CJ87: 2024-01-24T12:05:23
A88: 86 | B88: I084 | C88: ='Dati Generali CER 1 Sem. 2023'!C88 -> SAN PIER NICETO | D88: 2583 | E88: 180860 | U88: 333430 | V88: 514290 | W88: 0.6483307084 | X88: 129600 | AE88: 46980 | AF88: 36580 | AW88: 32700 | AY88: 71260 | AZ88: 5220 | BH88: 1810 | BI88: 170 | BS88: 1150 | BT88: 1040 | CD88: 6920 | CE88: 333430 | CF88: 1.082096147 | CG88: 0.3805399855 | CH88: 0.7015561615 | CJ88: 2024-01-25T13:07:29
A89: 87 | B89: I086 | C89: ='Dati Generali CER 1 Sem. 2023'!C89 -> SAN PIERO PATTI | D89: 2593 | E89: 103300 | U89: 433164 | V89: 536464 | W89: 0.8074428107 | X89: 144144 | Z89: 11060 | AE89: 39820 | AF89: 47800 | AW89: 31680 | AY89: 97740 | BI89: 400 | BT89: 3300 | BV89: 5720 | CC89: 7420 | CD89: 44080 | CE89: 433164 | CF89: 1.124398464 | CG89: 0.2165110079 | CH89: 0.9078874562 | CJ89: 2024-02-08T13:14:35
A90: 88 | B90: I147 | C90: ='Dati Generali CER 1 Sem. 2023'!C90 -> S. SALVAT. DI FITALIA | D90: 1119 | E90: 24020 | K90: 150 | U90: 130900 | V90: 154920 | W90: 0.8449522334 | Z90: 910 | AA90: 17360 | AF90: 23210 | AW90: 16010 | AY90: 53400 | AZ90: 7000 | BH90: 990 | BS90: 1500 | BZ90: 3600 | CD90: 6920 | CE90: 130900 | CF90: 0.7524186968 | CG90: 0.1166608385 | CH90: 0.6357578583 | CJ90: 2024-01-24T08:49:55
A91: 89 | B91: I328 | C91: ='Dati Generali CER 1 Sem. 2023'!C91 -> SAN TEODORO | D91: 1251 | E91: 62230 | U91: 121293 | V91: 183523 | W91: 0.6609144358 | AA91: 14750 | AF91: 24240 | AW91: 17550 | AY91: 53060 | AZ91: 9093 | BI91: 80 | CD91: 2520 | CE91: 121293 | CF91: 0.7972882564 | CG91: 0.2703489382 | CH91: 0.5269393181 | CJ91: 2024-01-24T09:41:41
A92: 90 | B92: I283 | C92: ='Dati Generali CER 1 Sem. 2023'!C92 -> S. ANGELO DI BROLO | D92: 2722 | E92: 63640 | U92: 417550 | V92: 481190 | W92: 0.86774455 | X92: 98400 | Z92: 11700 | AA92: 48280 | AF92: 71040 | AW92: 39840 | AY92: 113280 | AZ92: 4950 | BH92: 2560 | BI92: 5820 | BS92: 2190 | BT92: 1620 | BZ92: 2300 | CD92: 15570 | CE92: 417550 | CF92: 0.960750567 | CG92: 0.1270644986 | CH92: 0.8336860684 | CJ92: 2024-02-08T13:03:03
A93: 91 | B93: I215 | C93: ='Dati Generali CER 1 Sem. 2023'!C93 -> S. ALESSIO SICULO | D93: 1550 | E93: 257040 | U93: 319880 | V93: 576920 | W93: 0.5544616238 | AE93: 41500 | AF93: 54890 | AW93: 38660 | AY93: 141420 | BZ93: 16680 | CD93: 26730 | CE93: 319880 | CF93: 2.02286115 | CG93: 0.9012622721 | CH93: 1.121598878 | CJ93: 2024-04-11T15:56:15
A94: 92 | B94: I254 | C94: ='Dati Generali CER 1 Sem. 2023'!C94 -> SANTA MARINA SALINA | D94: 858 | E94: 288320 | U94: 157380 | V94: 445700 | W94: 0.3531074714 | AA94: 19620 | AB94: 4540 | AF94: 80480 | AW94: 36100 | BH94: 1800 | BS94: 350 | BT94: 2750 | BV94: 1760 | CD94: 9980 | CE94: 157380 | CF94: 2.823173204 | CG94: 1.826289652 | CH94: 0.9968835512 | CJ94: 2024-01-24T12:12:35
A95: 93 | B95: I420 | C95: ='Dati Generali CER 1 Sem. 2023'!C95 -> SAPONARA | D95: 3670 | E95: 101460 | K95: 4200 | U95: =IF(CE95=0,"",CE95) -> 534660 | V95: 636120 | W95: 0.8405017921 | AA95: 70850 | AC95: 6710 | AF95: 49150 | AW95: 108850 | AY95: 218340 | AZ95: 8720 | BH95: 2240 | BI95: 140 | BP95: 200 | BS95: 1960 | BV95: 17700 | BZ95: 35900 | CD95: 13900 | CE95: 534660 | CF95: 0.9420092406 | CG95: 0.1502487857 | CH95: 0.7917604549 | CJ95: 2024-01-24T09:59:35
A96: 94 | B96: I477 | C96: ='Dati Generali CER 1 Sem. 2023'!C96 -> SAVOCA | D96: 1715 | E96: 127080 | U96: 191930 | V96: 319010 | W96: 0.6016425817 | X96: 7760 | AE96: 33520 | AF96: 31330 | AW96: 27660 | AY96: 80920 | CD96: 10740 | CE96: 191930 | CF96: 1.010932945 | CG96: 0.4027126379 | CH96: 0.6082203068 | CJ96: 2024-02-08T13:18:26
A97: 95 | B97: I492 | C97: ='Dati Generali CER 1 Sem. 2023'!C97 -> SCALETTA ZANCLEA | D97: 1845 | E97: 96160 | U97: 209200 | V97: 305360 | W97: 0.685093005 | AE97: 33390 | AF97: 34510 | AJ97: 40 | AW97: 35240 | AY97: 85340 | AZ97: 5190 | BH97: 1060 | BI97: 230 | BK97: 240 | BS97: 800 | BT97: 1660 | CD97: 11500 | CE97: 209200 | CF97: 0.8994933428 | CG97: 0.2832567456 | CH97: 0.6162365971 | CJ97: 2024-04-03T11:35:41
A98: 96 | B98: I747 | C98: ='Dati Generali CER 1 Sem. 2023'!C98 -> SINAGRA | D98: 2462 | E98: 21640 | U98: 400730 | V98: 422370 | W98: 0.9487653006 | Y98: 20 | AA98: 58600 | AB98: 12680 | AF98: 70080 | AW98: 52120 | AY98: 155260 | AZ98: 12150 | BI98: 300 | BP98: 20 | BR98: 20 | CC98: 60 | CD98: 39420 | CE98: 400730 | CF98: 0.9323676403 | CG98: 0.04776957581 | CH98: 0.8845980645 | CJ98: 2024-01-24T12:15:19
A99: 97 | B99: I881 | C99: ='Dati Generali CER 1 Sem. 2023'!C99 -> SPADAFORA | D99: 4648 | E99: 349819 | U99: 663911 | V99: =IF(E99=0,"",SUM(U99,E99,R99,S99,T99)) -> 1013730 | W99: =IFERROR(IF(E99<>0,IF(U99=0,0,(U99/V99*100)/100),IF(U99=0,"","")),0) -> 0.6549189626 | AA99: 90660 | AF99: 88370 | AV99: 10750 | AW99: 101420 | AY99: 290210 | AZ99: 8980 | BH99: 2520 | BI99: 480 | BS99: 860 | BW99: 5970 | BZ99: 13140 | CD99: 50551 | CE99: =IF(SUM(X99:CD99)=0,"",SUM(X99:CD99)) -> 663911 | CF99: 1.18532749 | CG99: 0.4090340399 | CH99: =IF(SUM(Y99:CD99)=0,"",CE99/D99/184) -> 0.7762934502 | CJ99: 2024-01-24T12:24:44
A100: 98 | B100: L042 | C100: ='Dati Generali CER 1 Sem. 2023'!C100 -> TAORMINA | D100: 10499 | E100: 1433440 | I100: 300 | R100: 111920 | U100: 3687027 | V100: 5232387 | W100: 0.7046548736 | Y100: 15 | Z100: 323710 | AE100: 480680 | AF100: 993210 | AV100: 660 | AW100: 254100 | AY100: 1535360 | BH100: 720 | BI100: 400 | BP100: 180 | BR100: 112 | BS100: 560 | BT100: 120 | BW100: 1380 | BZ100: 56200 | CD100: 39620 | CE100: 3687027 | CF100: 2.7085328 | CG100: 0.742016838 | CH100: 1.908580838 | CJ100: 2024-01-29T08:16:47
A101: 99 | B101: M210 | C101: ='Dati Generali CER 1 Sem. 2023'!C101 -> TERME VIGLIATORE | D101: 7244 | E101: 401180 | U101: 1118510 | V101: 1519690 | W101: 0.7360119498 | X101: 25800 | Z101: 100250 | AE101: 164020 | AF101: 115630 | AW101: 102080 | AY101: 524740 | AZ101: 12100 | BH101: 1500 | BP101: 90 | BS101: 1150 | BT101: 1390 | BZ101: 63420 | CD101: 6340 | CE101: 1118510 | CF101: 1.140141466 | CG101: 0.3009837227 | CH101: 0.8391577437 | CJ101: 2024-02-12T09:25:15
A102: 100 | B102: L271 | C102: ='Dati Generali CER 1 Sem. 2023'!C102 -> TORREGROTTA | D102: 7297 | E102: 514760 | R102: 54420 | S102: 7789 | U102: 893453 | V102: 1470422 | W102: 0.607616725 | X102: 26467 | Z102: 53580 | AA102: 1800 | AE102: 117440 | AF102: 89940 | AW102: 139280 | AY102: 351760 | AZ102: 10045 | BH102: 4140 | BI102: 650 | BS102: 3620 | BT102: 5200 | BZ102: 48640 | CD102: 40891 | CE102: 893453 | CF102: =IF(SUM(E102)=0,"",V102/D102/184) -> 1.095165673 | CG102: 0.3833916261 | CH102: 0.6654409793 | CJ102: 2024-02-22T17:27:57
A103: 101 | B103: M286 | C103: ='Dati Generali CER 1 Sem. 2023'!C103 -> TORRENOVA | D103: 4512 | E103: 84240 | U103: 668349 | V103: 752589 | W103: 0.8880663948 | Z103: 71890 | AA103: 107430 | AE103: 700 | AF103: 97510 | AI103: 9 | AW103: 82870 | AY103: 283060 | AZ103: 100 | BG103: 40 | BH103: 1280 | BI103: 40 | BS103: 300 | BT103: 220 | CD103: 22900 | CE103: 668349 | CF103: 0.9065065622 | CG103: 0.1014685476 | CH103: 0.8050380146 | CJ103: 2024-03-07T10:01:51
A104: 102 | B104: L308 | C104: ='Dati Generali CER 1 Sem. 2023'!C104 -> TORTORICI | D104: 5629 | E104: 169460 | U104: 436746 | V104: 606206 | W104: 0.7204580621 | AA104: 89440 | AF104: 105020 | AW104: 90550 | AY104: 122200 | AZ104: 14356 | BI104: 200 | BP104: 400 | BT104: 3940 | CD104: 10640 | CE104: 436746 | CF104: 0.5852900739 | CG104: 0.1636131215 | CH104: 0.4216769524 | CJ104: 2024-02-12T08:48:23
A105: 103 | B105: L431 | C105: ='Dati Generali CER 1 Sem. 2023'!C105 -> TRIPI | D105: 748 | E105: 19210 | U105: 117992 | V105: 137202 | W105: 0.8599874637 | AE105: 12040 | AF105: 14040 | AW105: 10640 | AY105: 73792 | CD105: 7480 | CE105: 117992 | CF105: 0.9968757266 | CG105: 0.1395750988 | CH105: 0.8573006278 | CJ105: 2024-03-07T15:21:02
A106: 104 | B106: L478 | C106: ='Dati Generali CER 1 Sem. 2023'!C106 -> TUSA | D106: 2543 | E106: 135600 | U106: 442536 | V106: 578136 | W106: 0.7654531114 | X106: 12226 | AA106: 37900 | AF106: 80570 | AW106: 51460 | AY106: 199880 | AZ106: 3740 | BI106: 860 | BZ106: 11160 | CD106: 44740 | CE106: 442536 | CF106: 1.235565662 | CG106: 0.2897980817 | CH106: 0.9457675802 | CJ106: 2024-02-26T09:42:22
A107: 105 | B107: L482 | C107: ='Dati Generali CER 1 Sem. 2023'!C107 -> UCRIA | D107: 876 | E107: 30380 | U107: 128705 | V107: 159085 | W107: 0.8090329069 | X107: 34200 | Y107: 10 | AA107: 13610 | AF107: 19820 | AW107: 12440 | AY107: 37100 | AZ107: 3100 | BP107: 65 | BR107: 30 | BT107: 2760 | BW107: 140 | CC107: 110 | CD107: 5320 | CE107: 128705 | CF107: 0.9869776156 | CG107: 0.1884802462 | CH107: 0.7984973695 | CJ107: 2024-02-08T13:22:31
A108: 106 | B108: L561 | C108: ='Dati Generali CER 1 Sem. 2023'!C108 -> VALDINA | D108: 1258 | E108: 131540 | U108: 135460 | V108: 267000 | W108: 0.507340824 | AE108: 16340 | AF108: 20840 | AW108: 26060 | AY108: 66520 | CD108: 5700 | CE108: 135460 | CF108: 1.153487247 | CG108: 0.5682760766 | CH108: 0.5852111702 | CJ108: 2024-01-24T10:05:11
A109: 107 | B109: L735 | C109: ='Dati Generali CER 1 Sem. 2023'!C109 -> VENETICO | D109: 3969 | E109: 335100 | U109: 498818 | V109: 833918 | W109: 0.5981619296 | X109: 7398 | Z109: 10040 | AA109: 71600 | AF109: 72400 | AW109: 76320 | AY109: 246380 | BH109: 1460 | CD109: 13220 | CE109: 498818 | CF109: 1.141890412 | CG109: 0.4588550396 | CH109: 0.683035372 | CJ109: 2024-01-24T10:07:35
A110: 108 | B110: L950 | C110: ='Dati Generali CER 1 Sem. 2023'!C110 -> VILLAFRANCA TIRRENA | D110: 7918 | E110: 532000 | U110: 1287289.5 | V110: 1819289.5 | W110: 0.7075781507 | X110: 9198 | Z110: 154320 | AA110: 135504 | AF110: 152660 | AW110: 133160 | AY110: 459000 | AZ110: 37210 | BH110: 4100 | BI110: 2900 | BP110: 117.5 | BS110: 4600 | BT110: 1380 | BV110: 68640 | BZ110: 85360 | CD110: 39140 | CE110: 1287289.5 | CF110: 1.248729848 | CG110: 0.3651558914 | CH110: 0.8835739564 | CJ110: 2024-02-13T15:07:46
C111: T O T A L I | D111: =SUM(D3:D110) -> 598165 | E111: =SUM(E3:E110) -> 46331040 | F111: 46710 | G111: 190 | H111: 0 | I111: 300 | J111: 0 | K111: 25410 | L111: 3070 | M111: 2760 | N111: 0 | O111: 0 | P111: 0 | Q111: 0 | R111: 215490 | S111: 14561 | T111: 0 | U111: 86390718.5 | V111: =SUM(U111,E111) -> 132721758.5 | W111: =IF(CE111=0,"",(U111/V111*100)/100) -> 0.6509160177 | X111: =SUM(X3:X110) -> 1703126 | Y111: =SUM(Y3:Y110) -> 3392 | Z111: =SUM(Z3:Z110) -> 5824810 | AA111: 3738627 | AB111: 65580 | AC111: 63010 | AD111: 0 | AE111: 7662210 | AF111: 12212080 | AG111: 0 | AH111: 0 | AI111: 909 | AJ111: 27380 | AK111: 0 | AL111: 0 | AM111: 0 | AN111: 0 | AO111: 0 | AP111: 1940 | AQ111: 0 | AR111: 2510 | AS111: 0 | AT111: 0 | AU111: =SUM(AU3:AU110) -> 150000 | AV111: =SUM(AV3:AV110) -> 169530 | AW111: 10038431 | AX111: 85690 | AY111: 33510122 | AZ111: 837711 | BA111: 19028 | BB111: 0 | BC111: 0 | BD111: 0 | BE111: 0 | BF111: 0 | BG111: 2310 | BH111: 302790 | BI111: 39771 | BJ111: 1475 | BK111: 20520 | BL111: 0 | BM111: 0 | BN111: 0 | BO111: 0 | BP111: 17949.5 | BQ111: 25950 | BR111: 3382 | BS111: 251580 | BT111: 457140 | BU111: 0 | BV111: 1856081 | BW111: 74820 | BX111: 441099 | BY111: 0 | BZ111: 2677570 | CA111: 0 | CB111: 0 | CC111: =SUM(CC3:CC110) -> 906310 | CD111: 3195885 | CE111: =SUM(CE3:CE110) -> 86390718.5

Sheet Riep. Dati RSU e RD 2 Sem. 2023
B3: CITTA' METROPOLITANA DI MESSINA
B4: DATI RIFIUTI SOLIDI URBANI E RACCOLTA DIFFERENZIATA
B5: SECONDO SEMESTRE ANNO 2023
A6: ='Dati Generali CER 2 Sem. 2023'!A2 -> 108 | B6: COMUNE | C6: QUANTITA' (KG) | D6: QUANTITA' (KG) | E6: PERCENTUALE | F6: RSU+RSA+RD | G6: RSU+RSA | H6: R.D. | I6: ='Dati Generali CER 2 Sem. 2023'!D2 -> ABITANTI AL 31/12/2023
C7: R.S.U. (Cod.200301) | D7: RACCOLTA | E7: RACCOLTA | F7: R.T. (Kg.) | G7: 200301 (kg.) | H7: (Kg.)
C8: PRODOTTI | D8: DIFFERENZIATA | E8: DIFFERENZIATA | F8: Pro Capite/g | G8: RI Pro Capite/g | H8: Pro Capite/g
B9: CTRL + "q" per ordinare in % | D9: CTRL + "w" per Alfabetico
A10: 1 | B10: ='Dati Generali CER 1 Sem. 2023'!C3 -> ACQUEDOLCI | C10: =IF('Dati Generali CER 2 Sem. 2023'!E3="","",'Dati Generali CER 2 Sem. 2023'!E3) -> 162700 | D10: =IF(C10="","",'Dati Generali CER 2 Sem. 2023'!CE3) -> 782690 | E10: ='Dati Generali CER 2 Sem. 2023'!W3 -> 0.8279017125 | F10: =IF('Dati Generali CER 2 Sem. 2023'!CF3="","",'Dati Generali CER 2 Sem. 2023'!CF3) -> 0.9346896726 | G10: =IF('Dati Generali CER 2 Sem. 2023'!CG3="","",'Dati Generali CER 2 Sem. 2023'!CG3) -> 0.160858492 | H10: =IF('Dati Generali CER 2 Sem. 2023'!CH3="","",'Dati Generali CER 2 Sem. 2023'!CH3) -> 0.7738311806 | I10: ='Dati Generali CER 2 Sem. 2023'!D3 -> 5497 | J10: =IF('Dati Generali CER 2 Sem. 2023'!CJ3="","",'Dati Generali CER 2 Sem. 2023'!CJ3) -> 2024-01-24T11:12:36
A11: 2 | B11: ='Dati Generali CER 1 Sem. 2023'!C4 -> ALCARA LI FUSI | C11: =IF('Dati Generali CER 2 Sem. 2023'!E4="","",'Dati Generali CER 2 Sem. 2023'!E4) -> 41140 | D11: =IF(C11="","",'Dati Generali CER 2 Sem. 2023'!CE4) -> 165235 | E11: ='Dati Generali CER 2 Sem. 2023'!W4 -> 0.800654149 | F11: =IF('Dati Generali CER 2 Sem. 2023'!CF4="","",'Dati Generali CER 2 Sem. 2023'!CF4) -> 0.6777058978 | G11: =IF('Dati Generali CER 2 Sem. 2023'!CG4="","",'Dati Generali CER 2 Sem. 2023'!CG4) -> 0.1350978589 | H11: =IF('Dati Generali CER 2 Sem. 2023'!CH4="","",'Dati Generali CER 2 Sem. 2023'!CH4) -> 0.5426080389 | I11: ='Dati Generali CER 2 Sem. 2023'!D4 -> 1655 | J11: =IF('Dati Generali CER 2 Sem. 2023'!CJ4="","",'Dati Generali CER 2 Sem. 2023'!CJ4) -> 2024-01-23T14:04:28
A12: 3 | B12: ='Dati Generali CER 1 Sem. 2023'!C5 -> ALI' | C12: =IF('Dati Generali CER 2 Sem. 2023'!E5="","",'Dati Generali CER 2 Sem. 2023'!E5) -> 17010 | D12: =IF(C12="","",'Dati Generali CER 2 Sem. 2023'!CE5) -> 37721 | E12: ='Dati Generali CER 2 Sem. 2023'!W5 -> 0.6892072135 | F12: =IF('Dati Generali CER 2 Sem. 2023'!CF5="","",'Dati Generali CER 2 Sem. 2023'!CF5) -> 0.4721445825 | G12: =IF('Dati Generali CER 2 Sem. 2023'!CG5="","",'Dati Generali CER 2 Sem. 2023'!CG5) -> 0.1467391304 | H12: =IF('Dati Generali CER 2 Sem. 2023'!CH5="","",'Dati Generali CER 2 Sem. 2023'!CH5) -> 0.325405452 | I12: ='Dati Generali CER 2 Sem. 2023'!D5 -> 630 | J12: =IF('Dati Generali CER 2 Sem. 2023'!CJ5="","",'Dati Generali CER 2 Sem. 2023'!CJ5) -> 2024-01-23T14:32:02
A13: 4 | B13: ='Dati Generali CER 1 Sem. 2023'!C6 -> ALI' TERME | C13: =IF('Dati Generali CER 2 Sem. 2023'!E6="","",'Dati Generali CER 2 Sem. 2023'!E6) -> 108560 | D13: =IF(C13="","",'Dati Generali CER 2 Sem. 2023'!CE6) -> 314425 | E13: ='Dati Generali CER 2 Sem. 2023'!W6 -> 0.7433478729 | F13: =IF('Dati Generali CER 2 Sem. 2023'!CF6="","",'Dati Generali CER 2 Sem. 2023'!CF6) -> 0.9930157761 | G13: =IF('Dati Generali CER 2 Sem. 2023'!CG6="","",'Dati Generali CER 2 Sem. 2023'!CG6) -> 0.2548596112 | H13: =IF('Dati Generali CER 2 Sem. 2023'!CH6="","",'Dati Generali CER 2 Sem. 2023'!CH6) -> 0.7381561649 | I13: ='Dati Generali CER 2 Sem. 2023'!D6 -> 2315 | J13: =IF('Dati Generali CER 2 Sem. 2023'!CJ6="","",'Dati Generali CER 2 Sem. 2023'!CJ6) -> 2024-02-22T14:28:29
A14: 5 | B14: ='Dati Generali CER 1 Sem. 2023'!C7 -> ANTILLO | C14: =IF('Dati Generali CER 2 Sem. 2023'!E7="","",'Dati Generali CER 2 Sem. 2023'!E7) -> 17020 | D14: =IF(C14="","",'Dati Generali CER 2 Sem. 2023'!CE7) -> 90025 | E14: ='Dati Generali CER 2 Sem. 2023'!W7 -> 0.841001448 | F14: =IF('Dati Generali CER 2 Sem. 2023'!CF7="","",'Dati Generali CER 2 Sem. 2023'!CF7) -> 0.7317815149 | G14: =IF('Dati Generali CER 2 Sem. 2023'!CG7="","",'Dati Generali CER 2 Sem. 2023'!CG7) -> 0.1163522013 | H14: =IF('Dati Generali CER 2 Sem. 2023'!CH7="","",'Dati Generali CER 2 Sem. 2023'!CH7) -> 0.6154293136 | I14: ='Dati Generali CER 2 Sem. 2023'!D7 -> 795 | J14: =IF('Dati Generali CER 2 Sem. 2023'!CJ7="","",'Dati Generali CER 2 Sem. 2023'!CJ7) -> 2024-03-07T15:15:06
A15: 6 | B15: ='Dati Generali CER 1 Sem. 2023'!C8 -> BARCELLONA P.G. | C15: =IF('Dati Generali CER 2 Sem. 2023'!E8="","",'Dati Generali CER 2 Sem. 2023'!E8) -> 2402620 | D15: =IF(C15="","",'Dati Generali CER 2 Sem. 2023'!CE8) -> 5795795 | E15: ='Dati Generali CER 2 Sem. 2023'!W8 -> 0.7069409148 | F15: =IF('Dati Generali CER 2 Sem. 2023'!CF8="","",'Dati Generali CER 2 Sem. 2023'!CF8) -> 1.117322916 | G15: =IF('Dati Generali CER 2 Sem. 2023'!CG8="","",'Dati Generali CER 2 Sem. 2023'!CG8) -> 0.3274416318 | H15: =IF('Dati Generali CER 2 Sem. 2023'!CH8="","",'Dati Generali CER 2 Sem. 2023'!CH8) -> 0.7898812847 | I15: ='Dati Generali CER 2 Sem. 2023'!D8 -> 39878 | J15: =IF('Dati Generali CER 2 Sem. 2023'!CJ8="","",'Dati Generali CER 2 Sem. 2023'!CJ8) -> 2024-02-05T10:16:09
A16: 7 | B16: ='Dati Generali CER 1 Sem. 2023'!C9 -> BASICO' | C16: =IF('Dati Generali CER 2 Sem. 2023'!E9="","",'Dati Generali CER 2 Sem. 2023'!E9) -> 43660 | D16: =IF(C16="","",'Dati Generali CER 2 Sem. 2023'!CE9) -> 64050 | E16: ='Dati Generali CER 2 Sem. 2023'!W9 -> 0.5946523071 | F16: =IF('Dati Generali CER 2 Sem. 2023'!CF9="","",'Dati Generali CER 2 Sem. 2023'!CF9) -> 0.9233129886 | G16: =IF('Dati Generali CER 2 Sem. 2023'!CG9="","",'Dati Generali CER 2 Sem. 2023'!CG9) -> 0.3742627897 | H16: =IF('Dati Generali CER 2 Sem. 2023'!CH9="","",'Dati Generali CER 2 Sem. 2023'!CH9) -> 0.5490501989 | I16: ='Dati Generali CER 2 Sem. 2023'!D9 -> 634 | J16: =IF('Dati Generali CER 2 Sem. 2023'!CJ9="","",'Dati Generali CER 2 Sem. 2023'!CJ9) -> 2024-02-26T10:33:31
A17: 8 | B17: ='Dati Generali CER 1 Sem. 2023'!C10 -> BROLO | C17: =IF('Dati Generali CER 2 Sem. 2023'!E10="","",'Dati Generali CER 2 Sem. 2023'!E10) -> 353340 | D17: =IF(C17="","",'Dati Generali CER 2 Sem. 2023'!CE10) -> 1069030 | E17: ='Dati Generali CER 2 Sem. 2023'!W10 -> 0.7515836245 | F17: =IF('Dati Generali CER 2 Sem. 2023'!CF10="","",'Dati Generali CER 2 Sem. 2023'!CF10) -> 1.346971901 | G17: =IF('Dati Generali CER 2 Sem. 2023'!CG10="","",'Dati Generali CER 2 Sem. 2023'!CG10) -> 0.3346098775 | H17: =IF('Dati Generali CER 2 Sem. 2023'!CH10="","",'Dati Generali CER 2 Sem. 2023'!CH10) -> 1.012362023 | I17: ='Dati Generali CER 2 Sem. 2023'!D10 -> 5739 | J17: =IF('Dati Generali CER 2 Sem. 2023'!CJ10="","",'Dati Generali CER 2 Sem. 2023'!CJ10) -> 2024-01-17T08:13:56
A18: 9 | B18: ='Dati Generali CER 1 Sem. 2023'!C11 -> CAPIZZI | C18: =IF('Dati Generali CER 2 Sem. 2023'!E11="","",'Dati Generali CER 2 Sem. 2023'!E11) -> 150456 | D18: =IF(C18="","",'Dati Generali CER 2 Sem. 2023'!CE11) -> 238780 | E18: ='Dati Generali CER 2 Sem. 2023'!W11 -> 0.6134581591 | F18: =IF('Dati Generali CER 2 Sem. 2023'!CF11="","",'Dati Generali CER 2 Sem. 2023'!CF11) -> 0.7514788787 | G18: =IF('Dati Generali CER 2 Sem. 2023'!CG11="","",'Dati Generali CER 2 Sem. 2023'!CG11) -> 0.2904780292 | H18: =IF('Dati Generali CER 2 Sem. 2023'!CH11="","",'Dati Generali CER 2 Sem. 2023'!CH11) -> 0.4610008495 | I18: ='Dati Generali CER 2 Sem. 2023'!D11 -> 2815 | J18: =IF('Dati Generali CER 2 Sem. 2023'!CJ11="","",'Dati Generali CER 2 Sem. 2023'!CJ11) -> 2024-01-31T10:44:34
A19: 10 | B19: ='Dati Generali CER 1 Sem. 2023'!C12 -> CAPO D'ORLANDO | C19: =IF('Dati Generali CER 2 Sem. 2023'!E12="","",'Dati Generali CER 2 Sem. 2023'!E12) -> 499700 | D19: =IF(C19="","",'Dati Generali CER 2 Sem. 2023'!CE12) -> 3036240 | E19: ='Dati Generali CER 2 Sem. 2023'!W12 -> 0.8586797287 | F19: =IF('Dati Generali CER 2 Sem. 2023'!CF12="","",'Dati Generali CER 2 Sem. 2023'!CF12) -> 1.466391852 | G19: =IF('Dati Generali CER 2 Sem. 2023'!CG12="","",'Dati Generali CER 2 Sem. 2023'!CG12) -> 0.2072308943 | H19: =IF('Dati Generali CER 2 Sem. 2023'!CH12="","",'Dati Generali CER 2 Sem. 2023'!CH12) -> 1.259160957 | I19: ='Dati Generali CER 2 Sem. 2023'!D12 -> 13105 | J19: =IF('Dati Generali CER 2 Sem. 2023'!CJ12="","",'Dati Generali CER 2 Sem. 2023'!CJ12) -> 2024-02-01T14:28:46
A20: 11 | B20: ='Dati Generali CER 1 Sem. 2023'!C13 -> CAPRILEONE | C20: =IF('Dati Generali CER 2 Sem. 2023'!E13="","",'Dati Generali CER 2 Sem. 2023'!E13) -> 58400 | D20: =IF(C20="","",'Dati Generali CER 2 Sem. 2023'!CE13) -> 610060 | E20: ='Dati Generali CER 2 Sem. 2023'!W13 -> 0.9126350118 | F20: =IF('Dati Generali CER 2 Sem. 2023'!CF13="","",'Dati Generali CER 2 Sem. 2023'!CF13) -> 0.8328598768 | G20: =IF('Dati Generali CER 2 Sem. 2023'!CG13="","",'Dati Generali CER 2 Sem. 2023'!CG13) -> 0.07276279329 | H20: =IF('Dati Generali CER 2 Sem. 2023'!CH13="","",'Dati Generali CER 2 Sem. 2023'!CH13) -> 0.7600970835 | I20: ='Dati Generali CER 2 Sem. 2023'!D13 -> 4362 | J20: =IF('Dati Generali CER 2 Sem. 2023'!CJ13="","",'Dati Generali CER 2 Sem. 2023'!CJ13) -> 2024-02-05T11:26:47
A21: 12 | B21: ='Dati Generali CER 1 Sem. 2023'!C14 -> CARONIA | C21: =IF('Dati Generali CER 2 Sem. 2023'!E14="","",'Dati Generali CER 2 Sem. 2023'!E14) -> 249520 | D21: =IF(C21="","",'Dati Generali CER 2 Sem. 2023'!CE14) -> 445783 | E21: ='Dati Generali CER 2 Sem. 2023'!W14 -> 0.6411348721 | F21: =IF('Dati Generali CER 2 Sem. 2023'!CF14="","",'Dati Generali CER 2 Sem. 2023'!CF14) -> 1.258348536 | G21: =IF('Dati Generali CER 2 Sem. 2023'!CG14="","",'Dati Generali CER 2 Sem. 2023'!CG14) -> 0.4515774081 | H21: =IF('Dati Generali CER 2 Sem. 2023'!CH14="","",'Dati Generali CER 2 Sem. 2023'!CH14) -> 0.8067711274 | I21: ='Dati Generali CER 2 Sem. 2023'!D14 -> 3003 | J21: =IF('Dati Generali CER 2 Sem. 2023'!CJ14="","",'Dati Generali CER 2 Sem. 2023'!CJ14) -> 
A22: 13 | B22: ='Dati Generali CER 1 Sem. 2023'!C15 -> CASALVECCHIO SICULO | C22: =IF('Dati Generali CER 2 Sem. 2023'!E15="","",'Dati Generali CER 2 Sem. 2023'!E15) -> 25240 | D22: =IF(C22="","",'Dati Generali CER 2 Sem. 2023'!CE15) -> 75090 | E22: ='Dati Generali CER 2 Sem. 2023'!W15 -> 0.7484301804 | F22: =IF('Dati Generali CER 2 Sem. 2023'!CF15="","",'Dati Generali CER 2 Sem. 2023'!CF15) -> 0.7636859091 | G22: =IF('Dati Generali CER 2 Sem. 2023'!CG15="","",'Dati Generali CER 2 Sem. 2023'!CG15) -> 0.1921203264 | H22: =IF('Dati Generali CER 2 Sem. 2023'!CH15="","",'Dati Generali CER 2 Sem. 2023'!CH15) -> 0.5715655828 | I22: ='Dati Generali CER 2 Sem. 2023'!D15 -> 714 | J22: =IF('Dati Generali CER 2 Sem. 2023'!CJ15="","",'Dati Generali CER 2 Sem. 2023'!CJ15) -> 2024-01-31T10:55:32
A23: 14 | B23: ='Dati Generali CER 1 Sem. 2023'!C16 -> CASTEL DI LUCIO | C23: =IF('Dati Generali CER 2 Sem. 2023'!E16="","",'Dati Generali CER 2 Sem. 2023'!E16) -> 13680 | D23: =IF(C23="","",'Dati Generali CER 2 Sem. 2023'!CE16) -> 130930 | E23: ='Dati Generali CER 2 Sem. 2023'!W16 -> 0.905400733 | F23: =IF('Dati Generali CER 2 Sem. 2023'!CF16="","",'Dati Generali CER 2 Sem. 2023'!CF16) -> 0.5931501231 | G23: =IF('Dati Generali CER 2 Sem. 2023'!CG16="","",'Dati Generali CER 2 Sem. 2023'!CG16) -> 0.05611156686 | H23: =IF('Dati Generali CER 2 Sem. 2023'!CH16="","",'Dati Generali CER 2 Sem. 2023'!CH16) -> 0.5370385562 | I23: ='Dati Generali CER 2 Sem. 2023'!D16 -> 1325 | J23: =IF('Dati Generali CER 2 Sem. 2023'!CJ16="","",'Dati Generali CER 2 Sem. 2023'!CJ16) -> 2024-03-08T16:16:48
A24: 15 | B24: ='Dati Generali CER 1 Sem. 2023'!C17 -> CASTELL'UMBERTO | C24: =IF('Dati Generali CER 2 Sem. 2023'!E17="","",'Dati Generali CER 2 Sem. 2023'!E17) -> 85300 | D24: =IF(C24="","",'Dati Generali CER 2 Sem. 2023'!CE17) -> 307780 | E24: ='Dati Generali CER 2 Sem. 2023'!W17 -> 0.7829958278 | F24: =IF('Dati Generali CER 2 Sem. 2023'!CF17="","",'Dati Generali CER 2 Sem. 2023'!CF17) -> 0.7583615008 | G24: =IF('Dati Generali CER 2 Sem. 2023'!CG17="","",'Dati Generali CER 2 Sem. 2023'!CG17) -> 0.1645676097 | H24: =IF('Dati Generali CER 2 Sem. 2023'!CH17="","",'Dati Generali CER 2 Sem. 2023'!CH17) -> 0.5937938911 | I24: ='Dati Generali CER 2 Sem. 2023'!D17 -> 2817 | J24: =IF('Dati Generali CER 2 Sem. 2023'!CJ17="","",'Dati Generali CER 2 Sem. 2023'!CJ17) -> 2024-04-03T10:38:45
A25: 16 | B25: ='Dati Generali CER 1 Sem. 2023'!C18 -> CASTELMOLA | C25: =IF('Dati Generali CER 2 Sem. 2023'!E18="","",'Dati Generali CER 2 Sem. 2023'!E18) -> 46710 | D25: =IF(C25="","",'Dati Generali CER 2 Sem. 2023'!CE18) -> 158370 | E25: ='Dati Generali CER 2 Sem. 2023'!W18 -> 0.7722352253 | F25: =IF('Dati Generali CER 2 Sem. 2023'!CF18="","",'Dati Generali CER 2 Sem. 2023'!CF18) -> 1.043600391 | G25: =IF('Dati Generali CER 2 Sem. 2023'!CG18="","",'Dati Generali CER 2 Sem. 2023'!CG18) -> 0.2376954079 | H25: =IF('Dati Generali CER 2 Sem. 2023'!CH18="","",'Dati Generali CER 2 Sem. 2023'!CH18) -> 0.8059049829 | I25: ='Dati Generali CER 2 Sem. 2023'!D18 -> 1068 | J25: =IF('Dati Generali CER 2 Sem. 2023'!CJ18="","",'Dati Generali CER 2 Sem. 2023'!CJ18) -> 
A26: 17 | B26: ='Dati Generali CER 1 Sem. 2023'!C19 -> CASTROREALE | C26: =IF('Dati Generali CER 2 Sem. 2023'!E19="","",'Dati Generali CER 2 Sem. 2023'!E19) -> 73320 | D26: =IF(C26="","",'Dati Generali CER 2 Sem. 2023'!CE19) -> 255678 | E26: ='Dati Generali CER 2 Sem. 2023'!W19 -> 0.7771415024 | F26: =IF('Dati Generali CER 2 Sem. 2023'!CF19="","",'Dati Generali CER 2 Sem. 2023'!CF19) -> 0.7897670533 | G26: =IF('Dati Generali CER 2 Sem. 2023'!CG19="","",'Dati Generali CER 2 Sem. 2023'!CG19) -> 0.176006299 | H26: =IF('Dati Generali CER 2 Sem. 2023'!CH19="","",'Dati Generali CER 2 Sem. 2023'!CH19) -> 0.6137607543 | I26: ='Dati Generali CER 2 Sem. 2023'!D19 -> 2264 | J26: =IF('Dati Generali CER 2 Sem. 2023'!CJ19="","",'Dati Generali CER 2 Sem. 2023'!CJ19) -> 2024-01-23T17:19:05
A27: 18 | B27: ='Dati Generali CER 1 Sem. 2023'!C20 -> CESARO' | C27: =IF('Dati Generali CER 2 Sem. 2023'!E20="","",'Dati Generali CER 2 Sem. 2023'!E20) -> 104050 | D27: =IF(C27="","",'Dati Generali CER 2 Sem. 2023'!CE20) -> 180512 | E27: ='Dati Generali CER 2 Sem. 2023'!W20 -> 0.6343503349 | F27: =IF('Dati Generali CER 2 Sem. 2023'!CF20="","",'Dati Generali CER 2 Sem. 2023'!CF20) -> 0.7315669861 | G27: =IF('Dati Generali CER 2 Sem. 2023'!CG20="","",'Dati Generali CER 2 Sem. 2023'!CG20) -> 0.2674972235 | H27: =IF('Dati Generali CER 2 Sem. 2023'!CH20="","",'Dati Generali CER 2 Sem. 2023'!CH20) -> 0.4640697627 | I27: ='Dati Generali CER 2 Sem. 2023'!D20 -> 2114 | J27: =IF('Dati Generali CER 2 Sem. 2023'!CJ20="","",'Dati Generali CER 2 Sem. 2023'!CJ20) -> 2024-01-24T11:17:11
A28: 19 | B28: ='Dati Generali CER 1 Sem. 2023'!C21 -> CONDRO' | C28: =IF('Dati Generali CER 2 Sem. 2023'!E21="","",'Dati Generali CER 2 Sem. 2023'!E21) -> 32580 | D28: =IF(C28="","",'Dati Generali CER 2 Sem. 2023'!CE21) -> 43200 | E28: ='Dati Generali CER 2 Sem. 2023'!W21 -> 0.5700712589 | F28: =IF('Dati Generali CER 2 Sem. 2023'!CF21="","",'Dati Generali CER 2 Sem. 2023'!CF21) -> 0.8598075701 | G28: =IF('Dati Generali CER 2 Sem. 2023'!CG21="","",'Dati Generali CER 2 Sem. 2023'!CG21) -> 0.3696559862 | H28: =IF('Dati Generali CER 2 Sem. 2023'!CH21="","",'Dati Generali CER 2 Sem. 2023'!CH21) -> 0.4901515839 | I28: ='Dati Generali CER 2 Sem. 2023'!D21 -> 479 | J28: =IF('Dati Generali CER 2 Sem. 2023'!CJ21="","",'Dati Generali CER 2 Sem. 2023'!CJ21) -> 2024-01-16T12:35:20
A29: 20 | B29: ='Dati Generali CER 1 Sem. 2023'!C22 -> FALCONE | C29: =IF('Dati Generali CER 2 Sem. 2023'!E22="","",'Dati Generali CER 2 Sem. 2023'!E22) -> 227220 | D29: =IF(C29="","",'Dati Generali CER 2 Sem. 2023'!CE22) -> 451520 | E29: ='Dati Generali CER 2 Sem. 2023'!W22 -> 0.6652326369 | F29: =IF('Dati Generali CER 2 Sem. 2023'!CF22="","",'Dati Generali CER 2 Sem. 2023'!CF22) -> 1.308550673 | G29: =IF('Dati Generali CER 2 Sem. 2023'!CG22="","",'Dati Generali CER 2 Sem. 2023'!CG22) -> 0.4380600583 | H29: =IF('Dati Generali CER 2 Sem. 2023'!CH22="","",'Dati Generali CER 2 Sem. 2023'!CH22) -> 0.8704906149 | I29: ='Dati Generali CER 2 Sem. 2023'!D22 -> 2819 | J29: =IF('Dati Generali CER 2 Sem. 2023'!CJ22="","",'Dati Generali CER 2 Sem. 2023'!CJ22) -> 2024-03-12T14:21:08
A30: 21 | B30: ='Dati Generali CER 1 Sem. 2023'!C23 -> FICARRA | C30: =IF('Dati Generali CER 2 Sem. 2023'!E23="","",'Dati Generali CER 2 Sem. 2023'!E23) -> 40900 | D30: =IF(C30="","",'Dati Generali CER 2 Sem. 2023'!CE23) -> 188220 | E30: ='Dati Generali CER 2 Sem. 2023'!W23 -> 0.8214909218 | F30: =IF('Dati Generali CER 2 Sem. 2023'!CF23="","",'Dati Generali CER 2 Sem. 2023'!CF23) -> 0.9667836889 | G30: =IF('Dati Generali CER 2 Sem. 2023'!CG23="","",'Dati Generali CER 2 Sem. 2023'!CG23) -> 0.1725796651 | H30: =IF('Dati Generali CER 2 Sem. 2023'!CH23="","",'Dati Generali CER 2 Sem. 2023'!CH23) -> 0.7942040238 | I30: ='Dati Generali CER 2 Sem. 2023'!D23 -> 1288 | J30: =IF('Dati Generali CER 2 Sem. 2023'!CJ23="","",'Dati Generali CER 2 Sem. 2023'!CJ23) -> 2024-01-23T17:31:16
A31: 22 | B31: ='Dati Generali CER 1 Sem. 2023'!C24 -> FIUMEDINISI | C31: =IF('Dati Generali CER 2 Sem. 2023'!E24="","",'Dati Generali CER 2 Sem. 2023'!E24) -> 38140 | D31: =IF(C31="","",'Dati Generali CER 2 Sem. 2023'!CE24) -> 117317 | E31: ='Dati Generali CER 2 Sem. 2023'!W24 -> 0.7546588446 | F31: =IF('Dati Generali CER 2 Sem. 2023'!CF24="","",'Dati Generali CER 2 Sem. 2023'!CF24) -> 0.6319184742 | G31: =IF('Dati Generali CER 2 Sem. 2023'!CG24="","",'Dati Generali CER 2 Sem. 2023'!CG24) -> 0.1550356086 | H31: =IF('Dati Generali CER 2 Sem. 2023'!CH24="","",'Dati Generali CER 2 Sem. 2023'!CH24) -> 0.4768828656 | I31: ='Dati Generali CER 2 Sem. 2023'!D24 -> 1337 | J31: =IF('Dati Generali CER 2 Sem. 2023'!CJ24="","",'Dati Generali CER 2 Sem. 2023'!CJ24) -> 2024-03-14T14:04:36
A32: 23 | B32: ='Dati Generali CER 1 Sem. 2023'!C25 -> FLORESTA | C32: =IF('Dati Generali CER 2 Sem. 2023'!E25="","",'Dati Generali CER 2 Sem. 2023'!E25) -> 35680 | D32: =IF(C32="","",'Dati Generali CER 2 Sem. 2023'!CE25) -> 58425 | E32: ='Dati Generali CER 2 Sem. 2023'!W25 -> 0.6208490516 | F32: =IF('Dati Generali CER 2 Sem. 2023'!CF25="","",'Dati Generali CER 2 Sem. 2023'!CF25) -> 1.076716247 | G32: =IF('Dati Generali CER 2 Sem. 2023'!CG25="","",'Dati Generali CER 2 Sem. 2023'!CG25) -> 0.4082379863 | H32: =IF('Dati Generali CER 2 Sem. 2023'!CH25="","",'Dati Generali CER 2 Sem. 2023'!CH25) -> 0.6684782609 | I32: ='Dati Generali CER 2 Sem. 2023'!D25 -> 475 | J32: =IF('Dati Generali CER 2 Sem. 2023'!CJ25="","",'Dati Generali CER 2 Sem. 2023'!CJ25) -> 2024-01-24T11:22:30
A33: 24 | B33: ='Dati Generali CER 1 Sem. 2023'!C26 -> FONDACHELLI FANTINA | C33: =IF('Dati Generali CER 2 Sem. 2023'!E26="","",'Dati Generali CER 2 Sem. 2023'!E26) -> 71920 | D33: =IF(C33="","",'Dati Generali CER 2 Sem. 2023'!CE26) -> 47460 | E33: ='Dati Generali CER 2 Sem. 2023'!W26 -> 0.3975540292 | F33: =IF('Dati Generali CER 2 Sem. 2023'!CF26="","",'Dati Generali CER 2 Sem. 2023'!CF26) -> 0.5914351393 | G33: =IF('Dati Generali CER 2 Sem. 2023'!CG26="","",'Dati Generali CER 2 Sem. 2023'!CG26) -> 0.3563077167 | H33: =IF('Dati Generali CER 2 Sem. 2023'!CH26="","",'Dati Generali CER 2 Sem. 2023'!CH26) -> 0.2351274226 | I33: ='Dati Generali CER 2 Sem. 2023'!D26 -> 1097 | J33: =IF('Dati Generali CER 2 Sem. 2023'!CJ26="","",'Dati Generali CER 2 Sem. 2023'!CJ26) -> 2024-03-08T15:51:06
A34: 25 | B34: ='Dati Generali CER 1 Sem. 2023'!C27 -> FORZA D'AGRO' | C34: =IF('Dati Generali CER 2 Sem. 2023'!E27="","",'Dati Generali CER 2 Sem. 2023'!E27) -> 74460 | D34: =IF(C34="","",'Dati Generali CER 2 Sem. 2023'!CE27) -> 187570 | E34: ='Dati Generali CER 2 Sem. 2023'!W27 -> 0.7158340648 | F34: =IF('Dati Generali CER 2 Sem. 2023'!CF27="","",'Dati Generali CER 2 Sem. 2023'!CF27) -> 1.685297144 | G34: =IF('Dati Generali CER 2 Sem. 2023'!CG27="","",'Dati Generali CER 2 Sem. 2023'!CG27) -> 0.4789040391 | H34: =IF('Dati Generali CER 2 Sem. 2023'!CH27="","",'Dati Generali CER 2 Sem. 2023'!CH27) -> 1.206393105 | I34: ='Dati Generali CER 2 Sem. 2023'!D27 -> 845 | J34: =IF('Dati Generali CER 2 Sem. 2023'!CJ27="","",'Dati Generali CER 2 Sem. 2023'!CJ27) -> 2024-02-26T09:41:03
A35: 26 | B35: ='Dati Generali CER 1 Sem. 2023'!C28 -> FRANCAVILLA DI SICILIA | C35: =IF('Dati Generali CER 2 Sem. 2023'!E28="","",'Dati Generali CER 2 Sem. 2023'!E28) -> 188920 | D35: =IF(C35="","",'Dati Generali CER 2 Sem. 2023'!CE28) -> 627854 | E35: ='Dati Generali CER 2 Sem. 2023'!W28 -> 0.7686997872 | F35: =IF('Dati Generali CER 2 Sem. 2023'!CF28="","",'Dati Generali CER 2 Sem. 2023'!CF28) -> 1.260002592 | G35: =IF('Dati Generali CER 2 Sem. 2023'!CG28="","",'Dati Generali CER 2 Sem. 2023'!CG28) -> 0.2914388676 | H35: =IF('Dati Generali CER 2 Sem. 2023'!CH28="","",'Dati Generali CER 2 Sem. 2023'!CH28) -> 0.9685637241 | I35: ='Dati Generali CER 2 Sem. 2023'!D28 -> 3523 | J35: =IF('Dati Generali CER 2 Sem. 2023'!CJ28="","",'Dati Generali CER 2 Sem. 2023'!CJ28) -> 
A36: 27 | B36: ='Dati Generali CER 1 Sem. 2023'!C29 -> FRAZZANO' | C36: =IF('Dati Generali CER 2 Sem. 2023'!E29="","",'Dati Generali CER 2 Sem. 2023'!E29) -> 23140 | D36: =IF(C36="","",'Dati Generali CER 2 Sem. 2023'!CE29) -> 49990 | E36: ='Dati Generali CER 2 Sem. 2023'!W29 -> 0.6835771913 | F36: =IF('Dati Generali CER 2 Sem. 2023'!CF29="","",'Dati Generali CER 2 Sem. 2023'!CF29) -> 0.7071986693 | G36: =IF('Dati Generali CER 2 Sem. 2023'!CG29="","",'Dati Generali CER 2 Sem. 2023'!CG29) -> 0.2237737893 | H36: =IF('Dati Generali CER 2 Sem. 2023'!CH29="","",'Dati Generali CER 2 Sem. 2023'!CH29) -> 0.4834248801 | I36: ='Dati Generali CER 2 Sem. 2023'!D29 -> 562 | J36: =IF('Dati Generali CER 2 Sem. 2023'!CJ29="","",'Dati Generali CER 2 Sem. 2023'!CJ29) -> 2024-03-14T07:52:02
A37: 28 | B37: ='Dati Generali CER 1 Sem. 2023'!C30 -> FURCI SICULO | C37: =IF('Dati Generali CER 2 Sem. 2023'!E30="","",'Dati Generali CER 2 Sem. 2023'!E30) -> 154850 | D37: =IF(C37="","",'Dati Generali CER 2 Sem. 2023'!CE30) -> 481607 | E37: ='Dati Generali CER 2 Sem. 2023'!W30 -> 0.7566999813 | F37: =IF('Dati Generali CER 2 Sem. 2023'!CF30="","",'Dati Generali CER 2 Sem. 2023'!CF30) -> 1.079926767 | G37: =IF('Dati Generali CER 2 Sem. 2023'!CG30="","",'Dati Generali CER 2 Sem. 2023'!CG30) -> 0.2627462026 | H37: =IF('Dati Generali CER 2 Sem. 2023'!CH30="","",'Dati Generali CER 2 Sem. 2023'!CH30) -> 0.8171805644 | I37: ='Dati Generali CER 2 Sem. 2023'!D30 -> 3203 | J37: =IF('Dati Generali CER 2 Sem. 2023'!CJ30="","",'Dati Generali CER 2 Sem. 2023'!CJ30) -> 2024-02-08T12:42:51
A38: 29 | B38: ='Dati Generali CER 1 Sem. 2023'!C31 -> FURNARI | C38: =IF('Dati Generali CER 2 Sem. 2023'!E31="","",'Dati Generali CER 2 Sem. 2023'!E31) -> 211290 | D38: =IF(C38="","",'Dati Generali CER 2 Sem. 2023'!CE31) -> 1256920 | E38: ='Dati Generali CER 2 Sem. 2023'!W31 -> 0.8560900689 | F38: =IF('Dati Generali CER 2 Sem. 2023'!CF31="","",'Dati Generali CER 2 Sem. 2023'!CF31) -> 1.908947888 | G38: =IF('Dati Generali CER 2 Sem. 2023'!CG31="","",'Dati Generali CER 2 Sem. 2023'!CG31) -> 0.2747165592 | H38: =IF('Dati Generali CER 2 Sem. 2023'!CH31="","",'Dati Generali CER 2 Sem. 2023'!CH31) -> 1.634231329 | I38: ='Dati Generali CER 2 Sem. 2023'!D31 -> 4180 | J38: =IF('Dati Generali CER 2 Sem. 2023'!CJ31="","",'Dati Generali CER 2 Sem. 2023'!CJ31) -> 2024-04-04T10:41:09
A39: 30 | B39: ='Dati Generali CER 1 Sem. 2023'!C32 -> GAGGI | C39: =IF('Dati Generali CER 2 Sem. 2023'!E32="","",'Dati Generali CER 2 Sem. 2023'!E32) -> 186330 | D39: =IF(C39="","",'Dati Generali CER 2 Sem. 2023'!CE32) -> 293340 | E39: ='Dati Generali CER 2 Sem. 2023'!W32 -> 0.6115454375 | F39: =IF('Dati Generali CER 2 Sem. 2023'!CF32="","",'Dati Generali CER 2 Sem. 2023'!CF32) -> 0.8458475581 | G39: =IF('Dati Generali CER 2 Sem. 2023'!CG32="","",'Dati Generali CER 2 Sem. 2023'!CG32) -> 0.3285733431 | H39: =IF('Dati Generali CER 2 Sem. 2023'!CH32="","",'Dati Generali CER 2 Sem. 2023'!CH32) -> 0.5172742149 | I39: ='Dati Generali CER 2 Sem. 2023'!D32 -> 3082 | J39: =IF('Dati Generali CER 2 Sem. 2023'!CJ32="","",'Dati Generali CER 2 Sem. 2023'!CJ32) -> 2024-01-23T17:37:25
A40: 31 | B40: ='Dati Generali CER 1 Sem. 2023'!C33 -> GALATI MAMERTINO | C40: =IF('Dati Generali CER 2 Sem. 2023'!E33="","",'Dati Generali CER 2 Sem. 2023'!E33) -> 62640 | D40: =IF(C40="","",'Dati Generali CER 2 Sem. 2023'!CE33) -> 272100 | E40: ='Dati Generali CER 2 Sem. 2023'!W33 -> 0.8128696899 | F40: =IF('Dati Generali CER 2 Sem. 2023'!CF33="","",'Dati Generali CER 2 Sem. 2023'!CF33) -> 0.8228128134 | G40: =IF('Dati Generali CER 2 Sem. 2023'!CG33="","",'Dati Generali CER 2 Sem. 2023'!CG33) -> 0.1539732169 | H40: =IF('Dati Generali CER 2 Sem. 2023'!CH33="","",'Dati Generali CER 2 Sem. 2023'!CH33) -> 0.6688395965 | I40: ='Dati Generali CER 2 Sem. 2023'!D33 -> 2211 | J40: =IF('Dati Generali CER 2 Sem. 2023'!CJ33="","",'Dati Generali CER 2 Sem. 2023'!CJ33) -> 2024-01-24T07:55:03
A41: 32 | B41: ='Dati Generali CER 1 Sem. 2023'!C34 -> GALLODORO | C41: =IF('Dati Generali CER 2 Sem. 2023'!E34="","",'Dati Generali CER 2 Sem. 2023'!E34) -> 19970 | D41: =IF(C41="","",'Dati Generali CER 2 Sem. 2023'!CE34) -> 35290 | E41: ='Dati Generali CER 2 Sem. 2023'!W34 -> 0.6386174448 | F41: =IF('Dati Generali CER 2 Sem. 2023'!CF34="","",'Dati Generali CER 2 Sem. 2023'!CF34) -> 0.9269323671 | G41: =IF('Dati Generali CER 2 Sem. 2023'!CG34="","",'Dati Generali CER 2 Sem. 2023'!CG34) -> 0.3349771873 | H41: =IF('Dati Generali CER 2 Sem. 2023'!CH34="","",'Dati Generali CER 2 Sem. 2023'!CH34) -> 0.5919551798 | I41: ='Dati Generali CER 2 Sem. 2023'!D34 -> 324 | J41: =IF('Dati Generali CER 2 Sem. 2023'!CJ34="","",'Dati Generali CER 2 Sem. 2023'!CJ34) -> 2024-01-25T12:05:37
A42: 33 | B42: ='Dati Generali CER 1 Sem. 2023'!C35 -> GIARDINI NAXOS | C42: =IF('Dati Generali CER 2 Sem. 2023'!E35="","",'Dati Generali CER 2 Sem. 2023'!E35) -> 1094900 | D42: =IF(C42="","",'Dati Generali CER 2 Sem. 2023'!CE35) -> 2509330 | E42: ='Dati Generali CER 2 Sem. 2023'!W35 -> 0.6962180549 | F42: =IF('Dati Generali CER 2 Sem. 2023'!CF35="","",'Dati Generali CER 2 Sem. 2023'!CF35) -> 2.102867045 | G42: =IF('Dati Generali CER 2 Sem. 2023'!CG35="","",'Dati Generali CER 2 Sem. 2023'!CG35) -> 0.6388130411 | H42: =IF('Dati Generali CER 2 Sem. 2023'!CH35="","",'Dati Generali CER 2 Sem. 2023'!CH35) -> 1.464054004 | I42: ='Dati Generali CER 2 Sem. 2023'!D35 -> 9315 | J42: =IF('Dati Generali CER 2 Sem. 2023'!CJ35="","",'Dati Generali CER 2 Sem. 2023'!CJ35) -> 2024-02-01T16:03:33
A43: 34 | B43: ='Dati Generali CER 1 Sem. 2023'!C36 -> GIOIOSA MAREA | C43: =IF('Dati Generali CER 2 Sem. 2023'!E36="","",'Dati Generali CER 2 Sem. 2023'!E36) -> 482120 | D43: =IF(C43="","",'Dati Generali CER 2 Sem. 2023'!CE36) -> 1119400 | E43: ='Dati Generali CER 2 Sem. 2023'!W36 -> 0.6989609871 | F43: =IF('Dati Generali CER 2 Sem. 2023'!CF36="","",'Dati Generali CER 2 Sem. 2023'!CF36) -> 1.286419309 | G43: =IF('Dati Generali CER 2 Sem. 2023'!CG36="","",'Dati Generali CER 2 Sem. 2023'!CG36) -> 0.387262399 | H43: =IF('Dati Generali CER 2 Sem. 2023'!CH36="","",'Dati Generali CER 2 Sem. 2023'!CH36) -> 0.8991569099 | I43: ='Dati Generali CER 2 Sem. 2023'!D36 -> 6766 | J43: =IF('Dati Generali CER 2 Sem. 2023'!CJ36="","",'Dati Generali CER 2 Sem. 2023'!CJ36) -> 2024-03-28T13:19:12
A44: 35 | B44: ='Dati Generali CER 1 Sem. 2023'!C37 -> GRANITI | C44: =IF('Dati Generali CER 2 Sem. 2023'!E37="","",'Dati Generali CER 2 Sem. 2023'!E37) -> 202860 | D44: =IF(C44="","",'Dati Generali CER 2 Sem. 2023'!CE37) -> 64860 | E44: ='Dati Generali CER 2 Sem. 2023'!W37 -> 0.2422680412 | F44: =IF('Dati Generali CER 2 Sem. 2023'!CF37="","",'Dati Generali CER 2 Sem. 2023'!CF37) -> 1.001376462 | G44: =IF('Dati Generali CER 2 Sem. 2023'!CG37="","",'Dati Generali CER 2 Sem. 2023'!CG37) -> 0.7587749484 | H44: =IF('Dati Generali CER 2 Sem. 2023'!CH37="","",'Dati Generali CER 2 Sem. 2023'!CH37) -> 0.2426015141 | I44: ='Dati Generali CER 2 Sem. 2023'!D37 -> 1453 | J44: =IF('Dati Generali CER 2 Sem. 2023'!CJ37="","",'Dati Generali CER 2 Sem. 2023'!CJ37) -> 2024-01-31T10:57:18
A45: 36 | B45: ='Dati Generali CER 1 Sem. 2023'!C38 -> GUALTIERI SICAMINO | C45: =IF('Dati Generali CER 2 Sem. 2023'!E38="","",'Dati Generali CER 2 Sem. 2023'!E38) -> 58320 | D45: =IF(C45="","",'Dati Generali CER 2 Sem. 2023'!CE38) -> 209528 | E45: ='Dati Generali CER 2 Sem. 2023'!W38 -> 0.782264568 | F45: =IF('Dati Generali CER 2 Sem. 2023'!CF38="","",'Dati Generali CER 2 Sem. 2023'!CF38) -> 0.9361386831 | G45: =IF('Dati Generali CER 2 Sem. 2023'!CG38="","",'Dati Generali CER 2 Sem. 2023'!CG38) -> 0.2038305606 | H45: =IF('Dati Generali CER 2 Sem. 2023'!CH38="","",'Dati Generali CER 2 Sem. 2023'!CH38) -> 0.7323081225 | I45: ='Dati Generali CER 2 Sem. 2023'!D38 -> 1555 | J45: =IF('Dati Generali CER 2 Sem. 2023'!CJ38="","",'Dati Generali CER 2 Sem. 2023'!CJ38) -> 2024-02-09T11:35:09
A46: 37 | B46: ='Dati Generali CER 1 Sem. 2023'!C39 -> ITALA | C46: =IF('Dati Generali CER 2 Sem. 2023'!E39="","",'Dati Generali CER 2 Sem. 2023'!E39) -> 84230 | D46: =IF(C46="","",'Dati Generali CER 2 Sem. 2023'!CE39) -> 172500 | E46: ='Dati Generali CER 2 Sem. 2023'!W39 -> 0.6719121256 | F46: =IF('Dati Generali CER 2 Sem. 2023'!CF39="","",'Dati Generali CER 2 Sem. 2023'!CF39) -> 0.935795935 | G46: =IF('Dati Generali CER 2 Sem. 2023'!CG39="","",'Dati Generali CER 2 Sem. 2023'!CG39) -> 0.3070232992 | H46: =IF('Dati Generali CER 2 Sem. 2023'!CH39="","",'Dati Generali CER 2 Sem. 2023'!CH39) -> 0.6287726358 | I46: ='Dati Generali CER 2 Sem. 2023'!D39 -> 1491 | J46: =IF('Dati Generali CER 2 Sem. 2023'!CJ39="","",'Dati Generali CER 2 Sem. 2023'!CJ39) -> 2024-04-09T09:16:19
A47: 38 | B47: ='Dati Generali CER 1 Sem. 2023'!C40 -> LENI | C47: =IF('Dati Generali CER 2 Sem. 2023'!E40="","",'Dati Generali CER 2 Sem. 2023'!E40) -> 73980 | D47: =IF(C47="","",'Dati Generali CER 2 Sem. 2023'!CE40) -> 58820 | E47: ='Dati Generali CER 2 Sem. 2023'!W40 -> 0.4429216867 | F47: =IF('Dati Generali CER 2 Sem. 2023'!CF40="","",'Dati Generali CER 2 Sem. 2023'!CF40) -> 1.066084388 | G47: =IF('Dati Generali CER 2 Sem. 2023'!CG40="","",'Dati Generali CER 2 Sem. 2023'!CG40) -> 0.5938924925 | H47: =IF('Dati Generali CER 2 Sem. 2023'!CH40="","",'Dati Generali CER 2 Sem. 2023'!CH40) -> 0.4721918952 | I47: ='Dati Generali CER 2 Sem. 2023'!D40 -> 677 | J47: =IF('Dati Generali CER 2 Sem. 2023'!CJ40="","",'Dati Generali CER 2 Sem. 2023'!CJ40) -> 2024-02-08T12:46:18
A48: 39 | B48: ='Dati Generali CER 1 Sem. 2023'!C41 -> LETOJANNI | C48: =IF('Dati Generali CER 2 Sem. 2023'!E41="","",'Dati Generali CER 2 Sem. 2023'!E41) -> 541030 | D48: =IF(C48="","",'Dati Generali CER 2 Sem. 2023'!CE41) -> 716211 | E48: ='Dati Generali CER 2 Sem. 2023'!W41 -> 0.5696688224 | F48: =IF('Dati Generali CER 2 Sem. 2023'!CF41="","",'Dati Generali CER 2 Sem. 2023'!CF41) -> 2.344828937 | G48: =IF('Dati Generali CER 2 Sem. 2023'!CG41="","",'Dati Generali CER 2 Sem. 2023'!CG41) -> 1.009052998 | H48: =IF('Dati Generali CER 2 Sem. 2023'!CH41="","",'Dati Generali CER 2 Sem. 2023'!CH41) -> 1.335775939 | I48: ='Dati Generali CER 2 Sem. 2023'!D41 -> 2914 | J48: =IF('Dati Generali CER 2 Sem. 2023'!CJ41="","",'Dati Generali CER 2 Sem. 2023'!CJ41) -> 2024-03-28T12:34:23
A49: 40 | B49: ='Dati Generali CER 1 Sem. 2023'!C42 -> LIBRIZZI | C49: =IF('Dati Generali CER 2 Sem. 2023'!E42="","",'Dati Generali CER 2 Sem. 2023'!E42) -> 70360 | D49: =IF(C49="","",'Dati Generali CER 2 Sem. 2023'!CE42) -> 207010 | E49: ='Dati Generali CER 2 Sem. 2023'!W42 -> 0.7463316148 | F49: =IF('Dati Generali CER 2 Sem. 2023'!CF42="","",'Dati Generali CER 2 Sem. 2023'!CF42) -> 0.9601564664 | G49: =IF('Dati Generali CER 2 Sem. 2023'!CG42="","",'Dati Generali CER 2 Sem. 2023'!CG42) -> 0.2435613403 | H49: =IF('Dati Generali CER 2 Sem. 2023'!CH42="","",'Dati Generali CER 2 Sem. 2023'!CH42) -> 0.716595126 | I49: ='Dati Generali CER 2 Sem. 2023'!D42 -> 1570 | J49: =IF('Dati Generali CER 2 Sem. 2023'!CJ42="","",'Dati Generali CER 2 Sem. 2023'!CJ42) -> 2024-02-16T13:36:57
A50: 41 | B50: ='Dati Generali CER 1 Sem. 2023'!C43 -> LIMINA | C50: =IF('Dati Generali CER 2 Sem. 2023'!E43="","",'Dati Generali CER 2 Sem. 2023'!E43) -> 38685 | D50: =IF(C50="","",'Dati Generali CER 2 Sem. 2023'!CE43) -> 63222 | E50: ='Dati Generali CER 2 Sem. 2023'!W43 -> 0.6203891784 | F50: =IF('Dati Generali CER 2 Sem. 2023'!CF43="","",'Dati Generali CER 2 Sem. 2023'!CF43) -> 0.7618189702 | G50: =IF('Dati Generali CER 2 Sem. 2023'!CG43="","",'Dati Generali CER 2 Sem. 2023'!CG43) -> 0.2891947252 | H50: =IF('Dati Generali CER 2 Sem. 2023'!CH43="","",'Dati Generali CER 2 Sem. 2023'!CH43) -> 0.472624245 | I50: ='Dati Generali CER 2 Sem. 2023'!D43 -> 727 | J50: =IF('Dati Generali CER 2 Sem. 2023'!CJ43="","",'Dati Generali CER 2 Sem. 2023'!CJ43) -> 2024-04-11T15:09:01
A51: 42 | B51: ='Dati Generali CER 1 Sem. 2023'!C44 -> LIPARI | C51: =IF('Dati Generali CER 2 Sem. 2023'!E44="","",'Dati Generali CER 2 Sem. 2023'!E44) -> 2427820 | D51: =IF(C51="","",'Dati Generali CER 2 Sem. 2023'!CE44) -> 2449280 | E51: ='Dati Generali CER 2 Sem. 2023'!W44 -> 0.5022000779 | F51: =IF('Dati Generali CER 2 Sem. 2023'!CF44="","",'Dati Generali CER 2 Sem. 2023'!CF44) -> 2.089552878 | G51: =IF('Dati Generali CER 2 Sem. 2023'!CG44="","",'Dati Generali CER 2 Sem. 2023'!CG44) -> 1.04017926 | H51: =IF('Dati Generali CER 2 Sem. 2023'!CH44="","",'Dati Generali CER 2 Sem. 2023'!CH44) -> 1.049373618 | I51: ='Dati Generali CER 2 Sem. 2023'!D44 -> 12685 | J51: =IF('Dati Generali CER 2 Sem. 2023'!CJ44="","",'Dati Generali CER 2 Sem. 2023'!CJ44) -> 2024-01-24T07:57:57
A52: 43 | B52: ='Dati Generali CER 1 Sem. 2023'!C45 -> LONGI | C52: =IF('Dati Generali CER 2 Sem. 2023'!E45="","",'Dati Generali CER 2 Sem. 2023'!E45) -> 13260 | D52: =IF(C52="","",'Dati Generali CER 2 Sem. 2023'!CE45) -> 166944 | E52: ='Dati Generali CER 2 Sem. 2023'!W45 -> 0.9264167277 | F52: =IF('Dati Generali CER 2 Sem. 2023'!CF45="","",'Dati Generali CER 2 Sem. 2023'!CF45) -> 0.7527821408 | G52: =IF('Dati Generali CER 2 Sem. 2023'!CG45="","",'Dati Generali CER 2 Sem. 2023'!CG45) -> 0.05539217324 | H52: =IF('Dati Generali CER 2 Sem. 2023'!CH45="","",'Dati Generali CER 2 Sem. 2023'!CH45) -> 0.6973899676 | I52: ='Dati Generali CER 2 Sem. 2023'!D45 -> 1301 | J52: =IF('Dati Generali CER 2 Sem. 2023'!CJ45="","",'Dati Generali CER 2 Sem. 2023'!CJ45) -> 2024-02-28T11:12:14
A53: 44 | B53: ='Dati Generali CER 1 Sem. 2023'!C46 -> MALFA | C53: =IF('Dati Generali CER 2 Sem. 2023'!E46="","",'Dati Generali CER 2 Sem. 2023'!E46) -> 137580 | D53: =IF(C53="","",'Dati Generali CER 2 Sem. 2023'!CE46) -> 142060 | E53: ='Dati Generali CER 2 Sem. 2023'!W46 -> 0.508010299 | F53: =IF('Dati Generali CER 2 Sem. 2023'!CF46="","",'Dati Generali CER 2 Sem. 2023'!CF46) -> 1.518264344 | G53: =IF('Dati Generali CER 2 Sem. 2023'!CG46="","",'Dati Generali CER 2 Sem. 2023'!CG46) -> 0.7469704209 | H53: =IF('Dati Generali CER 2 Sem. 2023'!CH46="","",'Dati Generali CER 2 Sem. 2023'!CH46) -> 0.7712939235 | I53: ='Dati Generali CER 2 Sem. 2023'!D46 -> 1001 | J53: =IF('Dati Generali CER 2 Sem. 2023'!CJ46="","",'Dati Generali CER 2 Sem. 2023'!CJ46) -> 2024-02-08T12:47:49
A54: 45 | B54: ='Dati Generali CER 1 Sem. 2023'!C47 -> MALVAGNA | C54: =IF('Dati Generali CER 2 Sem. 2023'!E47="","",'Dati Generali CER 2 Sem. 2023'!E47) -> 50620 | D54: =IF(C54="","",'Dati Generali CER 2 Sem. 2023'!CE47) -> 44570 | E54: ='Dati Generali CER 2 Sem. 2023'!W47 -> 0.4682214518 | F54: =IF('Dati Generali CER 2 Sem. 2023'!CF47="","",'Dati Generali CER 2 Sem. 2023'!CF47) -> 0.8508831522 | G54: =IF('Dati Generali CER 2 Sem. 2023'!CG47="","",'Dati Generali CER 2 Sem. 2023'!CG47) -> 0.4524814073 | H54: =IF('Dati Generali CER 2 Sem. 2023'!CH47="","",'Dati Generali CER 2 Sem. 2023'!CH47) -> 0.3984017449 | I54: ='Dati Generali CER 2 Sem. 2023'!D47 -> 608 | J54: =IF('Dati Generali CER 2 Sem. 2023'!CJ47="","",'Dati Generali CER 2 Sem. 2023'!CJ47) -> 2024-01-24T11:29:00
A55: 46 | B55: ='Dati Generali CER 1 Sem. 2023'!C48 -> MANDANICI | C55: =IF('Dati Generali CER 2 Sem. 2023'!E48="","",'Dati Generali CER 2 Sem. 2023'!E48) -> 13370 | D55: =IF(C55="","",'Dati Generali CER 2 Sem. 2023'!CE48) -> 58420 | E55: ='Dati Generali CER 2 Sem. 2023'!W48 -> 0.8137623624 | F55: =IF('Dati Generali CER 2 Sem. 2023'!CF48="","",'Dati Generali CER 2 Sem. 2023'!CF48) -> 0.7914057677 | G55: =IF('Dati Generali CER 2 Sem. 2023'!CG48="","",'Dati Generali CER 2 Sem. 2023'!CG48) -> 0.1473895405 | H55: =IF('Dati Generali CER 2 Sem. 2023'!CH48="","",'Dati Generali CER 2 Sem. 2023'!CH48) -> 0.6440162272 | I55: ='Dati Generali CER 2 Sem. 2023'!D48 -> 493 | J55: =IF('Dati Generali CER 2 Sem. 2023'!CJ48="","",'Dati Generali CER 2 Sem. 2023'!CJ48) -> 2024-03-07T08:53:44
A56: 47 | B56: ='Dati Generali CER 1 Sem. 2023'!C49 -> MAZZARRA' S. ANDREA | C56: =IF('Dati Generali CER 2 Sem. 2023'!E49="","",'Dati Generali CER 2 Sem. 2023'!E49) -> 43340 | D56: =IF(C56="","",'Dati Generali CER 2 Sem. 2023'!CE49) -> 159200 | E56: ='Dati Generali CER 2 Sem. 2023'!W49 -> 0.7860175768 | F56: =IF('Dati Generali CER 2 Sem. 2023'!CF49="","",'Dati Generali CER 2 Sem. 2023'!CF49) -> 0.7868197781 | G56: =IF('Dati Generali CER 2 Sem. 2023'!CG49="","",'Dati Generali CER 2 Sem. 2023'!CG49) -> 0.1683656028 | H56: =IF('Dati Generali CER 2 Sem. 2023'!CH49="","",'Dati Generali CER 2 Sem. 2023'!CH49) -> 0.6184541753 | I56: ='Dati Generali CER 2 Sem. 2023'!D49 -> 1399 | J56: =IF('Dati Generali CER 2 Sem. 2023'!CJ49="","",'Dati Generali CER 2 Sem. 2023'!CJ49) -> 2024-02-05T11:16:56
A57: 48 | B57: ='Dati Generali CER 1 Sem. 2023'!C50 -> MERI' | C57: =IF('Dati Generali CER 2 Sem. 2023'!E50="","",'Dati Generali CER 2 Sem. 2023'!E50) -> 122140 | D57: =IF(C57="","",'Dati Generali CER 2 Sem. 2023'!CE50) -> 209610 | E57: ='Dati Generali CER 2 Sem. 2023'!W50 -> 0.6207907597 | F57: =IF('Dati Generali CER 2 Sem. 2023'!CF50="","",'Dati Generali CER 2 Sem. 2023'!CF50) -> 0.7961190229 | G57: =IF('Dati Generali CER 2 Sem. 2023'!CG50="","",'Dati Generali CER 2 Sem. 2023'!CG50) -> 0.2879845327 | H57: =IF('Dati Generali CER 2 Sem. 2023'!CH50="","",'Dati Generali CER 2 Sem. 2023'!CH50) -> 0.494223333 | I57: ='Dati Generali CER 2 Sem. 2023'!D50 -> 2305 | J57: =IF('Dati Generali CER 2 Sem. 2023'!CJ50="","",'Dati Generali CER 2 Sem. 2023'!CJ50) -> 2024-01-24T11:32:07
A58: 49 | B58: ='Dati Generali CER 1 Sem. 2023'!C51 -> MESSINA | C58: =IF('Dati Generali CER 2 Sem. 2023'!E51="","",'Dati Generali CER 2 Sem. 2023'!E51) -> 21102330 | D58: =IF(C58="","",'Dati Generali CER 2 Sem. 2023'!CE51) -> 26028464 | E58: ='Dati Generali CER 2 Sem. 2023'!W51 -> 0.5522602484 | F58: =IF('Dati Generali CER 2 Sem. 2023'!CF51="","",'Dati Generali CER 2 Sem. 2023'!CF51) -> 1.17554611 | G58: =IF('Dati Generali CER 2 Sem. 2023'!CG51="","",'Dati Generali CER 2 Sem. 2023'!CG51) -> 0.5263387232 | H58: =IF('Dati Generali CER 2 Sem. 2023'!CH51="","",'Dati Generali CER 2 Sem. 2023'!CH51) -> 0.6492073865 | I58: ='Dati Generali CER 2 Sem. 2023'!D51 -> 217895 | J58: =IF('Dati Generali CER 2 Sem. 2023'!CJ51="","",'Dati Generali CER 2 Sem. 2023'!CJ51) -> 2024-02-26T10:10:46
A59: 50 | B59: ='Dati Generali CER 1 Sem. 2023'!C52 -> MILAZZO | C59: =IF('Dati Generali CER 2 Sem. 2023'!E52="","",'Dati Generali CER 2 Sem. 2023'!E52) -> 2314460 | D59: =IF(C59="","",'Dati Generali CER 2 Sem. 2023'!CE52) -> 5281330 | E59: ='Dati Generali CER 2 Sem. 2023'!W52 -> 0.695297 | F59: =IF('Dati Generali CER 2 Sem. 2023'!CF52="","",'Dati Generali CER 2 Sem. 2023'!CF52) -> 1.376140656 | G59: =IF('Dati Generali CER 2 Sem. 2023'!CG52="","",'Dati Generali CER 2 Sem. 2023'!CG52) -> 0.4193141862 | H59: =IF('Dati Generali CER 2 Sem. 2023'!CH52="","",'Dati Generali CER 2 Sem. 2023'!CH52) -> 0.9568264696 | I59: ='Dati Generali CER 2 Sem. 2023'!D52 -> 29998 | J59: =IF('Dati Generali CER 2 Sem. 2023'!CJ52="","",'Dati Generali CER 2 Sem. 2023'!CJ52) -> 2024-03-07T11:31:53
A60: 51 | B60: ='Dati Generali CER 1 Sem. 2023'!C53 -> MILITELLO ROSMARINO | C60: =IF('Dati Generali CER 2 Sem. 2023'!E53="","",'Dati Generali CER 2 Sem. 2023'!E53) -> 45560 | D60: =IF(C60="","",'Dati Generali CER 2 Sem. 2023'!CE53) -> 120395 | E60: ='Dati Generali CER 2 Sem. 2023'!W53 -> 0.7254677473 | F60: =IF('Dati Generali CER 2 Sem. 2023'!CF53="","",'Dati Generali CER 2 Sem. 2023'!CF53) -> 0.7863377052 | G60: =IF('Dati Generali CER 2 Sem. 2023'!CG53="","",'Dati Generali CER 2 Sem. 2023'!CG53) -> 0.2158750616 | H60: =IF('Dati Generali CER 2 Sem. 2023'!CH53="","",'Dati Generali CER 2 Sem. 2023'!CH53) -> 0.5704626436 | I60: ='Dati Generali CER 2 Sem. 2023'!D53 -> 1147 | J60: =IF('Dati Generali CER 2 Sem. 2023'!CJ53="","",'Dati Generali CER 2 Sem. 2023'!CJ53) -> 2024-01-15T11:36:39
A61: 52 | B61: ='Dati Generali CER 1 Sem. 2023'!C54 -> MIRTO | C61: =IF('Dati Generali CER 2 Sem. 2023'!E54="","",'Dati Generali CER 2 Sem. 2023'!E54) -> 8300 | D61: =IF(C61="","",'Dati Generali CER 2 Sem. 2023'!CE54) -> 144977 | E61: ='Dati Generali CER 2 Sem. 2023'!W54 -> 0.9458496709 | F61: =IF('Dati Generali CER 2 Sem. 2023'!CF54="","",'Dati Generali CER 2 Sem. 2023'!CF54) -> 0.9553063921 | G61: =IF('Dati Generali CER 2 Sem. 2023'!CG54="","",'Dati Generali CER 2 Sem. 2023'!CG54) -> 0.05173015556 | H61: =IF('Dati Generali CER 2 Sem. 2023'!CH54="","",'Dati Generali CER 2 Sem. 2023'!CH54) -> 0.9035762365 | I61: ='Dati Generali CER 2 Sem. 2023'!D54 -> 872 | J61: =IF('Dati Generali CER 2 Sem. 2023'!CJ54="","",'Dati Generali CER 2 Sem. 2023'!CJ54) -> 2024-02-08T12:51:31
A62: 53 | B62: ='Dati Generali CER 1 Sem. 2023'!C55 -> MISTRETTA | C62: =IF('Dati Generali CER 2 Sem. 2023'!E55="","",'Dati Generali CER 2 Sem. 2023'!E55) -> 192820 | D62: =IF(C62="","",'Dati Generali CER 2 Sem. 2023'!CE55) -> 578130 | E62: ='Dati Generali CER 2 Sem. 2023'!W55 -> 0.7498929892 | F62: =IF('Dati Generali CER 2 Sem. 2023'!CF55="","",'Dati Generali CER 2 Sem. 2023'!CF55) -> 0.9710186911 | G62: =IF('Dati Generali CER 2 Sem. 2023'!CG55="","",'Dati Generali CER 2 Sem. 2023'!CG55) -> 0.2428585823 | H62: =IF('Dati Generali CER 2 Sem. 2023'!CH55="","",'Dati Generali CER 2 Sem. 2023'!CH55) -> 0.7281601088 | I62: ='Dati Generali CER 2 Sem. 2023'!D55 -> 4315 | J62: =IF('Dati Generali CER 2 Sem. 2023'!CJ55="","",'Dati Generali CER 2 Sem. 2023'!CJ55) -> 2024-02-09T12:10:23
A63: 54 | B63: ='Dati Generali CER 1 Sem. 2023'!C56 -> MOJO ALCANTARA | C63: =IF('Dati Generali CER 2 Sem. 2023'!E56="","",'Dati Generali CER 2 Sem. 2023'!E56) -> 45600 | D63: =IF(C63="","",'Dati Generali CER 2 Sem. 2023'!CE56) -> 45340 | E63: ='Dati Generali CER 2 Sem. 2023'!W56 -> 0.498570486 | F63: =IF('Dati Generali CER 2 Sem. 2023'!CF56="","",'Dati Generali CER 2 Sem. 2023'!CF56) -> 0.7204652047 | G63: =IF('Dati Generali CER 2 Sem. 2023'!CG56="","",'Dati Generali CER 2 Sem. 2023'!CG56) -> 0.3612625174 | H63: =IF('Dati Generali CER 2 Sem. 2023'!CH56="","",'Dati Generali CER 2 Sem. 2023'!CH56) -> 0.3592026873 | I63: ='Dati Generali CER 2 Sem. 2023'!D56 -> 686 | J63: =IF('Dati Generali CER 2 Sem. 2023'!CJ56="","",'Dati Generali CER 2 Sem. 2023'!CJ56) -> 2024-02-14T14:51:05
A64: 55 | B64: ='Dati Generali CER 1 Sem. 2023'!C57 -> MONFORTE S. GIORGIO | C64: =IF('Dati Generali CER 2 Sem. 2023'!E57="","",'Dati Generali CER 2 Sem. 2023'!E57) -> 208940 | D64: =IF(C64="","",'Dati Generali CER 2 Sem. 2023'!CE57) -> 254342 | E64: ='Dati Generali CER 2 Sem. 2023'!W57 -> 0.5420273548 | F64: =IF('Dati Generali CER 2 Sem. 2023'!CF57="","",'Dati Generali CER 2 Sem. 2023'!CF57) -> 1.04175991 | G64: =IF('Dati Generali CER 2 Sem. 2023'!CG57="","",'Dati Generali CER 2 Sem. 2023'!CG57) -> 0.4638657999 | H64: =IF('Dati Generali CER 2 Sem. 2023'!CH57="","",'Dati Generali CER 2 Sem. 2023'!CH57) -> 0.5646623686 | I64: ='Dati Generali CER 2 Sem. 2023'!D57 -> 2448 | J64: =IF('Dati Generali CER 2 Sem. 2023'!CJ57="","",'Dati Generali CER 2 Sem. 2023'!CJ57) -> 2024-01-24T08:02:29
A65: 56 | B65: ='Dati Generali CER 1 Sem. 2023'!C58 -> MONGIUFFI MELIA | C65: =IF('Dati Generali CER 2 Sem. 2023'!E58="","",'Dati Generali CER 2 Sem. 2023'!E58) -> 37800 | D65: =IF(C65="","",'Dati Generali CER 2 Sem. 2023'!CE58) -> 35020 | E65: ='Dati Generali CER 2 Sem. 2023'!W58 -> 0.4809118374 | F65: =IF('Dati Generali CER 2 Sem. 2023'!CF58="","",'Dati Generali CER 2 Sem. 2023'!CF58) -> 0.7596177919 | G65: =IF('Dati Generali CER 2 Sem. 2023'!CG58="","",'Dati Generali CER 2 Sem. 2023'!CG58) -> 0.3943086039 | H65: =IF('Dati Generali CER 2 Sem. 2023'!CH58="","",'Dati Generali CER 2 Sem. 2023'!CH58) -> 0.365309188 | I65: ='Dati Generali CER 2 Sem. 2023'!D58 -> 521 | J65: =IF('Dati Generali CER 2 Sem. 2023'!CJ58="","",'Dati Generali CER 2 Sem. 2023'!CJ58) -> 2024-01-24T08:06:33
A66: 57 | B66: ='Dati Generali CER 1 Sem. 2023'!C59 -> MONTAGNAREALE | C66: =IF('Dati Generali CER 2 Sem. 2023'!E59="","",'Dati Generali CER 2 Sem. 2023'!E59) -> 49040 | D66: =IF(C66="","",'Dati Generali CER 2 Sem. 2023'!CE59) -> 136960 | E66: ='Dati Generali CER 2 Sem. 2023'!W59 -> 0.736344086 | F66: =IF('Dati Generali CER 2 Sem. 2023'!CF59="","",'Dati Generali CER 2 Sem. 2023'!CF59) -> 0.7335773332 | G66: =IF('Dati Generali CER 2 Sem. 2023'!CG59="","",'Dati Generali CER 2 Sem. 2023'!CG59) -> 0.1934120023 | H66: =IF('Dati Generali CER 2 Sem. 2023'!CH59="","",'Dati Generali CER 2 Sem. 2023'!CH59) -> 0.540165331 | I66: ='Dati Generali CER 2 Sem. 2023'!D59 -> 1378 | J66: =IF('Dati Generali CER 2 Sem. 2023'!CJ59="","",'Dati Generali CER 2 Sem. 2023'!CJ59) -> 2024-01-24T11:35:45
A67: 58 | B67: ='Dati Generali CER 1 Sem. 2023'!C60 -> MONTALBANO ELICONA | C67: =IF('Dati Generali CER 2 Sem. 2023'!E60="","",'Dati Generali CER 2 Sem. 2023'!E60) -> 115220 | D67: =IF(C67="","",'Dati Generali CER 2 Sem. 2023'!CE60) -> 216450 | E67: ='Dati Generali CER 2 Sem. 2023'!W60 -> 0.6526065065 | F67: =IF('Dati Generali CER 2 Sem. 2023'!CF60="","",'Dati Generali CER 2 Sem. 2023'!CF60) -> 0.8678643947 | G67: =IF('Dati Generali CER 2 Sem. 2023'!CG60="","",'Dati Generali CER 2 Sem. 2023'!CG60) -> 0.301490444 | H67: =IF('Dati Generali CER 2 Sem. 2023'!CH60="","",'Dati Generali CER 2 Sem. 2023'!CH60) -> 0.5663739507 | I67: ='Dati Generali CER 2 Sem. 2023'!D60 -> 2077 | J67: =IF('Dati Generali CER 2 Sem. 2023'!CJ60="","",'Dati Generali CER 2 Sem. 2023'!CJ60) -> 2024-03-06T08:07:33
A68: 59 | B68: ='Dati Generali CER 1 Sem. 2023'!C61 -> MOTTA CAMASTRA | C68: =IF('Dati Generali CER 2 Sem. 2023'!E61="","",'Dati Generali CER 2 Sem. 2023'!E61) -> 110860 | D68: =IF(C68="","",'Dati Generali CER 2 Sem. 2023'!CE61) -> 36860 | E68: ='Dati Generali CER 2 Sem. 2023'!W61 -> 0.2495261305 | F68: =IF('Dati Generali CER 2 Sem. 2023'!CF61="","",'Dati Generali CER 2 Sem. 2023'!CF61) -> 1.008575486 | G68: =IF('Dati Generali CER 2 Sem. 2023'!CG61="","",'Dati Generali CER 2 Sem. 2023'!CG61) -> 0.7569095477 | H68: =IF('Dati Generali CER 2 Sem. 2023'!CH61="","",'Dati Generali CER 2 Sem. 2023'!CH61) -> 0.2516659384 | I68: ='Dati Generali CER 2 Sem. 2023'!D61 -> 796 | J68: =IF('Dati Generali CER 2 Sem. 2023'!CJ61="","",'Dati Generali CER 2 Sem. 2023'!CJ61) -> 2024-02-13T15:01:28
A69: 60 | B69: ='Dati Generali CER 1 Sem. 2023'!C62 -> MOTTA D'AFFERMO | C69: =IF('Dati Generali CER 2 Sem. 2023'!E62="","",'Dati Generali CER 2 Sem. 2023'!E62) -> 1e-05 | D69: =IF(C69="","",'Dati Generali CER 2 Sem. 2023'!CE62) -> 71656 | E69: ='Dati Generali CER 2 Sem. 2023'!W62 -> 0.9999999999 | F69: =IF('Dati Generali CER 2 Sem. 2023'!CF62="","",'Dati Generali CER 2 Sem. 2023'!CF62) -> 0.5945569201 | G69: =IF('Dati Generali CER 2 Sem. 2023'!CG62="","",'Dati Generali CER 2 Sem. 2023'!CG62) -> 8.297378029e-11 | H69: =IF('Dati Generali CER 2 Sem. 2023'!CH62="","",'Dati Generali CER 2 Sem. 2023'!CH62) -> 0.59455692 | I69: ='Dati Generali CER 2 Sem. 2023'!D62 -> 655 | J69: =IF('Dati Generali CER 2 Sem. 2023'!CJ62="","",'Dati Generali CER 2 Sem. 2023'!CJ62) -> 2024-01-25T12:13:44
A70: 61 | B70: ='Dati Generali CER 1 Sem. 2023'!C63 -> NASO | C70: =IF('Dati Generali CER 2 Sem. 2023'!E63="","",'Dati Generali CER 2 Sem. 2023'!E63) -> 108040 | D70: =IF(C70="","",'Dati Generali CER 2 Sem. 2023'!CE63) -> 485982 | E70: ='Dati Generali CER 2 Sem. 2023'!W63 -> 0.8181212144 | F70: =IF('Dati Generali CER 2 Sem. 2023'!CF63="","",'Dati Generali CER 2 Sem. 2023'!CF63) -> 0.944799659 | G70: =IF('Dati Generali CER 2 Sem. 2023'!CG63="","",'Dati Generali CER 2 Sem. 2023'!CG63) -> 0.1718390146 | H70: =IF('Dati Generali CER 2 Sem. 2023'!CH63="","",'Dati Generali CER 2 Sem. 2023'!CH63) -> 0.7729606443 | I70: ='Dati Generali CER 2 Sem. 2023'!D63 -> 3417 | J70: =IF('Dati Generali CER 2 Sem. 2023'!CJ63="","",'Dati Generali CER 2 Sem. 2023'!CJ63) -> 2024-01-24T08:12:02
A71: 62 | B71: ='Dati Generali CER 1 Sem. 2023'!C64 -> NIZZA DI SICILIA | C71: =IF('Dati Generali CER 2 Sem. 2023'!E64="","",'Dati Generali CER 2 Sem. 2023'!E64) -> 159890 | D71: =IF(C71="","",'Dati Generali CER 2 Sem. 2023'!CE64) -> 476277 | E71: ='Dati Generali CER 2 Sem. 2023'!W64 -> 0.7486666237 | F71: =IF('Dati Generali CER 2 Sem. 2023'!CF64="","",'Dati Generali CER 2 Sem. 2023'!CF64) -> 0.9799969807 | G71: =IF('Dati Generali CER 2 Sem. 2023'!CG64="","",'Dati Generali CER 2 Sem. 2023'!CG64) -> 0.2463059499 | H71: =IF('Dati Generali CER 2 Sem. 2023'!CH64="","",'Dati Generali CER 2 Sem. 2023'!CH64) -> 0.7336910308 | I71: ='Dati Generali CER 2 Sem. 2023'!D64 -> 3528 | J71: =IF('Dati Generali CER 2 Sem. 2023'!CJ64="","",'Dati Generali CER 2 Sem. 2023'!CJ64) -> 2024-04-09T14:53:20
A72: 63 | B72: ='Dati Generali CER 1 Sem. 2023'!C65 -> NOVARA DI SICILIA | C72: =IF('Dati Generali CER 2 Sem. 2023'!E65="","",'Dati Generali CER 2 Sem. 2023'!E65) -> 57720 | D72: =IF(C72="","",'Dati Generali CER 2 Sem. 2023'!CE65) -> 181138 | E72: ='Dati Generali CER 2 Sem. 2023'!W65 -> 0.7583501495 | F72: =IF('Dati Generali CER 2 Sem. 2023'!CF65="","",'Dati Generali CER 2 Sem. 2023'!CF65) -> 1.148797614 | G72: =IF('Dati Generali CER 2 Sem. 2023'!CG65="","",'Dati Generali CER 2 Sem. 2023'!CG65) -> 0.2776067718 | H72: =IF('Dati Generali CER 2 Sem. 2023'!CH65="","",'Dati Generali CER 2 Sem. 2023'!CH65) -> 0.8711908426 | I72: ='Dati Generali CER 2 Sem. 2023'!D65 -> 1130 | J72: =IF('Dati Generali CER 2 Sem. 2023'!CJ65="","",'Dati Generali CER 2 Sem. 2023'!CJ65) -> 2024-04-03T10:45:44
A73: 64 | B73: ='Dati Generali CER 1 Sem. 2023'!C66 -> OLIVERI | C73: =IF('Dati Generali CER 2 Sem. 2023'!E66="","",'Dati Generali CER 2 Sem. 2023'!E66) -> 263840 | D73: =IF(C73="","",'Dati Generali CER 2 Sem. 2023'!CE66) -> 516608 | E73: ='Dati Generali CER 2 Sem. 2023'!W66 -> 0.6619377588 | F73: =IF('Dati Generali CER 2 Sem. 2023'!CF66="","",'Dati Generali CER 2 Sem. 2023'!CF66) -> 1.939444544 | G73: =IF('Dati Generali CER 2 Sem. 2023'!CG66="","",'Dati Generali CER 2 Sem. 2023'!CG66) -> 0.6556529691 | H73: =IF('Dati Generali CER 2 Sem. 2023'!CH66="","",'Dati Generali CER 2 Sem. 2023'!CH66) -> 1.283791575 | I73: ='Dati Generali CER 2 Sem. 2023'!D66 -> 2187 | J73: =IF('Dati Generali CER 2 Sem. 2023'!CJ66="","",'Dati Generali CER 2 Sem. 2023'!CJ66) -> 2024-04-03T11:04:35
A74: 65 | B74: ='Dati Generali CER 1 Sem. 2023'!C67 -> PACE DEL MELA | C74: =IF('Dati Generali CER 2 Sem. 2023'!E67="","",'Dati Generali CER 2 Sem. 2023'!E67) -> 397440 | D74: =IF(C74="","",'Dati Generali CER 2 Sem. 2023'!CE67) -> 773663 | E74: ='Dati Generali CER 2 Sem. 2023'!W67 -> 0.6606276305 | F74: =IF('Dati Generali CER 2 Sem. 2023'!CF67="","",'Dati Generali CER 2 Sem. 2023'!CF67) -> 1.068618237 | G74: =IF('Dati Generali CER 2 Sem. 2023'!CG67="","",'Dati Generali CER 2 Sem. 2023'!CG67) -> 0.362659503 | H74: =IF('Dati Generali CER 2 Sem. 2023'!CH67="","",'Dati Generali CER 2 Sem. 2023'!CH67) -> 0.7059587336 | I74: ='Dati Generali CER 2 Sem. 2023'!D67 -> 5956 | J74: =IF('Dati Generali CER 2 Sem. 2023'!CJ67="","",'Dati Generali CER 2 Sem. 2023'!CJ67) -> 2024-03-14T10:18:11
A75: 66 | B75: ='Dati Generali CER 1 Sem. 2023'!C68 -> PAGLIARA | C75: =IF('Dati Generali CER 2 Sem. 2023'!E68="","",'Dati Generali CER 2 Sem. 2023'!E68) -> 23150 | D75: =IF(C75="","",'Dati Generali CER 2 Sem. 2023'!CE68) -> 95758 | E75: ='Dati Generali CER 2 Sem. 2023'!W68 -> 0.7994489898 | F75: =IF('Dati Generali CER 2 Sem. 2023'!CF68="","",'Dati Generali CER 2 Sem. 2023'!CF68) -> 0.5833138538 | G75: =IF('Dati Generali CER 2 Sem. 2023'!CG68="","",'Dati Generali CER 2 Sem. 2023'!CG68) -> 0.11273765 | H75: =IF('Dati Generali CER 2 Sem. 2023'!CH68="","",'Dati Generali CER 2 Sem. 2023'!CH68) -> 0.4663296712 | I75: ='Dati Generali CER 2 Sem. 2023'!D68 -> 1116 | J75: =IF('Dati Generali CER 2 Sem. 2023'!CJ68="","",'Dati Generali CER 2 Sem. 2023'!CJ68) -> 2024-01-24T08:37:12
A76: 67 | B76: ='Dati Generali CER 1 Sem. 2023'!C69 -> PATTI | C76: =IF('Dati Generali CER 2 Sem. 2023'!E69="","",'Dati Generali CER 2 Sem. 2023'!E69) -> 954180 | D76: =IF(C76="","",'Dati Generali CER 2 Sem. 2023'!CE69) -> 2006900 | E76: ='Dati Generali CER 2 Sem. 2023'!W69 -> 0.6777594661 | F76: =IF('Dati Generali CER 2 Sem. 2023'!CF69="","",'Dati Generali CER 2 Sem. 2023'!CF69) -> 1.267251444 | G76: =IF('Dati Generali CER 2 Sem. 2023'!CG69="","",'Dati Generali CER 2 Sem. 2023'!CG69) -> 0.4083597818 | H76: =IF('Dati Generali CER 2 Sem. 2023'!CH69="","",'Dati Generali CER 2 Sem. 2023'!CH69) -> 0.8588916621 | I76: ='Dati Generali CER 2 Sem. 2023'!D69 -> 12699 | J76: =IF('Dati Generali CER 2 Sem. 2023'!CJ69="","",'Dati Generali CER 2 Sem. 2023'!CJ69) -> 2024-03-07T08:57:35
A77: 68 | B77: ='Dati Generali CER 1 Sem. 2023'!C70 -> PETTINEO | C77: =IF('Dati Generali CER 2 Sem. 2023'!E70="","",'Dati Generali CER 2 Sem. 2023'!E70) -> 26020 | D77: =IF(C77="","",'Dati Generali CER 2 Sem. 2023'!CE70) -> 118210 | E77: ='Dati Generali CER 2 Sem. 2023'!W70 -> 0.8195937045 | F77: =IF('Dati Generali CER 2 Sem. 2023'!CF70="","",'Dati Generali CER 2 Sem. 2023'!CF70) -> 0.6316347266 | G77: =IF('Dati Generali CER 2 Sem. 2023'!CG70="","",'Dati Generali CER 2 Sem. 2023'!CG70) -> 0.1139508811 | H77: =IF('Dati Generali CER 2 Sem. 2023'!CH70="","",'Dati Generali CER 2 Sem. 2023'!CH70) -> 0.5176838454 | I77: ='Dati Generali CER 2 Sem. 2023'!D70 -> 1241 | J77: =IF('Dati Generali CER 2 Sem. 2023'!CJ70="","",'Dati Generali CER 2 Sem. 2023'!CJ70) -> 2024-01-24T08:41:47
A78: 69 | B78: ='Dati Generali CER 1 Sem. 2023'!C71 -> PIRAINO | C78: =IF('Dati Generali CER 2 Sem. 2023'!E71="","",'Dati Generali CER 2 Sem. 2023'!E71) -> 198160 | D78: =IF(C78="","",'Dati Generali CER 2 Sem. 2023'!CE71) -> 638246 | E78: ='Dati Generali CER 2 Sem. 2023'!W71 -> 0.7630815657 | F78: =IF('Dati Generali CER 2 Sem. 2023'!CF71="","",'Dati Generali CER 2 Sem. 2023'!CF71) -> 1.197177978 | G78: =IF('Dati Generali CER 2 Sem. 2023'!CG71="","",'Dati Generali CER 2 Sem. 2023'!CG71) -> 0.2836335322 | H78: =IF('Dati Generali CER 2 Sem. 2023'!CH71="","",'Dati Generali CER 2 Sem. 2023'!CH71) -> 0.9135444458 | I78: ='Dati Generali CER 2 Sem. 2023'!D71 -> 3797 | J78: =IF('Dati Generali CER 2 Sem. 2023'!CJ71="","",'Dati Generali CER 2 Sem. 2023'!CJ71) -> 2024-03-28T13:02:57
A79: 70 | B79: ='Dati Generali CER 1 Sem. 2023'!C72 -> RACCUJA | C79: =IF('Dati Generali CER 2 Sem. 2023'!E72="","",'Dati Generali CER 2 Sem. 2023'!E72) -> 24560 | D79: =IF(C79="","",'Dati Generali CER 2 Sem. 2023'!CE72) -> 97500 | E79: ='Dati Generali CER 2 Sem. 2023'!W72 -> 0.7987874816 | F79: =IF('Dati Generali CER 2 Sem. 2023'!CF72="","",'Dati Generali CER 2 Sem. 2023'!CF72) -> 0.7954071525 | G79: =IF('Dati Generali CER 2 Sem. 2023'!CG72="","",'Dati Generali CER 2 Sem. 2023'!CG72) -> 0.1600458763 | H79: =IF('Dati Generali CER 2 Sem. 2023'!CH72="","",'Dati Generali CER 2 Sem. 2023'!CH72) -> 0.6353612762 | I79: ='Dati Generali CER 2 Sem. 2023'!D72 -> 834 | J79: =IF('Dati Generali CER 2 Sem. 2023'!CJ72="","",'Dati Generali CER 2 Sem. 2023'!CJ72) -> 2024-02-26T10:05:01
A80: 71 | B80: ='Dati Generali CER 1 Sem. 2023'!C73 -> REITANO | C80: =IF('Dati Generali CER 2 Sem. 2023'!E73="","",'Dati Generali CER 2 Sem. 2023'!E73) -> 82420 | D80: =IF(C80="","",'Dati Generali CER 2 Sem. 2023'!CE73) -> 193740 | E80: ='Dati Generali CER 2 Sem. 2023'!W73 -> 0.7015498262 | F80: =IF('Dati Generali CER 2 Sem. 2023'!CF73="","",'Dati Generali CER 2 Sem. 2023'!CF73) -> 2.128893 | G80: =IF('Dati Generali CER 2 Sem. 2023'!CG73="","",'Dati Generali CER 2 Sem. 2023'!CG73) -> 0.635368486 | H80: =IF('Dati Generali CER 2 Sem. 2023'!CH73="","",'Dati Generali CER 2 Sem. 2023'!CH73) -> 1.493524514 | I80: ='Dati Generali CER 2 Sem. 2023'!D73 -> 705 | J80: =IF('Dati Generali CER 2 Sem. 2023'!CJ73="","",'Dati Generali CER 2 Sem. 2023'!CJ73) -> 2024-03-07T09:31:46
A81: 72 | B81: ='Dati Generali CER 1 Sem. 2023'!C74 -> ROCCAFIORITA | C81: =IF('Dati Generali CER 2 Sem. 2023'!E74="","",'Dati Generali CER 2 Sem. 2023'!E74) -> 6780 | D81: =IF(C81="","",'Dati Generali CER 2 Sem. 2023'!CE74) -> 18955 | E81: ='Dati Generali CER 2 Sem. 2023'!W74 -> 0.7365455605 | F81: =IF('Dati Generali CER 2 Sem. 2023'!CF74="","",'Dati Generali CER 2 Sem. 2023'!CF74) -> 0.7857535418 | G81: =IF('Dati Generali CER 2 Sem. 2023'!CG74="","",'Dati Generali CER 2 Sem. 2023'!CG74) -> 0.2070102589 | H81: =IF('Dati Generali CER 2 Sem. 2023'!CH74="","",'Dati Generali CER 2 Sem. 2023'!CH74) -> 0.5787432829 | I81: ='Dati Generali CER 2 Sem. 2023'!D74 -> 178 | J81: =IF('Dati Generali CER 2 Sem. 2023'!CJ74="","",'Dati Generali CER 2 Sem. 2023'!CJ74) -> 2024-02-08T12:53:55
A82: 73 | B82: ='Dati Generali CER 1 Sem. 2023'!C75 -> ROCCALUMERA | C82: =IF('Dati Generali CER 2 Sem. 2023'!E75="","",'Dati Generali CER 2 Sem. 2023'!E75) -> 378850 | D82: =IF(C82="","",'Dati Generali CER 2 Sem. 2023'!CE75) -> 856649 | E82: ='Dati Generali CER 2 Sem. 2023'!W75 -> 0.6933627627 | F82: =IF('Dati Generali CER 2 Sem. 2023'!CF75="","",'Dati Generali CER 2 Sem. 2023'!CF75) -> 1.652231417 | G82: =IF('Dati Generali CER 2 Sem. 2023'!CG75="","",'Dati Generali CER 2 Sem. 2023'!CG75) -> 0.506635677 | H82: =IF('Dati Generali CER 2 Sem. 2023'!CH75="","",'Dati Generali CER 2 Sem. 2023'!CH75) -> 1.14559574 | I82: ='Dati Generali CER 2 Sem. 2023'!D75 -> 4064 | J82: =IF('Dati Generali CER 2 Sem. 2023'!CJ75="","",'Dati Generali CER 2 Sem. 2023'!CJ75) -> 2024-03-12T13:27:36
A83: 74 | B83: ='Dati Generali CER 1 Sem. 2023'!C76 -> ROCCAVALDINA | C83: =IF('Dati Generali CER 2 Sem. 2023'!E76="","",'Dati Generali CER 2 Sem. 2023'!E76) -> 75460 | D83: =IF(C83="","",'Dati Generali CER 2 Sem. 2023'!CE76) -> 83990 | E83: ='Dati Generali CER 2 Sem. 2023'!W76 -> 0.5267481969 | F83: =IF('Dati Generali CER 2 Sem. 2023'!CF76="","",'Dati Generali CER 2 Sem. 2023'!CF76) -> 0.8639841346 | G83: =IF('Dati Generali CER 2 Sem. 2023'!CG76="","",'Dati Generali CER 2 Sem. 2023'!CG76) -> 0.4088820495 | H83: =IF('Dati Generali CER 2 Sem. 2023'!CH76="","",'Dati Generali CER 2 Sem. 2023'!CH76) -> 0.455102085 | I83: ='Dati Generali CER 2 Sem. 2023'!D76 -> 1003 | J83: =IF('Dati Generali CER 2 Sem. 2023'!CJ76="","",'Dati Generali CER 2 Sem. 2023'!CJ76) -> 2024-04-04T10:28:58
A84: 75 | B84: ='Dati Generali CER 1 Sem. 2023'!C77 -> ROCCELLA VALDEMONE | C84: =IF('Dati Generali CER 2 Sem. 2023'!E77="","",'Dati Generali CER 2 Sem. 2023'!E77) -> 51460 | D84: =IF(C84="","",'Dati Generali CER 2 Sem. 2023'!CE77) -> 37180 | E84: ='Dati Generali CER 2 Sem. 2023'!W77 -> 0.4194494585 | F84: =IF('Dati Generali CER 2 Sem. 2023'!CF77="","",'Dati Generali CER 2 Sem. 2023'!CF77) -> 0.8602484472 | G84: =IF('Dati Generali CER 2 Sem. 2023'!CG77="","",'Dati Generali CER 2 Sem. 2023'!CG77) -> 0.4994177019 | H84: =IF('Dati Generali CER 2 Sem. 2023'!CH77="","",'Dati Generali CER 2 Sem. 2023'!CH77) -> 0.3608307453 | I84: ='Dati Generali CER 2 Sem. 2023'!D77 -> 560 | J84: =IF('Dati Generali CER 2 Sem. 2023'!CJ77="","",'Dati Generali CER 2 Sem. 2023'!CJ77) -> 2024-01-24T11:44:04
A85: 76 | B85: ='Dati Generali CER 1 Sem. 2023'!C78 -> RODI' MILICI | C85: =IF('Dati Generali CER 2 Sem. 2023'!E78="","",'Dati Generali CER 2 Sem. 2023'!E78) -> 74600 | D85: =IF(C85="","",'Dati Generali CER 2 Sem. 2023'!CE78) -> 247160 | E85: ='Dati Generali CER 2 Sem. 2023'!W78 -> 0.768150174 | F85: =IF('Dati Generali CER 2 Sem. 2023'!CF78="","",'Dati Generali CER 2 Sem. 2023'!CF78) -> 0.8926470915 | G85: =IF('Dati Generali CER 2 Sem. 2023'!CG78="","",'Dati Generali CER 2 Sem. 2023'!CG78) -> 0.2069600728 | H85: =IF('Dati Generali CER 2 Sem. 2023'!CH78="","",'Dati Generali CER 2 Sem. 2023'!CH78) -> 0.6856870187 | I85: ='Dati Generali CER 2 Sem. 2023'!D78 -> 1959 | J85: =IF('Dati Generali CER 2 Sem. 2023'!CJ78="","",'Dati Generali CER 2 Sem. 2023'!CJ78) -> 2024-01-24T11:46:39
A86: 77 | B86: ='Dati Generali CER 1 Sem. 2023'!C79 -> ROMETTA | C86: =IF('Dati Generali CER 2 Sem. 2023'!E79="","",'Dati Generali CER 2 Sem. 2023'!E79) -> 216420 | D86: =IF(C86="","",'Dati Generali CER 2 Sem. 2023'!CE79) -> 934030 | E86: ='Dati Generali CER 2 Sem. 2023'!W79 -> 0.8118823069 | F86: =IF('Dati Generali CER 2 Sem. 2023'!CF79="","",'Dati Generali CER 2 Sem. 2023'!CF79) -> 0.9479147441 | G86: =IF('Dati Generali CER 2 Sem. 2023'!CG79="","",'Dati Generali CER 2 Sem. 2023'!CG79) -> 0.1783195349 | H86: =IF('Dati Generali CER 2 Sem. 2023'!CH79="","",'Dati Generali CER 2 Sem. 2023'!CH79) -> 0.7695952092 | I86: ='Dati Generali CER 2 Sem. 2023'!D79 -> 6596 | J86: =IF('Dati Generali CER 2 Sem. 2023'!CJ79="","",'Dati Generali CER 2 Sem. 2023'!CJ79) -> 2024-02-14T14:59:36
A87: 78 | B87: ='Dati Generali CER 1 Sem. 2023'!C82 -> S. AGATA DI MILITELLO | C87: =IF('Dati Generali CER 2 Sem. 2023'!E82="","",'Dati Generali CER 2 Sem. 2023'!E82) -> 648560 | D87: =IF(C87="","",'Dati Generali CER 2 Sem. 2023'!CE82) -> 1847929 | E87: ='Dati Generali CER 2 Sem. 2023'!W82 -> 0.7402111525 | F87: =IF('Dati Generali CER 2 Sem. 2023'!CF82="","",'Dati Generali CER 2 Sem. 2023'!CF82) -> 1.137004525 | G87: =IF('Dati Generali CER 2 Sem. 2023'!CG82="","",'Dati Generali CER 2 Sem. 2023'!CG82) -> 0.2953810952 | H87: =IF('Dati Generali CER 2 Sem. 2023'!CH82="","",'Dati Generali CER 2 Sem. 2023'!CH82) -> 0.8416234301 | I87: ='Dati Generali CER 2 Sem. 2023'!D82 -> 11933 | J87: =IF('Dati Generali CER 2 Sem. 2023'!CJ82="","",'Dati Generali CER 2 Sem. 2023'!CJ82) -> 2024-01-29T08:08:08
A88: 79 | B88: ='Dati Generali CER 1 Sem. 2023'!C93 -> S. ALESSIO SICULO | C88: =IF('Dati Generali CER 2 Sem. 2023'!E93="","",'Dati Generali CER 2 Sem. 2023'!E93) -> 257040 | D88: =IF(C88="","",'Dati Generali CER 2 Sem. 2023'!CE93) -> 319880 | E88: ='Dati Generali CER 2 Sem. 2023'!W93 -> 0.5544616238 | F88: =IF('Dati Generali CER 2 Sem. 2023'!CF93="","",'Dati Generali CER 2 Sem. 2023'!CF93) -> 2.02286115 | G88: =IF('Dati Generali CER 2 Sem. 2023'!CG93="","",'Dati Generali CER 2 Sem. 2023'!CG93) -> 0.9012622721 | H88: =IF('Dati Generali CER 2 Sem. 2023'!CH93="","",'Dati Generali CER 2 Sem. 2023'!CH93) -> 1.121598878 | I88: ='Dati Generali CER 2 Sem. 2023'!D93 -> 1550 | J88: =IF('Dati Generali CER 2 Sem. 2023'!CJ93="","",'Dati Generali CER 2 Sem. 2023'!CJ93) -> 2024-04-11T15:56:15
A89: 80 | B89: ='Dati Generali CER 1 Sem. 2023'!C92 -> S. ANGELO DI BROLO | C89: =IF('Dati Generali CER 2 Sem. 2023'!E92="","",'Dati Generali CER 2 Sem. 2023'!E92) -> 63640 | D89: =IF(C89="","",'Dati Generali CER 2 Sem. 2023'!CE92) -> 417550 | E89: ='Dati Generali CER 2 Sem. 2023'!W92 -> 0.86774455 | F89: =IF('Dati Generali CER 2 Sem. 2023'!CF92="","",'Dati Generali CER 2 Sem. 2023'!CF92) -> 0.960750567 | G89: =IF('Dati Generali CER 2 Sem. 2023'!CG92="","",'Dati Generali CER 2 Sem. 2023'!CG92) -> 0.1270644986 | H89: =IF('Dati Generali CER 2 Sem. 2023'!CH92="","",'Dati Generali CER 2 Sem. 2023'!CH92) -> 0.8336860684 | I89: ='Dati Generali CER 2 Sem. 2023'!D92 -> 2722 | J89: =IF('Dati Generali CER 2 Sem. 2023'!CJ92="","",'Dati Generali CER 2 Sem. 2023'!CJ92) -> 2024-02-08T13:03:03
A90: 81 | B90: ='Dati Generali CER 1 Sem. 2023'!C80 -> S. DOMENICA VITTORIA | C90: =IF('Dati Generali CER 2 Sem. 2023'!E80="","",'Dati Generali CER 2 Sem. 2023'!E80) -> 80920 | D90: =IF(C90="","",'Dati Generali CER 2 Sem. 2023'!CE80) -> 64590 | E90: ='Dati Generali CER 2 Sem. 2023'!W80 -> 0.4438870181 | F90: =IF('Dati Generali CER 2 Sem. 2023'!CF80="","",'Dati Generali CER 2 Sem. 2023'!CF80) -> 0.9270987308 | G90: =IF('Dati Generali CER 2 Sem. 2023'!CG80="","",'Dati Generali CER 2 Sem. 2023'!CG80) -> 0.5155716397 | H90: =IF('Dati Generali CER 2 Sem. 2023'!CH80="","",'Dati Generali CER 2 Sem. 2023'!CH80) -> 0.4115270911 | I90: ='Dati Generali CER 2 Sem. 2023'!D80 -> 853 | J90: =IF('Dati Generali CER 2 Sem. 2023'!CJ80="","",'Dati Generali CER 2 Sem. 2023'!CJ80) -> 2024-02-05T10:05:38
A91: 82 | B91: ='Dati Generali CER 1 Sem. 2023'!C85 -> S. FILIPPO DEL MELA | C91: =IF('Dati Generali CER 2 Sem. 2023'!E85="","",'Dati Generali CER 2 Sem. 2023'!E85) -> 348300 | D91: =IF(C91="","",'Dati Generali CER 2 Sem. 2023'!CE85) -> 889330 | E91: ='Dati Generali CER 2 Sem. 2023'!W85 -> 0.6943442482 | F91: =IF('Dati Generali CER 2 Sem. 2023'!CF85="","",'Dati Generali CER 2 Sem. 2023'!CF85) -> 1.040349464 | G91: =IF('Dati Generali CER 2 Sem. 2023'!CG85="","",'Dati Generali CER 2 Sem. 2023'!CG85) -> 0.2829076046 | H91: =IF('Dati Generali CER 2 Sem. 2023'!CH85="","",'Dati Generali CER 2 Sem. 2023'!CH85) -> 0.7223606662 | I91: ='Dati Generali CER 2 Sem. 2023'!D85 -> 6691 | J91: =IF('Dati Generali CER 2 Sem. 2023'!CJ85="","",'Dati Generali CER 2 Sem. 2023'!CJ85) -> 2024-01-25T17:59:25
A92: 83 | B92: ='Dati Generali CER 1 Sem. 2023'!C90 -> S. SALVAT. DI FITALIA | C92: =IF('Dati Generali CER 2 Sem. 2023'!E90="","",'Dati Generali CER 2 Sem. 2023'!E90) -> 24020 | D92: =IF(C92="","",'Dati Generali CER 2 Sem. 2023'!CE90) -> 130900 | E92: ='Dati Generali CER 2 Sem. 2023'!W90 -> 0.8449522334 | F92: =IF('Dati Generali CER 2 Sem. 2023'!CF90="","",'Dati Generali CER 2 Sem. 2023'!CF90) -> 0.7524186968 | G92: =IF('Dati Generali CER 2 Sem. 2023'!CG90="","",'Dati Generali CER 2 Sem. 2023'!CG90) -> 0.1166608385 | H92: =IF('Dati Generali CER 2 Sem. 2023'!CH90="","",'Dati Generali CER 2 Sem. 2023'!CH90) -> 0.6357578583 | I92: ='Dati Generali CER 2 Sem. 2023'!D90 -> 1119 | J92: =IF('Dati Generali CER 2 Sem. 2023'!CJ90="","",'Dati Generali CER 2 Sem. 2023'!CJ90) -> 2024-01-24T08:49:55
A93: 84 | B93: ='Dati Generali CER 1 Sem. 2023'!C81 -> S. STEF. DI CAMASTRA | C93: =IF('Dati Generali CER 2 Sem. 2023'!E81="","",'Dati Generali CER 2 Sem. 2023'!E81) -> 337680 | D93: =IF(C93="","",'Dati Generali CER 2 Sem. 2023'!CE81) -> 753820 | E93: ='Dati Generali CER 2 Sem. 2023'!W81 -> 0.6906275767 | F93: =IF('Dati Generali CER 2 Sem. 2023'!CF81="","",'Dati Generali CER 2 Sem. 2023'!CF81) -> 1.363379733 | G93: =IF('Dati Generali CER 2 Sem. 2023'!CG81="","",'Dati Generali CER 2 Sem. 2023'!CG81) -> 0.4217920918 | H93: =IF('Dati Generali CER 2 Sem. 2023'!CH81="","",'Dati Generali CER 2 Sem. 2023'!CH81) -> 0.941587641 | I93: ='Dati Generali CER 2 Sem. 2023'!D81 -> 4351 | J93: =IF('Dati Generali CER 2 Sem. 2023'!CJ81="","",'Dati Generali CER 2 Sem. 2023'!CJ81) -> 2024-01-31T14:03:57
A94: 85 | B94: ='Dati Generali CER 1 Sem. 2023'!C84 -> S. TERESA DI RIVA | C94: =IF('Dati Generali CER 2 Sem. 2023'!E84="","",'Dati Generali CER 2 Sem. 2023'!E84) -> 415060 | D94: =IF(C94="","",'Dati Generali CER 2 Sem. 2023'!CE84) -> 1390206 | E94: ='Dati Generali CER 2 Sem. 2023'!W84 -> 0.7700837439 | F94: =IF('Dati Generali CER 2 Sem. 2023'!CF84="","",'Dati Generali CER 2 Sem. 2023'!CF84) -> 1.058841815 | G94: =IF('Dati Generali CER 2 Sem. 2023'!CG84="","",'Dati Generali CER 2 Sem. 2023'!CG84) -> 0.243444946 | H94: =IF('Dati Generali CER 2 Sem. 2023'!CH84="","",'Dati Generali CER 2 Sem. 2023'!CH84) -> 0.8153968693 | I94: ='Dati Generali CER 2 Sem. 2023'!D84 -> 9266 | J94: =IF('Dati Generali CER 2 Sem. 2023'!CJ84="","",'Dati Generali CER 2 Sem. 2023'!CJ84) -> 2024-01-24T09:44:15
A95: 86 | B95: ='Dati Generali CER 1 Sem. 2023'!C86 -> SAN FRATELLO | C95: =IF('Dati Generali CER 2 Sem. 2023'!E86="","",'Dati Generali CER 2 Sem. 2023'!E86) -> 93880 | D95: =IF(C95="","",'Dati Generali CER 2 Sem. 2023'!CE86) -> 285930 | E95: ='Dati Generali CER 2 Sem. 2023'!W86 -> 0.7528237803 | F95: =IF('Dati Generali CER 2 Sem. 2023'!CF86="","",'Dati Generali CER 2 Sem. 2023'!CF86) -> 0.6454611578 | G95: =IF('Dati Generali CER 2 Sem. 2023'!CG86="","",'Dati Generali CER 2 Sem. 2023'!CG86) -> 0.1595426489 | H95: =IF('Dati Generali CER 2 Sem. 2023'!CH86="","",'Dati Generali CER 2 Sem. 2023'!CH86) -> 0.4859185089 | I95: ='Dati Generali CER 2 Sem. 2023'!D86 -> 3198 | J95: =IF('Dati Generali CER 2 Sem. 2023'!CJ86="","",'Dati Generali CER 2 Sem. 2023'!CJ86) -> 2024-01-29T08:13:46
A96: 87 | B96: ='Dati Generali CER 1 Sem. 2023'!C87 -> SAN MARCO D'ALUNZIO | C96: =IF('Dati Generali CER 2 Sem. 2023'!E87="","",'Dati Generali CER 2 Sem. 2023'!E87) -> 58020 | D96: =IF(C96="","",'Dati Generali CER 2 Sem. 2023'!CE87) -> 202800 | E96: ='Dati Generali CER 2 Sem. 2023'!W87 -> 0.7775477341 | F96: =IF('Dati Generali CER 2 Sem. 2023'!CF87="","",'Dati Generali CER 2 Sem. 2023'!CF87) -> 0.7801320859 | G96: =IF('Dati Generali CER 2 Sem. 2023'!CG87="","",'Dati Generali CER 2 Sem. 2023'!CG87) -> 0.1735421502 | H96: =IF('Dati Generali CER 2 Sem. 2023'!CH87="","",'Dati Generali CER 2 Sem. 2023'!CH87) -> 0.6065899356 | I96: ='Dati Generali CER 2 Sem. 2023'!D87 -> 1817 | J96: =IF('Dati Generali CER 2 Sem. 2023'!CJ87="","",'Dati Generali CER 2 Sem. 2023'!CJ87) -> 2024-01-24T12:05:23
A97: 88 | B97: ='Dati Generali CER 1 Sem. 2023'!C88 -> SAN PIER NICETO | C97: =IF('Dati Generali CER 2 Sem. 2023'!E88="","",'Dati Generali CER 2 Sem. 2023'!E88) -> 180860 | D97: =IF(C97="","",'Dati Generali CER 2 Sem. 2023'!CE88) -> 333430 | E97: ='Dati Generali CER 2 Sem. 2023'!W88 -> 0.6483307084 | F97: =IF('Dati Generali CER 2 Sem. 2023'!CF88="","",'Dati Generali CER 2 Sem. 2023'!CF88) -> 1.082096147 | G97: =IF('Dati Generali CER 2 Sem. 2023'!CG88="","",'Dati Generali CER 2 Sem. 2023'!CG88) -> 0.3805399855 | H97: =IF('Dati Generali CER 2 Sem. 2023'!CH88="","",'Dati Generali CER 2 Sem. 2023'!CH88) -> 0.7015561615 | I97: ='Dati Generali CER 2 Sem. 2023'!D88 -> 2583 | J97: =IF('Dati Generali CER 2 Sem. 2023'!CJ88="","",'Dati Generali CER 2 Sem. 2023'!CJ88) -> 2024-01-25T13:07:29
A98: 89 | B98: ='Dati Generali CER 1 Sem. 2023'!C89 -> SAN PIERO PATTI | C98: =IF('Dati Generali CER 2 Sem. 2023'!E89="","",'Dati Generali CER 2 Sem. 2023'!E89) -> 103300 | D98: =IF(C98="","",'Dati Generali CER 2 Sem. 2023'!CE89) -> 433164 | E98: ='Dati Generali CER 2 Sem. 2023'!W89 -> 0.8074428107 | F98: =IF('Dati Generali CER 2 Sem. 2023'!CF89="","",'Dati Generali CER 2 Sem. 2023'!CF89) -> 1.124398464 | G98: =IF('Dati Generali CER 2 Sem. 2023'!CG89="","",'Dati Generali CER 2 Sem. 2023'!CG89) -> 0.2165110079 | H98: =IF('Dati Generali CER 2 Sem. 2023'!CH89="","",'Dati Generali CER 2 Sem. 2023'!CH89) -> 0.9078874562 | I98: ='Dati Generali CER 2 Sem. 2023'!D89 -> 2593 | J98: =IF('Dati Generali CER 2 Sem. 2023'!CJ89="","",'Dati Generali CER 2 Sem. 2023'!CJ89) -> 2024-02-08T13:14:35
A99: 90 | B99: ='Dati Generali CER 1 Sem. 2023'!C91 -> SAN TEODORO | C99: =IF('Dati Generali CER 2 Sem. 2023'!E91="","",'Dati Generali CER 2 Sem. 2023'!E91) -> 62230 | D99: =IF(C99="","",'Dati Generali CER 2 Sem. 2023'!CE91) -> 121293 | E99: ='Dati Generali CER 2 Sem. 2023'!W91 -> 0.6609144358 | F99: =IF('Dati Generali CER 2 Sem. 2023'!CF91="","",'Dati Generali CER 2 Sem. 2023'!CF91) -> 0.7972882564 | G99: =IF('Dati Generali CER 2 Sem. 2023'!CG91="","",'Dati Generali CER 2 Sem. 2023'!CG91) -> 0.2703489382 | H99: =IF('Dati Generali CER 2 Sem. 2023'!CH91="","",'Dati Generali CER 2 Sem. 2023'!CH91) -> 0.5269393181 | I99: ='Dati Generali CER 2 Sem. 2023'!D91 -> 1251 | J99: =IF('Dati Generali CER 2 Sem. 2023'!CJ91="","",'Dati Generali CER 2 Sem. 2023'!CJ91) -> 2024-01-24T09:41:41
A100: 91 | B100: ='Dati Generali CER 1 Sem. 2023'!C83 -> SANTA LUCIA DEL MELA | C100: =IF('Dati Generali CER 2 Sem. 2023'!E83="","",'Dati Generali CER 2 Sem. 2023'!E83) -> 281140 | D100: =IF(C100="","",'Dati Generali CER 2 Sem. 2023'!CE83) -> 695318 | E100: ='Dati Generali CER 2 Sem. 2023'!W83 -> 0.7120818305 | F100: =IF('Dati Generali CER 2 Sem. 2023'!CF83="","",'Dati Generali CER 2 Sem. 2023'!CF83) -> 1.213268623 | G100: =IF('Dati Generali CER 2 Sem. 2023'!CG83="","",'Dati Generali CER 2 Sem. 2023'!CG83) -> 0.3493220811 | H100: =IF('Dati Generali CER 2 Sem. 2023'!CH83="","",'Dati Generali CER 2 Sem. 2023'!CH83) -> 0.8639465418 | I100: ='Dati Generali CER 2 Sem. 2023'!D83 -> 4374 | J100: =IF('Dati Generali CER 2 Sem. 2023'!CJ83="","",'Dati Generali CER 2 Sem. 2023'!CJ83) -> 2024-01-24T11:51:17
A101: 92 | B101: ='Dati Generali CER 1 Sem. 2023'!C94 -> SANTA MARINA SALINA | C101: =IF('Dati Generali CER 2 Sem. 2023'!E94="","",'Dati Generali CER 2 Sem. 2023'!E94) -> 288320 | D101: =IF(C101="","",'Dati Generali CER 2 Sem. 2023'!CE94) -> 157380 | E101: ='Dati Generali CER 2 Sem. 2023'!W94 -> 0.3531074714 | F101: =IF('Dati Generali CER 2 Sem. 2023'!CF94="","",'Dati Generali CER 2 Sem. 2023'!CF94) -> 2.823173204 | G101: =IF('Dati Generali CER 2 Sem. 2023'!CG94="","",'Dati Generali CER 2 Sem. 2023'!CG94) -> 1.826289652 | H101: =IF('Dati Generali CER 2 Sem. 2023'!CH94="","",'Dati Generali CER 2 Sem. 2023'!CH94) -> 0.9968835512 | I101: ='Dati Generali CER 2 Sem. 2023'!D94 -> 858 | J101: =IF('Dati Generali CER 2 Sem. 2023'!CJ94="","",'Dati Generali CER 2 Sem. 2023'!CJ94) -> 2024-01-24T12:12:35
A102: 93 | B102: ='Dati Generali CER 1 Sem. 2023'!C95 -> SAPONARA | C102: =IF('Dati Generali CER 2 Sem. 2023'!E95="","",'Dati Generali CER 2 Sem. 2023'!E95) -> 101460 | D102: =IF(C102="","",'Dati Generali CER 2 Sem. 2023'!CE95) -> 534660 | E102: ='Dati Generali CER 2 Sem. 2023'!W95 -> 0.8405017921 | F102: =IF('Dati Generali CER 2 Sem. 2023'!CF95="","",'Dati Generali CER 2 Sem. 2023'!CF95) -> 0.9420092406 | G102: =IF('Dati Generali CER 2 Sem. 2023'!CG95="","",'Dati Generali CER 2 Sem. 2023'!CG95) -> 0.1502487857 | H102: =IF('Dati Generali CER 2 Sem. 2023'!CH95="","",'Dati Generali CER 2 Sem. 2023'!CH95) -> 0.7917604549 | I102: ='Dati Generali CER 2 Sem. 2023'!D95 -> 3670 | J102: =IF('Dati Generali CER 2 Sem. 2023'!CJ95="","",'Dati Generali CER 2 Sem. 2023'!CJ95) -> 2024-01-24T09:59:35
A103: 94 | B103: ='Dati Generali CER 1 Sem. 2023'!C96 -> SAVOCA | C103: =IF('Dati Generali CER 2 Sem. 2023'!E96="","",'Dati Generali CER 2 Sem. 2023'!E96) -> 127080 | D103: =IF(C103="","",'Dati Generali CER 2 Sem. 2023'!CE96) -> 191930 | E103: ='Dati Generali CER 2 Sem. 2023'!W96 -> 0.6016425817 | F103: =IF('Dati Generali CER 2 Sem. 2023'!CF96="","",'Dati Generali CER 2 Sem. 2023'!CF96) -> 1.010932945 | G103: =IF('Dati Generali CER 2 Sem. 2023'!CG96="","",'Dati Generali CER 2 Sem. 2023'!CG96) -> 0.4027126379 | H103: =IF('Dati Generali CER 2 Sem. 2023'!CH96="","",'Dati Generali CER 2 Sem. 2023'!CH96) -> 0.6082203068 | I103: ='Dati Generali CER 2 Sem. 2023'!D96 -> 1715 | J103: =IF('Dati Generali CER 2 Sem. 2023'!CJ96="","",'Dati Generali CER 2 Sem. 2023'!CJ96) -> 2024-02-08T13:18:26
A104: 95 | B104: ='Dati Generali CER 1 Sem. 2023'!C97 -> SCALETTA ZANCLEA | C104: =IF('Dati Generali CER 2 Sem. 2023'!E97="","",'Dati Generali CER 2 Sem. 2023'!E97) -> 96160 | D104: =IF(C104="","",'Dati Generali CER 2 Sem. 2023'!CE97) -> 209200 | E104: ='Dati Generali CER 2 Sem. 2023'!W97 -> 0.685093005 | F104: =IF('Dati Generali CER 2 Sem. 2023'!CF97="","",'Dati Generali CER 2 Sem. 2023'!CF97) -> 0.8994933428 | G104: =IF('Dati Generali CER 2 Sem. 2023'!CG97="","",'Dati Generali CER 2 Sem. 2023'!CG97) -> 0.2832567456 | H104: =IF('Dati Generali CER 2 Sem. 2023'!CH97="","",'Dati Generali CER 2 Sem. 2023'!CH97) -> 0.6162365971 | I104: ='Dati Generali CER 2 Sem. 2023'!D97 -> 1845 | J104: =IF('Dati Generali CER 2 Sem. 2023'!CJ97="","",'Dati Generali CER 2 Sem. 2023'!CJ97) -> 2024-04-03T11:35:41
A105: 96 | B105: ='Dati Generali CER 1 Sem. 2023'!C98 -> SINAGRA | C105: =IF('Dati Generali CER 2 Sem. 2023'!E98="","",'Dati Generali CER 2 Sem. 2023'!E98) -> 21640 | D105: =IF(C105="","",'Dati Generali CER 2 Sem. 2023'!CE98) -> 400730 | E105: ='Dati Generali CER 2 Sem. 2023'!W98 -> 0.9487653006 | F105: =IF('Dati Generali CER 2 Sem. 2023'!CF98="","",'Dati Generali CER 2 Sem. 2023'!CF98) -> 0.9323676403 | G105: =IF('Dati Generali CER 2 Sem. 2023'!CG98="","",'Dati Generali CER 2 Sem. 2023'!CG98) -> 0.04776957581 | H105: =IF('Dati Generali CER 2 Sem. 2023'!CH98="","",'Dati Generali CER 2 Sem. 2023'!CH98) -> 0.8845980645 | I105: ='Dati Generali CER 2 Sem. 2023'!D98 -> 2462 | J105: =IF('Dati Generali CER 2 Sem. 2023'!CJ98="","",'Dati Generali CER 2 Sem. 2023'!CJ98) -> 2024-01-24T12:15:19
A106: 97 | B106: ='Dati Generali CER 1 Sem. 2023'!C99 -> SPADAFORA | C106: =IF('Dati Generali CER 2 Sem. 2023'!E99="","",'Dati Generali CER 2 Sem. 2023'!E99) -> 349819 | D106: =IF(C106="","",'Dati Generali CER 2 Sem. 2023'!CE99) -> 663911 | E106: ='Dati Generali CER 2 Sem. 2023'!W99 -> 0.6549189626 | F106: =IF('Dati Generali CER 2 Sem. 2023'!CF99="","",'Dati Generali CER 2 Sem. 2023'!CF99) -> 1.18532749 | G106: =IF('Dati Generali CER 2 Sem. 2023'!CG99="","",'Dati Generali CER 2 Sem. 2023'!CG99) -> 0.4090340399 | H106: =IF('Dati Generali CER 2 Sem. 2023'!CH99="","",'Dati Generali CER 2 Sem. 2023'!CH99) -> 0.7762934502 | I106: ='Dati Generali CER 2 Sem. 2023'!D99 -> 4648 | J106: =IF('Dati Generali CER 2 Sem. 2023'!CJ99="","",'Dati Generali CER 2 Sem. 2023'!CJ99) -> 2024-01-24T12:24:44
A107: 98 | B107: ='Dati Generali CER 1 Sem. 2023'!C100 -> TAORMINA | C107: =IF('Dati Generali CER 2 Sem. 2023'!E100="","",'Dati Generali CER 2 Sem. 2023'!E100) -> 1433440 | D107: =IF(C107="","",'Dati Generali CER 2 Sem. 2023'!CE100) -> 3687027 | E107: ='Dati Generali CER 2 Sem. 2023'!W100 -> 0.7046548736 | F107: =IF('Dati Generali CER 2 Sem. 2023'!CF100="","",'Dati Generali CER 2 Sem. 2023'!CF100) -> 2.7085328 | G107: =IF('Dati Generali CER 2 Sem. 2023'!CG100="","",'Dati Generali CER 2 Sem. 2023'!CG100) -> 0.742016838 | H107: =IF('Dati Generali CER 2 Sem. 2023'!CH100="","",'Dati Generali CER 2 Sem. 2023'!CH100) -> 1.908580838 | I107: ='Dati Generali CER 2 Sem. 2023'!D100 -> 10499 | J107: =IF('Dati Generali CER 2 Sem. 2023'!CJ100="","",'Dati Generali CER 2 Sem. 2023'!CJ100) -> 2024-01-29T08:16:47
A108: 99 | B108: ='Dati Generali CER 1 Sem. 2023'!C101 -> TERME VIGLIATORE | C108: =IF('Dati Generali CER 2 Sem. 2023'!E101="","",'Dati Generali CER 2 Sem. 2023'!E101) -> 401180 | D108: =IF(C108="","",'Dati Generali CER 2 Sem. 2023'!CE101) -> 1118510 | E108: ='Dati Generali CER 2 Sem. 2023'!W101 -> 0.7360119498 | F108: =IF('Dati Generali CER 2 Sem. 2023'!CF101="","",'Dati Generali CER 2 Sem. 2023'!CF101) -> 1.140141466 | G108: =IF('Dati Generali CER 2 Sem. 2023'!CG101="","",'Dati Generali CER 2 Sem. 2023'!CG101) -> 0.3009837227 | H108: =IF('Dati Generali CER 2 Sem. 2023'!CH101="","",'Dati Generali CER 2 Sem. 2023'!CH101) -> 0.8391577437 | I108: ='Dati Generali CER 2 Sem. 2023'!D101 -> 7244 | J108: =IF('Dati Generali CER 2 Sem. 2023'!CJ101="","",'Dati Generali CER 2 Sem. 2023'!CJ101) -> 2024-02-12T09:25:15
A109: 100 | B109: ='Dati Generali CER 1 Sem. 2023'!C102 -> TORREGROTTA | C109: =IF('Dati Generali CER 2 Sem. 2023'!E102="","",'Dati Generali CER 2 Sem. 2023'!E102) -> 514760 | D109: =IF(C109="","",'Dati Generali CER 2 Sem. 2023'!CE102) -> 893453 | E109: ='Dati Generali CER 2 Sem. 2023'!W102 -> 0.607616725 | F109: =IF('Dati Generali CER 2 Sem. 2023'!CF102="","",'Dati Generali CER 2 Sem. 2023'!CF102) -> 1.095165673 | G109: =IF('Dati Generali CER 2 Sem. 2023'!CG102="","",'Dati Generali CER 2 Sem. 2023'!CG102) -> 0.3833916261 | H109: =IF('Dati Generali CER 2 Sem. 2023'!CH102="","",'Dati Generali CER 2 Sem. 2023'!CH102) -> 0.6654409793 | I109: ='Dati Generali CER 2 Sem. 2023'!D102 -> 7297 | J109: =IF('Dati Generali CER 2 Sem. 2023'!CJ102="","",'Dati Generali CER 2 Sem. 2023'!CJ102) -> 2024-02-22T17:27:57
A110: 101 | B110: ='Dati Generali CER 1 Sem. 2023'!C103 -> TORRENOVA | C110: =IF('Dati Generali CER 2 Sem. 2023'!E103="","",'Dati Generali CER 2 Sem. 2023'!E103) -> 84240 | D110: =IF(C110="","",'Dati Generali CER 2 Sem. 2023'!CE103) -> 668349 | E110: ='Dati Generali CER 2 Sem. 2023'!W103 -> 0.8880663948 | F110: =IF('Dati Generali CER 2 Sem. 2023'!CF103="","",'Dati Generali CER 2 Sem. 2023'!CF103) -> 0.9065065622 | G110: =IF('Dati Generali CER 2 Sem. 2023'!CG103="","",'Dati Generali CER 2 Sem. 2023'!CG103) -> 0.1014685476 | H110: =IF('Dati Generali CER 2 Sem. 2023'!CH103="","",'Dati Generali CER 2 Sem. 2023'!CH103) -> 0.8050380146 | I110: ='Dati Generali CER 2 Sem. 2023'!D103 -> 4512 | J110: =IF('Dati Generali CER 2 Sem. 2023'!CJ103="","",'Dati Generali CER 2 Sem. 2023'!CJ103) -> 2024-03-07T10:01:51
A111: 102 | B111: ='Dati Generali CER 1 Sem. 2023'!C104 -> TORTORICI | C111: =IF('Dati Generali CER 2 Sem. 2023'!E104="","",'Dati Generali CER 2 Sem. 2023'!E104) -> 169460 | D111: =IF(C111="","",'Dati Generali CER 2 Sem. 2023'!CE104) -> 436746 | E111: ='Dati Generali CER 2 Sem. 2023'!W104 -> 0.7204580621 | F111: =IF('Dati Generali CER 2 Sem. 2023'!CF104="","",'Dati Generali CER 2 Sem. 2023'!CF104) -> 0.5852900739 | G111: =IF('Dati Generali CER 2 Sem. 2023'!CG104="","",'Dati Generali CER 2 Sem. 2023'!CG104) -> 0.1636131215 | H111: =IF('Dati Generali CER 2 Sem. 2023'!CH104="","",'Dati Generali CER 2 Sem. 2023'!CH104) -> 0.4216769524 | I111: ='Dati Generali CER 2 Sem. 2023'!D104 -> 5629 | J111: =IF('Dati Generali CER 2 Sem. 2023'!CJ104="","",'Dati Generali CER 2 Sem. 2023'!CJ104) -> 2024-02-12T08:48:23
A112: 103 | B112: ='Dati Generali CER 1 Sem. 2023'!C105 -> TRIPI | C112: =IF('Dati Generali CER 2 Sem. 2023'!E105="","",'Dati Generali CER 2 Sem. 2023'!E105) -> 19210 | D112: =IF(C112="","",'Dati Generali CER 2 Sem. 2023'!CE105) -> 117992 | E112: ='Dati Generali CER 2 Sem. 2023'!W105 -> 0.8599874637 | F112: =IF('Dati Generali CER 2 Sem. 2023'!CF105="","",'Dati Generali CER 2 Sem. 2023'!CF105) -> 0.9968757266 | G112: =IF('Dati Generali CER 2 Sem. 2023'!CG105="","",'Dati Generali CER 2 Sem. 2023'!CG105) -> 0.1395750988 | H112: =IF('Dati Generali CER 2 Sem. 2023'!CH105="","",'Dati Generali CER 2 Sem. 2023'!CH105) -> 0.8573006278 | I112: ='Dati Generali CER 2 Sem. 2023'!D105 -> 748 | J112: =IF('Dati Generali CER 2 Sem. 2023'!CJ105="","",'Dati Generali CER 2 Sem. 2023'!CJ105) -> 2024-03-07T15:21:02
A113: 104 | B113: ='Dati Generali CER 1 Sem. 2023'!C106 -> TUSA | C113: =IF('Dati Generali CER 2 Sem. 2023'!E106="","",'Dati Generali CER 2 Sem. 2023'!E106) -> 135600 | D113: =IF(C113="","",'Dati Generali CER 2 Sem. 2023'!CE106) -> 442536 | E113: ='Dati Generali CER 2 Sem. 2023'!W106 -> 0.7654531114 | F113: =IF('Dati Generali CER 2 Sem. 2023'!CF106="","",'Dati Generali CER 2 Sem. 2023'!CF106) -> 1.235565662 | G113: =IF('Dati Generali CER 2 Sem. 2023'!CG106="","",'Dati Generali CER 2 Sem. 2023'!CG106) -> 0.2897980817 | H113: =IF('Dati Generali CER 2 Sem. 2023'!CH106="","",'Dati Generali CER 2 Sem. 2023'!CH106) -> 0.9457675802 | I113: ='Dati Generali CER 2 Sem. 2023'!D106 -> 2543 | J113: =IF('Dati Generali CER 2 Sem. 2023'!CJ106="","",'Dati Generali CER 2 Sem. 2023'!CJ106) -> 2024-02-26T09:42:22
A114: 105 | B114: ='Dati Generali CER 1 Sem. 2023'!C107 -> UCRIA | C114: =IF('Dati Generali CER 2 Sem. 2023'!E107="","",'Dati Generali CER 2 Sem. 2023'!E107) -> 30380 | D114: =IF(C114="","",'Dati Generali CER 2 Sem. 2023'!CE107) -> 128705 | E114: ='Dati Generali CER 2 Sem. 2023'!W107 -> 0.8090329069 | F114: =IF('Dati Generali CER 2 Sem. 2023'!CF107="","",'Dati Generali CER 2 Sem. 2023'!CF107) -> 0.9869776156 | G114: =IF('Dati Generali CER 2 Sem. 2023'!CG107="","",'Dati Generali CER 2 Sem. 2023'!CG107) -> 0.1884802462 | H114: =IF('Dati Generali CER 2 Sem. 2023'!CH107="","",'Dati Generali CER 2 Sem. 2023'!CH107) -> 0.7984973695 | I114: ='Dati Generali CER 2 Sem. 2023'!D107 -> 876 | J114: =IF('Dati Generali CER 2 Sem. 2023'!CJ107="","",'Dati Generali CER 2 Sem. 2023'!CJ107) -> 2024-02-08T13:22:31
A115: 106 | B115: ='Dati Generali CER 1 Sem. 2023'!C108 -> VALDINA | C115: =IF('Dati Generali CER 2 Sem. 2023'!E108="","",'Dati Generali CER 2 Sem. 2023'!E108) -> 131540 | D115: =IF(C115="","",'Dati Generali CER 2 Sem. 2023'!CE108) -> 135460 | E115: ='Dati Generali CER 2 Sem. 2023'!W108 -> 0.507340824 | F115: =IF('Dati Generali CER 2 Sem. 2023'!CF108="","",'Dati Generali CER 2 Sem. 2023'!CF108) -> 1.153487247 | G115: =IF('Dati Generali CER 2 Sem. 2023'!CG108="","",'Dati Generali CER 2 Sem. 2023'!CG108) -> 0.5682760766 | H115: =IF('Dati Generali CER 2 Sem. 2023'!CH108="","",'Dati Generali CER 2 Sem. 2023'!CH108) -> 0.5852111702 | I115: ='Dati Generali CER 2 Sem. 2023'!D108 -> 1258 | J115: =IF('Dati Generali CER 2 Sem. 2023'!CJ108="","",'Dati Generali CER 2 Sem. 2023'!CJ108) -> 2024-01-24T10:05:11
A116: 107 | B116: ='Dati Generali CER 1 Sem. 2023'!C109 -> VENETICO | C116: =IF('Dati Generali CER 2 Sem. 2023'!E109="","",'Dati Generali CER 2 Sem. 2023'!E109) -> 335100 | D116: =IF(C116="","",'Dati Generali CER 2 Sem. 2023'!CE109) -> 498818 | E116: ='Dati Generali CER 2 Sem. 2023'!W109 -> 0.5981619296 | F116: =IF('Dati Generali CER 2 Sem. 2023'!CF109="","",'Dati Generali CER 2 Sem. 2023'!CF109) -> 1.141890412 | G116: =IF('Dati Generali CER 2 Sem. 2023'!CG109="","",'Dati Generali CER 2 Sem. 2023'!CG109) -> 0.4588550396 | H116: =IF('Dati Generali CER 2 Sem. 2023'!CH109="","",'Dati Generali CER 2 Sem. 2023'!CH109) -> 0.683035372 | I116: ='Dati Generali CER 2 Sem. 2023'!D109 -> 3969 | J116: =IF('Dati Generali CER 2 Sem. 2023'!CJ109="","",'Dati Generali CER 2 Sem. 2023'!CJ109) -> 2024-01-24T10:07:35
A117: 108 | B117: ='Dati Generali CER 1 Sem. 2023'!C110 -> VILLAFRANCA TIRRENA | C117: =IF('Dati Generali CER 2 Sem. 2023'!E110="","",'Dati Generali CER 2 Sem. 2023'!E110) -> 532000 | D117: =IF(C117="","",'Dati Generali CER 2 Sem. 2023'!CE110) -> 1287289.5 | E117: ='Dati Generali CER 2 Sem. 2023'!W110 -> 0.7075781507 | F117: =IF('Dati Generali CER 2 Sem. 2023'!CF110="","",'Dati Generali CER 2 Sem. 2023'!CF110) -> 1.248729848 | G117: =IF('Dati Generali CER 2 Sem. 2023'!CG110="","",'Dati Generali CER 2 Sem. 2023'!CG110) -> 0.3651558914 | H117: =IF('Dati Generali CER 2 Sem. 2023'!CH110="","",'Dati Generali CER 2 Sem. 2023'!CH110) -> 0.8835739564 | I117: ='Dati Generali CER 2 Sem. 2023'!D110 -> 7918 | J117: =IF('Dati Generali CER 2 Sem. 2023'!CJ110="","",'Dati Generali CER 2 Sem. 2023'!CJ110) -> 2024-02-13T15:07:46
B118: Percentuale media dei 108 Comuni: | F118: ='Dati Generali CER 2 Sem. 2023'!W111 -> 0.6509160177

Sheet Grafico 2 Semestre 2023

Sheet Dati Generali anno 2023
A1: Produzione di Rifiuti Urbani e Raccolta Differenziata ANNO 2023.
A2: =COUNT(E3:E110) -> 108 | B2: ID COMUNE | C2: COMUNE | D2: ABITANTI AL 31/12/2023 | E2: R.S.U. + R.S.A. (Ton/anno) 200301 | F2: R.S.U. COVID (A+A1) 200301* | G2: Altri oli per motori, ingranaggi e lubrificazione (Ton/anno) 130208* | H2: Legno da demolizione (Ton/anno) 170201 | I2: Miscele bituminose (diverse da quelle 170301*) (Ton/anno) 170302 | J2: Alluminio (Ton/anno) 170402 | K2: Ferro e acciaio (Ton/anno) 170405 | L2: Materiali da costruzione contenenti amianto (Ton/anno) 170605* | M2: percolato di discarica,(diverso dalla voce 190702) (Ton/anno) 190703 | N2: Residui di vagliatura (Ton/anno) 190801 | O2: FANGHI DI DEPURAZIONE prodotti dal trattamento delle acque reflue urbane (Ton/anno) 190805 | P2: Altri rifiuti (compresi materiali misti) prodotti dal trattamento meccanico dei rifiuti,(diversi dalla voce 191211) (Ton/anno) 191212 | Q2: Rifiuti della pulizia delle fognature (Ton/anno) 200306 | R2: Residui della pulizia stradale (Ton/anno) 200303 Smaltimento | S2: Ingombranti (Ton/anno) - 200307 Smaltimento | T2: Rifiuti urbani non specificati altrimenti 200399 | U2: RACCOL. DIFFEREN. (Kg/anno) | V2: R.S.U. + R.S.A. + RACC. DIFF. (Kg/anno) | W2: % RACC. DIFF. | X2: Compostaggio Domestico | Y2: Toner per stampa esauriti,(diversi dalla voce 080317) 080318 | Z2: Imballaggi Carta e Cartone (Raccolta Selettiva) 150101 | AA2: Imballaggi in Plastica 150102 | AB2: Imballaggi in Legno 150103 | AC2: Imballaaggi in metallo 150104 | AD2: Imballaggi Materiali compositi 150105 | AE2: Imball. in materiali misti 150106 | AF2: Imballaggi in Vetro 150107 | AG2: Imballaggi in Materiale tessile 150109 | AH2: Imballaggi contenenti residui di sostanze pericolose o contaminati da tali sostanze 150110* | AI2: Imballaggi metallici contenenti matrici solide porose pericolose (ad esempio amianto) 150111* | AJ2: Pneumatici usati 160103 | AK2: Filtri dell'olio 160107* | AL2: Apparecchiature fuori uso contenenti PCB o da essi contaminate(diverse dalla voce 160209) 160210* | AM2: Apparecchiature fuori uso, contenenti clorofluorocarburi, HCFC, HFC 160211* | AN2: Apparecchiature fuori uso contenenti amianto in fibre libere 160212* | AO2: App.fuori uso contenete comp.pericolosi(diversi dalle voci da 160209 a 160212) 160213* | AP2: Apparecchiature fuori uso(diverse dalle voci da 160209 a 160213*) 160214* | AQ2: Componenti pericolosi rimossi da apparecchiature fuori uso 160215* | AR2: Componenti rimossi da apparecchiature fuori uso,(diversi dalla voce 160215) 160216 | AS2: Gas in contenitori a pressione limitatamente ad estintori ed aerosol ad uso domenstico 160504* | AT2: Gas in contenitori a pressione (diversi dalla voce 160504*) limitatamente ad estintori ed aerosol ad uso domenstico 160505 | AU2: Miscugli o frazioni separate di cemento, mattoni, mattonelle e ceramiche(diverse dalla voce 170106) 170107 | AV2: Rifiuti misti dell'attività di costruzione e demolizione, (diversi dalle voci 170901, 170902 e 170903) 170904 | AW2: Carta e Cartone (Raccolta Congiunta) 200101 | AX2: Vetro 200102 | AY2: Rifiuti biodegradabili di cucine e mense 200108 | AZ2: Abbigliamento 200110 | BA2: Prodotti tessili 200111 | BB2: Solventi 200113* | BC2: Acidi 200114* | BD2: Sostanze Alcaline 200115* | BE2: Prodotti Fotochimici 200117* | BF2: Pesticidi 200119* | BG2: Tubi fluorescenti ed altri rifiuti contenenti Mercurio 200121* | BH2: Apparec. Fuori uso conten. CFC e mat. peric. 200123* | BI2: Oli e Grassi commestibili 200125 | BJ2: Oli e grassi (diversi dalla voce 200125) 200126* | BK2: Vernici,Inchiostri,Adesivi e Resine contenenti sostanze pericolose 200127* | BL2: Vernici,Inchiostri,Adesivi e Resine (diversi dalla voce 200127*) 200128 | BM2: Detergento contenente sostanze pericolose 200129* | BN2: Detergenti (diversi della voce 200129*) 200130 | BO2: Medicinali citotossici e citostatici 200131* | BP2: Medicinali (diversi dlla voce 200131*) 200132 | BQ2: Batterie ed Accumulatori (diversi dalle voci 160601, 160602 e 160603) 200133* | BR2: Batterie ed accumulatori (diversi dlla voce 200133*) 200134 | BS2: Apparecc. elettr. ed elettroniche fuori uso contenenti Mat. Peric. 200135* | BT2: Apparecc. eletr. ed elettroniche fuori uso(diverse da 200121, 200123 e 200135 200136 | BU2: Legno contenente sostanze pericolose 200137* | BV2: Legno 200138 | BW2: Plastica 200139 | BX2: Metallo 200140 | BY2: Rifiuti prodotti dalla pulizia dei camini provenienti da utenze domestiche 200141 | BZ2: Rifiuti biodegradabili 200201 | CA2: Altri rifiuti non biodegradabili 200203 | CB2: Rifiuti dei Mercati 200302 | CC2: Residui della pulizia stradale - 200303 Recupero | CD2: Ingombranti - 200307 Recupero | CE2: TOTALE RD | CF2: CER R.D. utilizzati x Comune | CG2: R.S.U. + R.S.A.+ R.D. - (R.T. Kg. pro capite/g) | CH2: R.S.U. + R.S.A. 200301 - (R.I. Kg. pro capite/g) | CI2: R.D. - (Kg. pro capite/g)
A3: ='Dati Generali CER 1 Sem. 2023'!A3 -> 1 | B3: ='Dati Generali CER 1 Sem. 2023'!B3 -> M211 | C3: ='Dati Generali CER 1 Sem. 2023'!C3 -> ACQUEDOLCI | D3: ='Dati Generali CER 2 Sem. 2023'!D3 -> 5497 | E3: =IF(SUM('Dati Generali CER 1 Sem. 2023'!E3,'Dati Generali CER 2 Sem. 2023'!E3)=0,"",SUM('Dati Generali CER 1 Sem. 2023'!E3,'Dati Generali CER 2 Sem. 2023'!E3)/1000) -> 305.54 | F3: =IF(SUM('Dati Generali CER 1 Sem. 2023'!F3,'Dati Generali CER 2 Sem. 2023'!F3)=0,"",SUM('Dati Generali CER 1 Sem. 2023'!F3,'Dati Generali CER 2 Sem. 2023'!F3)/1000) ->  | G3: =IF(SUM('Dati Generali CER 1 Sem. 2023'!G3,'Dati Generali CER 2 Sem. 2023'!G3)=0,"",SUM('Dati Generali CER 1 Sem. 2023'!G3,'Dati Generali CER 2 Sem. 2023'!G3)/1000) ->  | H3: =IF(SUM('Dati Generali CER 1 Sem. 2023'!H3,'Dati Generali CER 2 Sem. 2023'!H3)=0,"",SUM('Dati Generali CER 1 Sem. 2023'!H3,'Dati Generali CER 2 Sem. 2023'!H3)/1000) ->  | I3: =IF(SUM('Dati Generali CER 1 Sem. 2023'!I3,'Dati Generali CER 2 Sem. 2023'!I3)=0,"",SUM('Dati Generali CER 1 Sem. 2023'!I3,'Dati Generali CER 2 Sem. 2023'!I3)/1000) ->  | J3: =IF(SUM('Dati Generali CER 1 Sem. 2023'!J3,'Dati Generali CER 2 Sem. 2023'!J3)=0,"",SUM('Dati Generali CER 1 Sem. 2023'!J3,'Dati Generali CER 2 Sem. 2023'!J3)/1000) ->  | K3: =IF(SUM('Dati Generali CER 1 Sem. 2023'!K3,'Dati Generali CER 2 Sem. 2023'!K3)=0,"",SUM('Dati Generali CER 1 Sem. 2023'!K3,'Dati Generali CER 2 Sem. 2023'!K3)/1000) ->  | L3: =IF(SUM('Dati Generali CER 1 Sem. 2023'!L3,'Dati Generali CER 2 Sem. 2023'!L3)=0,"",SUM('Dati Generali CER 1 Sem. 2023'!L3,'Dati Generali CER 2 Sem. 2023'!L3)/1000) ->  | M3: =IF(SUM('Dati Generali CER 1 Sem. 2023'!M3,'Dati Generali CER 2 Sem. 2023'!M3)=0,"",SUM('Dati Generali CER 1 Sem. 2023'!M3,'Dati Generali CER 2 Sem. 2023'!M3)/1000) ->  | N3: =IF(SUM('Dati Generali CER 1 Sem. 2023'!N3,'Dati Generali CER 2 Sem. 2023'!N3)=0,"",SUM('Dati Generali CER 1 Sem. 2023'!N3,'Dati Generali CER 2 Sem. 2023'!N3)/1000) ->  | O3: =IF(SUM('Dati Generali CER 1 Sem. 2023'!O3,'Dati Generali CER 2 Sem. 2023'!O3)=0,"",SUM('Dati Generali CER 1 Sem. 2023'!O3,'Dati Generali CER 2 Sem. 2023'!O3)/1000) ->  | P3: =IF(SUM('Dati Generali CER 1 Sem. 2023'!P3,'Dati Generali CER 2 Sem. 2023'!P3)=0,"",SUM('Dati Generali CER 1 Sem. 2023'!P3,'Dati Generali CER 2 Sem. 2023'!P3)/1000) ->  | Q3: =IF(SUM('Dati Generali CER 1 Sem. 2023'!Q3,'Dati Generali CER 2 Sem. 2023'!Q3)=0,"",SUM('Dati Generali CER 1 Sem. 2023'!Q3,'Dati Generali CER 2 Sem. 2023'!Q3)/1000) ->  | R3: =IF(SUM('Dati Generali CER 1 Sem. 2023'!R3,'Dati Generali CER 2 Sem. 2023'!R3)=0,"",SUM('Dati Generali CER 1 Sem. 2023'!R3,'Dati Generali CER 2 Sem. 2023'!R3)/1000) ->  | S3: =IF(SUM('Dati Generali CER 1 Sem. 2023'!S3,'Dati Generali CER 2 Sem. 2023'!S3)=0,"",SUM('Dati Generali CER 1 Sem. 2023'!S3,'Dati Generali CER 2 Sem. 2023'!S3)/1000) ->  | T3: =IF(SUM('Dati Generali CER 1 Sem. 2023'!T3,'Dati Generali CER 2 Sem. 2023'!T3)=0,"",SUM('Dati Generali CER 1 Sem. 2023'!T3,'Dati Generali CER 2 Sem. 2023'!T3)/1000) ->  | U3: =IF(E3="","",SUM('Dati Generali CER 1 Sem. 2023'!CE3,'Dati Generali CER 2 Sem. 2023'!CE3)/1000) -> 1495.56 | V3: =IF(SUM('Dati Generali CER 1 Sem. 2023'!V3,'Dati Generali CER 2 Sem. 2023'!V3)=0,"",SUM('Dati Generali CER 1 Sem. 2023'!V3,'Dati Generali CER 2 Sem. 2023'!V3)/1000) -> 1801.1 | W3: =IF(E3="","",U3/V3) -> 0.8303592249 | X3: =IF(SUM('Dati Generali CER 1 Sem. 2023'!X3,'Dati Generali CER 2 Sem. 2023'!X3)=0,"",SUM('Dati Generali CER 1 Sem. 2023'!X3,'Dati Generali CER 2 Sem. 2023'!X3)/1000) ->  | Y3: =IF(SUM('Dati Generali CER 1 Sem. 2023'!Y3,'Dati Generali CER 2 Sem. 2023'!Y3)=0,"",SUM('Dati Generali CER 1 Sem. 2023'!Y3,'Dati Generali CER 2 Sem. 2023'!Y3)/1000) ->  | Z3: =IF(SUM('Dati Generali CER 1 Sem. 2023'!Z3,'Dati Generali CER 2 Sem. 2023'!Z3)=0,"",SUM('Dati Generali CER 1 Sem. 2023'!Z3,'Dati Generali CER 2 Sem. 2023'!Z3)/1000) -> 64.62 | AA3: =IF(SUM('Dati Generali CER 1 Sem. 2023'!AA3,'Dati Generali CER 2 Sem. 2023'!AA3)=0,"",SUM('Dati Generali CER 1 Sem. 2023'!AA3,'Dati Generali CER 2 Sem. 2023'!AA3)/1000) -> 222.94 | AB3: =IF(SUM('Dati Generali CER 1 Sem. 2023'!AB3,'Dati Generali CER 2 Sem. 2023'!AB3)=0,"",SUM('Dati Generali CER 1 Sem. 2023'!AB3,'Dati Generali CER 2 Sem. 2023'!AB3)/1000) ->  | AC3: =IF(SUM('Dati Generali CER 1 Sem. 2023'!AC3,'Dati Generali CER 2 Sem. 2023'!AC3)=0,"",SUM('Dati Generali CER 1 Sem. 2023'!AC3,'Dati Generali CER 2 Sem. 2023'!AC3)/1000) ->  | AD3: =IF(SUM('Dati Generali CER 1 Sem. 2023'!AD3,'Dati Generali CER 2 Sem. 2023'!AD3)=0,"",SUM('Dati Generali CER 1 Sem. 2023'!AD3,'Dati Generali CER 2 Sem. 2023'!AD3)/1000) ->  | AE3: =IF(SUM('Dati Generali CER 1 Sem. 2023'!AE3,'Dati Generali CER 2 Sem. 2023'!AE3)=0,"",SUM('Dati Generali CER 1 Sem. 2023'!AE3,'Dati Generali CER 2 Sem. 2023'!AE3)/1000) ->  | AF3: =IF(SUM('Dati Generali CER 1 Sem. 2023'!AF3,'Dati Generali CER 2 Sem. 2023'!AF3)=0,"",SUM('Dati Generali CER 1 Sem. 2023'!AF3,'Dati Generali CER 2 Sem. 2023'!AF3)/1000) -> 243.04 | AG3: =IF(SUM('Dati Generali CER 1 Sem. 2023'!AG3,'Dati Generali CER 2 Sem. 2023'!AG3)=0,"",SUM('Dati Generali CER 1 Sem. 2023'!AG3,'Dati Generali CER 2 Sem. 2023'!AG3)/1000) ->  | AH3: =IF(SUM('Dati Generali CER 1 Sem. 2023'!AH3,'Dati Generali CER 2 Sem. 2023'!AH3)=0,"",SUM('Dati Generali CER 1 Sem. 2023'!AH3,'Dati Generali CER 2 Sem. 2023'!AH3)/1000) ->  | AI3: =IF(SUM('Dati Generali CER 1 Sem. 2023'!AI3,'Dati Generali CER 2 Sem. 2023'!AI3)=0,"",SUM('Dati Generali CER 1 Sem. 2023'!AI3,'Dati Generali CER 2 Sem. 2023'!AI3)/1000) ->  | AJ3: =IF(SUM('Dati Generali CER 1 Sem. 2023'!AJ3,'Dati Generali CER 2 Sem. 2023'!AJ3)=0,"",SUM('Dati Generali CER 1 Sem. 2023'!AJ3,'Dati Generali CER 2 Sem. 2023'!AJ3)/1000) ->  | AK3: =IF(SUM('Dati Generali CER 1 Sem. 2023'!AK3,'Dati Generali CER 2 Sem. 2023'!AK3)=0,"",SUM('Dati Generali CER 1 Sem. 2023'!AK3,'Dati Generali CER 2 Sem. 2023'!AK3)/1000) ->  | AL3: =IF(SUM('Dati Generali CER 1 Sem. 2023'!AL3,'Dati Generali CER 2 Sem. 2023'!AL3)=0,"",SUM('Dati Generali CER 1 Sem. 2023'!AL3,'Dati Generali CER 2 Sem. 2023'!AL3)/1000) ->  | AM3: =IF(SUM('Dati Generali CER 1 Sem. 2023'!AM3,'Dati Generali CER 2 Sem. 2023'!AM3)=0,"",SUM('Dati Generali CER 1 Sem. 2023'!AM3,'Dati Generali CER 2 Sem. 2023'!AM3)/1000) ->  | AN3: =IF(SUM('Dati Generali CER 1 Sem. 2023'!AN3,'Dati Generali CER 2 Sem. 2023'!AN3)=0,"",SUM('Dati Generali CER 1 Sem. 2023'!AN3,'Dati Generali CER 2 Sem. 2023'!AN3)/1000) ->  | AO3: =IF(SUM('Dati Generali CER 1 Sem. 2023'!AO3,'Dati Generali CER 2 Sem. 2023'!AO3)=0,"",SUM('Dati Generali CER 1 Sem. 2023'!AO3,'Dati Generali CER 2 Sem. 2023'!AO3)/1000) ->  | AP3: =IF(SUM('Dati Generali CER 1 Sem. 2023'!AP3,'Dati Generali CER 2 Sem. 2023'!AP3)=0,"",SUM('Dati Generali CER 1 Sem. 2023'!AP3,'Dati Generali CER 2 Sem. 2023'!AP3)/1000) ->  | AQ3: =IF(SUM('Dati Generali CER 1 Sem. 2023'!AQ3,'Dati Generali CER 2 Sem. 2023'!AQ3)=0,"",SUM('Dati Generali CER 1 Sem. 2023'!AQ3,'Dati Generali CER 2 Sem. 2023'!AQ3)/1000) ->  | AR3: =IF(SUM('Dati Generali CER 1 Sem. 2023'!AR3,'Dati Generali CER 2 Sem. 2023'!AR3)=0,"",SUM('Dati Generali CER 1 Sem. 2023'!AR3,'Dati Generali CER 2 Sem. 2023'!AR3)/1000) ->  | AS3: =IF(SUM('Dati Generali CER 1 Sem. 2023'!AS3,'Dati Generali CER 2 Sem. 2023'!AS3)=0,"",SUM('Dati Generali CER 1 Sem. 2023'!AS3,'Dati Generali CER 2 Sem. 2023'!AS3)/1000) ->  | AT3: =IF(SUM('Dati Generali CER 1 Sem. 2023'!AT3,'Dati Generali CER 2 Sem. 2023'!AT3)=0,"",SUM('Dati Generali CER 1 Sem. 2023'!AT3,'Dati Generali CER 2 Sem. 2023'!AT3)/1000) ->  | AU3: =IF(SUM('Dati Generali CER 1 Sem. 2023'!AU3,'Dati Generali CER 2 Sem. 2023'!AU3)=0,"",SUM('Dati Generali CER 1 Sem. 2023'!AU3,'Dati Generali CER 2 Sem. 2023'!AU3)/1000) ->  | AV3: =IF(SUM('Dati Generali CER 1 Sem. 2023'!AV3,'Dati Generali CER 2 Sem. 2023'!AV3)=0,"",SUM('Dati Generali CER 1 Sem. 2023'!AV3,'Dati Generali CER 2 Sem. 2023'!AV3)/1000) ->  | AW3: =IF(SUM('Dati Generali CER 1 Sem. 2023'!AW3,'Dati Generali CER 2 Sem. 2023'!AW3)=0,"",SUM('Dati Generali CER 1 Sem. 2023'!AW3,'Dati Generali CER 2 Sem. 2023'!AW3)/1000) -> 163.96 | AX3: =IF(SUM('Dati Generali CER 1 Sem. 2023'!AX3,'Dati Generali CER 2 Sem. 2023'!AX3)=0,"",SUM('Dati Generali CER 1 Sem. 2023'!AX3,'Dati Generali CER 2 Sem. 2023'!AX3)/1000) ->  | AY3: =IF(SUM('Dati Generali CER 1 Sem. 2023'!AY3,'Dati Generali CER 2 Sem. 2023'!AY3)=0,"",SUM('Dati Generali CER 1 Sem. 2023'!AY3,'Dati Generali CER 2 Sem. 2023'!AY3)/1000) -> 656.55 | AZ3: =IF(SUM('Dati Generali CER 1 Sem. 2023'!AZ3,'Dati Generali CER 2 Sem. 2023'!AZ3)=0,"",SUM('Dati Generali CER 1 Sem. 2023'!AZ3,'Dati Generali CER 2 Sem. 2023'!AZ3)/1000) -> 21.56 | BA3: =IF(SUM('Dati Generali CER 1 Sem. 2023'!BA3,'Dati Generali CER 2 Sem. 2023'!BA3)=0,"",SUM('Dati Generali CER 1 Sem. 2023'!BA3,'Dati Generali CER 2 Sem. 2023'!BA3)/1000) ->  | BB3: =IF(SUM('Dati Generali CER 1 Sem. 2023'!BB3,'Dati Generali CER 2 Sem. 2023'!BB3)=0,"",SUM('Dati Generali CER 1 Sem. 2023'!BB3,'Dati Generali CER 2 Sem. 2023'!BB3)/1000) ->  | BC3: =IF(SUM('Dati Generali CER 1 Sem. 2023'!BC3,'Dati Generali CER 2 Sem. 2023'!BC3)=0,"",SUM('Dati Generali CER 1 Sem. 2023'!BC3,'Dati Generali CER 2 Sem. 2023'!BC3)/1000) ->  | BD3: =IF(SUM('Dati Generali CER 1 Sem. 2023'!BD3,'Dati Generali CER 2 Sem. 2023'!BD3)=0,"",SUM('Dati Generali CER 1 Sem. 2023'!BD3,'Dati Generali CER 2 Sem. 2023'!BD3)/1000) ->  | BE3: =IF(SUM('Dati Generali CER 1 Sem. 2023'!BE3,'Dati Generali CER 2 Sem. 2023'!BE3)=0,"",SUM('Dati Generali CER 1 Sem. 2023'!BE3,'Dati Generali CER 2 Sem. 2023'!BE3)/1000) ->  | BF3: =IF(SUM('Dati Generali CER 1 Sem. 2023'!BF3,'Dati Generali CER 2 Sem. 2023'!BF3)=0,"",SUM('Dati Generali CER 1 Sem. 2023'!BF3,'Dati Generali CER 2 Sem. 2023'!BF3)/1000) ->  | BG3: =IF(SUM('Dati Generali CER 1 Sem. 2023'!BG3,'Dati Generali CER 2 Sem. 2023'!BG3)=0,"",SUM('Dati Generali CER 1 Sem. 2023'!BG3,'Dati Generali CER 2 Sem. 2023'!BG3)/1000) ->  | BH3: =IF(SUM('Dati Generali CER 1 Sem. 2023'!BH3,'Dati Generali CER 2 Sem. 2023'!BH3)=0,"",SUM('Dati Generali CER 1 Sem. 2023'!BH3,'Dati Generali CER 2 Sem. 2023'!BH3)/1000) -> 3.72 | BI3: =IF(SUM('Dati Generali CER 1 Sem. 2023'!BI3,'Dati Generali CER 2 Sem. 2023'!BI3)=0,"",SUM('Dati Generali CER 1 Sem. 2023'!BI3,'Dati Generali CER 2 Sem. 2023'!BI3)/1000) -> 4.03 | BJ3: =IF(SUM('Dati Generali CER 1 Sem. 2023'!BJ3,'Dati Generali CER 2 Sem. 2023'!BJ3)=0,"",SUM('Dati Generali CER 1 Sem. 2023'!BJ3,'Dati Generali CER 2 Sem. 2023'!BJ3)/1000) ->  | BK3: =IF(SUM('Dati Generali CER 1 Sem. 2023'!BK3,'Dati Generali CER 2 Sem. 2023'!BK3)=0,"",SUM('Dati Generali CER 1 Sem. 2023'!BK3,'Dati Generali CER 2 Sem. 2023'!BK3)/1000) ->  | BL3: =IF(SUM('Dati Generali CER 1 Sem. 2023'!BL3,'Dati Generali CER 2 Sem. 2023'!BL3)=0,"",SUM('Dati Generali CER 1 Sem. 2023'!BL3,'Dati Generali CER 2 Sem. 2023'!BL3)/1000) ->  | BM3: =IF(SUM('Dati Generali CER 1 Sem. 2023'!BM3,'Dati Generali CER 2 Sem. 2023'!BM3)=0,"",SUM('Dati Generali CER 1 Sem. 2023'!BM3,'Dati Generali CER 2 Sem. 2023'!BM3)/1000) ->  | BN3: =IF(SUM('Dati Generali CER 1 Sem. 2023'!BN3,'Dati Generali CER 2 Sem. 2023'!BN3)=0,"",SUM('Dati Generali CER 1 Sem. 2023'!BN3,'Dati Generali CER 2 Sem. 2023'!BN3)/1000) ->  | BO3: =IF(SUM('Dati Generali CER 1 Sem. 2023'!BO3,'Dati Generali CER 2 Sem. 2023'!BO3)=0,"",SUM('Dati Generali CER 1 Sem. 2023'!BO3,'Dati Generali CER 2 Sem. 2023'!BO3)/1000) ->  | BP3: =IF(SUM('Dati Generali CER 1 Sem. 2023'!BP3,'Dati Generali CER 2 Sem. 2023'!BP3)=0,"",SUM('Dati Generali CER 1 Sem. 2023'!BP3,'Dati Generali CER 2 Sem. 2023'!BP3)/1000) ->  | BQ3: =IF(SUM('Dati Generali CER 1 Sem. 2023'!BQ3,'Dati Generali CER 2 Sem. 2023'!BQ3)=0,"",SUM('Dati Generali CER 1 Sem. 2023'!BQ3,'Dati Generali CER 2 Sem. 2023'!BQ3)/1000) ->  | BR3: =IF(SUM('Dati Generali CER 1 Sem. 2023'!BR3,'Dati Generali CER 2 Sem. 2023'!BR3)=0,"",SUM('Dati Generali CER 1 Sem. 2023'!BR3,'Dati Generali CER 2 Sem. 2023'!BR3)/1000) ->  | BS3: =IF(SUM('Dati Generali CER 1 Sem. 2023'!BS3,'Dati Generali CER 2 Sem. 2023'!BS3)=0,"",SUM('Dati Generali CER 1 Sem. 2023'!BS3,'Dati Generali CER 2 Sem. 2023'!BS3)/1000) -> 10.06 | BT3: =IF(SUM('Dati Generali CER 1 Sem. 2023'!BT3,'Dati Generali CER 2 Sem. 2023'!BT3)=0,"",SUM('Dati Generali CER 1 Sem. 2023'!BT3,'Dati Generali CER 2 Sem. 2023'!BT3)/1000) -> 3.02 | BU3: =IF(SUM('Dati Generali CER 1 Sem. 2023'!BU3,'Dati Generali CER 2 Sem. 2023'!BU3)=0,"",SUM('Dati Generali CER 1 Sem. 2023'!BU3,'Dati Generali CER 2 Sem. 2023'!BU3)/1000) ->  | BV3: =IF(SUM('Dati Generali CER 1 Sem. 2023'!BV3,'Dati Generali CER 2 Sem. 2023'!BV3)=0,"",SUM('Dati Generali CER 1 Sem. 2023'!BV3,'Dati Generali CER 2 Sem. 2023'!BV3)/1000) ->  | BW3: =IF(SUM('Dati Generali CER 1 Sem. 2023'!BW3,'Dati Generali CER 2 Sem. 2023'!BW3)=0,"",SUM('Dati Generali CER 1 Sem. 2023'!BW3,'Dati Generali CER 2 Sem. 2023'!BW3)/1000) ->  | BX3: =IF(SUM('Dati Generali CER 1 Sem. 2023'!BX3,'Dati Generali CER 2 Sem. 2023'!BX3)=0,"",SUM('Dati Generali CER 1 Sem. 2023'!BX3,'Dati Generali CER 2 Sem. 2023'!BX3)/1000) ->  | BY3: =IF(SUM('Dati Generali CER 1 Sem. 2023'!BY3,'Dati Generali CER 2 Sem. 2023'!BY3)=0,"",SUM('Dati Generali CER 1 Sem. 2023'!BY3,'Dati Generali CER 2 Sem. 2023'!BY3)/1000) ->  | BZ3: =IF(SUM('Dati Generali CER 1 Sem. 2023'!BZ3,'Dati Generali CER 2 Sem. 2023'!BZ3)=0,"",SUM('Dati Generali CER 1 Sem. 2023'!BZ3,'Dati Generali CER 2 Sem. 2023'!BZ3)/1000) -> 3.5 | CA3: =IF(SUM('Dati Generali CER 1 Sem. 2023'!CA3,'Dati Generali CER 2 Sem. 2023'!CA3)=0,"",SUM('Dati Generali CER 1 Sem. 2023'!CA3,'Dati Generali CER 2 Sem. 2023'!CA3)/1000) ->  | CB3: =IF(SUM('Dati Generali CER 1 Sem. 2023'!CB3,'Dati Generali CER 2 Sem. 2023'!CB3)=0,"",SUM('Dati Generali CER 1 Sem. 2023'!CB3,'Dati Generali CER 2 Sem. 2023'!CB3)/1000) ->  | CC3: =IF(SUM('Dati Generali CER 1 Sem. 2023'!CC3,'Dati Generali CER 2 Sem. 2023'!CC3)=0,"",SUM('Dati Generali CER 1 Sem. 2023'!CC3,'Dati Generali CER 2 Sem. 2023'!CC3)/1000) ->  | CD3: =IF(SUM('Dati Generali CER 1 Sem. 2023'!CD3,'Dati Generali CER 2 Sem. 2023'!CD3)=0,"",SUM('Dati Generali CER 1 Sem. 2023'!CD3,'Dati Generali CER 2 Sem. 2023'!CD3)/1000) -> 98.56 | CE3: =IF(SUM('Dati Generali CER 1 Sem. 2023'!CE3,'Dati Generali CER 2 Sem. 2023'!CE3)=0,"",SUM('Dati Generali CER 1 Sem. 2023'!CE3,'Dati Generali CER 2 Sem. 2023'!CE3)/1000) -> 1495.56 | CF3: =IF(COUNT(X3:CD3,E3,R3,S3,T3)=0,"",COUNT(X3:CD3,E3,R3,S3,T3)) -> 13 | CG3: =IF(E3="","",V3/D3/0.365) -> 0.8976751952 | CH3: =IF(E3="","",E3/D3/0.365) -> 0.1522823159 | CI3: =IF(SUM(X3:CD3)=0,"",CE3/D3/0.365) -> 0.7453928793 | CJ3: =SUM(E3,R3,S3,T3,X3:CD3) -> 1801.1
